Workbook

Sheet INÍCIO (hidden)
B4: Ano de elaboração: | C4: 2022
B5: Ano de referência: | C5: =C4-1 -> 2021
B21: Concluintes | D21: Não computados
B22: Informados: | C22: =SUM(Concluintes!F:F) -> 2270
B23: Computados: | C23: =ALUNO_GRAD_TEMPO_INTEGRAL!C142 -> 2270 | D23: =C22-C23 -> 0
B25: Ingressantes
B26: Informados - ano: | C26: =SUMIF(Ingressantes!A:A,Ano_de_referência,Ingressantes!F:F) -> 4630
B27: Computados - ano: | C27: =ALUNO_GRAD_TEMPO_INTEGRAL!F142 -> 4630 | D27: =C26-C27 -> 0
B28: Informados - outros: | C28: =SUM(Ingressantes!F:F)-C26 -> 33758
B29: Computados - outros: | C29: =C27+TAXA_DE_SUCESSO_NA_GRADUAÇÃO!F141 -> 10019 | D29: =C28-C29 -> 23739
B31: Matriculados
B32: Informados: | C32: =SUM(Matriculados!E:E) -> 42397
B33: Computados: | C33: =ALUNO_DE_GRADUAÇÃO!C142+ALUNO_DE_GRADUAÇÃO!D142 -> 42397 | D33: =C32-C33 -> 0

Sheet Ingressantes (hidden)
A1: ANO | B1: SEM | C1: CURSO | D1: CURSOINEP | E1: TURNO | F1: ALUNOS
A2: 2015 | B2: 1 | C2: ABI - CIÊNCIAS BIOLÓGICAS - 01ABI | D2: 5000608 | E2: INTEGRAL | F2: 7
A3: 2015 | B3: 1 | C3: CIÊNCIAS BIOLÓGICAS - 01B | D3: 313086 | E3: INTEGRAL | F3: 39
A4: 2015 | B4: 1 | C4: ADMINISTRAÇÃO - 01GV | D4: 1178684 | E4: INTEGRAL | F4: 23
A5: 2015 | B5: 1 | C5: CIÊNCIAS BIOLÓGICAS - 01L | D5: 13086 | E5: INTEGRAL | F5: 21
A6: 2015 | B6: 1 | C6: CIÊNCIAS CONTÁBEIS - 02GV | D6: 1183351 | E6: INTEGRAL | F6: 31
A7: 2015 | B7: 1 | C7: CIÊNCIAS ECONÔMICAS - 03GV | D7: 1178683 | E7: INTEGRAL | F7: 21
A8: 2015 | B8: 1 | C8: DIREITO - 04A | D8: 13089 | E8: INTEGRAL | F8: 47
A9: 2015 | B9: 1 | C9: DIREITO - 04GV | D9: 1178675 | E9: INTEGRAL | F9: 67
A10: 2015 | B10: 1 | C10: CIÊNCIAS ECONÔMICAS - 05A | D10: 13090 | E10: INTEGRAL | F10: 50
A11: 2015 | B11: 1 | C11: FARMÁCIA - 05GV | D11: 1185503 | E11: INTEGRAL | F11: 21
A12: 2015 | B12: 1 | C12: FISIOTERAPIA - 06GV | D12: 1178689 | E12: INTEGRAL | F12: 18
A13: 2015 | B13: 1 | C13: FARMÁCIA - 07A | D13: 38509 | E13: INTEGRAL | F13: 46
A14: 2015 | B14: 1 | C14: MEDICINA - 07GV | D14: 5001167 | E14: INTEGRAL | F14: 53
A15: 2015 | B15: 1 | C15: ABI - FILOSOFIA - 08ABI | D15: 5000611 | E15: INTEGRAL | F15: 15
A16: 2015 | B16: 1 | C16: FILOSOFIA - 08B | D16: 313097 | E16: INTEGRAL | F16: 18
A17: 2015 | B17: 1 | C17: NUTRIÇÃO - 08GV | D17: 1178688 | E17: INTEGRAL | F17: 18
A18: 2015 | B18: 1 | C18: FILOSOFIA - 08L | D18: 13097 | E18: INTEGRAL | F18: 8
A19: 2015 | B19: 1 | C19: FÍSICA - 09A | D19: 5000613 | E19: INTEGRAL | F19: 3
A20: 2015 | B20: 1 | C20: ODONTOLOGIA - 09GV | D20: 5001168 | E20: INTEGRAL | F20: 33
A21: 2015 | B21: 1 | C21: ABI - GEOGRAFIA - 10ABI | D21: 5000615 | E21: INTEGRAL | F21: 23
A22: 2015 | B22: 1 | C22: GEOGRAFIA - 10B | D22: 313099 | E22: INTEGRAL | F22: 32
A23: 2015 | B23: 1 | C23: EDUCAÇÃO FÍSICA - 10GV | D23: 1270439 | E23: INTEGRAL | F23: 21
A24: 2015 | B24: 1 | C24: GEOGRAFIA - 10L | D24: 13099 | E24: INTEGRAL | F24: 14
A25: 2015 | B25: 1 | C25: ABI - HISTÓRIA - 11ABI | D25: 5000616 | E25: INTEGRAL | F25: 12
A26: 2015 | B26: 1 | C26: HISTÓRIA - 11B | D26: 313100 | E26: INTEGRAL | F26: 47
A27: 2015 | B27: 1 | C27: HISTÓRIA - 11L | D27: 13100 | E27: INTEGRAL | F27: 22
A28: 2015 | B28: 1 | C28: LETRAS - 13A | D28: 5000617 | E28: INTEGRAL | F28: 2
A29: 2015 | B29: 1 | C29: ABI - LETRAS - 13ABI | D29: 5000617 | E29: INTEGRAL | F29: 7
A30: 2015 | B30: 1 | C30: LETRAS - 13B | D30: 313101 | E30: INTEGRAL | F30: 13
A31: 2015 | B31: 1 | C31: LETRAS - 13B | D31: 313101 | E31: INTEGRAL | F31: 4
A32: 2015 | B32: 1 | C32: LETRAS - 13L | D32: 13101 | E32: INTEGRAL | F32: 5
A33: 2015 | B33: 1 | C33: LETRAS - 13L | D33: 13101 | E33: INTEGRAL | F33: 7
A34: 2015 | B34: 1 | C34: LETRAS - 13L | D34: 13101 | E34: INTEGRAL | F34: 21
A35: 2015 | B35: 1 | C35: LETRAS - 13L | D35: 13101 | E35: INTEGRAL | F35: 1
A36: 2015 | B36: 1 | C36: LETRAS - 13L | D36: 13101 | E36: INTEGRAL | F36: 1
A37: 2015 | B37: 1 | C37: LETRAS - 13L | D37: 13101 | E37: INTEGRAL | F37: 25
A38: 2015 | B38: 1 | C38: LETRAS - 13L | D38: 13101 | E38: INTEGRAL | F38: 3
A39: 2015 | B39: 1 | C39: LETRAS - 13L | D39: 13101 | E39: INTEGRAL | F39: 2
A40: 2015 | B40: 1 | C40: MEDICINA - 15A | D40: 13103 | E40: INTEGRAL | F40: 96
A41: 2015 | B41: 1 | C41: ODONTOLOGIA - 16A | D41: 13104 | E41: INTEGRAL | F41: 51
A42: 2015 | B42: 1 | C42: PEDAGOGIA - 17A | D42: 13105 | E42: MATUTINO | F42: 34
A43: 2015 | B43: 1 | C43: SERVIÇO SOCIAL - 19A | D43: 13107 | E43: MATUTINO | F43: 34
A44: 2015 | B44: 1 | C44: FISIOTERAPIA - 20A | D44: 13118 | E44: INTEGRAL | F44: 21
A45: 2015 | B45: 1 | C45: EDUCAÇÃO FÍSICA - 21B | D45: 5000610 | E45: INTEGRAL | F45: 33
A46: 2015 | B46: 1 | C46: EDUCAÇÃO FÍSICA - 21B | D46: 313092 | E46: INTEGRAL | F46: 10
A47: 2015 | B47: 1 | C47: EDUCAÇÃO FÍSICA - 21L | D47: 13092 | E47: INTEGRAL | F47: 26
A48: 2015 | B48: 1 | C48: ENFERMAGEM - 23A | D48: 38994 | E48: INTEGRAL | F48: 35
A49: 2015 | B49: 1 | C49: ENFERMAGEM - 23L | D49: 338994 | E49: INTEGRAL | F49: 29
A50: 2015 | B50: 1 | C50: ENGENHARIA CIVIL - 24A | D50: 13094 | E50: INTEGRAL | F50: 51
A51: 2015 | B51: 1 | C51: ADMINISTRAÇÃO - 26A | D51: 22451 | E51: INTEGRAL | F51: 38
A52: 2015 | B52: 1 | C52: ABI - GEOGRAFIA - 27ABI | D52: 5000615 | E52: NOTURNO | F52: 25
A53: 2015 | B53: 1 | C53: GEOGRAFIA - 27L | D53: 313099 | E53: NOTURNO | F53: 7
A54: 2015 | B54: 1 | C54: GEOGRAFIA - 27L | D54: 13099 | E54: NOTURNO | F54: 18
A55: 2015 | B55: 1 | C55: ABI - HISTÓRIA - 28ABI | D55: 5000616 | E55: NOTURNO | F55: 3
A56: 2015 | B56: 1 | C56: HISTÓRIA - 28B | D56: 313100 | E56: NOTURNO | F56: 16
A57: 2015 | B57: 1 | C57: HISTÓRIA - 28L | D57: 13100 | E57: NOTURNO | F57: 5
A58: 2015 | B58: 1 | C58: LETRAS - 29A | D58: 5000617 | E58: NOTURNO | F58: 4
A59: 2015 | B59: 1 | C59: ABI - LETRAS - 29ABI | D59: 5000617 | E59: NOTURNO | F59: 1
A60: 2015 | B60: 1 | C60: LETRAS - 29B | D60: 313101 | E60: NOTURNO | F60: 2
A61: 2015 | B61: 1 | C61: LETRAS - 29L | D61: 13101 | E61: NOTURNO | F61: 3
A62: 2015 | B62: 1 | C62: PEDAGOGIA - 30A | D62: 13105 | E62: NOTURNO | F62: 1
A63: 2015 | B63: 1 | C63: CIÊNCIAS SOCIAIS - 31B | D63: 313087 | E63: INTEGRAL | F63: 1
A64: 2015 | B64: 1 | C64: PSICOLOGIA - 32A | D64: 13113 | E64: INTEGRAL | F64: 48
A65: 2015 | B65: 1 | C65: ARQUITETURA E URBANISMO - 33A | D65: 13114 | E65: INTEGRAL | F65: 44
A66: 2015 | B66: 1 | C66: DIREITO - 34A | D66: 21860 | E66: NOTURNO | F66: 48
A67: 2015 | B67: 1 | C67: ADMINISTRAÇÃO - 46A | D67: 22451 | E67: NOTURNO | F67: 41
A68: 2015 | B68: 1 | C68: ENGENHARIA DE PRODUÇÃO - 49A | D68: 38594 | E68: NOTURNO | F68: 31
A69: 2015 | B69: 1 | C69: CIÊNCIAS ECONÔMICAS - 51A | D69: 13090 | E69: NOTURNO | F69: 49
A70: 2015 | B70: 1 | C70: MÚSICA - CANTO - 63A | D70: 116490 | E70: INTEGRAL | F70: 2
A71: 2015 | B71: 1 | C71: MÚSICA - MODALIDADE PIANO - 63C | D71: 116490 | E71: INTEGRAL | F71: 1
A72: 2015 | B72: 1 | C72: MÚSICA - MODALIDADE PIANO - 63C | D72: 116492 | E72: INTEGRAL | F72: 1
A73: 2015 | B73: 1 | C73: MÚSICA - MODALIDADE VIOLÃO - 63D | D73: 116490 | E73: INTEGRAL | F73: 1
A74: 2015 | B74: 1 | C74: MÚSICA - MODALIDADE VIOLÃO - 63D | D74: 116493 | E74: INTEGRAL | F74: 1
A75: 2015 | B75: 1 | C75: MÚSICA - MODALIDADE VIOLINO - 63E | D75: 116490 | E75: INTEGRAL | F75: 1
A76: 2015 | B76: 1 | C76: MÚSICA - MODALIDADE VIOLINO - 63E | D76: 116494 | E76: INTEGRAL | F76: 1
A77: 2015 | B77: 1 | C77: MÚSICA - MODALIDADE VIOLONCELO - 63F | D77: 116490 | E77: INTEGRAL | F77: 1
A78: 2015 | B78: 1 | C78: MÚSICA - MODALIDADE VIOLONCELO - 63F | D78: 116495 | E78: INTEGRAL | F78: 1
A79: 2015 | B79: 1 | C79: MÚSICA - MODALIDADE COMPOSIÇÃO - 63G | D79: 116490 | E79: INTEGRAL | F79: 4
A80: 2015 | B80: 1 | C80: MÚSICA - MODALIDADE COMPOSIÇÃO - 63G | D80: 1271995 | E80: INTEGRAL | F80: 4
A81: 2015 | B81: 1 | C81: NUTRIÇÃO - 64A | D81: 116498 | E81: INTEGRAL | F81: 57
A82: 2015 | B82: 1 | C82: CIÊNCIAS EXATAS - 65A | D82: 116502 | E82: INTEGRAL | F82: 261
A83: 2015 | B83: 1 | C83: ENGENHARIA COMPUTACIONAL - 65B | D83: 1120244 | E83: INTEGRAL | F83: 28
A84: 2015 | B84: 1 | C84: CIÊNCIA DA COMPUTAÇÃO - 65C | D84: 65361 | E84: INTEGRAL | F84: 42
A85: 2015 | B85: 1 | C85: ESTATÍSTICA - 65D | D85: 113531 | E85: INTEGRAL | F85: 19
A86: 2015 | B86: 1 | C86: FÍSICA - 65E | D86: 5000613 | E86: INTEGRAL | F86: 35
A87: 2015 | B87: 1 | C87: FÍSICA - 65E | D87: 313098 | E87: INTEGRAL | F87: 2
A88: 2015 | B88: 1 | C88: MATEMÁTICA - 65F | D88: 5000618 | E88: INTEGRAL | F88: 32
A89: 2015 | B89: 1 | C89: MATEMÁTICA - 65F | D89: 313102 | E89: INTEGRAL | F89: 8
A90: 2015 | B90: 1 | C90: MATEMÁTICA - 65FL | D90: 13102 | E90: INTEGRAL | F90: 2
A91: 2015 | B91: 1 | C91: QUÍMICA - 65GB | D91: 5000619 | E91: INTEGRAL | F91: 63
A92: 2015 | B92: 1 | C92: QUÍMICA - 65GB | D92: 5000619 | E92: INTEGRAL | F92: 1
A93: 2015 | B93: 1 | C93: QUÍMICA - 65GB | D93: 313106 | E93: INTEGRAL | F93: 14
A94: 2015 | B94: 1 | C94: QUÍMICA - 65GL | D94: 13106 | E94: INTEGRAL | F94: 10
A95: 2015 | B95: 1 | C95: ENGENHARIA ELÉTRICA - HABILITAÇÃO EM ENERGIA - 65H | D95: 1109475 | E95: NOTURNO | F95: 5
A96: 2015 | B96: 1 | C96: ENGENHARIA ELÉTRICA - HAB. EM ROBÓTICA E AUTOMAÇÃO INDUSTRIAL - 65I | D96: 1109485 | E96: INTEGRAL | F96: 2
A97: 2015 | B97: 1 | C97: ENGENHARIA ELÉTRICA - HABILITAÇÃO EM SISTEMAS DE POTÊNCIA - 65J | D97: 1109486 | E97: INTEGRAL | F97: 6
A98: 2015 | B98: 1 | C98: ENGENHARIA ELÉTRICA - HABILITAÇÃO EM SISTEMAS ELETRÔNICOS - 65K | D98: 1109487 | E98: INTEGRAL | F98: 1
A99: 2015 | B99: 1 | C99: ENGENHARIA MECÂNICA - 65M | D99: 1109489 | E99: INTEGRAL | F99: 15
A100: 2015 | B100: 1 | C100: BACHARELADO INTERDISCIPLINAR EM ARTES E DESIGN - 66A | D100: 116500 | E100: INTEGRAL | F100: 121
A101: 2015 | B101: 1 | C101: BACHARELADO EM CINEMA E AUDIOVISUAL - 66B | D101: 1153947 | E101: INTEGRAL | F101: 38
A102: 2015 | B102: 1 | C102: BACHARELADO EM ARTES VISUAIS - 66C | D102: 1153948 | E102: INTEGRAL | F102: 20
A103: 2015 | B103: 1 | C103: BACHARELADO EM DESIGN - 66D | D103: 1153949 | E103: INTEGRAL | F103: 65
A104: 2015 | B104: 1 | C104: BACHARELADO EM MODA - 66E | D104: 1153950 | E104: INTEGRAL | F104: 37
A105: 2015 | B105: 1 | C105: LICENCIATURA EM ARTES VISUAIS - 66F | D105: 1153951 | E105: NOTURNO | F105: 38
A106: 2015 | B106: 1 | C106: ENGENHARIA AMBIENTAL E SANITÁRIA - 67A | D106: 116496 | E106: INTEGRAL | F106: 47
A107: 2015 | B107: 1 | C107: SERVIÇO SOCIAL - 68A | D107: 13107 | E107: NOTURNO | F107: 2
A108: 2015 | B108: 1 | C108: ENGENHARIA ELÉTRICA - HABILITAÇÃO EM SISTEMAS ELETRÔNICOS - 69A | D108: 1109487 | E108: INTEGRAL | F108: 19
A109: 2015 | B109: 1 | C109: ENGENHARIA ELÉTRICA - HAB. EM ROBÓTICA E AUTOMAÇÃO INDUSTRIAL - 69B | D109: 1109485 | E109: INTEGRAL | F109: 20
A110: 2015 | B110: 1 | C110: ENGENHARIA ELÉTRICA - HABILITAÇÃO EM SISTEMAS DE POTÊNCIA - 69C | D110: 1109486 | E110: INTEGRAL | F110: 21
A111: 2015 | B111: 1 | C111: ENGENHARIA ELÉTRICA - HABILITAÇÃO EM TELECOMUNICAÇÕES - 69D | D111: 1109488 | E111: INTEGRAL | F111: 21
A112: 2015 | B112: 1 | C112: ENGENHARIA ELÉTRICA - HABILITAÇÃO EM ENERGIA - 70A | D112: 1109475 | E112: NOTURNO | F112: 39
A113: 2015 | B113: 1 | C113: ENGENHARIA MECÂNICA - 71A | D113: 1109489 | E113: INTEGRAL | F113: 22
A114: 2015 | B114: 1 | C114: BACHARELADO INTERDISCIPLINAR EM CIÊNCIAS HUMANAS - 72A | D114: 1120242 | E114: INTEGRAL | F114: 161
A115: 2015 | B115: 1 | C115: CIÊNCIA DA RELIGIÃO - 72B | D115: 1165350 | E115: NOTURNO | F115: 2
A116: 2015 | B116: 1 | C116: CIÊNCIAS SOCIAIS - 72C | D116: 5000609 | E116: INTEGRAL | F116: 2
A117: 2015 | B117: 1 | C117: CIÊNCIAS SOCIAIS - 72CB | D117: 313087 | E117: INTEGRAL | F117: 5
A118: 2015 | B118: 1 | C118: CIÊNCIAS SOCIAIS - 72CL | D118: 13087 | E118: INTEGRAL | F118: 2
A119: 2015 | B119: 1 | C119: TURISMO - 72D | D119: 21589 | E119: INTEGRAL | F119: 16
A120: 2015 | B120: 1 | C120: FILOSOFIA - 72EB | D120: 5000611 | E120: INTEGRAL | F120: 2
A121: 2015 | B121: 1 | C121: FILOSOFIA - 72EB | D121: 313097 | E121: DIURNO | F121: 3
A122: 2015 | B122: 1 | C122: FILOSOFIA - 72EL | D122: 13097 | E122: INTEGRAL | F122: 2
A123: 2015 | B123: 1 | C123: BACHARELADO INTERDISCIPLINAR EM CIÊNCIAS HUMANAS - 73A | D123: 1120242 | E123: NOTURNO | F123: 5
A124: 2015 | B124: 1 | C124: CIÊNCIA DA RELIGIÃO - 73B | D124: 1165350 | E124: NOTURNO | F124: 6
A125: 2015 | B125: 1 | C125: CIÊNCIA DA RELIGIÃO - 73BL | D125: 1165686 | E125: NOTURNO | F125: 9
A126: 2015 | B126: 1 | C126: CIÊNCIAS SOCIAIS - 73C | D126: 5000609 | E126: NOTURNO | F126: 30
A127: 2015 | B127: 1 | C127: CIÊNCIAS SOCIAIS - 73CB | D127: 313087 | E127: NOTURNO | F127: 10
A128: 2015 | B128: 1 | C128: CIÊNCIAS SOCIAIS - 73CL | D128: 13087 | E128: NOTURNO | F128: 10
A129: 2015 | B129: 1 | C129: TURISMO - 73D | D129: 21589 | E129: NOTURNO | F129: 6
A130: 2015 | B130: 1 | C130: CIÊNCIAS CONTÁBEIS - 77A | D130: 1132074 | E130: INTEGRAL | F130: 38
A131: 2015 | B131: 1 | C131: CIÊNCIAS CONTÁBEIS - 78A | D131: 1132074 | E131: NOTURNO | F131: 45
A132: 2015 | B132: 1 | C132: JORNALISMO - 84A | D132: 27657 | E132: INTEGRAL | F132: 35
A133: 2015 | B133: 1 | C133: JORNALISMO - 85A | D133: 36356 | E133: NOTURNO | F133: 38
A134: 2015 | B134: 1 | C134: MEDICINA VETERINÁRIA - 87A | D134: 1268972 | E134: INTEGRAL | F134: 49
A135: 2015 | B135: 1 | C135: LICENCIATURA EM MÚSICA - 89A | D135: 1278855 | E135: INTEGRAL | F135: 7
A136: 2015 | B136: 1 | C136: LICENCIATURA EM MÚSICA - 89A | D136: 1278855 | E136: INTEGRAL | F136: 1
A137: 2015 | B137: 1 | C137: LICENCIATURA EM MÚSICA - 89A | D137: 1278855 | E137: INTEGRAL | F137: 7
A138: 2015 | B138: 2 | C138: CIÊNCIAS BIOLÓGICAS - 01A | D138: 5000608 | E138: INTEGRAL | F138: 1
A139: 2015 | B139: 2 | C139: ABI - CIÊNCIAS BIOLÓGICAS - 01ABI | D139: 5000608 | E139: INTEGRAL | F139: 18
A140: 2015 | B140: 2 | C140: CIÊNCIAS BIOLÓGICAS - 01B | D140: 313086 | E140: INTEGRAL | F140: 20
A141: 2015 | B141: 2 | C141: ADMINISTRAÇÃO - 01GV | D141: 1178684 | E141: INTEGRAL | F141: 98
A142: 2015 | B142: 2 | C142: CIÊNCIAS BIOLÓGICAS - 01L | D142: 13086 | E142: INTEGRAL | F142: 11
A143: 2015 | B143: 2 | C143: CIÊNCIAS ECONÔMICAS - 03GV | D143: 1178683 | E143: INTEGRAL | F143: 86
A144: 2015 | B144: 2 | C144: DIREITO - 04A | D144: 13089 | E144: INTEGRAL | F144: 58
A145: 2015 | B145: 2 | C145: DIREITO - 04GV | D145: 1178675 | E145: INTEGRAL | F145: 59
A146: 2015 | B146: 2 | C146: FARMÁCIA - 05GV | D146: 1185503 | E146: INTEGRAL | F146: 75
A147: 2015 | B147: 2 | C147: FISIOTERAPIA - 06GV | D147: 1178689 | E147: INTEGRAL | F147: 55
A148: 2015 | B148: 2 | C148: FARMÁCIA - 07A | D148: 38509 | E148: INTEGRAL | F148: 61
A149: 2015 | B149: 2 | C149: MEDICINA - 07GV | D149: 5001167 | E149: INTEGRAL | F149: 73
A150: 2015 | B150: 2 | C150: FILOSOFIA - 08B | D150: 313097 | E150: INTEGRAL | F150: 1
A151: 2015 | B151: 2 | C151: NUTRIÇÃO - 08GV | D151: 1178688 | E151: INTEGRAL | F151: 84
A152: 2015 | B152: 2 | C152: FILOSOFIA - 08L | D152: 13097 | E152: INTEGRAL | F152: 4
A153: 2015 | B153: 2 | C153: FÍSICA - 09A | D153: 5000613 | E153: INTEGRAL | F153: 1
A154: 2015 | B154: 2 | C154: ODONTOLOGIA - 09GV | D154: 5001168 | E154: INTEGRAL | F154: 70
A155: 2015 | B155: 2 | C155: GEOGRAFIA - 10B | D155: 313099 | E155: INTEGRAL | F155: 3
A156: 2015 | B156: 2 | C156: EDUCAÇÃO FÍSICA - 10GV | D156: 1270439 | E156: INTEGRAL | F156: 86
A157: 2015 | B157: 2 | C157: GEOGRAFIA - 10L | D157: 13099 | E157: INTEGRAL | F157: 2
A158: 2015 | B158: 2 | C158: HISTÓRIA - 11B | D158: 313100 | E158: INTEGRAL | F158: 1
A159: 2015 | B159: 2 | C159: LETRAS - 13A | D159: 5000617 | E159: INTEGRAL | F159: 1
A160: 2015 | B160: 2 | C160: LETRAS - 13B | D160: 313101 | E160: INTEGRAL | F160: 2
A161: 2015 | B161: 2 | C161: LETRAS - 13B | D161: 313101 | E161: INTEGRAL | F161: 3
A162: 2015 | B162: 2 | C162: LETRAS - 13L | D162: 13101 | E162: INTEGRAL | F162: 2
A163: 2015 | B163: 2 | C163: LETRAS - 13L | D163: 13101 | E163: INTEGRAL | F163: 8
A164: 2015 | B164: 2 | C164: LETRAS - 13L | D164: 13101 | E164: INTEGRAL | F164: 5
A165: 2015 | B165: 2 | C165: MEDICINA - 15A | D165: 13103 | E165: INTEGRAL | F165: 113
A166: 2015 | B166: 2 | C166: ODONTOLOGIA - 16A | D166: 13104 | E166: INTEGRAL | F166: 61
A167: 2015 | B167: 2 | C167: PEDAGOGIA - 17A | D167: 13105 | E167: MATUTINO | F167: 1
A168: 2015 | B168: 2 | C168: SERVIÇO SOCIAL - 19A | D168: 13107 | E168: MATUTINO | F168: 1
A169: 2015 | B169: 2 | C169: FISIOTERAPIA - 20A | D169: 13118 | E169: INTEGRAL | F169: 23
A170: 2015 | B170: 2 | C170: EDUCAÇÃO FÍSICA - 21B | D170: 5000610 | E170: INTEGRAL | F170: 47
A171: 2015 | B171: 2 | C171: EDUCAÇÃO FÍSICA - 21B | D171: 313092 | E171: INTEGRAL | F171: 15
A172: 2015 | B172: 2 | C172: EDUCAÇÃO FÍSICA - 21L | D172: 13092 | E172: INTEGRAL | F172: 30
A173: 2015 | B173: 2 | C173: ENFERMAGEM - 23A | D173: 38994 | E173: INTEGRAL | F173: 46
A174: 2015 | B174: 2 | C174: ENFERMAGEM - 23L | D174: 338994 | E174: INTEGRAL | F174: 14
A175: 2015 | B175: 2 | C175: ENGENHARIA CIVIL - 24A | D175: 13094 | E175: INTEGRAL | F175: 55
A176: 2015 | B176: 2 | C176: GEOGRAFIA - 27L | D176: 313099 | E176: NOTURNO | F176: 2
A177: 2015 | B177: 2 | C177: GEOGRAFIA - 27L | D177: 13099 | E177: NOTURNO | F177: 1
A178: 2015 | B178: 2 | C178: ABI - HISTÓRIA - 28ABI | D178: 5000616 | E178: NOTURNO | F178: 31
A179: 2015 | B179: 2 | C179: HISTÓRIA - 28B | D179: 313100 | E179: NOTURNO | F179: 20
A180: 2015 | B180: 2 | C180: HISTÓRIA - 28L | D180: 13100 | E180: NOTURNO | F180: 21
A181: 2015 | B181: 2 | C181: LETRAS - 29A | D181: 5000617 | E181: NOTURNO | F181: 3
A182: 2015 | B182: 2 | C182: ABI - LETRAS - 29ABI | D182: 5000617 | E182: NOTURNO | F182: 40
A183: 2015 | B183: 2 | C183: LETRAS - 29L | D183: 13101 | E183: NOTURNO | F183: 2
A184: 2015 | B184: 2 | C184: LETRAS - 29L | D184: 13101 | E184: NOTURNO | F184: 7
A185: 2015 | B185: 2 | C185: LETRAS - 29L | D185: 13101 | E185: NOTURNO | F185: 10
A186: 2015 | B186: 2 | C186: PEDAGOGIA - 30A | D186: 13105 | E186: NOTURNO | F186: 45
A187: 2015 | B187: 2 | C187: PSICOLOGIA - 32A | D187: 13113 | E187: INTEGRAL | F187: 1
A188: 2015 | B188: 2 | C188: ARQUITETURA E URBANISMO - 33A | D188: 13114 | E188: INTEGRAL | F188: 41
A189: 2015 | B189: 2 | C189: DIREITO - 34A | D189: 21860 | E189: NOTURNO | F189: 58
A190: 2015 | B190: 2 | C190: CIÊNCIA DA COMPUTAÇÃO - 35A | D190: 18518 | E190: NOTURNO | F190: 49
A191: 2015 | B191: 2 | C191: ADMINISTRAÇÃO - 46A | D191: 22451 | E191: NOTURNO | F191: 1
A192: 2015 | B192: 2 | C192: ENGENHARIA DE PRODUÇÃO - 49A | D192: 38594 | E192: NOTURNO | F192: 34
A193: 2015 | B193: 2 | C193: CIÊNCIAS ECONÔMICAS - 51A | D193: 13090 | E193: NOTURNO | F193: 3
A194: 2015 | B194: 2 | C194: NUTRIÇÃO - 64A | D194: 116498 | E194: INTEGRAL | F194: 66
A195: 2015 | B195: 2 | C195: ENGENHARIA COMPUTACIONAL - 65B | D195: 1120244 | E195: INTEGRAL | F195: 5
A196: 2015 | B196: 2 | C196: ESTATÍSTICA - 65D | D196: 113531 | E196: INTEGRAL | F196: 1
A197: 2015 | B197: 2 | C197: FÍSICA - 65E | D197: 313098 | E197: INTEGRAL | F197: 1
A198: 2015 | B198: 2 | C198: MATEMÁTICA - 65F | D198: 5000618 | E198: INTEGRAL | F198: 2
A199: 2015 | B199: 2 | C199: MATEMÁTICA - 65F | D199: 313102 | E199: INTEGRAL | F199: 1
A200: 2015 | B200: 2 | C200: MATEMÁTICA - 65FL | D200: 13102 | E200: INTEGRAL | F200: 1
... 1144 more rows

Sheet Concluintes (hidden)
A1: SEM | B1: CURSO | C1: CURSOINEP | D1: OPCAO | E1: TURNO | F1: CONCLUINTES | H1: os cursos medicina JF e enfermagem JF (em vermelho) não tinham ainda os concluintes totais de 2021/1, utilizamos os 2020/1
A2: 1 | B2: CIÊNCIAS BIOLÓGICAS - 01B | C2: 313086 | D2: 1-Bacharelado | E2: INTEGRAL | F2: 4
A3: 1 | B3: ADMINISTRAÇÃO - 01GV | C3: 1178684 | D3: 1-Bacharelado em Administração | E3: INTEGRAL | F3: 7
A4: 1 | B4: CIÊNCIAS BIOLÓGICAS - 01L | C4: 13086 | D4: 1-Licenciado | E4: INTEGRAL | F4: 9
A5: 1 | B5: CIÊNCIAS CONTÁBEIS - 02GV | C5: 1183351 | D5: 1-Bacharelado em Ciências Contábeis | E5: INTEGRAL | F5: 1
A6: 1 | B6: CIÊNCIAS ECONÔMICAS - 03GV | C6: 1178683 | D6: 1-Bacharelado | E6: INTEGRAL | F6: 5
A7: 1 | B7: DIREITO - 04A | C7: 13089 | D7: 1-Bacharelado | E7: INTEGRAL | F7: 41
A8: 1 | B8: DIREITO - 04GV | C8: 1178675 | D8: 1-Bacharelado | E8: INTEGRAL | F8: 40
A9: 1 | B9: CIÊNCIAS ECONÔMICAS - 05A | C9: 13090 | D9: 1-Bacharelado | E9: INTEGRAL | F9: 8
A10: 1 | B10: FARMÁCIA - 05GV | C10: 1185503 | D10: 1-Farmácia | E10: INTEGRAL | F10: 2
A11: 1 | B11: FARMÁCIA - 07A | C11: 38509 | D11: 1-Farmácia | E11: INTEGRAL | F11: 14
A12: 1 | B12: MEDICINA - 07GV | C12: 5001167 | D12: 1-Bacharelado | E12: INTEGRAL | F12: 29
A13: 1 | B13: FILOSOFIA - 08B | C13: 313097 | D13: 1-BACHAREL | E13: INTEGRAL | F13: 3
A14: 1 | B14: FILOSOFIA - 08L | C14: 13097 | D14: 1-LICENCIADO | E14: INTEGRAL | F14: 1
A15: 1 | B15: ODONTOLOGIA - 09GV | C15: 5001168 | D15: 1-Cirurgião-Dentista | E15: INTEGRAL | F15: 23
A16: 1 | B16: GEOGRAFIA - 10B | C16: 313099 | D16: 0-Bacharelado | E16: INTEGRAL | F16: 4
A17: 1 | B17: EDUCAÇÃO FÍSICA - 10GV | C17: 1270439 | D17: 1-Bacharelado em Educação Física | E17: INTEGRAL | F17: 4
A18: 1 | B18: GEOGRAFIA - 10L | C18: 13099 | D18: 0-Licenciado | E18: INTEGRAL | F18: 8
A19: 1 | B19: HISTÓRIA - 11B | C19: 313100 | D19: 1-Bacharelado | E19: INTEGRAL | F19: 1
A20: 1 | B20: HISTÓRIA - 11B | C20: 313100 | D20: 2-Bacharel em História e Ênfase em Patrimônio Histórico | E20: INTEGRAL | F20: 1
A21: 1 | B21: HISTÓRIA - 11L | C21: 13100 | D21: 1-Licenciado em História | E21: INTEGRAL | F21: 9
A22: 1 | B22: HISTÓRIA - 11L | C22: 13100 | D22: 2-Licenciado em História e Ênfase em Patrimônio Histórico | E22: INTEGRAL | F22: 1
A23: 1 | B23: LETRAS - 13B | C23: 313101 | D23: 1-Bacharelado | E23: INTEGRAL | F23: 1
A24: 1 | B24: LETRAS - 13L | C24: 13101 | D24: 1-Licenciado | E24: INTEGRAL | F24: 1
A25: 1 | B25: LETRAS - 13L | C25: 13101 | D25: 1-Licenciatura | E25: INTEGRAL | F25: 1
A26: 1 | B26: LETRAS - 13L | C26: 13101 | D26: 1-Licenciado | E26: INTEGRAL | F26: 4
A27: 1 | B27: LETRAS - 13L | C27: 13101 | D27: 1-Licenciatura | E27: INTEGRAL | F27: 14
A28: 1 | B28: MEDICINA - 15A | C28: 13103 | D28: 1-Médico | E28: INTEGRAL | F28: 86
A29: 1 | B29: ODONTOLOGIA - 16A | C29: 13104 | D29: 1-Cirurgião-Dentista | E29: INTEGRAL | F29: 21
A30: 1 | B30: PEDAGOGIA - 17A | C30: 13105 | D30: 1-Licenciatura | E30: MATUTINO | F30: 14
A31: 1 | B31: SERVIÇO SOCIAL - 19A | C31: 13107 | D31: 1-Bacharel em Serviço Social | E31: MATUTINO | F31: 1
A32: 1 | B32: FISIOTERAPIA - 20A | C32: 13118 | D32: 1-Fisioterapeuta | E32: INTEGRAL | F32: 10
A33: 1 | B33: EDUCAÇÃO FÍSICA - 21B | C33: 313092 | D33: 1-Bacharelado | E33: INTEGRAL | F33: 12
A34: 1 | B34: EDUCAÇÃO FÍSICA - 21L | C34: 13092 | D34: 1-Licenciatura | E34: INTEGRAL | F34: 19
A35: 1 | B35: ENGENHARIA CIVIL - 24A | C35: 13094 | D35: 1-Engenheiro Civil | E35: INTEGRAL | F35: 18
A36: 1 | B36: ENGENHARIA CIVIL - 24A | C36: 13094 | D36: 16-Transportes e Geotecnia | E36: INTEGRAL | F36: 1
A37: 1 | B37: ENGENHARIA CIVIL - 24A | C37: 13094 | D37: 18-Construção Civil E Transportes e Geotecnia | E37: INTEGRAL | F37: 2
A38: 1 | B38: ENGENHARIA CIVIL - 24A | C38: 13094 | D38: 5-Construção Civil | E38: INTEGRAL | F38: 4
A39: 1 | B39: ADMINISTRAÇÃO - 26A | C39: 22451 | D39: 1-Adm. Empresas | E39: INTEGRAL | F39: 8
A40: 1 | B40: GEOGRAFIA - 27L | C40: 13099 | D40: 0-Licenciado | E40: NOTURNO | F40: 7
A41: 1 | B41: HISTÓRIA - 28B | C41: 313100 | D41: 1-Bacharelado | E41: NOTURNO | F41: 1
A42: 1 | B42: HISTÓRIA - 28B | C42: 313100 | D42: 2-Bacharel em História e Ênfase em Patrimônio Histórico | E42: NOTURNO | F42: 1
A43: 1 | B43: HISTÓRIA - 28L | C43: 13100 | D43: 1-Licenciatura | E43: NOTURNO | F43: 11
A44: 1 | B44: LETRAS - 29L | C44: 13101 | D44: 1-Licenciado em Letras - Habilitação em Inglês | E44: NOTURNO | F44: 2
A45: 1 | B45: LETRAS - 29L | C45: 13101 | D45: 1-Licenciatura | E45: NOTURNO | F45: 11
A46: 1 | B46: PEDAGOGIA - 30A | C46: 13105 | D46: 1-Licenciatura | E46: NOTURNO | F46: 9
A47: 1 | B47: PSICOLOGIA - 32A | C47: 13113 | D47: 1-Psicologo | E47: INTEGRAL | F47: 3
A48: 1 | B48: ARQUITETURA E URBANISMO - 33A | C48: 13114 | D48: 1-Arquiteto e Urbanista | E48: INTEGRAL | F48: 24
A49: 1 | B49: DIREITO - 34A | C49: 21860 | D49: 1-Bacharelado | E49: NOTURNO | F49: 41
A50: 1 | B50: CIÊNCIA DA COMPUTAÇÃO - 35A | C50: 18518 | D50: 5-Bacharel | E50: NOTURNO | F50: 4
A51: 1 | B51: ADMINISTRAÇÃO - 46A | C51: 22451 | D51: 1-Adm. Empresas | E51: NOTURNO | F51: 4
A52: 1 | B52: ENGENHARIA DE PRODUÇÃO - 49A | C52: 38594 | D52: 1-Engenheiro de Produção | E52: NOTURNO | F52: 21
A53: 1 | B53: CIÊNCIAS ECONÔMICAS - 51A | C53: 13090 | D53: 1-Bacharelado | E53: NOTURNO | F53: 12
A54: 1 | B54: MÚSICA - CANTO - 63A | C54: 116490 | D54: 1-Bacharel - Modalidade Canto | E54: INTEGRAL | F54: 2
A55: 1 | B55: MÚSICA - MODALIDADE FLAUTA TRANSVERSAL - 63B | C55: 116490 | D55: 1-Bacharel - Modalidade Flauta Transversal | E55: INTEGRAL | F55: 1
A56: 1 | B56: MÚSICA - MODALIDADE FLAUTA TRANSVERSAL - 63B | C56: 116491 | D56: 1-Bacharel - Modalidade Flauta Transversal | E56: INTEGRAL | F56: 1
A57: 1 | B57: MÚSICA - MODALIDADE VIOLÃO - 63D | C57: 116490 | D57: 1-Bacharel - Modalidade Violao | E57: INTEGRAL | F57: 1
A58: 1 | B58: MÚSICA - MODALIDADE VIOLÃO - 63D | C58: 116493 | D58: 1-Bacharel - Modalidade Violao | E58: INTEGRAL | F58: 1
A59: 1 | B59: MÚSICA - MODALIDADE COMPOSIÇÃO - 63G | C59: 116490 | D59: 1-Bacharel | E59: INTEGRAL | F59: 1
A60: 1 | B60: MÚSICA - MODALIDADE COMPOSIÇÃO - 63G | C60: 1271995 | D60: 1-Bacharel | E60: INTEGRAL | F60: 1
A61: 1 | B61: NUTRIÇÃO - 64A | C61: 116498 | D61: 1-Bacharel em Nutrição | E61: INTEGRAL | F61: 27
A62: 1 | B62: CIÊNCIAS EXATAS - 65A | C62: 116502 | D62: 1-Bacharelado | E62: INTEGRAL | F62: 44
A63: 1 | B63: ENGENHARIA COMPUTACIONAL - 65B | C63: 1120244 | D63: 1-Engenheiro Computacional | E63: INTEGRAL | F63: 2
A64: 1 | B64: CIÊNCIA DA COMPUTAÇÃO - 65C | C64: 65361 | D64: 1-Bacharelado | E64: INTEGRAL | F64: 6
A65: 1 | B65: ESTATÍSTICA - 65D | C65: 113531 | D65: 1-Bacharelado | E65: INTEGRAL | F65: 7
A66: 1 | B66: FÍSICA - 65E | C66: 5000613 | D66: 2-Bacharelado | E66: INTEGRAL | F66: 2
A67: 1 | B67: FÍSICA - 65E | C67: 313098 | D67: 1-Bacharel em Física | E67: INTEGRAL | F67: 1
A68: 1 | B68: QUÍMICA - 65GB | C68: 5000619 | D68: 1-Bacharelado | E68: INTEGRAL | F68: 1
A69: 1 | B69: ENGENHARIA ELÉTRICA - HABILITAÇÃO EM ENERGIA - 65H | C69: 1109475 | D69: 1-Engenheiro Eletricista - Habilitação em Energia | E69: NOTURNO | F69: 1
A70: 1 | B70: ENGENHARIA ELÉTRICA - HAB. EM ROBÓTICA E AUTOMAÇÃO INDUSTRIAL - 65I | C70: 1109485 | D70: 1-Engenheiro Eletricista-Hab. robótica e automação industrial | E70: INTEGRAL | F70: 1
A71: 1 | B71: ENGENHARIA ELÉTRICA - HABILITAÇÃO EM SISTEMAS DE POTÊNCIA - 65J | C71: 1109486 | D71: 1-Engenheiro Eletricista - Habilitação em sistemas de potência | E71: INTEGRAL | F71: 1
A72: 1 | B72: ENGENHARIA ELÉTRICA - HABILITAÇÃO EM SISTEMAS ELETRÔNICOS - 65K | C72: 1109487 | D72: 1-Engenheiro Eletricista - Habilitação em sistemas eletrônicos | E72: INTEGRAL | F72: 2
A73: 1 | B73: ENGENHARIA MECÂNICA - 65M | C73: 1109489 | D73: 1-Engenheiro Mecânico | E73: INTEGRAL | F73: 2
A74: 1 | B74: BACHARELADO INTERDISCIPLINAR EM ARTES E DESIGN - 66A | C74: 116500 | D74: 1-Bacharel | E74: INTEGRAL | F74: 20
A75: 1 | B75: BACHARELADO EM CINEMA E AUDIOVISUAL - 66B | C75: 1153947 | D75: 1-Bacharel | E75: INTEGRAL | F75: 10
A76: 1 | B76: BACHARELADO EM ARTES VISUAIS - 66C | C76: 1153948 | D76: 1-Bacharel | E76: INTEGRAL | F76: 3
A77: 1 | B77: BACHARELADO EM DESIGN - 66D | C77: 1153949 | D77: 1-Bacharel | E77: INTEGRAL | F77: 3
A78: 1 | B78: BACHARELADO EM MODA - 66E | C78: 1153950 | D78: 1-Bacharel | E78: INTEGRAL | F78: 7
A79: 1 | B79: LICENCIATURA EM ARTES VISUAIS - 66F | C79: 1153951 | D79: 1-Licenciado | E79: NOTURNO | F79: 11
A80: 1 | B80: ENGENHARIA AMBIENTAL E SANITÁRIA - 67A | C80: 116496 | D80: 1-Engenheiro Ambiental e Sanitarista | E80: INTEGRAL | F80: 8
A81: 1 | B81: ENGENHARIA ELÉTRICA - HABILITAÇÃO EM SISTEMAS ELETRÔNICOS - 69A | C81: 1109487 | D81: 1-Engenheiro Eletricista - Habilitação em sistemas eletrônicos | E81: INTEGRAL | F81: 10
A82: 1 | B82: ENGENHARIA ELÉTRICA - HAB. EM ROBÓTICA E AUTOMAÇÃO INDUSTRIAL - 69B | C82: 1109485 | D82: 1-Engenheiro Eletricista-Hab. robótica e automação industrial | E82: INTEGRAL | F82: 7
A83: 1 | B83: ENGENHARIA ELÉTRICA - HABILITAÇÃO EM SISTEMAS DE POTÊNCIA - 69C | C83: 1109486 | D83: 1-Engenheiro Eletricista - Habilitação em sistemas de potência | E83: INTEGRAL | F83: 11
A84: 1 | B84: ENGENHARIA ELÉTRICA - HABILITAÇÃO EM TELECOMUNICAÇÕES - 69D | C84: 1109488 | D84: 1-Engenheiro Eletricista - Habilitação em Telecomunicações | E84: INTEGRAL | F84: 5
A85: 1 | B85: ENGENHARIA ELÉTRICA - HABILITAÇÃO EM ENERGIA - 70A | C85: 1109475 | D85: 1-Engenheiro Eletricista - Habilitação em Energia | E85: NOTURNO | F85: 13
A86: 1 | B86: ENGENHARIA MECÂNICA - 71A | C86: 1109489 | D86: 1-Engenheiro Mecânico | E86: INTEGRAL | F86: 12
A87: 1 | B87: BACHARELADO INTERDISCIPLINAR EM CIÊNCIAS HUMANAS - 72A | C87: 1120242 | D87: 1-Bacharelado | E87: INTEGRAL | F87: 17
A88: 1 | B88: CIÊNCIAS SOCIAIS - 72CB | C88: 313087 | D88: 1-Bacharelado | E88: INTEGRAL | F88: 1
A89: 1 | B89: CIÊNCIAS SOCIAIS - 72CL | C89: 13087 | D89: 1-Licenciatura | E89: INTEGRAL | F89: 1
A90: 1 | B90: TURISMO - 72D | C90: 21589 | D90: 1-Bacharelado | E90: INTEGRAL | F90: 4
A91: 1 | B91: FILOSOFIA - 72EB | C91: 313097 | D91: 1-BACHARELADO | E91: DIURNO | F91: 1
A92: 1 | B92: FILOSOFIA - 72EL | C92: 13097 | D92: 1-Licenciado | E92: INTEGRAL | F92: 1
A93: 1 | B93: BACHARELADO INTERDISCIPLINAR EM CIÊNCIAS HUMANAS - 73A | C93: 1120242 | D93: 1-Bacharelado | E93: NOTURNO | F93: 18
A94: 1 | B94: CIÊNCIA DA RELIGIÃO - 73B | C94: 1165350 | D94: 1-Bacharelado | E94: NOTURNO | F94: 4
A95: 1 | B95: CIÊNCIAS SOCIAIS - 73CB | C95: 313087 | D95: 1-Bacharelado | E95: NOTURNO | F95: 5
A96: 1 | B96: CIÊNCIAS SOCIAIS - 73CL | C96: 13087 | D96: 1-Licenciado em Ciências Sociais | E96: NOTURNO | F96: 6
A97: 1 | B97: TURISMO - 73D | C97: 21589 | D97: 1-Bacharelado | E97: NOTURNO | F97: 4
A98: 1 | B98: SISTEMAS DE INFORMAÇÃO - 76A | C98: 1128364 | D98: 1-Bacharelado em sistemas de informação | E98: NOTURNO | F98: 6
A99: 1 | B99: CIÊNCIAS CONTÁBEIS - 77A | C99: 1132074 | D99: 1-bacharel em Ciências Contábeis | E99: INTEGRAL | F99: 12
A100: 1 | B100: CIÊNCIAS CONTÁBEIS - 78A | C100: 1132074 | D100: 1-Bacharel em Ciências Contábeis | E100: NOTURNO | F100: 10
A101: 1 | B101: FÍSICA - 81A | C101: 1166037 | D101: 0-Licenciado | E101: NOTURNO | F101: 1
A102: 1 | B102: JORNALISMO - 84A | C102: 27657 | D102: 1-Bacharel em Jornalismo | E102: INTEGRAL | F102: 8
A103: 1 | B103: JORNALISMO - 85A | C103: 36356 | D103: 1-Jornalismo | E103: NOTURNO | F103: 9
A104: 1 | B104: MEDICINA VETERINÁRIA - 87A | C104: 1268972 | D104: 1-Médico Veterinário | E104: INTEGRAL | F104: 4
A105: 1 | B105: LICENCIATURA EM LETRAS - LIBRAS - 88A | C105: 1268983 | D105: 1-Licenciatura | E105: NOTURNO | F105: 4
A106: 1 | B106: LICENCIATURA EM MÚSICA - 89A | C106: 1278855 | D106: 1-Licenciatura em Música | E106: INTEGRAL | F106: 2
A107: 1 | B107: RÁDIO, TV E INTERNET - 91A | C107: 1374873 | D107: 1-Bacharelado | E107: INTEGRAL | F107: 2
A108: 1 | B108: TURISMO - 92A | C108: 21589 | D108: 1-Bacharel em Turismo | E108: INTEGRAL | F108: 2
A109: 1 | B109: TURISMO - 93A | C109: 21589 | D109: 1-Bacharel em Turismo | E109: NOTURNO | F109: 1
A110: 2 | B110: CIÊNCIAS BIOLÓGICAS - 01B | C110: 313086 | D110: 1-Bacharelado | E110: INTEGRAL | F110: 9
A111: 2 | B111: ADMINISTRAÇÃO - 01GV | C111: 1178684 | D111: 1-Bacharelado em Administração | E111: INTEGRAL | F111: 7
A112: 2 | B112: CIÊNCIAS BIOLÓGICAS - 01L | C112: 13086 | D112: 1-Licenciado | E112: INTEGRAL | F112: 25
A113: 2 | B113: CIÊNCIAS CONTÁBEIS - 02GV | C113: 1183351 | D113: 1-Bacharelado em Ciências Contábeis | E113: INTEGRAL | F113: 9
A114: 2 | B114: CIÊNCIAS ECONÔMICAS - 03GV | C114: 1178683 | D114: 1-Bacharelado | E114: INTEGRAL | F114: 9
A115: 2 | B115: DIREITO - 04A | C115: 13089 | D115: 1-Bacharelado | E115: INTEGRAL | F115: 55
A116: 2 | B116: DIREITO - 04GV | C116: 1178675 | D116: 1-Bacharelado | E116: INTEGRAL | F116: 48
A117: 2 | B117: CIÊNCIAS ECONÔMICAS - 05A | C117: 13090 | D117: 1-Bacharelado | E117: INTEGRAL | F117: 11
A118: 2 | B118: FARMÁCIA - 05GV | C118: 1185503 | D118: 1-Farmácia | E118: INTEGRAL | F118: 1
A119: 2 | B119: FISIOTERAPIA - 06GV | C119: 1178689 | D119: 1-Fisioterapeuta | E119: INTEGRAL | F119: 15
A120: 2 | B120: FARMÁCIA - 07A | C120: 38509 | D120: 1-Farmácia | E120: INTEGRAL | F120: 14
A121: 2 | B121: MEDICINA - 07GV | C121: 5001167 | D121: 1-Bacharelado | E121: INTEGRAL | F121: 42
A122: 2 | B122: FILOSOFIA - 08B | C122: 313097 | D122: 1-BACHAREL | E122: INTEGRAL | F122: 8
A123: 2 | B123: NUTRIÇÃO - 08GV | C123: 1178688 | D123: 1-Nutricionista | E123: INTEGRAL | F123: 17
A124: 2 | B124: FILOSOFIA - 08L | C124: 13097 | D124: 1-LICENCIADO | E124: INTEGRAL | F124: 6
A125: 2 | B125: ODONTOLOGIA - 09GV | C125: 5001168 | D125: 1-Cirurgião-Dentista | E125: INTEGRAL | F125: 30
A126: 2 | B126: GEOGRAFIA - 10B | C126: 313099 | D126: 0-Bacharelado | E126: INTEGRAL | F126: 9
A127: 2 | B127: EDUCAÇÃO FÍSICA - 10GV | C127: 1270439 | D127: 1-Bacharelado em Educação Física | E127: INTEGRAL | F127: 7
A128: 2 | B128: GEOGRAFIA - 10L | C128: 13099 | D128: 0-Licenciado | E128: INTEGRAL | F128: 11
A129: 2 | B129: HISTÓRIA - 11B | C129: 313100 | D129: 1-Bacharelado | E129: INTEGRAL | F129: 3
A130: 2 | B130: HISTÓRIA - 11L | C130: 13100 | D130: 1-Licenciado em História | E130: INTEGRAL | F130: 19
A131: 2 | B131: HISTÓRIA - 11L | C131: 13100 | D131: 2-Licenciado em História e Ênfase em Patrimônio Histórico | E131: INTEGRAL | F131: 3
A132: 2 | B132: LETRAS - 13B | C132: 313101 | D132: 1-Bacharelado | E132: INTEGRAL | F132: 3
A133: 2 | B133: LETRAS - 13B | C133: 313101 | D133: 1-Bacharel em Letras | E133: INTEGRAL | F133: 2
A134: 2 | B134: LETRAS - 13B | C134: 313101 | D134: 1-Bacharelado | E134: INTEGRAL | F134: 1
A135: 2 | B135: LETRAS - 13L | C135: 13101 | D135: 1-Licenciado | E135: INTEGRAL | F135: 4
A136: 2 | B136: LETRAS - 13L | C136: 13101 | D136: 1-Licenciatura | E136: INTEGRAL | F136: 11
A137: 2 | B137: LETRAS - 13L | C137: 13101 | D137: 1-Licenciatura em Letras | E137: INTEGRAL | F137: 1
A138: 2 | B138: MEDICINA - 15A | C138: 13103 | D138: 1-Médico | E138: INTEGRAL | F138: 63
A139: 2 | B139: ODONTOLOGIA - 16A | C139: 13104 | D139: 1-Cirurgião-Dentista | E139: INTEGRAL | F139: 48
A140: 2 | B140: PEDAGOGIA - 17A | C140: 13105 | D140: 1-Licenciatura | E140: MATUTINO | F140: 14
A141: 2 | B141: SERVIÇO SOCIAL - 19A | C141: 13107 | D141: 1-Bacharel em Serviço Social | E141: MATUTINO | F141: 5
A142: 2 | B142: FISIOTERAPIA - 20A | C142: 13118 | D142: 1-Fisioterapeuta | E142: INTEGRAL | F142: 17
A143: 2 | B143: EDUCAÇÃO FÍSICA - 21B | C143: 5000610 | D143: 2-Bacharelado | E143: INTEGRAL | F143: 1
A144: 2 | B144: EDUCAÇÃO FÍSICA - 21B | C144: 313092 | D144: 1-Bacharelado | E144: INTEGRAL | F144: 13
A145: 2 | B145: EDUCAÇÃO FÍSICA - 21L | C145: 13092 | D145: 1-Licenciatura | E145: INTEGRAL | F145: 3
A146: 2 | B146: ENFERMAGEM - 23A | C146: 38994 | D146: 1-Enfermeiro | E146: INTEGRAL | F146: 18
A147: 2 | B147: ENGENHARIA CIVIL - 24A | C147: 13094 | D147: 1-Engenheiro Civil | E147: INTEGRAL | F147: 35
A148: 2 | B148: ENGENHARIA CIVIL - 24A | C148: 13094 | D148: 16-Transportes e Geotecnia | E148: INTEGRAL | F148: 3
A149: 2 | B149: ENGENHARIA CIVIL - 24A | C149: 13094 | D149: 2-Estruturas | E149: INTEGRAL | F149: 1
A150: 2 | B150: ENGENHARIA CIVIL - 24A | C150: 13094 | D150: 5-Construção Civil | E150: INTEGRAL | F150: 1
A151: 2 | B151: ADMINISTRAÇÃO - 26A | C151: 22451 | D151: 1-Adm. Empresas | E151: INTEGRAL | F151: 12
A152: 2 | B152: GEOGRAFIA - 27L | C152: 13099 | D152: 0-Licenciado | E152: NOTURNO | F152: 12
A153: 2 | B153: HISTÓRIA - 28B | C153: 313100 | D153: 2-Bacharel em História e Ênfase em Patrimônio Histórico | E153: NOTURNO | F153: 2
A154: 2 | B154: HISTÓRIA - 28L | C154: 13100 | D154: 1-Licenciatura | E154: NOTURNO | F154: 9
A155: 2 | B155: HISTÓRIA - 28L | C155: 13100 | D155: 2-Licenciatura com ênfase em patrimônio histórico | E155: NOTURNO | F155: 2
A156: 2 | B156: LETRAS - 29L | C156: 13101 | D156: 1-Licenciado em Letras - Habilitação em Inglês | E156: NOTURNO | F156: 4
A157: 2 | B157: LETRAS - 29L | C157: 13101 | D157: 1-Licenciatura | E157: NOTURNO | F157: 3
A158: 2 | B158: PEDAGOGIA - 30A | C158: 13105 | D158: 1-Licenciatura | E158: NOTURNO | F158: 10
A159: 2 | B159: PSICOLOGIA - 32A | C159: 13113 | D159: 1-Psicologo | E159: INTEGRAL | F159: 33
A160: 2 | B160: ARQUITETURA E URBANISMO - 33A | C160: 13114 | D160: 1-Arquiteto e Urbanista | E160: INTEGRAL | F160: 28
A161: 2 | B161: DIREITO - 34A | C161: 21860 | D161: 1-Bacharelado | E161: NOTURNO | F161: 41
A162: 2 | B162: CIÊNCIA DA COMPUTAÇÃO - 35A | C162: 18518 | D162: 5-Bacharel | E162: NOTURNO | F162: 1
A163: 2 | B163: ADMINISTRAÇÃO - 46A | C163: 22451 | D163: 1-Adm. Empresas | E163: NOTURNO | F163: 13
A164: 2 | B164: ENGENHARIA DE PRODUÇÃO - 49A | C164: 38594 | D164: 1-Engenheiro de Produção | E164: NOTURNO | F164: 25
A165: 2 | B165: CIÊNCIAS ECONÔMICAS - 51A | C165: 13090 | D165: 1-Bacharelado | E165: NOTURNO | F165: 15
A166: 2 | B166: MÚSICA - MODALIDADE VIOLINO - 63E | C166: 116490 | D166: 1-Bacharel - Modalidade Violino | E166: INTEGRAL | F166: 1
A167: 2 | B167: MÚSICA - MODALIDADE VIOLINO - 63E | C167: 116494 | D167: 1-Bacharel - Modalidade Violino | E167: INTEGRAL | F167: 1
A168: 2 | B168: MÚSICA - MODALIDADE COMPOSIÇÃO - 63G | C168: 116490 | D168: 1-Bacharel | E168: INTEGRAL | F168: 1
A169: 2 | B169: MÚSICA - MODALIDADE COMPOSIÇÃO - 63G | C169: 1271995 | D169: 1-Bacharel | E169: INTEGRAL | F169: 1
A170: 2 | B170: NUTRIÇÃO - 64A | C170: 116498 | D170: 1-Bacharel em Nutrição | E170: INTEGRAL | F170: 51
A171: 2 | B171: CIÊNCIAS EXATAS - 65A | C171: 116502 | D171: 1-Bacharelado | E171: INTEGRAL | F171: 37
A172: 2 | B172: ENGENHARIA COMPUTACIONAL - 65B | C172: 1120244 | D172: 1-Engenheiro Computacional | E172: INTEGRAL | F172: 6
A173: 2 | B173: CIÊNCIA DA COMPUTAÇÃO - 65C | C173: 65361 | D173: 1-Bacharelado | E173: INTEGRAL | F173: 6
A174: 2 | B174: ESTATÍSTICA - 65D | C174: 113531 | D174: 1-Bacharelado | E174: INTEGRAL | F174: 2
A175: 2 | B175: FÍSICA - 65E | C175: 313098 | D175: 1-Bacharel em Física | E175: INTEGRAL | F175: 4
A176: 2 | B176: FÍSICA - 65EL | C176: 13098 | D176: 1-Licenciatura em Física | E176: INTEGRAL | F176: 1
A177: 2 | B177: MATEMÁTICA - 65F | C177: 313102 | D177: 1-Bacharelado em Matemática | E177: INTEGRAL | F177: 2
A178: 2 | B178: MATEMÁTICA - 65FL | C178: 13102 | D178: 1-Licenciado em Matemática | E178: INTEGRAL | F178: 3
A179: 2 | B179: QUÍMICA - 65GB | C179: 313106 | D179: 1-Bacharel em Química | E179: INTEGRAL | F179: 7
A180: 2 | B180: QUÍMICA - 65GL | C180: 13106 | D180: 1-Licenciatura | E180: INTEGRAL | F180: 15
A181: 2 | B181: ENGENHARIA ELÉTRICA - HABILITAÇÃO EM ENERGIA - 65H | C181: 1109475 | D181: 1-Engenheiro Eletricista - Habilitação em Energia | E181: NOTURNO | F181: 1
A182: 2 | B182: ENGENHARIA ELÉTRICA - HABILITAÇÃO EM SISTEMAS DE POTÊNCIA - 65J | C182: 1109486 | D182: 1-Engenheiro Eletricista - Habilitação em sistemas de potência | E182: INTEGRAL | F182: 3
A183: 2 | B183: ENGENHARIA ELÉTRICA - HABILITAÇÃO EM TELECOMUNICAÇÕES - 65L | C183: 1109488 | D183: 1-Engenheiro Eletricista - Habilitação em Telecomunicações | E183: INTEGRAL | F183: 1
A184: 2 | B184: ENGENHARIA MECÂNICA - 65M | C184: 1109489 | D184: 1-Engenheiro Mecânico | E184: INTEGRAL | F184: 7
A185: 2 | B185: BACHARELADO INTERDISCIPLINAR EM ARTES E DESIGN - 66A | C185: 116500 | D185: 1-Bacharel | E185: INTEGRAL | F185: 94
A186: 2 | B186: BACHARELADO EM CINEMA E AUDIOVISUAL - 66B | C186: 1153947 | D186: 1-Bacharel | E186: INTEGRAL | F186: 8
A187: 2 | B187: BACHARELADO EM ARTES VISUAIS - 66C | C187: 1153948 | D187: 1-Bacharel | E187: INTEGRAL | F187: 2
A188: 2 | B188: BACHARELADO EM DESIGN - 66D | C188: 1153949 | D188: 1-Bacharel | E188: INTEGRAL | F188: 12
A189: 2 | B189: BACHARELADO EM MODA - 66E | C189: 1153950 | D189: 1-Bacharel | E189: INTEGRAL | F189: 5
A190: 2 | B190: LICENCIATURA EM ARTES VISUAIS - 66F | C190: 1153951 | D190: 1-Licenciado | E190: NOTURNO | F190: 5
A191: 2 | B191: ENGENHARIA AMBIENTAL E SANITÁRIA - 67A | C191: 116496 | D191: 1-Engenheiro Ambiental e Sanitarista | E191: INTEGRAL | F191: 8
A192: 2 | B192: SERVIÇO SOCIAL - 68A | C192: 13107 | D192: 1-Bacharel em Serviço Social | E192: NOTURNO | F192: 9
A193: 2 | B193: ENGENHARIA ELÉTRICA - HABILITAÇÃO EM SISTEMAS ELETRÔNICOS - 69A | C193: 1109487 | D193: 1-Engenheiro Eletricista - Habilitação em sistemas eletrônicos | E193: INTEGRAL | F193: 7
A194: 2 | B194: ENGENHARIA ELÉTRICA - HAB. EM ROBÓTICA E AUTOMAÇÃO INDUSTRIAL - 69B | C194: 1109485 | D194: 1-Engenheiro Eletricista-Hab. robótica e automação industrial | E194: INTEGRAL | F194: 10
A195: 2 | B195: ENGENHARIA ELÉTRICA - HABILITAÇÃO EM SISTEMAS DE POTÊNCIA - 69C | C195: 1109486 | D195: 1-Engenheiro Eletricista - Habilitação em sistemas de potência | E195: INTEGRAL | F195: 15
A196: 2 | B196: ENGENHARIA ELÉTRICA - HABILITAÇÃO EM TELECOMUNICAÇÕES - 69D | C196: 1109488 | D196: 1-Engenheiro Eletricista - Habilitação em Telecomunicações | E196: INTEGRAL | F196: 7
A197: 2 | B197: ENGENHARIA ELÉTRICA - HABILITAÇÃO EM ENERGIA - 70A | C197: 1109475 | D197: 1-Engenheiro Eletricista - Habilitação em Energia | E197: NOTURNO | F197: 7
A198: 2 | B198: ENGENHARIA MECÂNICA - 71A | C198: 1109489 | D198: 1-Engenheiro Mecânico | E198: INTEGRAL | F198: 8
A199: 2 | B199: BACHARELADO INTERDISCIPLINAR EM CIÊNCIAS HUMANAS - 72A | C199: 1120242 | D199: 1-Bacharelado | E199: INTEGRAL | F199: 22
A200: 2 | B200: CIÊNCIA DA RELIGIÃO - 72B | C200: 1165350 | D200: 1-Bacharelado | E200: NOTURNO | F200: 1
... 29 more rows

Sheet Matriculados (hidden)
A1: SEM | B1: CURSO | C1: CURSOINEP | D1: TURNO | E1: MATRICULADOS
A2: 1 | B2: ABI - CIÊNCIAS BIOLÓGICAS - 01ABI | C2: 5000608 | D2: INTEGRAL | E2: 60
A3: 1 | B3: CIÊNCIAS BIOLÓGICAS - 01B | C3: 313086 | D3: INTEGRAL | E3: 177
A4: 1 | B4: ADMINISTRAÇÃO - 01GV | C4: 1178684 | D4: INTEGRAL | E4: 280
A5: 1 | B5: CIÊNCIAS BIOLÓGICAS - 01L | C5: 13086 | D5: INTEGRAL | E5: 125
A6: 1 | B6: CIÊNCIAS CONTÁBEIS - 02GV | C6: 1183351 | D6: INTEGRAL | E6: 156
A7: 1 | B7: CIÊNCIAS ECONÔMICAS - 03GV | C7: 1178683 | D7: INTEGRAL | E7: 265
A8: 1 | B8: DIREITO - 04A | C8: 13089 | D8: INTEGRAL | E8: 499
A9: 1 | B9: DIREITO - 04GV | C9: 1178675 | D9: INTEGRAL | E9: 488
A10: 1 | B10: CIÊNCIAS ECONÔMICAS - 05A | C10: 13090 | D10: INTEGRAL | E10: 242
A11: 1 | B11: FARMÁCIA - 05GV | C11: 1185503 | D11: INTEGRAL | E11: 293
A12: 1 | B12: FISIOTERAPIA - 06GV | C12: 1178689 | D12: INTEGRAL | E12: 236
A13: 1 | B13: FARMÁCIA - 07A | C13: 38509 | D13: INTEGRAL | E13: 508
A14: 1 | B14: MEDICINA - 07GV | C14: 5001167 | D14: INTEGRAL | E14: 475
A15: 1 | B15: ABI - FILOSOFIA - 08ABI | C15: 5000611 | D15: INTEGRAL | E15: 58
A16: 1 | B16: FILOSOFIA - 08B | C16: 313097 | D16: INTEGRAL | E16: 47
A17: 1 | B17: NUTRIÇÃO - 08GV | C17: 1178688 | D17: INTEGRAL | E17: 285
A18: 1 | B18: FILOSOFIA - 08L | C18: 13097 | D18: INTEGRAL | E18: 78
A19: 1 | B19: FÍSICA - 09A | C19: 5000613 | D19: INTEGRAL | E19: 1
A20: 1 | B20: ODONTOLOGIA - 09GV | C20: 5001168 | D20: INTEGRAL | E20: 369
A21: 1 | B21: ABI - GEOGRAFIA - 10ABI | C21: 5000615 | D21: INTEGRAL | E21: 48
A22: 1 | B22: GEOGRAFIA - 10B | C22: 313099 | D22: INTEGRAL | E22: 125
A23: 1 | B23: EDUCAÇÃO FÍSICA - 10GV | C23: 1270439 | D23: INTEGRAL | E23: 204
A24: 1 | B24: GEOGRAFIA - 10L | C24: 13099 | D24: INTEGRAL | E24: 111
A25: 1 | B25: HISTÓRIA - 11A | C25: 5000616 | D25: INTEGRAL | E25: 1
A26: 1 | B26: ABI - HISTÓRIA - 11ABI | C26: 5000616 | D26: INTEGRAL | E26: 95
A27: 1 | B27: HISTÓRIA - 11B | C27: 313100 | D27: INTEGRAL | E27: 70
A28: 1 | B28: HISTÓRIA - 11L | C28: 13100 | D28: INTEGRAL | E28: 150
A29: 1 | B29: LETRAS - 13A | C29: 5000617 | D29: INTEGRAL | E29: 5
A30: 1 | B30: ABI - LETRAS - 13ABI | C30: 5000617 | D30: INTEGRAL | E30: 71
A31: 1 | B31: LETRAS - 13B | C31: 313101 | D31: INTEGRAL | E31: 40
A32: 1 | B32: LETRAS - 13B | C32: 313101 | D32: INTEGRAL | E32: 6
A33: 1 | B33: LETRAS - 13B | C33: 313101 | D33: INTEGRAL | E33: 5
A34: 1 | B34: LETRAS - 13B | C34: 313101 | D34: INTEGRAL | E34: 49
A35: 1 | B35: LETRAS - 13B | C35: 313101 | D35: INTEGRAL | E35: 2
A36: 1 | B36: LETRAS - 13L | C36: 13101 | D36: INTEGRAL | E36: 17
A37: 1 | B37: LETRAS - 13L | C37: 13101 | D37: INTEGRAL | E37: 11
A38: 1 | B38: LETRAS - 13L | C38: 13101 | D38: INTEGRAL | E38: 67
A39: 1 | B39: LETRAS - 13L | C39: 13101 | D39: INTEGRAL | E39: 7
A40: 1 | B40: LETRAS - 13L | C40: 13101 | D40: INTEGRAL | E40: 4
A41: 1 | B41: LETRAS - 13L | C41: 13101 | D41: INTEGRAL | E41: 89
A42: 1 | B42: LETRAS - 13L | C42: 13101 | D42: INTEGRAL | E42: 9
A43: 1 | B43: LETRAS - 13L | C43: 13101 | D43: INTEGRAL | E43: 24
A44: 1 | B44: LETRAS - 13L | C44: 13101 | D44: INTEGRAL | E44: 12
A45: 1 | B45: LETRAS - 13L | C45: 13101 | D45: INTEGRAL | E45: 14
A46: 1 | B46: MEDICINA - 15A | C46: 13103 | D46: INTEGRAL | E46: 929
A47: 1 | B47: ODONTOLOGIA - 16A | C47: 13104 | D47: INTEGRAL | E47: 407
A48: 1 | B48: PEDAGOGIA - 17A | C48: 13105 | D48: MATUTINO | E48: 183
A49: 1 | B49: SERVIÇO SOCIAL - 19A | C49: 13107 | D49: MATUTINO | E49: 159
A50: 1 | B50: FISIOTERAPIA - 20A | C50: 13118 | D50: INTEGRAL | E50: 215
A51: 1 | B51: EDUCAÇÃO FÍSICA - 21B | C51: 5000610 | D51: INTEGRAL | E51: 107
A52: 1 | B52: ABI - EDUCAÇÃO FÍSICA - 21ABI | C52: 5000610 | D52: INTEGRAL | E52: 311
A53: 1 | B53: EDUCAÇÃO FÍSICA - 21B | C53: 313092 | D53: INTEGRAL | E53: 75
A54: 1 | B54: EDUCAÇÃO FÍSICA - 21L | C54: 13092 | D54: INTEGRAL | E54: 86
A55: 1 | B55: ENFERMAGEM - 23A | C55: 38994 | D55: INTEGRAL | E55: 334
A56: 1 | B56: ENGENHARIA CIVIL - 24A | C56: 13094 | D56: INTEGRAL | E56: 506
A57: 1 | B57: ENGENHARIA ELÉTRICA - 25A | C57: 13095 | D57: INTEGRAL | E57: 3
A58: 1 | B58: ADMINISTRAÇÃO - 26A | C58: 22451 | D58: INTEGRAL | E58: 209
A59: 1 | B59: GEOGRAFIA - 27A | C59: 5000615 | D59: NOTURNO | E59: 1
A60: 1 | B60: GEOGRAFIA - 27L | C60: 313099 | D60: NOTURNO | E60: 2
A61: 1 | B61: GEOGRAFIA - 27L | C61: 13099 | D61: NOTURNO | E61: 164
A62: 1 | B62: ABI - HISTÓRIA - 28ABI | C62: 5000616 | D62: NOTURNO | E62: 50
A63: 1 | B63: HISTÓRIA - 28B | C63: 313100 | D63: NOTURNO | E63: 54
A64: 1 | B64: HISTÓRIA - 28L | C64: 13100 | D64: NOTURNO | E64: 140
A65: 1 | B65: LETRAS - 29A | C65: 5000617 | D65: NOTURNO | E65: 10
A66: 1 | B66: ABI - LETRAS - 29ABI | C66: 5000617 | D66: NOTURNO | E66: 73
A67: 1 | B67: LETRAS - 29L | C67: 13101 | D67: NOTURNO | E67: 75
A68: 1 | B68: LETRAS - 29L | C68: 13101 | D68: NOTURNO | E68: 24
A69: 1 | B69: LETRAS - 29L | C69: 13101 | D69: NOTURNO | E69: 47
A70: 1 | B70: PEDAGOGIA - 30A | C70: 13105 | D70: NOTURNO | E70: 182
A71: 1 | B71: PSICOLOGIA - 32A | C71: 13113 | D71: INTEGRAL | E71: 288
A72: 1 | B72: ARQUITETURA E URBANISMO - 33A | C72: 13114 | D72: INTEGRAL | E72: 401
A73: 1 | B73: DIREITO - 34A | C73: 21860 | D73: NOTURNO | E73: 491
A74: 1 | B74: CIÊNCIA DA COMPUTAÇÃO - 35A | C74: 18518 | D74: NOTURNO | E74: 178
A75: 1 | B75: ADMINISTRAÇÃO - 46A | C75: 22451 | D75: NOTURNO | E75: 201
A76: 1 | B76: ENGENHARIA DE PRODUÇÃO - 49A | C76: 38594 | D76: NOTURNO | E76: 314
A77: 1 | B77: ENGENHARIA ELÉTRICA - 50A | C77: 49788 | D77: NOTURNO | E77: 3
A78: 1 | B78: CIÊNCIAS ECONÔMICAS - 51A | C78: 13090 | D78: NOTURNO | E78: 273
A79: 1 | B79: QUÍMICA - 65GB | C79: 5000619 | D79: INTEGRAL | E79: 1
A80: 1 | B80: MÚSICA - CANTO - 63A | C80: 116490 | D80: INTEGRAL | E80: 8
A81: 1 | B81: MÚSICA - MODALIDADE FLAUTA TRANSVERSAL - 63B | C81: 116490 | D81: INTEGRAL | E81: 6
A82: 1 | B82: MÚSICA - MODALIDADE FLAUTA TRANSVERSAL - 63B | C82: 116491 | D82: INTEGRAL | E82: 6
A83: 1 | B83: MÚSICA - MODALIDADE PIANO - 63C | C83: 116490 | D83: INTEGRAL | E83: 5
A84: 1 | B84: MÚSICA - MODALIDADE PIANO - 63C | C84: 116492 | D84: INTEGRAL | E84: 5
A85: 1 | B85: MÚSICA - MODALIDADE VIOLÃO - 63D | C85: 116490 | D85: INTEGRAL | E85: 7
A86: 1 | B86: MÚSICA - MODALIDADE VIOLÃO - 63D | C86: 116493 | D86: INTEGRAL | E86: 7
A87: 1 | B87: MÚSICA - MODALIDADE VIOLINO - 63E | C87: 116490 | D87: INTEGRAL | E87: 3
A88: 1 | B88: MÚSICA - MODALIDADE VIOLINO - 63E | C88: 116494 | D88: INTEGRAL | E88: 3
A89: 1 | B89: MÚSICA - MODALIDADE VIOLONCELO - 63F | C89: 116490 | D89: INTEGRAL | E89: 3
A90: 1 | B90: MÚSICA - MODALIDADE VIOLONCELO - 63F | C90: 116495 | D90: INTEGRAL | E90: 3
A91: 1 | B91: MÚSICA - MODALIDADE COMPOSIÇÃO - 63G | C91: 116490 | D91: INTEGRAL | E91: 29
A92: 1 | B92: MÚSICA - MODALIDADE COMPOSIÇÃO - 63G | C92: 1271995 | D92: INTEGRAL | E92: 29
A93: 1 | B93: NUTRIÇÃO - 64A | C93: 116498 | D93: INTEGRAL | E93: 523
A94: 1 | B94: CIÊNCIAS EXATAS - 65A | C94: 116502 | D94: INTEGRAL | E94: 936
A95: 1 | B95: ENGENHARIA COMPUTACIONAL - 65B | C95: 1120244 | D95: INTEGRAL | E95: 121
A96: 1 | B96: CIÊNCIA DA COMPUTAÇÃO - 65C | C96: 65361 | D96: INTEGRAL | E96: 119
A97: 1 | B97: ESTATÍSTICA - 65D | C97: 113531 | D97: INTEGRAL | E97: 74
A98: 1 | B98: FÍSICA - 65E | C98: 5000613 | D98: INTEGRAL | E98: 93
A99: 1 | B99: FÍSICA - 65E | C99: 313098 | D99: INTEGRAL | E99: 9
A100: 1 | B100: FÍSICA - 65EL | C100: 13098 | D100: INTEGRAL | E100: 3
A101: 1 | B101: MATEMÁTICA - 65F | C101: 5000618 | D101: INTEGRAL | E101: 80
A102: 1 | B102: MATEMÁTICA - 65F | C102: 313102 | D102: INTEGRAL | E102: 12
A103: 1 | B103: MATEMÁTICA - 65FL | C103: 13102 | D103: INTEGRAL | E103: 14
A104: 1 | B104: QUÍMICA - 65GB | C104: 5000619 | D104: INTEGRAL | E104: 47
A105: 1 | B105: QUÍMICA - 65GB | C105: 5000619 | D105: INTEGRAL | E105: 63
A106: 1 | B106: QUÍMICA - 65GB | C106: 313106 | D106: INTEGRAL | E106: 82
A107: 1 | B107: QUÍMICA - 65GL | C107: 13106 | D107: INTEGRAL | E107: 55
A108: 1 | B108: ENGENHARIA ELÉTRICA - HABILITAÇÃO EM ENERGIA - 65H | C108: 1109475 | D108: NOTURNO | E108: 20
A109: 1 | B109: ENGENHARIA ELÉTRICA - HAB. EM ROBÓTICA E AUTOMAÇÃO INDUSTRIAL - 65I | C109: 1109485 | D109: INTEGRAL | E109: 18
A110: 1 | B110: ENGENHARIA ELÉTRICA - HABILITAÇÃO EM SISTEMAS DE POTÊNCIA - 65J | C110: 1109486 | D110: INTEGRAL | E110: 23
A111: 1 | B111: ENGENHARIA ELÉTRICA - HABILITAÇÃO EM SISTEMAS ELETRÔNICOS - 65K | C111: 1109487 | D111: INTEGRAL | E111: 8
A112: 1 | B112: ENGENHARIA ELÉTRICA - HABILITAÇÃO EM TELECOMUNICAÇÕES - 65L | C112: 1109488 | D112: INTEGRAL | E112: 7
A113: 1 | B113: ENGENHARIA MECÂNICA - 65M | C113: 1109489 | D113: INTEGRAL | E113: 36
A114: 1 | B114: BACHARELADO INTERDISCIPLINAR EM ARTES E DESIGN - 66A | C114: 116500 | D114: INTEGRAL | E114: 842
A115: 1 | B115: BACHARELADO EM CINEMA E AUDIOVISUAL - 66B | C115: 1153947 | D115: INTEGRAL | E115: 125
A116: 1 | B116: BACHARELADO EM ARTES VISUAIS - 66C | C116: 1153948 | D116: INTEGRAL | E116: 64
A117: 1 | B117: BACHARELADO EM DESIGN - 66D | C117: 1153949 | D117: INTEGRAL | E117: 108
A118: 1 | B118: BACHARELADO EM MODA - 66E | C118: 1153950 | D118: INTEGRAL | E118: 70
A119: 1 | B119: LICENCIATURA EM ARTES VISUAIS - 66F | C119: 1153951 | D119: NOTURNO | E119: 56
A120: 1 | B120: ENGENHARIA AMBIENTAL E SANITÁRIA - 67A | C120: 116496 | D120: INTEGRAL | E120: 252
A121: 1 | B121: SERVIÇO SOCIAL - 68A | C121: 13107 | D121: NOTURNO | E121: 159
A122: 1 | B122: ENGENHARIA ELÉTRICA - HABILITAÇÃO EM SISTEMAS ELETRÔNICOS - 69A | C122: 1109487 | D122: INTEGRAL | E122: 211
A123: 1 | B123: ENGENHARIA ELÉTRICA - HAB. EM ROBÓTICA E AUTOMAÇÃO INDUSTRIAL - 69B | C123: 1109485 | D123: INTEGRAL | E123: 232
A124: 1 | B124: ENGENHARIA ELÉTRICA - HABILITAÇÃO EM SISTEMAS DE POTÊNCIA - 69C | C124: 1109486 | D124: INTEGRAL | E124: 225
A125: 1 | B125: ENGENHARIA ELÉTRICA - HABILITAÇÃO EM TELECOMUNICAÇÕES - 69D | C125: 1109488 | D125: INTEGRAL | E125: 190
A126: 1 | B126: ENGENHARIA ELÉTRICA - HABILITAÇÃO EM ENERGIA - 70A | C126: 1109475 | D126: NOTURNO | E126: 231
A127: 1 | B127: ENGENHARIA MECÂNICA - 71A | C127: 1109489 | D127: INTEGRAL | E127: 254
A128: 1 | B128: BACHARELADO INTERDISCIPLINAR EM CIÊNCIAS HUMANAS - 72A | C128: 1120242 | D128: INTEGRAL | E128: 541
A129: 1 | B129: CIÊNCIA DA RELIGIÃO - 72B | C129: 1165350 | D129: NOTURNO | E129: 2
A130: 1 | B130: CIÊNCIA DA RELIGIÃO - 72BL | C130: 1165686 | D130: NOTURNO | E130: 1
A131: 1 | B131: CIÊNCIAS SOCIAIS - 72CB | C131: 313087 | D131: INTEGRAL | E131: 6
A132: 1 | B132: CIÊNCIAS SOCIAIS - 72CL | C132: 13087 | D132: INTEGRAL | E132: 3
A133: 1 | B133: TURISMO - 72D | C133: 21589 | D133: INTEGRAL | E133: 19
A134: 1 | B134: FILOSOFIA - 72EB | C134: 5000611 | D134: INTEGRAL | E134: 20
A135: 1 | B135: FILOSOFIA - 72EB | C135: 313097 | D135: DIURNO | E135: 10
A136: 1 | B136: FILOSOFIA - 72EL | C136: 13097 | D136: INTEGRAL | E136: 16
A137: 1 | B137: BACHARELADO INTERDISCIPLINAR EM CIÊNCIAS HUMANAS - 73A | C137: 1120242 | D137: NOTURNO | E137: 435
A138: 1 | B138: CIÊNCIA DA RELIGIÃO - 73B | C138: 1165350 | D138: NOTURNO | E138: 42
A139: 1 | B139: CIÊNCIA DA RELIGIÃO - 73BL | C139: 1165686 | D139: NOTURNO | E139: 61
A140: 1 | B140: CIÊNCIAS SOCIAIS - 73C | C140: 5000609 | D140: NOTURNO | E140: 154
A141: 1 | B141: CIÊNCIAS SOCIAIS - 73CB | C141: 313087 | D141: NOTURNO | E141: 65
A142: 1 | B142: CIÊNCIAS SOCIAIS - 73CL | C142: 13087 | D142: NOTURNO | E142: 46
A143: 1 | B143: TURISMO - 73D | C143: 21589 | D143: NOTURNO | E143: 22
A144: 1 | B144: SISTEMAS DE INFORMAÇÃO - 76A | C144: 1128364 | D144: NOTURNO | E144: 155
A145: 1 | B145: CIÊNCIAS CONTÁBEIS - 77A | C145: 1132074 | D145: INTEGRAL | E145: 212
A146: 1 | B146: CIÊNCIAS CONTÁBEIS - 78A | C146: 1132074 | D146: NOTURNO | E146: 210
A147: 1 | B147: FÍSICA - 81A | C147: 1166037 | D147: NOTURNO | E147: 61
A148: 1 | B148: MATEMÁTICA - 82A | C148: 1166038 | D148: NOTURNO | E148: 66
A149: 1 | B149: QUÍMICA - 83A | C149: 1166039 | D149: NOTURNO | E149: 73
A150: 1 | B150: JORNALISMO - 84A | C150: 27657 | D150: INTEGRAL | E150: 134
A151: 1 | B151: JORNALISMO - 85A | C151: 36356 | D151: NOTURNO | E151: 181
A152: 1 | B152: MEDICINA VETERINÁRIA - 87A | C152: 1268972 | D152: INTEGRAL | E152: 504
A153: 1 | B153: LICENCIATURA EM LETRAS - LIBRAS - 88A | C153: 1268983 | D153: NOTURNO | E153: 99
A154: 1 | B154: LICENCIATURA EM MÚSICA - 89A | C154: 1278855 | D154: INTEGRAL | E154: 1
A155: 1 | B155: LICENCIATURA EM MÚSICA - 89A | C155: 1278855 | D155: INTEGRAL | E155: 5
A156: 1 | B156: LICENCIATURA EM MÚSICA - 89A | C156: 1278855 | D156: INTEGRAL | E156: 1
A157: 1 | B157: LICENCIATURA EM MÚSICA - 89A | C157: 1278855 | D157: INTEGRAL | E157: 7
A158: 1 | B158: LICENCIATURA EM MÚSICA - 89A | C158: 1278855 | D158: INTEGRAL | E158: 6
A159: 1 | B159: LICENCIATURA EM MÚSICA - 89A | C159: 1278855 | D159: INTEGRAL | E159: 7
A160: 1 | B160: LICENCIATURA EM MÚSICA - 89A | C160: 1278855 | D160: INTEGRAL | E160: 1
A161: 1 | B161: LICENCIATURA EM MÚSICA - 89A | C161: 1278855 | D161: INTEGRAL | E161: 39
A162: 1 | B162: LICENCIATURA EM MÚSICA - 89A | C162: 1278855 | D162: INTEGRAL | E162: 2
A163: 1 | B163: RÁDIO, TV E INTERNET - 91A | C163: 1374873 | D163: INTEGRAL | E163: 136
A164: 1 | B164: TURISMO - 92A | C164: 21589 | D164: INTEGRAL | E164: 140
A165: 1 | B165: TURISMO - 93A | C165: 21589 | D165: NOTURNO | E165: 100
A166: 1 | B166: BACHARELADO EM ARTES VISUAIS - 66C | C166: 1153948 | D166: INTEGRAL | E166: 91
A167: 1 | B167: BACHARELADO EM MODA - 66E | C167: 1153950 | D167: INTEGRAL | E167: 94
A168: 1 | B168: LICENCIATURA EM ARTES VISUAIS - 66F | C168: 1153951 | D168: INTEGRAL | E168: 94
A169: 1 | B169: BACHARELADO EM CINEMA E AUDIOVISUAL - 66B | C169: 1153947 | D169: INTEGRAL | E169: 96
A170: 1 | B170: BACHARELADO EM DESIGN - 66D | C170: 1153949 | D170: INTEGRAL | E170: 87
A171: 1 | B171: DIREITO - 04GV | C171: 1178675 | D171: INTEGRAL | E171: 1
A172: 1 | B172: FARMÁCIA - 05GV | C172: 1185503 | D172: INTEGRAL | E172: 245
A173: 1 | B173: MEDICINA - 07GV | C173: 5001167 | D173: INTEGRAL | E173: 351
A174: 1 | B174: NUTRIÇÃO - 08GV | C174: 1178688 | D174: INTEGRAL | E174: 172
A175: 1 | B175: ODONTOLOGIA - 09GV | C175: 5001168 | D175: INTEGRAL | E175: 294
A176: 1 | B176: FISIOTERAPIA - 20A | C176: 13118 | D176: INTEGRAL | E176: 164
A177: 1 | B177: ENGENHARIA MECÂNICA - 71A | C177: 1109489 | D177: INTEGRAL | E177: 1
A178: 1 | B178: SISTEMAS DE INFORMAÇÃO - 76A | C178: 1128364 | D178: NOTURNO | E178: 1
A179: 1 | B179: JORNALISMO - 84A | C179: 27657 | D179: INTEGRAL | E179: 10
A180: 1 | B180: JORNALISMO - 85A | C180: 36356 | D180: NOTURNO | E180: 10
A181: 1 | B181: LICENCIATURA EM LETRAS - LIBRAS - 88A | C181: 1268983 | D181: NOTURNO | E181: 31
A182: 1 | B182: BACHARELADO EM ARTES VISUAIS - 66C | C182: 1153948 | D182: INTEGRAL | E182: 1
A183: 2 | B183: ABI - CIÊNCIAS BIOLÓGICAS - 01ABI | C183: 5000608 | D183: INTEGRAL | E183: 78
A184: 2 | B184: CIÊNCIAS BIOLÓGICAS - 01B | C184: 313086 | D184: INTEGRAL | E184: 169
A185: 2 | B185: ADMINISTRAÇÃO - 01GV | C185: 1178684 | D185: INTEGRAL | E185: 260
A186: 2 | B186: CIÊNCIAS BIOLÓGICAS - 01L | C186: 13086 | D186: INTEGRAL | E186: 115
A187: 2 | B187: CIÊNCIAS CONTÁBEIS - 02GV | C187: 1183351 | D187: INTEGRAL | E187: 136
A188: 2 | B188: CIÊNCIAS ECONÔMICAS - 03GV | C188: 1178683 | D188: INTEGRAL | E188: 235
A189: 2 | B189: DIREITO - 04A | C189: 13089 | D189: INTEGRAL | E189: 496
A190: 2 | B190: DIREITO - 04GV | C190: 1178675 | D190: INTEGRAL | E190: 474
A191: 2 | B191: CIÊNCIAS ECONÔMICAS - 05A | C191: 13090 | D191: INTEGRAL | E191: 216
A192: 2 | B192: FARMÁCIA - 05GV | C192: 1185503 | D192: INTEGRAL | E192: 244
A193: 2 | B193: FISIOTERAPIA - 06GV | C193: 1178689 | D193: INTEGRAL | E193: 261
A194: 2 | B194: FARMÁCIA - 07A | C194: 38509 | D194: INTEGRAL | E194: 513
A195: 2 | B195: MEDICINA - 07GV | C195: 5001167 | D195: INTEGRAL | E195: 348
A196: 2 | B196: ABI - FILOSOFIA - 08ABI | C196: 5000611 | D196: INTEGRAL | E196: 39
A197: 2 | B197: FILOSOFIA - 08B | C197: 313097 | D197: INTEGRAL | E197: 45
A198: 2 | B198: NUTRIÇÃO - 08GV | C198: 1178688 | D198: INTEGRAL | E198: 234
A199: 2 | B199: FILOSOFIA - 08L | C199: 13097 | D199: INTEGRAL | E199: 79
A200: 2 | B200: FÍSICA - 09A | C200: 5000613 | D200: INTEGRAL | E200: 2
... 158 more rows

Sheet Cursos (hidden)
A1: CURSOS | B1: CODIGO_INEP | C1: Rótulos de Linha
A2: ABI - CIÊNCIAS BIOLÓGICAS - 01ABI | B2: 5000608 | C2: ABI - CIÊNCIAS BIOLÓGICAS - 01ABI
A3: CIÊNCIAS BIOLÓGICAS - 01B | B3: 313086 | C3: ABI - EDUCAÇÃO FÍSICA - 21ABI
A4: ADMINISTRAÇÃO - 01GV | B4: 1178684 | C4: ABI - FILOSOFIA - 08ABI
A5: CIÊNCIAS BIOLÓGICAS - 01L | B5: 13086 | C5: ABI - GEOGRAFIA - 10ABI
A6: CIÊNCIAS CONTÁBEIS - 02GV | B6: 1183351 | C6: ABI - GEOGRAFIA - 27ABI
A7: CIÊNCIAS ECONÔMICAS - 03GV | B7: 1178683 | C7: ABI - HISTÓRIA - 11ABI
A8: DIREITO - 04A | B8: 13089 | C8: ABI - HISTÓRIA - 28ABI
A9: DIREITO - 04GV | B9: 1178675 | C9: ABI - LETRAS - 13ABI
A10: CIÊNCIAS ECONÔMICAS - 05A | B10: 13090 | C10: ABI - LETRAS - 29ABI
A11: FARMÁCIA - 05GV | B11: 1185503 | C11: ADMINISTRAÇÃO - 01GV
A12: FISIOTERAPIA - 06GV | B12: 1178689 | C12: ADMINISTRAÇÃO - 26A
A13: FARMÁCIA - 07A | B13: 38509 | C13: ADMINISTRAÇÃO - 46A
A14: MEDICINA - 07GV | B14: 5001167 | C14: ARQUITETURA E URBANISMO - 33A
A15: ABI - FILOSOFIA - 08ABI | B15: 5000611 | C15: BACHARELADO EM ARTES VISUAIS - 66C
A16: FILOSOFIA - 08B | B16: 313097 | C16: BACHARELADO EM CINEMA E AUDIOVISUAL - 66B
A17: NUTRIÇÃO - 08GV | B17: 1178688 | C17: BACHARELADO EM DESIGN - 66D
A18: FILOSOFIA - 08L | B18: 13097 | C18: BACHARELADO EM MODA - 66E
A19: FÍSICA - 09A | B19: 5000613 | C19: BACHARELADO INTERDISCIPLINAR EM ARTES E DESIGN - 66A
A20: ODONTOLOGIA - 09GV | B20: 5001168 | C20: BACHARELADO INTERDISCIPLINAR EM CIÊNCIAS HUMANAS - 72A
A21: ABI - GEOGRAFIA - 10ABI | B21: 5000615 | C21: BACHARELADO INTERDISCIPLINAR EM CIÊNCIAS HUMANAS - 73A
A22: GEOGRAFIA - 10B | B22: 313099 | C22: CIÊNCIA DA COMPUTAÇÃO - 35A
A23: EDUCAÇÃO FÍSICA - 10GV | B23: 1270439 | C23: CIÊNCIA DA COMPUTAÇÃO - 65C
A24: GEOGRAFIA - 10L | B24: 13099 | C24: CIÊNCIA DA RELIGIÃO - 72B
A25: ABI - HISTÓRIA - 11ABI | B25: 5000616 | C25: CIÊNCIA DA RELIGIÃO - 72BL
A26: HISTÓRIA - 11B | B26: 313100 | C26: CIÊNCIA DA RELIGIÃO - 73B
A27: HISTÓRIA - 11L | B27: 13100 | C27: CIÊNCIA DA RELIGIÃO - 73BL
A28: LETRAS - 13A | B28: 5000617 | C28: CIÊNCIAS BIOLÓGICAS - 01A
A29: ABI - LETRAS - 13ABI | B29: 5000617 | C29: CIÊNCIAS BIOLÓGICAS - 01B
A30: LETRAS - 13B | B30: 313101 | C30: CIÊNCIAS BIOLÓGICAS - 01L
A31: LETRAS - 13B | B31: 313101 | C31: CIÊNCIAS CONTÁBEIS - 02GV
A32: LETRAS - 13L | B32: 13101 | C32: CIÊNCIAS CONTÁBEIS - 77A
A33: LETRAS - 13L | B33: 13101 | C33: CIÊNCIAS CONTÁBEIS - 78A
A34: LETRAS - 13L | B34: 13101 | C34: CIÊNCIAS ECONÔMICAS - 03GV
A35: LETRAS - 13L | B35: 13101 | C35: CIÊNCIAS ECONÔMICAS - 05A
A36: LETRAS - 13L | B36: 13101 | C36: CIÊNCIAS ECONÔMICAS - 51A
A37: LETRAS - 13L | B37: 13101 | C37: CIÊNCIAS EXATAS - 65A
A38: LETRAS - 13L | B38: 13101 | C38: CIÊNCIAS SOCIAIS - 31B
A39: LETRAS - 13L | B39: 13101 | C39: CIÊNCIAS SOCIAIS - 31L
A40: MEDICINA - 15A | B40: 13103 | C40: CIÊNCIAS SOCIAIS - 72C
A41: ODONTOLOGIA - 16A | B41: 13104 | C41: CIÊNCIAS SOCIAIS - 72CB
A42: PEDAGOGIA - 17A | B42: 13105 | C42: CIÊNCIAS SOCIAIS - 72CL
A43: SERVIÇO SOCIAL - 19A | B43: 13107 | C43: CIÊNCIAS SOCIAIS - 73C
A44: FISIOTERAPIA - 20A | B44: 13118 | C44: CIÊNCIAS SOCIAIS - 73CB
A45: EDUCAÇÃO FÍSICA - 21B | B45: 5000610 | C45: CIÊNCIAS SOCIAIS - 73CL
A46: EDUCAÇÃO FÍSICA - 21B | B46: 313092 | C46: DIREITO - 04A
A47: EDUCAÇÃO FÍSICA - 21L | B47: 13092 | C47: DIREITO - 04GV
A48: ENFERMAGEM - 23A | B48: 38994 | C48: DIREITO - 34A
A49: ENFERMAGEM - 23L | B49: 338994 | C49: EDUCAÇÃO ARTÍSTICA - 03A
A50: ENGENHARIA CIVIL - 24A | B50: 13094 | C50: EDUCAÇÃO FÍSICA - 10GV
A51: ADMINISTRAÇÃO - 26A | B51: 22451 | C51: EDUCAÇÃO FÍSICA - 21B
A52: ABI - GEOGRAFIA - 27ABI | B52: 5000615 | C52: EDUCAÇÃO FÍSICA - 21L
A53: GEOGRAFIA - 27L | B53: 313099 | C53: ENFERMAGEM - 23A
A54: GEOGRAFIA - 27L | B54: 13099 | C54: ENFERMAGEM - 23L
A55: ABI - HISTÓRIA - 28ABI | B55: 5000616 | C55: ENGENHARIA AMBIENTAL E SANITÁRIA - 67A
A56: HISTÓRIA - 28B | B56: 313100 | C56: ENGENHARIA CIVIL - 24A
A57: HISTÓRIA - 28L | B57: 13100 | C57: ENGENHARIA COMPUTACIONAL - 65B
A58: LETRAS - 29A | B58: 5000617 | C58: ENGENHARIA DE PRODUÇÃO - 49A
A59: ABI - LETRAS - 29ABI | B59: 5000617 | C59: ENGENHARIA ELÉTRICA - 25A
A60: LETRAS - 29B | B60: 313101 | C60: ENGENHARIA ELÉTRICA - 50A
A61: LETRAS - 29L | B61: 13101 | C61: ENGENHARIA ELÉTRICA - HAB. EM ROBÓTICA E AUTOMAÇÃO INDUSTRIAL - 65I
A62: PEDAGOGIA - 30A | B62: 13105 | C62: ENGENHARIA ELÉTRICA - HAB. EM ROBÓTICA E AUTOMAÇÃO INDUSTRIAL - 69B
A63: CIÊNCIAS SOCIAIS - 31B | B63: 313087 | C63: ENGENHARIA ELÉTRICA - HABILITAÇÃO EM ENERGIA - 65H
A64: PSICOLOGIA - 32A | B64: 13113 | C64: ENGENHARIA ELÉTRICA - HABILITAÇÃO EM ENERGIA - 70A
A65: ARQUITETURA E URBANISMO - 33A | B65: 13114 | C65: ENGENHARIA ELÉTRICA - HABILITAÇÃO EM SISTEMAS DE POTÊNCIA - 65J
A66: DIREITO - 34A | B66: 21860 | C66: ENGENHARIA ELÉTRICA - HABILITAÇÃO EM SISTEMAS DE POTÊNCIA - 69C
A67: ADMINISTRAÇÃO - 46A | B67: 22451 | C67: ENGENHARIA ELÉTRICA - HABILITAÇÃO EM SISTEMAS ELETRÔNICOS - 65K
A68: ENGENHARIA DE PRODUÇÃO - 49A | B68: 38594 | C68: ENGENHARIA ELÉTRICA - HABILITAÇÃO EM SISTEMAS ELETRÔNICOS - 69A
A69: CIÊNCIAS ECONÔMICAS - 51A | B69: 13090 | C69: ENGENHARIA ELÉTRICA - HABILITAÇÃO EM TELECOMUNICAÇÕES - 65L
A70: MÚSICA - CANTO - 63A | B70: 116490 | C70: ENGENHARIA ELÉTRICA - HABILITAÇÃO EM TELECOMUNICAÇÕES - 69D
A71: MÚSICA - MODALIDADE PIANO - 63C | B71: 116490 | C71: ENGENHARIA MECÂNICA - 65M
A72: MÚSICA - MODALIDADE PIANO - 63C | B72: 116492 | C72: ENGENHARIA MECÂNICA - 71A
A73: MÚSICA - MODALIDADE VIOLÃO - 63D | B73: 116490 | C73: ESTATÍSTICA - 65D
A74: MÚSICA - MODALIDADE VIOLÃO - 63D | B74: 116493 | C74: FARMÁCIA - 05GV
A75: MÚSICA - MODALIDADE VIOLINO - 63E | B75: 116490 | C75: FARMÁCIA - 07A
A76: MÚSICA - MODALIDADE VIOLINO - 63E | B76: 116494 | C76: FILOSOFIA - 08A
A77: MÚSICA - MODALIDADE VIOLONCELO - 63F | B77: 116490 | C77: FILOSOFIA - 08B
A78: MÚSICA - MODALIDADE VIOLONCELO - 63F | B78: 116495 | C78: FILOSOFIA - 08L
A79: MÚSICA - MODALIDADE COMPOSIÇÃO - 63G | B79: 116490 | C79: FILOSOFIA - 72EB
A80: MÚSICA - MODALIDADE COMPOSIÇÃO - 63G | B80: 1271995 | C80: FILOSOFIA - 72EL
A81: NUTRIÇÃO - 64A | B81: 116498 | C81: FILOSOFIA - 73E
A82: CIÊNCIAS EXATAS - 65A | B82: 116502 | C82: FÍSICA - 09A
A83: ENGENHARIA COMPUTACIONAL - 65B | B83: 1120244 | C83: FÍSICA - 65E
A84: CIÊNCIA DA COMPUTAÇÃO - 65C | B84: 65361 | C84: FÍSICA - 65EL
A85: ESTATÍSTICA - 65D | B85: 113531 | C85: FÍSICA - 81A
A86: FÍSICA - 65E | B86: 5000613 | C86: FISIOTERAPIA - 06GV
A87: FÍSICA - 65E | B87: 313098 | C87: FISIOTERAPIA - 20A
A88: MATEMÁTICA - 65F | B88: 5000618 | C88: GEOGRAFIA - 10B
A89: MATEMÁTICA - 65F | B89: 313102 | C89: GEOGRAFIA - 10L
A90: MATEMÁTICA - 65FL | B90: 13102 | C90: GEOGRAFIA - 27A
A91: QUÍMICA - 65GB | B91: 5000619 | C91: GEOGRAFIA - 27L
A92: QUÍMICA - 65GB | B92: 5000619 | C92: HISTÓRIA - 11A
A93: QUÍMICA - 65GB | B93: 313106 | C93: HISTÓRIA - 11B
A94: QUÍMICA - 65GL | B94: 13106 | C94: HISTÓRIA - 11L
A95: ENGENHARIA ELÉTRICA - HABILITAÇÃO EM ENERGIA - 65H | B95: 1109475 | C95: HISTÓRIA - 28A
A96: ENGENHARIA ELÉTRICA - HAB. EM ROBÓTICA E AUTOMAÇÃO INDUSTRIAL - 65I | B96: 1109485 | C96: HISTÓRIA - 28B
A97: ENGENHARIA ELÉTRICA - HABILITAÇÃO EM SISTEMAS DE POTÊNCIA - 65J | B97: 1109486 | C97: HISTÓRIA - 28L
A98: ENGENHARIA ELÉTRICA - HABILITAÇÃO EM SISTEMAS ELETRÔNICOS - 65K | B98: 1109487 | C98: JORNALISMO - 84A
A99: ENGENHARIA MECÂNICA - 65M | B99: 1109489 | C99: JORNALISMO - 85A
A100: BACHARELADO INTERDISCIPLINAR EM ARTES E DESIGN - 66A | B100: 116500 | C100: LETRAS - 13A
A101: BACHARELADO EM CINEMA E AUDIOVISUAL - 66B | B101: 1153947 | C101: LETRAS - 13B
A102: BACHARELADO EM ARTES VISUAIS - 66C | B102: 1153948 | C102: LETRAS - 13L
A103: BACHARELADO EM DESIGN - 66D | B103: 1153949 | C103: LETRAS - 29A
A104: BACHARELADO EM MODA - 66E | B104: 1153950 | C104: LETRAS - 29B
A105: LICENCIATURA EM ARTES VISUAIS - 66F | B105: 1153951 | C105: LETRAS - 29L
A106: ENGENHARIA AMBIENTAL E SANITÁRIA - 67A | B106: 116496 | C106: LICENCIATURA EM ARTES VISUAIS - 66F
A107: SERVIÇO SOCIAL - 68A | B107: 13107 | C107: LICENCIATURA EM LETRAS - LIBRAS - 88A
A108: ENGENHARIA ELÉTRICA - HABILITAÇÃO EM SISTEMAS ELETRÔNICOS - 69A | B108: 1109487 | C108: LICENCIATURA EM MÚSICA - 89A
A109: ENGENHARIA ELÉTRICA - HAB. EM ROBÓTICA E AUTOMAÇÃO INDUSTRIAL - 69B | B109: 1109485 | C109: MATEMÁTICA - 65F
A110: ENGENHARIA ELÉTRICA - HABILITAÇÃO EM SISTEMAS DE POTÊNCIA - 69C | B110: 1109486 | C110: MATEMÁTICA - 65FL
A111: ENGENHARIA ELÉTRICA - HABILITAÇÃO EM TELECOMUNICAÇÕES - 69D | B111: 1109488 | C111: MATEMÁTICA - 82A
A112: ENGENHARIA ELÉTRICA - HABILITAÇÃO EM ENERGIA - 70A | B112: 1109475 | C112: MEDICINA - 07GV
A113: ENGENHARIA MECÂNICA - 71A | B113: 1109489 | C113: MEDICINA - 15A
A114: BACHARELADO INTERDISCIPLINAR EM CIÊNCIAS HUMANAS - 72A | B114: 1120242 | C114: MEDICINA VETERINÁRIA - 87A
A115: CIÊNCIA DA RELIGIÃO - 72B | B115: 1165350 | C115: MÚSICA - CANTO - 63A
A116: CIÊNCIAS SOCIAIS - 72C | B116: 5000609 | C116: MÚSICA - MODALIDADE COMPOSIÇÃO - 63G
A117: CIÊNCIAS SOCIAIS - 72CB | B117: 313087 | C117: MÚSICA - MODALIDADE FLAUTA TRANSVERSAL - 63B
A118: CIÊNCIAS SOCIAIS - 72CL | B118: 13087 | C118: MÚSICA - MODALIDADE PIANO - 63C
A119: TURISMO - 72D | B119: 21589 | C119: MÚSICA - MODALIDADE VIOLÃO - 63D
A120: FILOSOFIA - 72EB | B120: 5000611 | C120: MÚSICA - MODALIDADE VIOLINO - 63E
A121: FILOSOFIA - 72EB | B121: 313097 | C121: MÚSICA - MODALIDADE VIOLONCELO - 63F
A122: FILOSOFIA - 72EL | B122: 13097 | C122: NUTRIÇÃO - 08GV
A123: BACHARELADO INTERDISCIPLINAR EM CIÊNCIAS HUMANAS - 73A | B123: 1120242 | C123: NUTRIÇÃO - 64A
A124: CIÊNCIA DA RELIGIÃO - 73B | B124: 1165350 | C124: ODONTOLOGIA - 09GV
A125: CIÊNCIA DA RELIGIÃO - 73BL | B125: 1165686 | C125: ODONTOLOGIA - 16A
A126: CIÊNCIAS SOCIAIS - 73C | B126: 5000609 | C126: PEDAGOGIA - 17A
A127: CIÊNCIAS SOCIAIS - 73CB | B127: 313087 | C127: PEDAGOGIA - 30A
A128: CIÊNCIAS SOCIAIS - 73CL | B128: 13087 | C128: PSICOLOGIA - 32A
A129: TURISMO - 73D | B129: 21589 | C129: QUÍMICA - 65GB
A130: CIÊNCIAS CONTÁBEIS - 77A | B130: 1132074 | C130: QUÍMICA - 65GL
A131: CIÊNCIAS CONTÁBEIS - 78A | B131: 1132074 | C131: QUÍMICA - 83A
A132: JORNALISMO - 84A | B132: 27657 | C132: RÁDIO, TV E INTERNET - 91A
A133: JORNALISMO - 85A | B133: 36356 | C133: SERVIÇO SOCIAL - 19A
A134: MEDICINA VETERINÁRIA - 87A | B134: 1268972 | C134: SERVIÇO SOCIAL - 68A
A135: LICENCIATURA EM MÚSICA - 89A | B135: 1278855 | C135: SISTEMAS DE INFORMAÇÃO - 76A
A136: LICENCIATURA EM MÚSICA - 89A | B136: 1278855 | C136: TURISMO - 72D
A137: LICENCIATURA EM MÚSICA - 89A | B137: 1278855 | C137: TURISMO - 73D
A138: CIÊNCIAS BIOLÓGICAS - 01A | B138: 5000608 | C138: TURISMO - 92A
A139: ABI - CIÊNCIAS BIOLÓGICAS - 01ABI | B139: 5000608 | C139: TURISMO - 93A
A140: CIÊNCIAS BIOLÓGICAS - 01B | B140: 313086 | C140: Total Geral
A141: ADMINISTRAÇÃO - 01GV | B141: 1178684
A142: CIÊNCIAS BIOLÓGICAS - 01L | B142: 13086
A143: CIÊNCIAS ECONÔMICAS - 03GV | B143: 1178683
A144: DIREITO - 04A | B144: 13089
A145: DIREITO - 04GV | B145: 1178675
A146: FARMÁCIA - 05GV | B146: 1185503
A147: FISIOTERAPIA - 06GV | B147: 1178689
A148: FARMÁCIA - 07A | B148: 38509
A149: MEDICINA - 07GV | B149: 5001167
A150: FILOSOFIA - 08B | B150: 313097
A151: NUTRIÇÃO - 08GV | B151: 1178688
A152: FILOSOFIA - 08L | B152: 13097
A153: FÍSICA - 09A | B153: 5000613
A154: ODONTOLOGIA - 09GV | B154: 5001168
A155: GEOGRAFIA - 10B | B155: 313099
A156: EDUCAÇÃO FÍSICA - 10GV | B156: 1270439
A157: GEOGRAFIA - 10L | B157: 13099
A158: HISTÓRIA - 11B | B158: 313100
A159: LETRAS - 13A | B159: 5000617
A160: LETRAS - 13B | B160: 313101
A161: LETRAS - 13B | B161: 313101
A162: LETRAS - 13L | B162: 13101
A163: LETRAS - 13L | B163: 13101
A164: LETRAS - 13L | B164: 13101
A165: MEDICINA - 15A | B165: 13103
A166: ODONTOLOGIA - 16A | B166: 13104
A167: PEDAGOGIA - 17A | B167: 13105
A168: SERVIÇO SOCIAL - 19A | B168: 13107
A169: FISIOTERAPIA - 20A | B169: 13118
A170: EDUCAÇÃO FÍSICA - 21B | B170: 5000610
A171: EDUCAÇÃO FÍSICA - 21B | B171: 313092
A172: EDUCAÇÃO FÍSICA - 21L | B172: 13092
A173: ENFERMAGEM - 23A | B173: 38994
A174: ENFERMAGEM - 23L | B174: 338994
A175: ENGENHARIA CIVIL - 24A | B175: 13094
A176: GEOGRAFIA - 27L | B176: 313099
A177: GEOGRAFIA - 27L | B177: 13099
A178: ABI - HISTÓRIA - 28ABI | B178: 5000616
A179: HISTÓRIA - 28B | B179: 313100
A180: HISTÓRIA - 28L | B180: 13100
A181: LETRAS - 29A | B181: 5000617
A182: ABI - LETRAS - 29ABI | B182: 5000617
A183: LETRAS - 29L | B183: 13101
A184: LETRAS - 29L | B184: 13101
A185: LETRAS - 29L | B185: 13101
A186: PEDAGOGIA - 30A | B186: 13105
A187: PSICOLOGIA - 32A | B187: 13113
A188: ARQUITETURA E URBANISMO - 33A | B188: 13114
A189: DIREITO - 34A | B189: 21860
A190: CIÊNCIA DA COMPUTAÇÃO - 35A | B190: 18518
A191: ADMINISTRAÇÃO - 46A | B191: 22451
A192: ENGENHARIA DE PRODUÇÃO - 49A | B192: 38594
A193: CIÊNCIAS ECONÔMICAS - 51A | B193: 13090
A194: NUTRIÇÃO - 64A | B194: 116498
A195: ENGENHARIA COMPUTACIONAL - 65B | B195: 1120244
A196: ESTATÍSTICA - 65D | B196: 113531
A197: FÍSICA - 65E | B197: 313098
A198: MATEMÁTICA - 65F | B198: 5000618
A199: MATEMÁTICA - 65F | B199: 313102
A200: MATEMÁTICA - 65FL | B200: 13102
... 1729 more rows

Sheet C_CORR_COM_HU S_HU
A1: CUSTO CORRENTE
B2: 2017 | C2: 2018 | D2: 2019 | E2: 2020 | F2: 2021
A3: CUSTO CORRENTE S_HU | B3: 604855746.7 | C3: 644483392.8 | D3: 661885338.3 | E3: 707077157.5 | F3: =E18 -> 733675198.4
A4: CUSTO CORRENTE C_HU | B4: 628553903.2 | C4: 666190973.8 | D4: 682548236.1 | E4: 727731710.8 | F4: =E32 -> 754224765.4
A7: COMPONENTE
A8: CUSTO CORRENTE SEM HU
A9: Despesas correntes do órgão Universidade, com todas as UG´s, inclusive hospitais universitários | E9: 1040979872
A10: 100% das despesas correntes totais do hospital universitário | E10: 58713048.53
A11: Aposentadorias e Reformas do órgão Universidade: | E11: 191529409.1
A12: Pensões do órgão Universidade: | E12: 41533664.19
A13: Sentenças Judiciais do órgão Universidade: | E13: 2221549.94
A14: Despesas com pessoal cedido – docente do órgão Universidade | E14: 2440713.69
A15: Despesas com pessoal cedido - técnico-administrativo do órgão Universidade | E15: 1714176.38
A16: Despesa com afastamento País/Exterior – docente do órgão Universidade | E16: 8503398.3
A17: Despesa com afastamento País/Exterior - técnico-administrativo do órgão Universidade | E17: 648713.36
A18: TOTAL | E18: =E9-SUM(E10:E17) -> 733675198.4
A21: COMPONENTE
A22: CUSTO CORRENTE COM HU
A23: Despesas correntes do órgão Universidade, com todas as UG´s, inclusive hospitais universitários | E23: 1040979872
A24: 65% das despesas correntes totais do hospital universitário | E24: 38163481.54
A25: Aposentadorias e Reformas do órgão Universidade: | E25: 191529409.1
A26: Pensões do órgão Universidade: | E26: 41533664.19
A27: Sentenças Judiciais do órgão Universidade: | E27: 2221549.94
A28: Despesas com pessoal cedido – docente do órgão Universidade | E28: 2440713.69
A29: Despesas com pessoal cedido - técnico-administrativo do órgão Universidade | E29: 1714176.38
A30: Despesa com afastamento País/Exterior – docente do órgão Universidade | E30: 8503398.3
A31: Despesa com afastamento País/Exterior - técnico-administrativo do órgão Universidade | E31: 648713.36
A32: TOTAL | E32: =E23-SUM(E24:E31) -> 754224765.4

Sheet Substituir (hidden)
A1: CURSO ORIGINAL | B1: CURSO CONVERTIDO | C1: MÉTODO
A2: ABI - CIÊNCIAS SOCIAIS - 72C | B2: CIÊNCIAS SOCIAIS - 72C | C2: Integral
A3: ABI - CIÊNCIAS SOCIAIS - 73C | B3: CIÊNCIAS SOCIAIS - 73C | C3: Integral
A4: ABI - FILOSOFIA - 72E | B4: FILOSOFIA - 72EB | C4: Integral
A5: ABI - FILOSOFIA - 73E | B5: FILOSOFIA - 73E | C5: Integral
A6: COMUNICAÇÃO SOCIAL - 12A | B6: JORNALISMO - 84A | C6: Integral
A7: EDUCAÇÃO FÍSICA - 21A | B7: EDUCAÇÃO FÍSICA - 21B | C7: Integral
A8: EDUCAÇÃO MUSICAL ESCOLAR - 89H | B8: 89A | C8: Parcial
A9: FÍSICA - 65EB | B9: FÍSICA - 65E | C9: Integral
A10: GEOGRAFIA - 27B | B10: GEOGRAFIA - 27L | C10: Integral
A11: LETRAS - 13BES | B11: LETRAS - 13B | C11: Integral
A12: LETRAS - 13BFR | B12: LETRAS - 13B | C12: Integral
A13: LETRAS - 13BIN | B13: LETRAS - 13B | C13: Integral
A14: LETRAS - ESPANHOL - 13LES | B14: LETRAS - 13L | C14: Integral
A15: LETRAS - FRANCÊS - 13LFR | B15: LETRAS - 13L | C15: Integral
A16: LETRAS - INGLÊS - 13LIN | B16: LETRAS - 13L | C16: Integral
A17: LETRAS - INGLÊS - 29LIN | B17: LETRAS - 29L | C17: Integral
A18: LETRAS - ITALIANO - 13LIT | B18: LETRAS - 13L | C18: Integral
A19: LETRAS - LATIM - 13LLT | B19: LETRAS - 13L | C19: Integral
A20: LETRAS - PORTUGUÊS - 13LPO | B20: LETRAS - 13L | C20: Integral
A21: LETRAS - PORTUGUÊS - 29LPO | B21: LETRAS - 29L | C21: Integral
A22: LETRAS - PORTUGUÊS/FRANCÊS - 13LPO/FR | B22: LETRAS - 13L | C22: Integral
A23: LETRAS - PORTUGUÊS/ITALIANO - 13LPO/IT | B23: LETRAS - 13L | C23: Integral
A24: LETRAS - PORTUGUÊS/LATIM - 13LPO/LT | B24: LETRAS - 13L | C24: Integral
A25: MATEMÁTICA - 65FB | B25: MATEMÁTICA - 65F | C25: Integral
A26: OPÇÃO 2º CICLO CIÊNCIAS EXATAS - | C26: Parcial
A27: QUÍMICA - 65G | B27: QUÍMICA - 65GB | C27: Integral
A28: QUÍMICA - 65G-ABI | B28: QUÍMICA - 65GB | C28: Integral
A29: ARTES - 03A | B29: EDUCAÇÃO ARTÍSTICA - 03A | C29: Integral
A30: ARTES - 03B | B30: EDUCAÇÃO ARTÍSTICA - 03A | C30: Integral
A31: LICENCIATURA EM MÚSICA - PIANO - 89D | B31: LICENCIATURA EM MÚSICA - 89A | C31: Integral
A32: BACHARELADO EM ARTES VISUAIS - 94A | B32: BACHARELADO EM ARTES VISUAIS - 66C | C32: Integral
A33: BACHARELADO EM CINEMA E AUDIOVISUAL - 97A | B33: BACHARELADO EM CINEMA E AUDIOVISUAL - 66B | C33: Integral
A34: BACHARELADO EM DESIGN - 98A | B34: BACHARELADO EM DESIGN - 66D | C34: Integral
A35: BACHARELADO EM MODA - 95A | B35: BACHARELADO EM MODA - 66E | C35: Integral
A36: LICENCIATURA EM ARTES VISUAIS - 96A | B36: LICENCIATURA EM ARTES VISUAIS - 66F | C36: Integral
A37: LETRAS - 13BLT | B37: LETRAS - 13B | C37: Integral
A38: LETRAS - ESPANHOL - 29LES | B38: LETRAS - 29L | C38: Integral
A39: LETRAS - PORTUGUÊS/LÍNGUAS CLÁSSICAS - 13LPO/CL | B39: LETRAS - 13L | C39: Integral
A40: LICENCIATURA EM MÚSICA - CANTO - 89B | B40: LICENCIATURA EM MÚSICA - 89A | C40: Integral
A41: LICENCIATURA EM MÚSICA - CRAVO - 89I | B41: LICENCIATURA EM MÚSICA - 89A | C41: Integral
A42: LICENCIATURA EM MÚSICA - FLAUTA TRANSVERSAL - 89C | B42: LICENCIATURA EM MÚSICA - 89A | C42: Integral
A43: LICENCIATURA EM MÚSICA - VIOLÃO - 89E | B43: LICENCIATURA EM MÚSICA - 89A | C43: Integral
A44: LICENCIATURA EM MÚSICA - VIOLINO - 89F | B44: LICENCIATURA EM MÚSICA - 89A | C44: Integral
A45: LICENCIATURA EM MÚSICA - VIOLONCELO - 89G | B45: LICENCIATURA EM MÚSICA - 89A | C45: Integral
A46: QUÍMICA - 56A | B46: QUÍMICA - 65GB | C46: Integral

Sheet Parametros (hidden)
A1: CURSO | B1: CÓDIGO INEP | C1: DURAÇÃO DO CURSO | D1: FATOR DE RETENÇÃO | E1: PESO DO GRUPO
A2: ABI - CIÊNCIAS BIOLÓGICAS - 01ABI | B2: 5000608 | C2: 4 | D2: 0.125 | E2: 2
A3: ABI - EDUCAÇÃO FÍSICA - 21ABI | B3: 5000610 | C3: 5 | D3: 0.066 | E3: 1.5
A4: ABI - FILOSOFIA - 08ABI | B4: 5000611 | C4: 4 | D4: 0.1 | E4: 1
A5: ABI - GEOGRAFIA - 10ABI | B5: 5000615 | C5: 4 | D5: 0.1 | E5: 1
A6: ABI - GEOGRAFIA - 27ABI | B6: 5000615 | C6: 4 | D6: 0.1 | E6: 1
A7: ABI - HISTÓRIA - 11ABI | B7: 5000616 | C7: 4 | D7: 0.1 | E7: 1
A8: ABI - HISTÓRIA - 28ABI | B8: 5000616 | C8: 4 | D8: 0.1 | E8: 1
A9: ABI - LETRAS - 13ABI | B9: 5000617 | C9: 4 | D9: 0.115 | E9: 1
A10: ABI - LETRAS - 29ABI | B10: 5000617 | C10: 4 | D10: 0.115 | E10: 1
A11: ABI - QUÍMICA - 56A | B11: 5000619 | C11: 4 | D11: 0.1325 | E11: 1.5
A12: ADMINISTRAÇÃO - 01GV | B12: 1178684 | C12: 4 | D12: 0.12 | E12: 1
A13: ADMINISTRAÇÃO - 26A | B13: 22451 | C13: 4 | D13: 0.12 | E13: 1
A14: ADMINISTRAÇÃO - 46A | B14: 22451 | C14: 4 | D14: 0.12 | E14: 1
A15: ARQUITETURA E URBANISMO - 33A | B15: 13114 | C15: 4 | D15: 0.12 | E15: 1.5
A16: EDUCAÇÃO ARTÍSTICA - 03A | B16: 38748 | C16: 4 | D16: 0.115 | E16: 1.5
A17: BACHARELADO EM ARTES VISUAIS - 66C | B17: 1153948 | C17: 2 | D17: 0.1 | E17: 1.5
A18: BACHARELADO EM CINEMA E AUDIOVISUAL - 66B | B18: 1153947 | C18: 2 | D18: 0.1 | E18: 1.5
A19: BACHARELADO EM DESIGN - 66D | B19: 1153949 | C19: 2 | D19: 0.1 | E19: 1.5
A20: BACHARELADO EM MODA - 66E | B20: 1153950 | C20: 2 | D20: 0.1 | E20: 1.5
A21: BACHARELADO INTERDISCIPLINAR EM ARTES E DESIGN - 66A | B21: 116500 | C21: 3 | D21: 0.1 | E21: 1.5
A22: BACHARELADO INTERDISCIPLINAR EM CIÊNCIAS HUMANAS - 72A | B22: 1120242 | C22: 3 | D22: 0.1 | E22: 1
A23: BACHARELADO INTERDISCIPLINAR EM CIÊNCIAS HUMANAS - 73A | B23: 1120242 | C23: 3 | D23: 0.1 | E23: 1
A24: CIÊNCIA DA COMPUTAÇÃO - 35A | B24: 18518 | C24: 4 | D24: 0.1325 | E24: 1.5
A25: CIÊNCIA DA COMPUTAÇÃO - 65AC | B25: 65361 | C25: 4 | D25: 0.1325 | E25: 1.5
A26: CIÊNCIA DA COMPUTAÇÃO - 65C | B26: 65361 | C26: 2 | D26: 0.1325 | E26: 1.5
A27: CIÊNCIA DA RELIGIÃO - 72B | B27: 1165350 | C27: 2 | D27: 0.1 | E27: 1
A28: CIÊNCIA DA RELIGIÃO - 72BL | B28: 1165686 | C28: 2 | D28: 0.1 | E28: 1
A29: CIÊNCIA DA RELIGIÃO - 73B | B29: 1165350 | C29: 2 | D29: 0.1 | E29: 1
A30: CIÊNCIA DA RELIGIÃO - 73BL | B30: 1165686 | C30: 2 | D30: 0.1 | E30: 1
A31: CIÊNCIAS BIOLÓGICAS - 01A | B31: 5000608 | C31: 4 | D31: 0.125 | E31: 2
A32: CIÊNCIAS BIOLÓGICAS - 01B | B32: 313086 | C32: 4 | D32: 0.125 | E32: 2
A33: CIÊNCIAS BIOLÓGICAS - 01L | B33: 13086 | C33: 4 | D33: 0.125 | E33: 2
A34: CIÊNCIAS CONTÁBEIS - 02GV | B34: 1183351 | C34: 4 | D34: 0.12 | E34: 1
A35: CIÊNCIAS CONTÁBEIS - 77A | B35: 1132074 | C35: 4 | D35: 0.12 | E35: 1
A36: CIÊNCIAS CONTÁBEIS - 78A | B36: 1132074 | C36: 4 | D36: 0.12 | E36: 1
A37: CIÊNCIAS ECONÔMICAS - 03GV | B37: 1178683 | C37: 4 | D37: 0.12 | E37: 1
A38: CIÊNCIAS ECONÔMICAS - 05A | B38: 13090 | C38: 4 | D38: 0.12 | E38: 1
A39: CIÊNCIAS ECONÔMICAS - 51A | B39: 13090 | C39: 4 | D39: 0.12 | E39: 1
A40: CIÊNCIAS EXATAS - 65A | B40: 116502 | C40: 3 | D40: 0.1 | E40: 2
A41: CIÊNCIAS SOCIAIS - 31B | B41: 313087 | C41: 2 | D41: 0.1 | E41: 1
A42: CIÊNCIAS SOCIAIS - 31L | B42: 13087 | C42: 2 | D42: 0.1 | E42: 1
A43: CIÊNCIAS SOCIAIS - 72C | B43: 313087 | C43: 2 | D43: 0.1 | E43: 1
A44: CIÊNCIAS SOCIAIS - 72CB | B44: 313087 | C44: 2 | D44: 0.1 | E44: 1
A45: CIÊNCIAS SOCIAIS - 72CL | B45: 13087 | C45: 2 | D45: 0.1 | E45: 1
A46: CIÊNCIAS SOCIAIS - 73C | B46: 313087 | C46: 2 | D46: 0.1 | E46: 1
A47: CIÊNCIAS SOCIAIS - 73CB | B47: 313087 | C47: 2 | D47: 0.1 | E47: 1
A48: CIÊNCIAS SOCIAIS - 73CL | B48: 13087 | C48: 2 | D48: 0.1 | E48: 1
A49: COMUNICAÇÃO SOCIAL - 12A | B49: 27657 | C49: 4 | D49: 0.12 | E49: 1
A50: DIREITO - 04A | B50: 13089 | C50: 5 | D50: 0.12 | E50: 1
A51: DIREITO - 04GV | B51: 13089 | C51: 5 | D51: 0.12 | E51: 1
A52: DIREITO - 34A | B52: 21860 | C52: 5 | D52: 0.12 | E52: 1
A53: EDUCAÇÃO FÍSICA - 10GV | B53: 1270439 | C53: 5 | D53: 0.066 | E53: 1.5
A54: EDUCAÇÃO FÍSICA - 21A | B54: 5000610 | C54: 5 | D54: 0.066 | E54: 1.5
A55: EDUCAÇÃO FÍSICA - 21B | B55: 313092 | C55: 5 | D55: 0.066 | E55: 1.5
A56: EDUCAÇÃO FÍSICA - 21L | B56: 13092 | C56: 5 | D56: 0.066 | E56: 1.5
A57: ENFERMAGEM - 23A | B57: 38994 | C57: 5 | D57: 0.066 | E57: 1.5
A58: ENFERMAGEM - 23L | B58: 338994 | C58: 5 | D58: 0.066 | E58: 1.5
A59: ENGENHARIA AMBIENTAL E SANITÁRIA - 67A | B59: 116496 | C59: 5 | D59: 0.082 | E59: 2
A60: ENGENHARIA CIVIL - 24A | B60: 13094 | C60: 5 | D60: 0.082 | E60: 2
A61: ENGENHARIA COMPUTACIONAL - 65AB | B61: 1120244 | C61: 2 | D61: 0.082 | E61: 2
A62: ENGENHARIA COMPUTACIONAL - 65B | B62: 1120244 | C62: 2 | D62: 0.082 | E62: 2
A63: ENGENHARIA DE PRODUÇÃO - 49A | B63: 38594 | C63: 5 | D63: 0.082 | E63: 2
A64: ENGENHARIA ELÉTRICA - 25A | B64: 13095 | C64: 5 | D64: 0.082 | E64: 2
A65: ENGENHARIA ELÉTRICA - 50A | B65: 49788 | C65: 5 | D65: 0.082 | E65: 2
A66: ENGENHARIA ELÉTRICA - HAB. EM ROBÓTICA E AUTOMAÇÃO INDUSTRIAL - 65AI | B66: 1109485 | C66: 2 | D66: 0.082 | E66: 2
A67: ENGENHARIA ELÉTRICA - HAB. EM ROBÓTICA E AUTOMAÇÃO INDUSTRIAL - 65I | B67: 1109485 | C67: 2 | D67: 0.082 | E67: 2
A68: ENGENHARIA ELÉTRICA - HAB. EM ROBÓTICA E AUTOMAÇÃO INDUSTRIAL - 69B | B68: 1109485 | C68: 5 | D68: 0.082 | E68: 2
A69: ENGENHARIA ELÉTRICA - HAB. EM SISTEMAS DE POTÊNCIA - 65AJ | B69: 1109486 | C69: 2 | D69: 0.082 | E69: 2
A70: ENGENHARIA ELÉTRICA - HAB. EM SISTEMAS ELETRÔNICOS - 65AK | B70: 1109487 | C70: 2 | D70: 0.082 | E70: 2
A71: ENGENHARIA ELÉTRICA - HAB. EM TELECOMUNICAÇÕES - 65AL | B71: 1109488 | C71: 2 | D71: 0.082 | E71: 2
A72: ENGENHARIA ELÉTRICA - HABILITAÇÃO EM ENERGIA - 65AH | B72: 1109475 | C72: 2 | D72: 0.082 | E72: 2
A73: ENGENHARIA ELÉTRICA - HABILITAÇÃO EM ENERGIA - 65H | B73: 1109475 | C73: 2 | D73: 0.082 | E73: 2
A74: ENGENHARIA ELÉTRICA - HABILITAÇÃO EM ENERGIA - 70A | B74: 1109475 | C74: 5 | D74: 0.082 | E74: 2
A75: ENGENHARIA ELÉTRICA - HABILITAÇÃO EM SISTEMAS DE POTÊNCIA - 65J | B75: 1109486 | C75: 2 | D75: 0.082 | E75: 2
A76: ENGENHARIA ELÉTRICA - HABILITAÇÃO EM SISTEMAS DE POTÊNCIA - 69C | B76: 1109486 | C76: 5 | D76: 0.082 | E76: 2
A77: ENGENHARIA ELÉTRICA - HABILITAÇÃO EM SISTEMAS ELETRÔNICOS - 65K | B77: 1109487 | C77: 2 | D77: 0.082 | E77: 2
A78: ENGENHARIA ELÉTRICA - HABILITAÇÃO EM SISTEMAS ELETRÔNICOS - 69A | B78: 1109487 | C78: 5 | D78: 0.082 | E78: 2
A79: ENGENHARIA ELÉTRICA - HABILITAÇÃO EM TELECOMUNICAÇÕES - 65L | B79: 1109488 | C79: 2 | D79: 0.082 | E79: 2
A80: ENGENHARIA ELÉTRICA - HABILITAÇÃO EM TELECOMUNICAÇÕES - 69D | B80: 1109488 | C80: 5 | D80: 0.082 | E80: 2
A81: ENGENHARIA MECÂNICA - 65AM | B81: 1109489 | C81: 2 | D81: 0.082 | E81: 2
A82: ENGENHARIA MECÂNICA - 65M | B82: 1109489 | C82: 2 | D82: 0.082 | E82: 2
A83: ENGENHARIA MECÂNICA - 71A | B83: 1109489 | C83: 5 | D83: 0.082 | E83: 2
A84: ESTATÍSTICA - 65AD | B84: 113531 | C84: 2 | D84: 0.1325 | E84: 1.5
A85: ESTATÍSTICA - 65D | B85: 113531 | C85: 2 | D85: 0.1325 | E85: 1.5
A86: FARMÁCIA - 05GV | B86: 1185503 | C86: 5 | D86: 0.066 | E86: 2
A87: FARMÁCIA - 07A | B87: 38509 | C87: 5 | D87: 0.066 | E87: 2
A88: FILOSOFIA - 08A | B88: 5000611 | C88: 4 | D88: 0.1 | E88: 1
A89: FILOSOFIA - 08B | B89: 313097 | C89: 4 | D89: 0.1 | E89: 1
A90: FILOSOFIA - 08L | B90: 13097 | C90: 4 | D90: 0.1 | E90: 1
A91: FILOSOFIA - 72EB | B91: 313097 | C91: 2 | D91: 0.1 | E91: 1
A92: FILOSOFIA - 72EL | B92: 13097 | C92: 2 | D92: 0.1 | E92: 1
A93: FILOSOFIA - 73E | B93: 313097 | C93: 2 | D93: 0.1 | E93: 1
A94: FILOSOFIA - 73EB | B94: 313097 | C94: 2 | D94: 0.1 | E94: 1
A95: FILOSOFIA - 73EL | B95: 13097 | C95: 2 | D95: 0.1 | E95: 1
A96: FÍSICA - 09A | B96: 5000613 | C96: 4 | D96: 0.1325 | E96: 1.5
A97: FÍSICA - 65AE | B97: 313098 | C97: 2 | D97: 0.1325 | E97: 1.5
A98: FÍSICA - 65E | B98: 313098 | C98: 2 | D98: 0.1325 | E98: 1.5
A99: FÍSICA - 65EL | B99: 13098 | C99: 2 | D99: 0.1325 | E99: 1.5
A100: FÍSICA - 81A | B100: 1166037 | C100: 4 | D100: 0.1325 | E100: 1.5
A101: FISIOTERAPIA - 06GV | B101: 1178689 | C101: 5 | D101: 0.066 | E101: 1.5
A102: FISIOTERAPIA - 20A | B102: 13118 | C102: 5 | D102: 0.066 | E102: 1.5
A103: GEOGRAFIA - 10A | B103: 5000615 | C103: 4 | D103: 0.1 | E103: 1
A104: GEOGRAFIA - 10B | B104: 313099 | C104: 4 | D104: 0.1 | E104: 1
A105: GEOGRAFIA - 10L | B105: 13099 | C105: 4 | D105: 0.1 | E105: 1
A106: GEOGRAFIA - 27A | B106: 5000615 | C106: 4 | D106: 0.1 | E106: 1
A107: GEOGRAFIA - 27L | B107: 13099 | C107: 4 | D107: 0.1 | E107: 1
A108: HISTÓRIA - 11A | B108: 5000616 | C108: 4 | D108: 0.1 | E108: 1
A109: HISTÓRIA - 11B | B109: 313100 | C109: 4 | D109: 0.1 | E109: 1
A110: HISTÓRIA - 11L | B110: 13100 | C110: 4 | D110: 0.1 | E110: 1
A111: HISTÓRIA - 28A | B111: 5000616 | C111: 4 | D111: 0.1 | E111: 1
A112: HISTÓRIA - 28B | B112: 313100 | C112: 4 | D112: 0.1 | E112: 1
A113: HISTÓRIA - 28L | B113: 13100 | C113: 4 | D113: 0.1 | E113: 1
A114: JORNALISMO - 84A | B114: 27657 | C114: 4 | D114: 0.12 | E114: 1
A115: JORNALISMO - 85A | B115: 36356 | C115: 4 | D115: 0.12 | E115: 1
A116: LETRAS - 13A | B116: 5000617 | C116: 4 | D116: 0.115 | E116: 1
A117: LETRAS - 13B | B117: 313101 | C117: 4 | D117: 0.115 | E117: 1
A118: LETRAS - 13L | B118: 13101 | C118: 4 | D118: 0.115 | E118: 1
A119: LETRAS - 29A | B119: 5000617 | C119: 4 | D119: 0.115 | E119: 1
A120: LETRAS - 29B | B120: 313101 | C120: 4 | D120: 0.115 | E120: 1
A121: LETRAS - 29L | B121: 13101 | C121: 4 | D121: 0.115 | E121: 1
A122: LICENCIATURA EM ARTES VISUAIS - 66F | B122: 1153951 | C122: 2 | D122: 0.1 | E122: 1.5
A123: LICENCIATURA EM LETRAS - LIBRAS - 88A | B123: 1268983 | C123: 4 | D123: 0.115 | E123: 1
A124: LICENCIATURA EM MÚSICA - 89A | B124: 1278855 | C124: 4 | D124: 0.115 | E124: 1.5
A125: MATEMÁTICA - 65AF | B125: 313102 | C125: 2 | D125: 0.1325 | E125: 1.5
A126: MATEMÁTICA - 65F | B126: 313102 | C126: 2 | D126: 0.1325 | E126: 1.5
A127: MATEMÁTICA - 65FL | B127: 13102 | C127: 2 | D127: 0.1325 | E127: 1.5
A128: MATEMÁTICA - 82A | B128: 1166038 | C128: 4 | D128: 0.1325 | E128: 1.5
A129: MEDICINA - 07GV | B129: 5001167 | C129: 6 | D129: 0.065 | E129: 4.5
A130: MEDICINA - 15A | B130: 13103 | C130: 6 | D130: 0.065 | E130: 4.5
A131: MEDICINA VETERINÁRIA - 87A | B131: 1268972 | C131: 5 | D131: 0.65 | E131: 4.5
A132: MÚSICA - CANTO - 63A | B132: 116490 | C132: 4 | D132: 0.115 | E132: 1
A133: MÚSICA - MODALIDADE COMPOSIÇÃO - 63G | B133: 1271995 | C133: 4 | D133: 0.115 | E133: 1
A134: MÚSICA - MODALIDADE FLAUTA TRANSVERSAL - 63B | B134: 116491 | C134: 4 | D134: 0.115 | E134: 1
A135: MÚSICA - MODALIDADE PIANO - 63C | B135: 116492 | C135: 4 | D135: 0.115 | E135: 1
A136: MÚSICA - MODALIDADE VIOLÃO - 63D | B136: 116493 | C136: 4 | D136: 0.115 | E136: 1
A137: MÚSICA - MODALIDADE VIOLINO - 63E | B137: 116494 | C137: 4 | D137: 0.115 | E137: 1
A138: MÚSICA - MODALIDADE VIOLONCELO - 63F | B138: 116495 | C138: 4 | D138: 0.115 | E138: 1
A139: NUTRIÇÃO - 08GV | B139: 1178688 | C139: 5 | D139: 0.66 | E139: 2
A140: NUTRIÇÃO - 64A | B140: 116498 | C140: 5 | D140: 0.066 | E140: 2
A141: ODONTOLOGIA - 09GV | B141: 5001168 | C141: 5 | D141: 0.65 | E141: 4.5
A142: ODONTOLOGIA - 16A | B142: 13104 | C142: 5 | D142: 0.065 | E142: 4.5
A143: PEDAGOGIA - 17A | B143: 13105 | C143: 4 | D143: 0.1 | E143: 1
A144: PEDAGOGIA - 30A | B144: 13105 | C144: 4 | D144: 0.1 | E144: 1
A145: PSICOLOGIA - 32A | B145: 13113 | C145: 5 | D145: 0.1 | E145: 1
A146: QUÍMICA - 65AG | B146: 5000619 | C146: 4 | D146: 0.1325 | E146: 1.5
A147: QUÍMICA - 65GB | B147: 313106 | C147: 2 | D147: 0.1325 | E147: 1.5
A148: QUÍMICA - 65GL | B148: 13106 | C148: 2 | D148: 0.1325 | E148: 1.5
A149: QUÍMICA - 83A | B149: 1166039 | C149: 4 | D149: 0.1325 | E149: 1.5
A150: RÁDIO, TV E INTERNET - 91A | B150: 1374873 | C150: 4 | D150: 0.12 | E150: 1
A151: SERVIÇO SOCIAL - 19A | B151: 13107 | C151: 4 | D151: 0.12 | E151: 1
A152: SERVIÇO SOCIAL - 68A | B152: 13107 | C152: 4 | D152: 0.12 | E152: 1
A153: SISTEMAS DE INFORMAÇÃO - 76A | B153: 1128364 | C153: 4 | D153: 0.1325 | E153: 1.5
A154: TURISMO - 72D | B154: 21589 | C154: 2 | D154: 0.1 | E154: 1
A155: TURISMO - 73D | B155: 21589 | C155: 2 | D155: 0.1 | E155: 1
A156: TURISMO - 92A | B156: 21589 | C156: 4 | D156: 0.12 | E156: 1
A157: TURISMO - 93A | B157: 21589 | C157: 4 | D157: 0.12 | E157: 1

Sheet ALUNO_GRAD_TEMPO_INTEGRAL
A1: COMPONENTE | J1: 2017 | K1: 2018 | L1: 2019 | M1: 2020 | N1: 2021
A2: ALUNO GRADUAÇÃO TEMPO INTEGRAL (AGTI) | J2: 13163 | K2: 14314 | L2: 15858.46 | M2: 15230.958 | N2: =G142 -> 13479.108
A3: CURSO | B3: CÓDIGO INEP | C3: NÚMERO DE DIPLOMADOS (NDI) | D3: DURAÇÃO DO CURSO (DPC) | E3: FATOR DE RETENÇÃO | F3: INGRESSANTES NO ANO (NI) | G3: AGTI
A4: ABI - CIÊNCIAS BIOLÓGICAS - 01ABI | B4: =VLOOKUP(A4,Parametros!A:E,2,0) -> 5000608 | C4: =SUMIF(Concluintes!B:B,ALUNO_GRAD_TEMPO_INTEGRAL!A4,Concluintes!F:F) -> 0 | D4: =VLOOKUP(A4,Parametros!A:E,3,0) -> 4 | E4: =VLOOKUP(A4,Parametros!A:E,4,0) -> 0.125 | F4: =SUMIFS(Ingressantes!F:F,Ingressantes!C:C,ALUNO_GRAD_TEMPO_INTEGRAL!A4,Ingressantes!A:A,INÍCIO!$C$5) -> 60 | G4: =IFERROR(SUM((C4*D4)*(1+E4)+((F4-C4)/4)*D4),0) -> 60
A5: ABI - EDUCAÇÃO FÍSICA - 21ABI | B5: =VLOOKUP(A5,Parametros!A:E,2,0) -> 5000610 | C5: =SUMIF(Concluintes!B:B,ALUNO_GRAD_TEMPO_INTEGRAL!A5,Concluintes!F:F) -> 0 | D5: =VLOOKUP(A5,Parametros!A:E,3,0) -> 5 | E5: =VLOOKUP(A5,Parametros!A:E,4,0) -> 0.066 | F5: =SUMIFS(Ingressantes!F:F,Ingressantes!C:C,ALUNO_GRAD_TEMPO_INTEGRAL!A5,Ingressantes!A:A,INÍCIO!$C$5) -> 99 | G5: =IFERROR(SUM((C5*D5)*(1+E5)+((F5-C5)/4)*D5),0) -> 123.75
A6: ABI - FILOSOFIA - 08ABI | B6: =VLOOKUP(A6,Parametros!A:E,2,0) -> 5000611 | C6: =SUMIF(Concluintes!B:B,ALUNO_GRAD_TEMPO_INTEGRAL!A6,Concluintes!F:F) -> 0 | D6: =VLOOKUP(A6,Parametros!A:E,3,0) -> 4 | E6: =VLOOKUP(A6,Parametros!A:E,4,0) -> 0.1 | F6: =SUMIFS(Ingressantes!F:F,Ingressantes!C:C,ALUNO_GRAD_TEMPO_INTEGRAL!A6,Ingressantes!A:A,INÍCIO!$C$5) -> 30 | G6: 30
A7: ABI - GEOGRAFIA - 10ABI | B7: =VLOOKUP(A7,Parametros!A:E,2,0) -> 5000615 | C7: =SUMIF(Concluintes!B:B,ALUNO_GRAD_TEMPO_INTEGRAL!A7,Concluintes!F:F) -> 0 | D7: =VLOOKUP(A7,Parametros!A:E,3,0) -> 4 | E7: =VLOOKUP(A7,Parametros!A:E,4,0) -> 0.1 | F7: =SUMIFS(Ingressantes!F:F,Ingressantes!C:C,ALUNO_GRAD_TEMPO_INTEGRAL!A7,Ingressantes!A:A,INÍCIO!$C$5) -> 43 | G7: 43
A8: ABI - GEOGRAFIA - 27ABI | B8: =VLOOKUP(A8,Parametros!A:E,2,0) -> 5000615 | C8: =SUMIF(Concluintes!B:B,ALUNO_GRAD_TEMPO_INTEGRAL!A8,Concluintes!F:F) -> 0 | D8: =VLOOKUP(A8,Parametros!A:E,3,0) -> 4 | E8: =VLOOKUP(A8,Parametros!A:E,4,0) -> 0.1 | F8: =SUMIFS(Ingressantes!F:F,Ingressantes!C:C,ALUNO_GRAD_TEMPO_INTEGRAL!A8,Ingressantes!A:A,INÍCIO!$C$5) -> 0 | G8: 0
A9: ABI - HISTÓRIA - 11ABI | B9: =VLOOKUP(A9,Parametros!A:E,2,0) -> 5000616 | C9: =SUMIF(Concluintes!B:B,ALUNO_GRAD_TEMPO_INTEGRAL!A9,Concluintes!F:F) -> 0 | D9: =VLOOKUP(A9,Parametros!A:E,3,0) -> 4 | E9: =VLOOKUP(A9,Parametros!A:E,4,0) -> 0.1 | F9: =SUMIFS(Ingressantes!F:F,Ingressantes!C:C,ALUNO_GRAD_TEMPO_INTEGRAL!A9,Ingressantes!A:A,INÍCIO!$C$5) -> 48 | G9: 48
A10: ABI - HISTÓRIA - 28ABI | B10: =VLOOKUP(A10,Parametros!A:E,2,0) -> 5000616 | C10: =SUMIF(Concluintes!B:B,ALUNO_GRAD_TEMPO_INTEGRAL!A10,Concluintes!F:F) -> 0 | D10: =VLOOKUP(A10,Parametros!A:E,3,0) -> 4 | E10: =VLOOKUP(A10,Parametros!A:E,4,0) -> 0.1 | F10: =SUMIFS(Ingressantes!F:F,Ingressantes!C:C,ALUNO_GRAD_TEMPO_INTEGRAL!A10,Ingressantes!A:A,INÍCIO!$C$5) -> 48 | G10: 48
A11: ABI - LETRAS - 13ABI | B11: =VLOOKUP(A11,Parametros!A:E,2,0) -> 5000617 | C11: =SUMIF(Concluintes!B:B,ALUNO_GRAD_TEMPO_INTEGRAL!A11,Concluintes!F:F) -> 0 | D11: =VLOOKUP(A11,Parametros!A:E,3,0) -> 4 | E11: =VLOOKUP(A11,Parametros!A:E,4,0) -> 0.115 | F11: =SUMIFS(Ingressantes!F:F,Ingressantes!C:C,ALUNO_GRAD_TEMPO_INTEGRAL!A11,Ingressantes!A:A,INÍCIO!$C$5) -> 44 | G11: 44
A12: ABI - LETRAS - 29ABI | B12: =VLOOKUP(A12,Parametros!A:E,2,0) -> 5000617 | C12: =SUMIF(Concluintes!B:B,ALUNO_GRAD_TEMPO_INTEGRAL!A12,Concluintes!F:F) -> 0 | D12: =VLOOKUP(A12,Parametros!A:E,3,0) -> 4 | E12: =VLOOKUP(A12,Parametros!A:E,4,0) -> 0.115 | F12: =SUMIFS(Ingressantes!F:F,Ingressantes!C:C,ALUNO_GRAD_TEMPO_INTEGRAL!A12,Ingressantes!A:A,INÍCIO!$C$5) -> 1 | G12: 1
A13: ADMINISTRAÇÃO - 01GV | B13: =VLOOKUP(A13,Parametros!A:E,2,0) -> 1178684 | C13: =SUMIF(Concluintes!B:B,ALUNO_GRAD_TEMPO_INTEGRAL!A13,Concluintes!F:F) -> 14 | D13: =VLOOKUP(A13,Parametros!A:E,3,0) -> 4 | E13: =VLOOKUP(A13,Parametros!A:E,4,0) -> 0.12 | F13: =SUMIFS(Ingressantes!F:F,Ingressantes!C:C,ALUNO_GRAD_TEMPO_INTEGRAL!A13,Ingressantes!A:A,INÍCIO!$C$5) -> 73 | G13: 121.72
A14: ADMINISTRAÇÃO - 26A | B14: =VLOOKUP(A14,Parametros!A:E,2,0) -> 22451 | C14: =SUMIF(Concluintes!B:B,ALUNO_GRAD_TEMPO_INTEGRAL!A14,Concluintes!F:F) -> 20 | D14: =VLOOKUP(A14,Parametros!A:E,3,0) -> 4 | E14: =VLOOKUP(A14,Parametros!A:E,4,0) -> 0.12 | F14: =SUMIFS(Ingressantes!F:F,Ingressantes!C:C,ALUNO_GRAD_TEMPO_INTEGRAL!A14,Ingressantes!A:A,INÍCIO!$C$5) -> 43 | G14: 112.6
A15: ADMINISTRAÇÃO - 46A | B15: =VLOOKUP(A15,Parametros!A:E,2,0) -> 22451 | C15: =SUMIF(Concluintes!B:B,ALUNO_GRAD_TEMPO_INTEGRAL!A15,Concluintes!F:F) -> 17 | D15: =VLOOKUP(A15,Parametros!A:E,3,0) -> 4 | E15: =VLOOKUP(A15,Parametros!A:E,4,0) -> 0.12 | F15: =SUMIFS(Ingressantes!F:F,Ingressantes!C:C,ALUNO_GRAD_TEMPO_INTEGRAL!A15,Ingressantes!A:A,INÍCIO!$C$5) -> 41 | G15: 100.16
A16: ARQUITETURA E URBANISMO - 33A | B16: =VLOOKUP(A16,Parametros!A:E,2,0) -> 13114 | C16: =SUMIF(Concluintes!B:B,ALUNO_GRAD_TEMPO_INTEGRAL!A16,Concluintes!F:F) -> 52 | D16: =VLOOKUP(A16,Parametros!A:E,3,0) -> 4 | E16: =VLOOKUP(A16,Parametros!A:E,4,0) -> 0.12 | F16: =SUMIFS(Ingressantes!F:F,Ingressantes!C:C,ALUNO_GRAD_TEMPO_INTEGRAL!A16,Ingressantes!A:A,INÍCIO!$C$5) -> 84 | G16: 264.96
A17: BACHARELADO EM ARTES VISUAIS - 66C | B17: =VLOOKUP(A17,Parametros!A:E,2,0) -> 1153948 | C17: =SUMIF(Concluintes!B:B,ALUNO_GRAD_TEMPO_INTEGRAL!A17,Concluintes!F:F) -> 5 | D17: =VLOOKUP(A17,Parametros!A:E,3,0) -> 2 | E17: =VLOOKUP(A17,Parametros!A:E,4,0) -> 0.1 | F17: =SUMIFS(Ingressantes!F:F,Ingressantes!C:C,ALUNO_GRAD_TEMPO_INTEGRAL!A17,Ingressantes!A:A,INÍCIO!$C$5) -> 52 | G17: 34.5
A18: BACHARELADO EM CINEMA E AUDIOVISUAL - 66B | B18: =VLOOKUP(A18,Parametros!A:E,2,0) -> 1153947 | C18: =SUMIF(Concluintes!B:B,ALUNO_GRAD_TEMPO_INTEGRAL!A18,Concluintes!F:F) -> 18 | D18: =VLOOKUP(A18,Parametros!A:E,3,0) -> 2 | E18: =VLOOKUP(A18,Parametros!A:E,4,0) -> 0.1 | F18: =SUMIFS(Ingressantes!F:F,Ingressantes!C:C,ALUNO_GRAD_TEMPO_INTEGRAL!A18,Ingressantes!A:A,INÍCIO!$C$5) -> 52 | G18: 56.6
A19: BACHARELADO EM DESIGN - 66D | B19: =VLOOKUP(A19,Parametros!A:E,2,0) -> 1153949 | C19: =SUMIF(Concluintes!B:B,ALUNO_GRAD_TEMPO_INTEGRAL!A19,Concluintes!F:F) -> 15 | D19: =VLOOKUP(A19,Parametros!A:E,3,0) -> 2 | E19: =VLOOKUP(A19,Parametros!A:E,4,0) -> 0.1 | F19: =SUMIFS(Ingressantes!F:F,Ingressantes!C:C,ALUNO_GRAD_TEMPO_INTEGRAL!A19,Ingressantes!A:A,INÍCIO!$C$5) -> 49 | G19: 50
A20: BACHARELADO EM MODA - 66E | B20: =VLOOKUP(A20,Parametros!A:E,2,0) -> 1153950 | C20: =SUMIF(Concluintes!B:B,ALUNO_GRAD_TEMPO_INTEGRAL!A20,Concluintes!F:F) -> 12 | D20: =VLOOKUP(A20,Parametros!A:E,3,0) -> 2 | E20: =VLOOKUP(A20,Parametros!A:E,4,0) -> 0.1 | F20: =SUMIFS(Ingressantes!F:F,Ingressantes!C:C,ALUNO_GRAD_TEMPO_INTEGRAL!A20,Ingressantes!A:A,INÍCIO!$C$5) -> 48 | G20: 44.4
A21: BACHARELADO INTERDISCIPLINAR EM ARTES E DESIGN - 66A | B21: =VLOOKUP(A21,Parametros!A:E,2,0) -> 116500 | C21: =SUMIF(Concluintes!B:B,ALUNO_GRAD_TEMPO_INTEGRAL!A21,Concluintes!F:F) -> 114 | D21: =VLOOKUP(A21,Parametros!A:E,3,0) -> 3 | E21: =VLOOKUP(A21,Parametros!A:E,4,0) -> 0.1 | F21: =SUMIFS(Ingressantes!F:F,Ingressantes!C:C,ALUNO_GRAD_TEMPO_INTEGRAL!A21,Ingressantes!A:A,INÍCIO!$C$5) -> 0 | G21: 290.7
A22: BACHARELADO INTERDISCIPLINAR EM CIÊNCIAS HUMANAS - 72A | B22: =VLOOKUP(A22,Parametros!A:E,2,0) -> 1120242 | C22: =SUMIF(Concluintes!B:B,ALUNO_GRAD_TEMPO_INTEGRAL!A22,Concluintes!F:F) -> 39 | D22: =VLOOKUP(A22,Parametros!A:E,3,0) -> 3 | E22: =VLOOKUP(A22,Parametros!A:E,4,0) -> 0.1 | F22: =SUMIFS(Ingressantes!F:F,Ingressantes!C:C,ALUNO_GRAD_TEMPO_INTEGRAL!A22,Ingressantes!A:A,INÍCIO!$C$5) -> 157 | G22: 217.2
A23: BACHARELADO INTERDISCIPLINAR EM CIÊNCIAS HUMANAS - 73A | B23: =VLOOKUP(A23,Parametros!A:E,2,0) -> 1120242 | C23: =SUMIF(Concluintes!B:B,ALUNO_GRAD_TEMPO_INTEGRAL!A23,Concluintes!F:F) -> 37 | D23: =VLOOKUP(A23,Parametros!A:E,3,0) -> 3 | E23: =VLOOKUP(A23,Parametros!A:E,4,0) -> 0.1 | F23: =SUMIFS(Ingressantes!F:F,Ingressantes!C:C,ALUNO_GRAD_TEMPO_INTEGRAL!A23,Ingressantes!A:A,INÍCIO!$C$5) -> 151 | G23: 207.6
A24: CIÊNCIA DA COMPUTAÇÃO - 35A | B24: =VLOOKUP(A24,Parametros!A:E,2,0) -> 18518 | C24: =SUMIF(Concluintes!B:B,ALUNO_GRAD_TEMPO_INTEGRAL!A24,Concluintes!F:F) -> 5 | D24: =VLOOKUP(A24,Parametros!A:E,3,0) -> 4 | E24: =VLOOKUP(A24,Parametros!A:E,4,0) -> 0.1325 | F24: =SUMIFS(Ingressantes!F:F,Ingressantes!C:C,ALUNO_GRAD_TEMPO_INTEGRAL!A24,Ingressantes!A:A,INÍCIO!$C$5) -> 41 | G24: 58.65
A25: CIÊNCIA DA COMPUTAÇÃO - 65C | B25: =VLOOKUP(A25,Parametros!A:E,2,0) -> 65361 | C25: =SUMIF(Concluintes!B:B,ALUNO_GRAD_TEMPO_INTEGRAL!A25,Concluintes!F:F) -> 12 | D25: =VLOOKUP(A25,Parametros!A:E,3,0) -> 2 | E25: =VLOOKUP(A25,Parametros!A:E,4,0) -> 0.1325 | F25: =SUMIFS(Ingressantes!F:F,Ingressantes!C:C,ALUNO_GRAD_TEMPO_INTEGRAL!A25,Ingressantes!A:A,INÍCIO!$C$5) -> 22 | G25: 32.18
A26: CIÊNCIA DA RELIGIÃO - 72B | B26: =VLOOKUP(A26,Parametros!A:E,2,0) -> 1165350 | C26: =SUMIF(Concluintes!B:B,ALUNO_GRAD_TEMPO_INTEGRAL!A26,Concluintes!F:F) -> 1 | D26: =VLOOKUP(A26,Parametros!A:E,3,0) -> 2 | E26: =VLOOKUP(A26,Parametros!A:E,4,0) -> 0.1 | F26: =SUMIFS(Ingressantes!F:F,Ingressantes!C:C,ALUNO_GRAD_TEMPO_INTEGRAL!A26,Ingressantes!A:A,INÍCIO!$C$5) -> 0 | G26: 1.7
A27: CIÊNCIA DA RELIGIÃO - 72BL | B27: =VLOOKUP(A27,Parametros!A:E,2,0) -> 1165686 | C27: =SUMIF(Concluintes!B:B,ALUNO_GRAD_TEMPO_INTEGRAL!A27,Concluintes!F:F) -> 1 | D27: =VLOOKUP(A27,Parametros!A:E,3,0) -> 2 | E27: =VLOOKUP(A27,Parametros!A:E,4,0) -> 0.1 | F27: =SUMIFS(Ingressantes!F:F,Ingressantes!C:C,ALUNO_GRAD_TEMPO_INTEGRAL!A27,Ingressantes!A:A,INÍCIO!$C$5) -> 0 | G27: 1.7
A28: CIÊNCIA DA RELIGIÃO - 73B | B28: =VLOOKUP(A28,Parametros!A:E,2,0) -> 1165350 | C28: =SUMIF(Concluintes!B:B,ALUNO_GRAD_TEMPO_INTEGRAL!A28,Concluintes!F:F) -> 5 | D28: =VLOOKUP(A28,Parametros!A:E,3,0) -> 2 | E28: =VLOOKUP(A28,Parametros!A:E,4,0) -> 0.1 | F28: =SUMIFS(Ingressantes!F:F,Ingressantes!C:C,ALUNO_GRAD_TEMPO_INTEGRAL!A28,Ingressantes!A:A,INÍCIO!$C$5) -> 1 | G28: 9
A29: CIÊNCIA DA RELIGIÃO - 73BL | B29: =VLOOKUP(A29,Parametros!A:E,2,0) -> 1165686 | C29: =SUMIF(Concluintes!B:B,ALUNO_GRAD_TEMPO_INTEGRAL!A29,Concluintes!F:F) -> 1 | D29: =VLOOKUP(A29,Parametros!A:E,3,0) -> 2 | E29: =VLOOKUP(A29,Parametros!A:E,4,0) -> 0.1 | F29: =SUMIFS(Ingressantes!F:F,Ingressantes!C:C,ALUNO_GRAD_TEMPO_INTEGRAL!A29,Ingressantes!A:A,INÍCIO!$C$5) -> 0 | G29: 1.7 | J29: FÓRMULA PARA CÁLCULO DE AGTI
A30: CIÊNCIAS BIOLÓGICAS - 01A | B30: =VLOOKUP(A30,Parametros!A:E,2,0) -> 5000608 | C30: =SUMIF(Concluintes!B:B,ALUNO_GRAD_TEMPO_INTEGRAL!A30,Concluintes!F:F) -> 0 | D30: =VLOOKUP(A30,Parametros!A:E,3,0) -> 4 | E30: =VLOOKUP(A30,Parametros!A:E,4,0) -> 0.125 | F30: =SUMIFS(Ingressantes!F:F,Ingressantes!C:C,ALUNO_GRAD_TEMPO_INTEGRAL!A30,Ingressantes!A:A,INÍCIO!$C$5) -> 0 | G30: 0 | J30: AGTI = para todos os cursos (NDI DPC)(1+ [Fator de Retenção]) + ((NI - NDI)/4) DPC
A31: CIÊNCIAS BIOLÓGICAS - 01B | B31: =VLOOKUP(A31,Parametros!A:E,2,0) -> 313086 | C31: =SUMIF(Concluintes!B:B,ALUNO_GRAD_TEMPO_INTEGRAL!A31,Concluintes!F:F) -> 13 | D31: =VLOOKUP(A31,Parametros!A:E,3,0) -> 4 | E31: =VLOOKUP(A31,Parametros!A:E,4,0) -> 0.125 | F31: =SUMIFS(Ingressantes!F:F,Ingressantes!C:C,ALUNO_GRAD_TEMPO_INTEGRAL!A31,Ingressantes!A:A,INÍCIO!$C$5) -> 1 | G31: 46.5
A32: CIÊNCIAS BIOLÓGICAS - 01L | B32: =VLOOKUP(A32,Parametros!A:E,2,0) -> 13086 | C32: =SUMIF(Concluintes!B:B,ALUNO_GRAD_TEMPO_INTEGRAL!A32,Concluintes!F:F) -> 34 | D32: =VLOOKUP(A32,Parametros!A:E,3,0) -> 4 | E32: =VLOOKUP(A32,Parametros!A:E,4,0) -> 0.125 | F32: =SUMIFS(Ingressantes!F:F,Ingressantes!C:C,ALUNO_GRAD_TEMPO_INTEGRAL!A32,Ingressantes!A:A,INÍCIO!$C$5) -> 0 | G32: 119 | J32: NDI = Número de diplomados , no ano letivo referente ao exercício, em cada curso
A33: CIÊNCIAS CONTÁBEIS - 02GV | B33: =VLOOKUP(A33,Parametros!A:E,2,0) -> 1183351 | C33: =SUMIF(Concluintes!B:B,ALUNO_GRAD_TEMPO_INTEGRAL!A33,Concluintes!F:F) -> 10 | D33: =VLOOKUP(A33,Parametros!A:E,3,0) -> 4 | E33: =VLOOKUP(A33,Parametros!A:E,4,0) -> 0.12 | F33: =SUMIFS(Ingressantes!F:F,Ingressantes!C:C,ALUNO_GRAD_TEMPO_INTEGRAL!A33,Ingressantes!A:A,INÍCIO!$C$5) -> 44 | G33: 78.8 | J33: DPC = Duração padrão do curso, de acordo com a tabela da SESu
A34: CIÊNCIAS CONTÁBEIS - 77A | B34: =VLOOKUP(A34,Parametros!A:E,2,0) -> 1132074 | C34: =SUMIF(Concluintes!B:B,ALUNO_GRAD_TEMPO_INTEGRAL!A34,Concluintes!F:F) -> 22 | D34: =VLOOKUP(A34,Parametros!A:E,3,0) -> 4 | E34: =VLOOKUP(A34,Parametros!A:E,4,0) -> 0.12 | F34: =SUMIFS(Ingressantes!F:F,Ingressantes!C:C,ALUNO_GRAD_TEMPO_INTEGRAL!A34,Ingressantes!A:A,INÍCIO!$C$5) -> 44 | G34: 120.56 | J34: NI = Número de alunos que ingressaram , no ano letivo relativo ao exercício, em cada curso
A35: CIÊNCIAS CONTÁBEIS - 78A | B35: =VLOOKUP(A35,Parametros!A:E,2,0) -> 1132074 | C35: =SUMIF(Concluintes!B:B,ALUNO_GRAD_TEMPO_INTEGRAL!A35,Concluintes!F:F) -> 18 | D35: =VLOOKUP(A35,Parametros!A:E,3,0) -> 4 | E35: =VLOOKUP(A35,Parametros!A:E,4,0) -> 0.12 | F35: =SUMIFS(Ingressantes!F:F,Ingressantes!C:C,ALUNO_GRAD_TEMPO_INTEGRAL!A35,Ingressantes!A:A,INÍCIO!$C$5) -> 43 | G35: 105.64
A36: CIÊNCIAS ECONÔMICAS - 03GV | B36: =VLOOKUP(A36,Parametros!A:E,2,0) -> 1178683 | C36: =SUMIF(Concluintes!B:B,ALUNO_GRAD_TEMPO_INTEGRAL!A36,Concluintes!F:F) -> 14 | D36: =VLOOKUP(A36,Parametros!A:E,3,0) -> 4 | E36: =VLOOKUP(A36,Parametros!A:E,4,0) -> 0.12 | F36: =SUMIFS(Ingressantes!F:F,Ingressantes!C:C,ALUNO_GRAD_TEMPO_INTEGRAL!A36,Ingressantes!A:A,INÍCIO!$C$5) -> 66 | G36: 114.72
A37: CIÊNCIAS ECONÔMICAS - 05A | B37: =VLOOKUP(A37,Parametros!A:E,2,0) -> 13090 | C37: =SUMIF(Concluintes!B:B,ALUNO_GRAD_TEMPO_INTEGRAL!A37,Concluintes!F:F) -> 19 | D37: =VLOOKUP(A37,Parametros!A:E,3,0) -> 4 | E37: =VLOOKUP(A37,Parametros!A:E,4,0) -> 0.12 | F37: =SUMIFS(Ingressantes!F:F,Ingressantes!C:C,ALUNO_GRAD_TEMPO_INTEGRAL!A37,Ingressantes!A:A,INÍCIO!$C$5) -> 56 | G37: 122.12
A38: CIÊNCIAS ECONÔMICAS - 51A | B38: =VLOOKUP(A38,Parametros!A:E,2,0) -> 13090 | C38: =SUMIF(Concluintes!B:B,ALUNO_GRAD_TEMPO_INTEGRAL!A38,Concluintes!F:F) -> 27 | D38: =VLOOKUP(A38,Parametros!A:E,3,0) -> 4 | E38: =VLOOKUP(A38,Parametros!A:E,4,0) -> 0.12 | F38: =SUMIFS(Ingressantes!F:F,Ingressantes!C:C,ALUNO_GRAD_TEMPO_INTEGRAL!A38,Ingressantes!A:A,INÍCIO!$C$5) -> 53 | G38: 146.96
A39: CIÊNCIAS EXATAS - 65A | B39: =VLOOKUP(A39,Parametros!A:E,2,0) -> 116502 | C39: =SUMIF(Concluintes!B:B,ALUNO_GRAD_TEMPO_INTEGRAL!A39,Concluintes!F:F) -> 81 | D39: =VLOOKUP(A39,Parametros!A:E,3,0) -> 3 | E39: =VLOOKUP(A39,Parametros!A:E,4,0) -> 0.1 | F39: =SUMIFS(Ingressantes!F:F,Ingressantes!C:C,ALUNO_GRAD_TEMPO_INTEGRAL!A39,Ingressantes!A:A,INÍCIO!$C$5) -> 253 | G39: 396.3
A40: CIÊNCIAS SOCIAIS - 31B | B40: =VLOOKUP(A40,Parametros!A:E,2,0) -> 313087 | C40: =SUMIF(Concluintes!B:B,ALUNO_GRAD_TEMPO_INTEGRAL!A40,Concluintes!F:F) -> 0 | D40: =VLOOKUP(A40,Parametros!A:E,3,0) -> 2 | E40: =VLOOKUP(A40,Parametros!A:E,4,0) -> 0.1 | F40: =SUMIFS(Ingressantes!F:F,Ingressantes!C:C,ALUNO_GRAD_TEMPO_INTEGRAL!A40,Ingressantes!A:A,INÍCIO!$C$5) -> 0 | G40: 0
A41: CIÊNCIAS SOCIAIS - 31L | B41: =VLOOKUP(A41,Parametros!A:E,2,0) -> 13087 | C41: =SUMIF(Concluintes!B:B,ALUNO_GRAD_TEMPO_INTEGRAL!A41,Concluintes!F:F) -> 0 | D41: =VLOOKUP(A41,Parametros!A:E,3,0) -> 2 | E41: =VLOOKUP(A41,Parametros!A:E,4,0) -> 0.1 | F41: =SUMIFS(Ingressantes!F:F,Ingressantes!C:C,ALUNO_GRAD_TEMPO_INTEGRAL!A41,Ingressantes!A:A,INÍCIO!$C$5) -> 0 | G41: 0
A42: CIÊNCIAS SOCIAIS - 72C | B42: =VLOOKUP(A42,Parametros!A:E,2,0) -> 313087 | C42: =SUMIF(Concluintes!B:B,ALUNO_GRAD_TEMPO_INTEGRAL!A42,Concluintes!F:F) -> 0 | D42: =VLOOKUP(A42,Parametros!A:E,3,0) -> 2 | E42: =VLOOKUP(A42,Parametros!A:E,4,0) -> 0.1 | F42: =SUMIFS(Ingressantes!F:F,Ingressantes!C:C,ALUNO_GRAD_TEMPO_INTEGRAL!A42,Ingressantes!A:A,INÍCIO!$C$5) -> 0 | G42: 0
A43: CIÊNCIAS SOCIAIS - 72CB | B43: =VLOOKUP(A43,Parametros!A:E,2,0) -> 313087 | C43: =SUMIF(Concluintes!B:B,ALUNO_GRAD_TEMPO_INTEGRAL!A43,Concluintes!F:F) -> 1 | D43: =VLOOKUP(A43,Parametros!A:E,3,0) -> 2 | E43: =VLOOKUP(A43,Parametros!A:E,4,0) -> 0.1 | F43: =SUMIFS(Ingressantes!F:F,Ingressantes!C:C,ALUNO_GRAD_TEMPO_INTEGRAL!A43,Ingressantes!A:A,INÍCIO!$C$5) -> 0 | G43: 1.7
A44: CIÊNCIAS SOCIAIS - 72CL | B44: =VLOOKUP(A44,Parametros!A:E,2,0) -> 13087 | C44: =SUMIF(Concluintes!B:B,ALUNO_GRAD_TEMPO_INTEGRAL!A44,Concluintes!F:F) -> 1 | D44: =VLOOKUP(A44,Parametros!A:E,3,0) -> 2 | E44: =VLOOKUP(A44,Parametros!A:E,4,0) -> 0.1 | F44: =SUMIFS(Ingressantes!F:F,Ingressantes!C:C,ALUNO_GRAD_TEMPO_INTEGRAL!A44,Ingressantes!A:A,INÍCIO!$C$5) -> 0 | G44: 1.7
A45: CIÊNCIAS SOCIAIS - 73C | B45: =VLOOKUP(A45,Parametros!A:E,2,0) -> 313087 | C45: =SUMIF(Concluintes!B:B,ALUNO_GRAD_TEMPO_INTEGRAL!A45,Concluintes!F:F) -> 0 | D45: =VLOOKUP(A45,Parametros!A:E,3,0) -> 2 | E45: =VLOOKUP(A45,Parametros!A:E,4,0) -> 0.1 | F45: =SUMIFS(Ingressantes!F:F,Ingressantes!C:C,ALUNO_GRAD_TEMPO_INTEGRAL!A45,Ingressantes!A:A,INÍCIO!$C$5) -> 0 | G45: 0
A46: CIÊNCIAS SOCIAIS - 73CB | B46: =VLOOKUP(A46,Parametros!A:E,2,0) -> 313087 | C46: =SUMIF(Concluintes!B:B,ALUNO_GRAD_TEMPO_INTEGRAL!A46,Concluintes!F:F) -> 13 | D46: =VLOOKUP(A46,Parametros!A:E,3,0) -> 2 | E46: =VLOOKUP(A46,Parametros!A:E,4,0) -> 0.1 | F46: =SUMIFS(Ingressantes!F:F,Ingressantes!C:C,ALUNO_GRAD_TEMPO_INTEGRAL!A46,Ingressantes!A:A,INÍCIO!$C$5) -> 0 | G46: 22.1
A47: CIÊNCIAS SOCIAIS - 73CL | B47: =VLOOKUP(A47,Parametros!A:E,2,0) -> 13087 | C47: =SUMIF(Concluintes!B:B,ALUNO_GRAD_TEMPO_INTEGRAL!A47,Concluintes!F:F) -> 9 | D47: =VLOOKUP(A47,Parametros!A:E,3,0) -> 2 | E47: =VLOOKUP(A47,Parametros!A:E,4,0) -> 0.1 | F47: =SUMIFS(Ingressantes!F:F,Ingressantes!C:C,ALUNO_GRAD_TEMPO_INTEGRAL!A47,Ingressantes!A:A,INÍCIO!$C$5) -> 0 | G47: 15.3
A48: DIREITO - 04A | B48: =VLOOKUP(A48,Parametros!A:E,2,0) -> 13089 | C48: =SUMIF(Concluintes!B:B,ALUNO_GRAD_TEMPO_INTEGRAL!A48,Concluintes!F:F) -> 96 | D48: =VLOOKUP(A48,Parametros!A:E,3,0) -> 5 | E48: =VLOOKUP(A48,Parametros!A:E,4,0) -> 0.12 | F48: =SUMIFS(Ingressantes!F:F,Ingressantes!C:C,ALUNO_GRAD_TEMPO_INTEGRAL!A48,Ingressantes!A:A,INÍCIO!$C$5) -> 108 | G48: 552.6
A49: DIREITO - 04GV | B49: =VLOOKUP(A49,Parametros!A:E,2,0) -> 13089 | C49: =SUMIF(Concluintes!B:B,ALUNO_GRAD_TEMPO_INTEGRAL!A49,Concluintes!F:F) -> 88 | D49: =VLOOKUP(A49,Parametros!A:E,3,0) -> 5 | E49: =VLOOKUP(A49,Parametros!A:E,4,0) -> 0.12 | F49: =SUMIFS(Ingressantes!F:F,Ingressantes!C:C,ALUNO_GRAD_TEMPO_INTEGRAL!A49,Ingressantes!A:A,INÍCIO!$C$5) -> 108 | G49: 517.8
A50: DIREITO - 34A | B50: =VLOOKUP(A50,Parametros!A:E,2,0) -> 21860 | C50: =SUMIF(Concluintes!B:B,ALUNO_GRAD_TEMPO_INTEGRAL!A50,Concluintes!F:F) -> 82 | D50: =VLOOKUP(A50,Parametros!A:E,3,0) -> 5 | E50: =VLOOKUP(A50,Parametros!A:E,4,0) -> 0.12 | F50: =SUMIFS(Ingressantes!F:F,Ingressantes!C:C,ALUNO_GRAD_TEMPO_INTEGRAL!A50,Ingressantes!A:A,INÍCIO!$C$5) -> 107 | G50: 490.45
A51: EDUCAÇÃO ARTÍSTICA - 03A | B51: =VLOOKUP(A51,Parametros!A:E,2,0) -> 38748 | C51: =SUMIF(Concluintes!B:B,ALUNO_GRAD_TEMPO_INTEGRAL!A51,Concluintes!F:F) -> 0 | D51: =VLOOKUP(A51,Parametros!A:E,3,0) -> 4 | E51: =VLOOKUP(A51,Parametros!A:E,4,0) -> 0.115 | F51: =SUMIFS(Ingressantes!F:F,Ingressantes!C:C,ALUNO_GRAD_TEMPO_INTEGRAL!A51,Ingressantes!A:A,INÍCIO!$C$5) -> 0 | G51: 0
A52: EDUCAÇÃO FÍSICA - 10GV | B52: =VLOOKUP(A52,Parametros!A:E,2,0) -> 1270439 | C52: =SUMIF(Concluintes!B:B,ALUNO_GRAD_TEMPO_INTEGRAL!A52,Concluintes!F:F) -> 11 | D52: =VLOOKUP(A52,Parametros!A:E,3,0) -> 5 | E52: =VLOOKUP(A52,Parametros!A:E,4,0) -> 0.066 | F52: =SUMIFS(Ingressantes!F:F,Ingressantes!C:C,ALUNO_GRAD_TEMPO_INTEGRAL!A52,Ingressantes!A:A,INÍCIO!$C$5) -> 66 | G52: 127.38
A53: EDUCAÇÃO FÍSICA - 21B | B53: =VLOOKUP(A53,Parametros!A:E,2,0) -> 313092 | C53: =SUMIF(Concluintes!B:B,ALUNO_GRAD_TEMPO_INTEGRAL!A53,Concluintes!F:F) -> 26 | D53: =VLOOKUP(A53,Parametros!A:E,3,0) -> 5 | E53: =VLOOKUP(A53,Parametros!A:E,4,0) -> 0.066 | F53: =SUMIFS(Ingressantes!F:F,Ingressantes!C:C,ALUNO_GRAD_TEMPO_INTEGRAL!A53,Ingressantes!A:A,INÍCIO!$C$5) -> 0 | G53: 106.08
A54: EDUCAÇÃO FÍSICA - 21L | B54: =VLOOKUP(A54,Parametros!A:E,2,0) -> 13092 | C54: =SUMIF(Concluintes!B:B,ALUNO_GRAD_TEMPO_INTEGRAL!A54,Concluintes!F:F) -> 22 | D54: =VLOOKUP(A54,Parametros!A:E,3,0) -> 5 | E54: =VLOOKUP(A54,Parametros!A:E,4,0) -> 0.066 | F54: =SUMIFS(Ingressantes!F:F,Ingressantes!C:C,ALUNO_GRAD_TEMPO_INTEGRAL!A54,Ingressantes!A:A,INÍCIO!$C$5) -> 4 | G54: 94.76
A55: ENFERMAGEM - 23A | B55: =VLOOKUP(A55,Parametros!A:E,2,0) -> 38994 | C55: =SUMIF(Concluintes!B:B,ALUNO_GRAD_TEMPO_INTEGRAL!A55,Concluintes!F:F) -> 37 | D55: =VLOOKUP(A55,Parametros!A:E,3,0) -> 5 | E55: =VLOOKUP(A55,Parametros!A:E,4,0) -> 0.066 | F55: =SUMIFS(Ingressantes!F:F,Ingressantes!C:C,ALUNO_GRAD_TEMPO_INTEGRAL!A55,Ingressantes!A:A,INÍCIO!$C$5) -> 88 | G55: 260.96
A56: ENFERMAGEM - 23L | B56: =VLOOKUP(A56,Parametros!A:E,2,0) -> 338994 | C56: =SUMIF(Concluintes!B:B,ALUNO_GRAD_TEMPO_INTEGRAL!A56,Concluintes!F:F) -> 7 | D56: =VLOOKUP(A56,Parametros!A:E,3,0) -> 5 | E56: =VLOOKUP(A56,Parametros!A:E,4,0) -> 0.066 | F56: =SUMIFS(Ingressantes!F:F,Ingressantes!C:C,ALUNO_GRAD_TEMPO_INTEGRAL!A56,Ingressantes!A:A,INÍCIO!$C$5) -> 0 | G56: 28.56
A57: ENGENHARIA AMBIENTAL E SANITÁRIA - 67A | B57: =VLOOKUP(A57,Parametros!A:E,2,0) -> 116496 | C57: =SUMIF(Concluintes!B:B,ALUNO_GRAD_TEMPO_INTEGRAL!A57,Concluintes!F:F) -> 16 | D57: =VLOOKUP(A57,Parametros!A:E,3,0) -> 5 | E57: =VLOOKUP(A57,Parametros!A:E,4,0) -> 0.082 | F57: =SUMIFS(Ingressantes!F:F,Ingressantes!C:C,ALUNO_GRAD_TEMPO_INTEGRAL!A57,Ingressantes!A:A,INÍCIO!$C$5) -> 52 | G57: 131.56
A58: ENGENHARIA CIVIL - 24A | B58: =VLOOKUP(A58,Parametros!A:E,2,0) -> 13094 | C58: =SUMIF(Concluintes!B:B,ALUNO_GRAD_TEMPO_INTEGRAL!A58,Concluintes!F:F) -> 65 | D58: =VLOOKUP(A58,Parametros!A:E,3,0) -> 5 | E58: =VLOOKUP(A58,Parametros!A:E,4,0) -> 0.082 | F58: =SUMIFS(Ingressantes!F:F,Ingressantes!C:C,ALUNO_GRAD_TEMPO_INTEGRAL!A58,Ingressantes!A:A,INÍCIO!$C$5) -> 100 | G58: 395.4
A59: ENGENHARIA COMPUTACIONAL - 65B | B59: =VLOOKUP(A59,Parametros!A:E,2,0) -> 1120244 | C59: =SUMIF(Concluintes!B:B,ALUNO_GRAD_TEMPO_INTEGRAL!A59,Concluintes!F:F) -> 8 | D59: =VLOOKUP(A59,Parametros!A:E,3,0) -> 2 | E59: =VLOOKUP(A59,Parametros!A:E,4,0) -> 0.082 | F59: =SUMIFS(Ingressantes!F:F,Ingressantes!C:C,ALUNO_GRAD_TEMPO_INTEGRAL!A59,Ingressantes!A:A,INÍCIO!$C$5) -> 19 | G59: 22.812
A60: ENGENHARIA DE PRODUÇÃO - 49A | B60: =VLOOKUP(A60,Parametros!A:E,2,0) -> 38594 | C60: =SUMIF(Concluintes!B:B,ALUNO_GRAD_TEMPO_INTEGRAL!A60,Concluintes!F:F) -> 46 | D60: =VLOOKUP(A60,Parametros!A:E,3,0) -> 5 | E60: =VLOOKUP(A60,Parametros!A:E,4,0) -> 0.082 | F60: =SUMIFS(Ingressantes!F:F,Ingressantes!C:C,ALUNO_GRAD_TEMPO_INTEGRAL!A60,Ingressantes!A:A,INÍCIO!$C$5) -> 59 | G60: 265.11
A61: ENGENHARIA ELÉTRICA - 25A | B61: =VLOOKUP(A61,Parametros!A:E,2,0) -> 13095 | C61: =SUMIF(Concluintes!B:B,ALUNO_GRAD_TEMPO_INTEGRAL!A61,Concluintes!F:F) -> 0 | D61: =VLOOKUP(A61,Parametros!A:E,3,0) -> 5 | E61: =VLOOKUP(A61,Parametros!A:E,4,0) -> 0.082 | F61: =SUMIFS(Ingressantes!F:F,Ingressantes!C:C,ALUNO_GRAD_TEMPO_INTEGRAL!A61,Ingressantes!A:A,INÍCIO!$C$5) -> 0 | G61: 0
A62: ENGENHARIA ELÉTRICA - 50A | B62: =VLOOKUP(A62,Parametros!A:E,2,0) -> 49788 | C62: =SUMIF(Concluintes!B:B,ALUNO_GRAD_TEMPO_INTEGRAL!A62,Concluintes!F:F) -> 0 | D62: =VLOOKUP(A62,Parametros!A:E,3,0) -> 5 | E62: =VLOOKUP(A62,Parametros!A:E,4,0) -> 0.082 | F62: =SUMIFS(Ingressantes!F:F,Ingressantes!C:C,ALUNO_GRAD_TEMPO_INTEGRAL!A62,Ingressantes!A:A,INÍCIO!$C$5) -> 0 | G62: 0
A63: ENGENHARIA ELÉTRICA - HAB. EM ROBÓTICA E AUTOMAÇÃO INDUSTRIAL - 65I | B63: =VLOOKUP(A63,Parametros!A:E,2,0) -> 1109485 | C63: =SUMIF(Concluintes!B:B,ALUNO_GRAD_TEMPO_INTEGRAL!A63,Concluintes!F:F) -> 1 | D63: =VLOOKUP(A63,Parametros!A:E,3,0) -> 2 | E63: =VLOOKUP(A63,Parametros!A:E,4,0) -> 0.082 | F63: =SUMIFS(Ingressantes!F:F,Ingressantes!C:C,ALUNO_GRAD_TEMPO_INTEGRAL!A63,Ingressantes!A:A,INÍCIO!$C$5) -> 0 | G63: 1.664
A64: ENGENHARIA ELÉTRICA - HAB. EM ROBÓTICA E AUTOMAÇÃO INDUSTRIAL - 69B | B64: =VLOOKUP(A64,Parametros!A:E,2,0) -> 1109485 | C64: =SUMIF(Concluintes!B:B,ALUNO_GRAD_TEMPO_INTEGRAL!A64,Concluintes!F:F) -> 17 | D64: =VLOOKUP(A64,Parametros!A:E,3,0) -> 5 | E64: =VLOOKUP(A64,Parametros!A:E,4,0) -> 0.082 | F64: =SUMIFS(Ingressantes!F:F,Ingressantes!C:C,ALUNO_GRAD_TEMPO_INTEGRAL!A64,Ingressantes!A:A,INÍCIO!$C$5) -> 40 | G64: 120.72
A65: ENGENHARIA ELÉTRICA - HABILITAÇÃO EM ENERGIA - 65H | B65: =VLOOKUP(A65,Parametros!A:E,2,0) -> 1109475 | C65: =SUMIF(Concluintes!B:B,ALUNO_GRAD_TEMPO_INTEGRAL!A65,Concluintes!F:F) -> 2 | D65: =VLOOKUP(A65,Parametros!A:E,3,0) -> 2 | E65: =VLOOKUP(A65,Parametros!A:E,4,0) -> 0.082 | F65: =SUMIFS(Ingressantes!F:F,Ingressantes!C:C,ALUNO_GRAD_TEMPO_INTEGRAL!A65,Ingressantes!A:A,INÍCIO!$C$5) -> 0 | G65: 3.328
A66: ENGENHARIA ELÉTRICA - HABILITAÇÃO EM ENERGIA - 70A | B66: =VLOOKUP(A66,Parametros!A:E,2,0) -> 1109475 | C66: =SUMIF(Concluintes!B:B,ALUNO_GRAD_TEMPO_INTEGRAL!A66,Concluintes!F:F) -> 20 | D66: =VLOOKUP(A66,Parametros!A:E,3,0) -> 5 | E66: =VLOOKUP(A66,Parametros!A:E,4,0) -> 0.082 | F66: =SUMIFS(Ingressantes!F:F,Ingressantes!C:C,ALUNO_GRAD_TEMPO_INTEGRAL!A66,Ingressantes!A:A,INÍCIO!$C$5) -> 45 | G66: 139.45
A67: ENGENHARIA ELÉTRICA - HABILITAÇÃO EM SISTEMAS DE POTÊNCIA - 65J | B67: =VLOOKUP(A67,Parametros!A:E,2,0) -> 1109486 | C67: =SUMIF(Concluintes!B:B,ALUNO_GRAD_TEMPO_INTEGRAL!A67,Concluintes!F:F) -> 4 | D67: =VLOOKUP(A67,Parametros!A:E,3,0) -> 2 | E67: =VLOOKUP(A67,Parametros!A:E,4,0) -> 0.082 | F67: =SUMIFS(Ingressantes!F:F,Ingressantes!C:C,ALUNO_GRAD_TEMPO_INTEGRAL!A67,Ingressantes!A:A,INÍCIO!$C$5) -> 0 | G67: 6.656
A68: ENGENHARIA ELÉTRICA - HABILITAÇÃO EM SISTEMAS DE POTÊNCIA - 69C | B68: =VLOOKUP(A68,Parametros!A:E,2,0) -> 1109486 | C68: =SUMIF(Concluintes!B:B,ALUNO_GRAD_TEMPO_INTEGRAL!A68,Concluintes!F:F) -> 26 | D68: =VLOOKUP(A68,Parametros!A:E,3,0) -> 5 | E68: =VLOOKUP(A68,Parametros!A:E,4,0) -> 0.082 | F68: =SUMIFS(Ingressantes!F:F,Ingressantes!C:C,ALUNO_GRAD_TEMPO_INTEGRAL!A68,Ingressantes!A:A,INÍCIO!$C$5) -> 46 | G68: 165.66
A69: ENGENHARIA ELÉTRICA - HABILITAÇÃO EM SISTEMAS ELETRÔNICOS - 65K | B69: =VLOOKUP(A69,Parametros!A:E,2,0) -> 1109487 | C69: =SUMIF(Concluintes!B:B,ALUNO_GRAD_TEMPO_INTEGRAL!A69,Concluintes!F:F) -> 2 | D69: =VLOOKUP(A69,Parametros!A:E,3,0) -> 2 | E69: =VLOOKUP(A69,Parametros!A:E,4,0) -> 0.082 | F69: =SUMIFS(Ingressantes!F:F,Ingressantes!C:C,ALUNO_GRAD_TEMPO_INTEGRAL!A69,Ingressantes!A:A,INÍCIO!$C$5) -> 0 | G69: =IFERROR(SUM((C69*D69)*(1+E69)+((F69-C69)/4)*D69),0) -> 3.328
A70: ENGENHARIA ELÉTRICA - HABILITAÇÃO EM SISTEMAS ELETRÔNICOS - 69A | B70: =VLOOKUP(A70,Parametros!A:E,2,0) -> 1109487 | C70: =SUMIF(Concluintes!B:B,ALUNO_GRAD_TEMPO_INTEGRAL!A70,Concluintes!F:F) -> 17 | D70: =VLOOKUP(A70,Parametros!A:E,3,0) -> 5 | E70: =VLOOKUP(A70,Parametros!A:E,4,0) -> 0.082 | F70: =SUMIFS(Ingressantes!F:F,Ingressantes!C:C,ALUNO_GRAD_TEMPO_INTEGRAL!A70,Ingressantes!A:A,INÍCIO!$C$5) -> 38 | G70: 118.22
A71: ENGENHARIA ELÉTRICA - HABILITAÇÃO EM TELECOMUNICAÇÕES - 65L | B71: =VLOOKUP(A71,Parametros!A:E,2,0) -> 1109488 | C71: =SUMIF(Concluintes!B:B,ALUNO_GRAD_TEMPO_INTEGRAL!A71,Concluintes!F:F) -> 1 | D71: =VLOOKUP(A71,Parametros!A:E,3,0) -> 2 | E71: =VLOOKUP(A71,Parametros!A:E,4,0) -> 0.082 | F71: =SUMIFS(Ingressantes!F:F,Ingressantes!C:C,ALUNO_GRAD_TEMPO_INTEGRAL!A71,Ingressantes!A:A,INÍCIO!$C$5) -> 0 | G71: 1.664
A72: ENGENHARIA ELÉTRICA - HABILITAÇÃO EM TELECOMUNICAÇÕES - 69D | B72: =VLOOKUP(A72,Parametros!A:E,2,0) -> 1109488 | C72: =SUMIF(Concluintes!B:B,ALUNO_GRAD_TEMPO_INTEGRAL!A72,Concluintes!F:F) -> 12 | D72: =VLOOKUP(A72,Parametros!A:E,3,0) -> 5 | E72: =VLOOKUP(A72,Parametros!A:E,4,0) -> 0.082 | F72: =SUMIFS(Ingressantes!F:F,Ingressantes!C:C,ALUNO_GRAD_TEMPO_INTEGRAL!A72,Ingressantes!A:A,INÍCIO!$C$5) -> 49 | G72: 111.17
A73: ENGENHARIA MECÂNICA - 65M | B73: =VLOOKUP(A73,Parametros!A:E,2,0) -> 1109489 | C73: =SUMIF(Concluintes!B:B,ALUNO_GRAD_TEMPO_INTEGRAL!A73,Concluintes!F:F) -> 9 | D73: =VLOOKUP(A73,Parametros!A:E,3,0) -> 2 | E73: =VLOOKUP(A73,Parametros!A:E,4,0) -> 0.082 | F73: =SUMIFS(Ingressantes!F:F,Ingressantes!C:C,ALUNO_GRAD_TEMPO_INTEGRAL!A73,Ingressantes!A:A,INÍCIO!$C$5) -> 2 | G73: 15.976
A74: ENGENHARIA MECÂNICA - 71A | B74: =VLOOKUP(A74,Parametros!A:E,2,0) -> 1109489 | C74: =SUMIF(Concluintes!B:B,ALUNO_GRAD_TEMPO_INTEGRAL!A74,Concluintes!F:F) -> 20 | D74: =VLOOKUP(A74,Parametros!A:E,3,0) -> 5 | E74: =VLOOKUP(A74,Parametros!A:E,4,0) -> 0.082 | F74: =SUMIFS(Ingressantes!F:F,Ingressantes!C:C,ALUNO_GRAD_TEMPO_INTEGRAL!A74,Ingressantes!A:A,INÍCIO!$C$5) -> 46 | G74: 140.7
A75: ESTATÍSTICA - 65D | B75: =VLOOKUP(A75,Parametros!A:E,2,0) -> 113531 | C75: =SUMIF(Concluintes!B:B,ALUNO_GRAD_TEMPO_INTEGRAL!A75,Concluintes!F:F) -> 9 | D75: =VLOOKUP(A75,Parametros!A:E,3,0) -> 2 | E75: =VLOOKUP(A75,Parametros!A:E,4,0) -> 0.1325 | F75: =SUMIFS(Ingressantes!F:F,Ingressantes!C:C,ALUNO_GRAD_TEMPO_INTEGRAL!A75,Ingressantes!A:A,INÍCIO!$C$5) -> 16 | G75: 23.885
A76: FARMÁCIA - 05GV | B76: =VLOOKUP(A76,Parametros!A:E,2,0) -> 1185503 | C76: =SUMIF(Concluintes!B:B,ALUNO_GRAD_TEMPO_INTEGRAL!A76,Concluintes!F:F) -> 3 | D76: =VLOOKUP(A76,Parametros!A:E,3,0) -> 5 | E76: =VLOOKUP(A76,Parametros!A:E,4,0) -> 0.066 | F76: =SUMIFS(Ingressantes!F:F,Ingressantes!C:C,ALUNO_GRAD_TEMPO_INTEGRAL!A76,Ingressantes!A:A,INÍCIO!$C$5) -> 80 | G76: 112.24
A77: FARMÁCIA - 07A | B77: =VLOOKUP(A77,Parametros!A:E,2,0) -> 38509 | C77: =SUMIF(Concluintes!B:B,ALUNO_GRAD_TEMPO_INTEGRAL!A77,Concluintes!F:F) -> 28 | D77: =VLOOKUP(A77,Parametros!A:E,3,0) -> 5 | E77: =VLOOKUP(A77,Parametros!A:E,4,0) -> 0.066 | F77: =SUMIFS(Ingressantes!F:F,Ingressantes!C:C,ALUNO_GRAD_TEMPO_INTEGRAL!A77,Ingressantes!A:A,INÍCIO!$C$5) -> 108 | G77: 249.24
A78: FILOSOFIA - 08A | B78: =VLOOKUP(A78,Parametros!A:E,2,0) -> 5000611 | C78: =SUMIF(Concluintes!B:B,ALUNO_GRAD_TEMPO_INTEGRAL!A78,Concluintes!F:F) -> 0 | D78: =VLOOKUP(A78,Parametros!A:E,3,0) -> 4 | E78: =VLOOKUP(A78,Parametros!A:E,4,0) -> 0.1 | F78: =SUMIFS(Ingressantes!F:F,Ingressantes!C:C,ALUNO_GRAD_TEMPO_INTEGRAL!A78,Ingressantes!A:A,INÍCIO!$C$5) -> 0 | G78: 0
A79: FILOSOFIA - 08B | B79: =VLOOKUP(A79,Parametros!A:E,2,0) -> 313097 | C79: =SUMIF(Concluintes!B:B,ALUNO_GRAD_TEMPO_INTEGRAL!A79,Concluintes!F:F) -> 11 | D79: =VLOOKUP(A79,Parametros!A:E,3,0) -> 4 | E79: =VLOOKUP(A79,Parametros!A:E,4,0) -> 0.1 | F79: =SUMIFS(Ingressantes!F:F,Ingressantes!C:C,ALUNO_GRAD_TEMPO_INTEGRAL!A79,Ingressantes!A:A,INÍCIO!$C$5) -> 3 | G79: 40.4
A80: FILOSOFIA - 08L | B80: =VLOOKUP(A80,Parametros!A:E,2,0) -> 13097 | C80: =SUMIF(Concluintes!B:B,ALUNO_GRAD_TEMPO_INTEGRAL!A80,Concluintes!F:F) -> 7 | D80: =VLOOKUP(A80,Parametros!A:E,3,0) -> 4 | E80: =VLOOKUP(A80,Parametros!A:E,4,0) -> 0.1 | F80: =SUMIFS(Ingressantes!F:F,Ingressantes!C:C,ALUNO_GRAD_TEMPO_INTEGRAL!A80,Ingressantes!A:A,INÍCIO!$C$5) -> 7 | G80: 30.8
A81: FILOSOFIA - 72EB | B81: =VLOOKUP(A81,Parametros!A:E,2,0) -> 313097 | C81: =SUMIF(Concluintes!B:B,ALUNO_GRAD_TEMPO_INTEGRAL!A81,Concluintes!F:F) -> 1 | D81: =VLOOKUP(A81,Parametros!A:E,3,0) -> 2 | E81: =VLOOKUP(A81,Parametros!A:E,4,0) -> 0.1 | F81: =SUMIFS(Ingressantes!F:F,Ingressantes!C:C,ALUNO_GRAD_TEMPO_INTEGRAL!A81,Ingressantes!A:A,INÍCIO!$C$5) -> 1 | G81: 2.2
A82: FILOSOFIA - 72EL | B82: =VLOOKUP(A82,Parametros!A:E,2,0) -> 13097 | C82: =SUMIF(Concluintes!B:B,ALUNO_GRAD_TEMPO_INTEGRAL!A82,Concluintes!F:F) -> 2 | D82: =VLOOKUP(A82,Parametros!A:E,3,0) -> 2 | E82: =VLOOKUP(A82,Parametros!A:E,4,0) -> 0.1 | F82: =SUMIFS(Ingressantes!F:F,Ingressantes!C:C,ALUNO_GRAD_TEMPO_INTEGRAL!A82,Ingressantes!A:A,INÍCIO!$C$5) -> 0 | G82: 3.4
A83: FILOSOFIA - 73E | B83: =VLOOKUP(A83,Parametros!A:E,2,0) -> 313097 | C83: =SUMIF(Concluintes!B:B,ALUNO_GRAD_TEMPO_INTEGRAL!A83,Concluintes!F:F) -> 0 | D83: =VLOOKUP(A83,Parametros!A:E,3,0) -> 2 | E83: =VLOOKUP(A83,Parametros!A:E,4,0) -> 0.1 | F83: =SUMIFS(Ingressantes!F:F,Ingressantes!C:C,ALUNO_GRAD_TEMPO_INTEGRAL!A83,Ingressantes!A:A,INÍCIO!$C$5) -> 0 | G83: 0
A84: FÍSICA - 09A | B84: =VLOOKUP(A84,Parametros!A:E,2,0) -> 5000613 | C84: =SUMIF(Concluintes!B:B,ALUNO_GRAD_TEMPO_INTEGRAL!A84,Concluintes!F:F) -> 0 | D84: =VLOOKUP(A84,Parametros!A:E,3,0) -> 4 | E84: =VLOOKUP(A84,Parametros!A:E,4,0) -> 0.1325 | F84: =SUMIFS(Ingressantes!F:F,Ingressantes!C:C,ALUNO_GRAD_TEMPO_INTEGRAL!A84,Ingressantes!A:A,INÍCIO!$C$5) -> 0 | G84: 0
A85: FÍSICA - 65E | B85: =VLOOKUP(A85,Parametros!A:E,2,0) -> 313098 | C85: =SUMIF(Concluintes!B:B,ALUNO_GRAD_TEMPO_INTEGRAL!A85,Concluintes!F:F) -> 7 | D85: =VLOOKUP(A85,Parametros!A:E,3,0) -> 2 | E85: =VLOOKUP(A85,Parametros!A:E,4,0) -> 0.1325 | F85: =SUMIFS(Ingressantes!F:F,Ingressantes!C:C,ALUNO_GRAD_TEMPO_INTEGRAL!A85,Ingressantes!A:A,INÍCIO!$C$5) -> 19 | G85: 21.855
A86: FÍSICA - 65EL | B86: =VLOOKUP(A86,Parametros!A:E,2,0) -> 13098 | C86: =SUMIF(Concluintes!B:B,ALUNO_GRAD_TEMPO_INTEGRAL!A86,Concluintes!F:F) -> 1 | D86: =VLOOKUP(A86,Parametros!A:E,3,0) -> 2 | E86: =VLOOKUP(A86,Parametros!A:E,4,0) -> 0.1325 | F86: =SUMIFS(Ingressantes!F:F,Ingressantes!C:C,ALUNO_GRAD_TEMPO_INTEGRAL!A86,Ingressantes!A:A,INÍCIO!$C$5) -> 0 | G86: 1.765
A87: FÍSICA - 81A | B87: =VLOOKUP(A87,Parametros!A:E,2,0) -> 1166037 | C87: =SUMIF(Concluintes!B:B,ALUNO_GRAD_TEMPO_INTEGRAL!A87,Concluintes!F:F) -> 4 | D87: =VLOOKUP(A87,Parametros!A:E,3,0) -> 4 | E87: =VLOOKUP(A87,Parametros!A:E,4,0) -> 0.1325 | F87: =SUMIFS(Ingressantes!F:F,Ingressantes!C:C,ALUNO_GRAD_TEMPO_INTEGRAL!A87,Ingressantes!A:A,INÍCIO!$C$5) -> 18 | G87: 32.12
A88: FISIOTERAPIA - 06GV | B88: =VLOOKUP(A88,Parametros!A:E,2,0) -> 1178689 | C88: =SUMIF(Concluintes!B:B,ALUNO_GRAD_TEMPO_INTEGRAL!A88,Concluintes!F:F) -> 15 | D88: =VLOOKUP(A88,Parametros!A:E,3,0) -> 5 | E88: =VLOOKUP(A88,Parametros!A:E,4,0) -> 0.066 | F88: =SUMIFS(Ingressantes!F:F,Ingressantes!C:C,ALUNO_GRAD_TEMPO_INTEGRAL!A88,Ingressantes!A:A,INÍCIO!$C$5) -> 33 | G88: 102.45
A89: FISIOTERAPIA - 20A | B89: =VLOOKUP(A89,Parametros!A:E,2,0) -> 13118 | C89: =SUMIF(Concluintes!B:B,ALUNO_GRAD_TEMPO_INTEGRAL!A89,Concluintes!F:F) -> 27 | D89: =VLOOKUP(A89,Parametros!A:E,3,0) -> 5 | E89: =VLOOKUP(A89,Parametros!A:E,4,0) -> 0.066 | F89: =SUMIFS(Ingressantes!F:F,Ingressantes!C:C,ALUNO_GRAD_TEMPO_INTEGRAL!A89,Ingressantes!A:A,INÍCIO!$C$5) -> 50 | G89: 172.66
A90: GEOGRAFIA - 10B | B90: =VLOOKUP(A90,Parametros!A:E,2,0) -> 313099 | C90: =SUMIF(Concluintes!B:B,ALUNO_GRAD_TEMPO_INTEGRAL!A90,Concluintes!F:F) -> 13 | D90: =VLOOKUP(A90,Parametros!A:E,3,0) -> 4 | E90: =VLOOKUP(A90,Parametros!A:E,4,0) -> 0.1 | F90: =SUMIFS(Ingressantes!F:F,Ingressantes!C:C,ALUNO_GRAD_TEMPO_INTEGRAL!A90,Ingressantes!A:A,INÍCIO!$C$5) -> 1 | G90: 45.2
A91: GEOGRAFIA - 10L | B91: =VLOOKUP(A91,Parametros!A:E,2,0) -> 13099 | C91: =SUMIF(Concluintes!B:B,ALUNO_GRAD_TEMPO_INTEGRAL!A91,Concluintes!F:F) -> 19 | D91: =VLOOKUP(A91,Parametros!A:E,3,0) -> 4 | E91: =VLOOKUP(A91,Parametros!A:E,4,0) -> 0.1 | F91: =SUMIFS(Ingressantes!F:F,Ingressantes!C:C,ALUNO_GRAD_TEMPO_INTEGRAL!A91,Ingressantes!A:A,INÍCIO!$C$5) -> 0 | G91: 64.6
A92: GEOGRAFIA - 27A | B92: =VLOOKUP(A92,Parametros!A:E,2,0) -> 5000615 | C92: =SUMIF(Concluintes!B:B,ALUNO_GRAD_TEMPO_INTEGRAL!A92,Concluintes!F:F) -> 0 | D92: =VLOOKUP(A92,Parametros!A:E,3,0) -> 4 | E92: =VLOOKUP(A92,Parametros!A:E,4,0) -> 0.1 | F92: =SUMIFS(Ingressantes!F:F,Ingressantes!C:C,ALUNO_GRAD_TEMPO_INTEGRAL!A92,Ingressantes!A:A,INÍCIO!$C$5) -> 0 | G92: 0
A93: GEOGRAFIA - 27L | B93: =VLOOKUP(A93,Parametros!A:E,2,0) -> 13099 | C93: =SUMIF(Concluintes!B:B,ALUNO_GRAD_TEMPO_INTEGRAL!A93,Concluintes!F:F) -> 19 | D93: =VLOOKUP(A93,Parametros!A:E,3,0) -> 4 | E93: =VLOOKUP(A93,Parametros!A:E,4,0) -> 0.1 | F93: =SUMIFS(Ingressantes!F:F,Ingressantes!C:C,ALUNO_GRAD_TEMPO_INTEGRAL!A93,Ingressantes!A:A,INÍCIO!$C$5) -> 44 | G93: 108.6
A94: HISTÓRIA - 11A | B94: =VLOOKUP(A94,Parametros!A:E,2,0) -> 5000616 | C94: =SUMIF(Concluintes!B:B,ALUNO_GRAD_TEMPO_INTEGRAL!A94,Concluintes!F:F) -> 0 | D94: =VLOOKUP(A94,Parametros!A:E,3,0) -> 4 | E94: =VLOOKUP(A94,Parametros!A:E,4,0) -> 0.1 | F94: =SUMIFS(Ingressantes!F:F,Ingressantes!C:C,ALUNO_GRAD_TEMPO_INTEGRAL!A94,Ingressantes!A:A,INÍCIO!$C$5) -> 0 | G94: 0
A95: HISTÓRIA - 11B | B95: =VLOOKUP(A95,Parametros!A:E,2,0) -> 313100 | C95: =SUMIF(Concluintes!B:B,ALUNO_GRAD_TEMPO_INTEGRAL!A95,Concluintes!F:F) -> 5 | D95: =VLOOKUP(A95,Parametros!A:E,3,0) -> 4 | E95: =VLOOKUP(A95,Parametros!A:E,4,0) -> 0.1 | F95: =SUMIFS(Ingressantes!F:F,Ingressantes!C:C,ALUNO_GRAD_TEMPO_INTEGRAL!A95,Ingressantes!A:A,INÍCIO!$C$5) -> 0 | G95: 17
A96: HISTÓRIA - 11L | B96: =VLOOKUP(A96,Parametros!A:E,2,0) -> 13100 | C96: =SUMIF(Concluintes!B:B,ALUNO_GRAD_TEMPO_INTEGRAL!A96,Concluintes!F:F) -> 32 | D96: =VLOOKUP(A96,Parametros!A:E,3,0) -> 4 | E96: =VLOOKUP(A96,Parametros!A:E,4,0) -> 0.1 | F96: =SUMIFS(Ingressantes!F:F,Ingressantes!C:C,ALUNO_GRAD_TEMPO_INTEGRAL!A96,Ingressantes!A:A,INÍCIO!$C$5) -> 0 | G96: 108.8
A97: HISTÓRIA - 28A | B97: =VLOOKUP(A97,Parametros!A:E,2,0) -> 5000616 | C97: =SUMIF(Concluintes!B:B,ALUNO_GRAD_TEMPO_INTEGRAL!A97,Concluintes!F:F) -> 0 | D97: =VLOOKUP(A97,Parametros!A:E,3,0) -> 4 | E97: =VLOOKUP(A97,Parametros!A:E,4,0) -> 0.1 | F97: =SUMIFS(Ingressantes!F:F,Ingressantes!C:C,ALUNO_GRAD_TEMPO_INTEGRAL!A97,Ingressantes!A:A,INÍCIO!$C$5) -> 0 | G97: 0
A98: HISTÓRIA - 28B | B98: =VLOOKUP(A98,Parametros!A:E,2,0) -> 313100 | C98: =SUMIF(Concluintes!B:B,ALUNO_GRAD_TEMPO_INTEGRAL!A98,Concluintes!F:F) -> 4 | D98: =VLOOKUP(A98,Parametros!A:E,3,0) -> 4 | E98: =VLOOKUP(A98,Parametros!A:E,4,0) -> 0.1 | F98: =SUMIFS(Ingressantes!F:F,Ingressantes!C:C,ALUNO_GRAD_TEMPO_INTEGRAL!A98,Ingressantes!A:A,INÍCIO!$C$5) -> 0 | G98: 13.6
A99: HISTÓRIA - 28L | B99: =VLOOKUP(A99,Parametros!A:E,2,0) -> 13100 | C99: =SUMIF(Concluintes!B:B,ALUNO_GRAD_TEMPO_INTEGRAL!A99,Concluintes!F:F) -> 22 | D99: =VLOOKUP(A99,Parametros!A:E,3,0) -> 4 | E99: =VLOOKUP(A99,Parametros!A:E,4,0) -> 0.1 | F99: =SUMIFS(Ingressantes!F:F,Ingressantes!C:C,ALUNO_GRAD_TEMPO_INTEGRAL!A99,Ingressantes!A:A,INÍCIO!$C$5) -> 0 | G99: 74.8
A100: JORNALISMO - 84A | B100: =VLOOKUP(A100,Parametros!A:E,2,0) -> 27657 | C100: =SUMIF(Concluintes!B:B,ALUNO_GRAD_TEMPO_INTEGRAL!A100,Concluintes!F:F) -> 11 | D100: =VLOOKUP(A100,Parametros!A:E,3,0) -> 4 | E100: =VLOOKUP(A100,Parametros!A:E,4,0) -> 0.12 | F100: =SUMIFS(Ingressantes!F:F,Ingressantes!C:C,ALUNO_GRAD_TEMPO_INTEGRAL!A100,Ingressantes!A:A,INÍCIO!$C$5) -> 42 | G100: 80.28
A101: JORNALISMO - 85A | B101: =VLOOKUP(A101,Parametros!A:E,2,0) -> 36356 | C101: =SUMIF(Concluintes!B:B,ALUNO_GRAD_TEMPO_INTEGRAL!A101,Concluintes!F:F) -> 12 | D101: =VLOOKUP(A101,Parametros!A:E,3,0) -> 4 | E101: =VLOOKUP(A101,Parametros!A:E,4,0) -> 0.12 | F101: =SUMIFS(Ingressantes!F:F,Ingressantes!C:C,ALUNO_GRAD_TEMPO_INTEGRAL!A101,Ingressantes!A:A,INÍCIO!$C$5) -> 36 | G101: 77.76
A102: LETRAS - 13A | B102: =VLOOKUP(A102,Parametros!A:E,2,0) -> 5000617 | C102: =SUMIF(Concluintes!B:B,ALUNO_GRAD_TEMPO_INTEGRAL!A102,Concluintes!F:F) -> 0 | D102: =VLOOKUP(A102,Parametros!A:E,3,0) -> 4 | E102: =VLOOKUP(A102,Parametros!A:E,4,0) -> 0.115 | F102: =SUMIFS(Ingressantes!F:F,Ingressantes!C:C,ALUNO_GRAD_TEMPO_INTEGRAL!A102,Ingressantes!A:A,INÍCIO!$C$5) -> 0 | G102: 0
A103: LETRAS - 13B | B103: =VLOOKUP(A103,Parametros!A:E,2,0) -> 313101 | C103: =SUMIF(Concluintes!B:B,ALUNO_GRAD_TEMPO_INTEGRAL!A103,Concluintes!F:F) -> 7 | D103: =VLOOKUP(A103,Parametros!A:E,3,0) -> 4 | E103: =VLOOKUP(A103,Parametros!A:E,4,0) -> 0.115 | F103: =SUMIFS(Ingressantes!F:F,Ingressantes!C:C,ALUNO_GRAD_TEMPO_INTEGRAL!A103,Ingressantes!A:A,INÍCIO!$C$5) -> 10 | G103: 34.22
A104: LETRAS - 13L | B104: =VLOOKUP(A104,Parametros!A:E,2,0) -> 13101 | C104: =SUMIF(Concluintes!B:B,ALUNO_GRAD_TEMPO_INTEGRAL!A104,Concluintes!F:F) -> 36 | D104: =VLOOKUP(A104,Parametros!A:E,3,0) -> 4 | E104: =VLOOKUP(A104,Parametros!A:E,4,0) -> 0.115 | F104: =SUMIFS(Ingressantes!F:F,Ingressantes!C:C,ALUNO_GRAD_TEMPO_INTEGRAL!A104,Ingressantes!A:A,INÍCIO!$C$5) -> 12 | G104: 136.56
A105: LETRAS - 29A | B105: =VLOOKUP(A105,Parametros!A:E,2,0) -> 5000617 | C105: =SUMIF(Concluintes!B:B,ALUNO_GRAD_TEMPO_INTEGRAL!A105,Concluintes!F:F) -> 0 | D105: =VLOOKUP(A105,Parametros!A:E,3,0) -> 4 | E105: =VLOOKUP(A105,Parametros!A:E,4,0) -> 0.115 | F105: =SUMIFS(Ingressantes!F:F,Ingressantes!C:C,ALUNO_GRAD_TEMPO_INTEGRAL!A105,Ingressantes!A:A,INÍCIO!$C$5) -> 0 | G105: 0
A106: LETRAS - 29B | B106: =VLOOKUP(A106,Parametros!A:E,2,0) -> 313101 | C106: =SUMIF(Concluintes!B:B,ALUNO_GRAD_TEMPO_INTEGRAL!A106,Concluintes!F:F) -> 0 | D106: =VLOOKUP(A106,Parametros!A:E,3,0) -> 4 | E106: =VLOOKUP(A106,Parametros!A:E,4,0) -> 0.115 | F106: =SUMIFS(Ingressantes!F:F,Ingressantes!C:C,ALUNO_GRAD_TEMPO_INTEGRAL!A106,Ingressantes!A:A,INÍCIO!$C$5) -> 0 | G106: 0
A107: LETRAS - 29L | B107: =VLOOKUP(A107,Parametros!A:E,2,0) -> 13101 | C107: =SUMIF(Concluintes!B:B,ALUNO_GRAD_TEMPO_INTEGRAL!A107,Concluintes!F:F) -> 20 | D107: =VLOOKUP(A107,Parametros!A:E,3,0) -> 4 | E107: =VLOOKUP(A107,Parametros!A:E,4,0) -> 0.115 | F107: =SUMIFS(Ingressantes!F:F,Ingressantes!C:C,ALUNO_GRAD_TEMPO_INTEGRAL!A107,Ingressantes!A:A,INÍCIO!$C$5) -> 51 | G107: 120.2
A108: LICENCIATURA EM ARTES VISUAIS - 66F | B108: =VLOOKUP(A108,Parametros!A:E,2,0) -> 1153951 | C108: =SUMIF(Concluintes!B:B,ALUNO_GRAD_TEMPO_INTEGRAL!A108,Concluintes!F:F) -> 16 | D108: =VLOOKUP(A108,Parametros!A:E,3,0) -> 2 | E108: =VLOOKUP(A108,Parametros!A:E,4,0) -> 0.1 | F108: =SUMIFS(Ingressantes!F:F,Ingressantes!C:C,ALUNO_GRAD_TEMPO_INTEGRAL!A108,Ingressantes!A:A,INÍCIO!$C$5) -> 52 | G108: 53.2
A109: LICENCIATURA EM LETRAS - LIBRAS - 88A | B109: =VLOOKUP(A109,Parametros!A:E,2,0) -> 1268983 | C109: =SUMIF(Concluintes!B:B,ALUNO_GRAD_TEMPO_INTEGRAL!A109,Concluintes!F:F) -> 11 | D109: =VLOOKUP(A109,Parametros!A:E,3,0) -> 4 | E109: =VLOOKUP(A109,Parametros!A:E,4,0) -> 0.115 | F109: =SUMIFS(Ingressantes!F:F,Ingressantes!C:C,ALUNO_GRAD_TEMPO_INTEGRAL!A109,Ingressantes!A:A,INÍCIO!$C$5) -> 23 | G109: 61.06
A110: LICENCIATURA EM MÚSICA - 89A | B110: =VLOOKUP(A110,Parametros!A:E,2,0) -> 1278855 | C110: =SUMIF(Concluintes!B:B,ALUNO_GRAD_TEMPO_INTEGRAL!A110,Concluintes!F:F) -> 9 | D110: =VLOOKUP(A110,Parametros!A:E,3,0) -> 4 | E110: =VLOOKUP(A110,Parametros!A:E,4,0) -> 0.115 | F110: =SUMIFS(Ingressantes!F:F,Ingressantes!C:C,ALUNO_GRAD_TEMPO_INTEGRAL!A110,Ingressantes!A:A,INÍCIO!$C$5) -> 10 | G110: 41.14
A111: MATEMÁTICA - 65F | B111: =VLOOKUP(A111,Parametros!A:E,2,0) -> 313102 | C111: =SUMIF(Concluintes!B:B,ALUNO_GRAD_TEMPO_INTEGRAL!A111,Concluintes!F:F) -> 2 | D111: =VLOOKUP(A111,Parametros!A:E,3,0) -> 2 | E111: =VLOOKUP(A111,Parametros!A:E,4,0) -> 0.1325 | F111: =SUMIFS(Ingressantes!F:F,Ingressantes!C:C,ALUNO_GRAD_TEMPO_INTEGRAL!A111,Ingressantes!A:A,INÍCIO!$C$5) -> 23 | G111: 15.03
A112: MATEMÁTICA - 65FL | B112: =VLOOKUP(A112,Parametros!A:E,2,0) -> 13102 | C112: =SUMIF(Concluintes!B:B,ALUNO_GRAD_TEMPO_INTEGRAL!A112,Concluintes!F:F) -> 3 | D112: =VLOOKUP(A112,Parametros!A:E,3,0) -> 2 | E112: =VLOOKUP(A112,Parametros!A:E,4,0) -> 0.1325 | F112: =SUMIFS(Ingressantes!F:F,Ingressantes!C:C,ALUNO_GRAD_TEMPO_INTEGRAL!A112,Ingressantes!A:A,INÍCIO!$C$5) -> 2 | G112: 6.295
A113: MATEMÁTICA - 82A | B113: =VLOOKUP(A113,Parametros!A:E,2,0) -> 1166038 | C113: =SUMIF(Concluintes!B:B,ALUNO_GRAD_TEMPO_INTEGRAL!A113,Concluintes!F:F) -> 6 | D113: =VLOOKUP(A113,Parametros!A:E,3,0) -> 4 | E113: =VLOOKUP(A113,Parametros!A:E,4,0) -> 0.1325 | F113: =SUMIFS(Ingressantes!F:F,Ingressantes!C:C,ALUNO_GRAD_TEMPO_INTEGRAL!A113,Ingressantes!A:A,INÍCIO!$C$5) -> 18 | G113: 39.18
A114: MEDICINA - 07GV | B114: =VLOOKUP(A114,Parametros!A:E,2,0) -> 5001167 | C114: =SUMIF(Concluintes!B:B,ALUNO_GRAD_TEMPO_INTEGRAL!A114,Concluintes!F:F) -> 71 | D114: =VLOOKUP(A114,Parametros!A:E,3,0) -> 6 | E114: =VLOOKUP(A114,Parametros!A:E,4,0) -> 0.065 | F114: =SUMIFS(Ingressantes!F:F,Ingressantes!C:C,ALUNO_GRAD_TEMPO_INTEGRAL!A114,Ingressantes!A:A,INÍCIO!$C$5) -> 105 | G114: 504.69
A115: MEDICINA - 15A | B115: =VLOOKUP(A115,Parametros!A:E,2,0) -> 13103 | C115: =SUMIF(Concluintes!B:B,ALUNO_GRAD_TEMPO_INTEGRAL!A115,Concluintes!F:F) -> 149 | D115: =VLOOKUP(A115,Parametros!A:E,3,0) -> 6 | E115: =VLOOKUP(A115,Parametros!A:E,4,0) -> 0.065 | F115: =SUMIFS(Ingressantes!F:F,Ingressantes!C:C,ALUNO_GRAD_TEMPO_INTEGRAL!A115,Ingressantes!A:A,INÍCIO!$C$5) -> 192 | G115: 1016.61
A116: MEDICINA VETERINÁRIA - 87A | B116: =VLOOKUP(A116,Parametros!A:E,2,0) -> 1268972 | C116: =SUMIF(Concluintes!B:B,ALUNO_GRAD_TEMPO_INTEGRAL!A116,Concluintes!F:F) -> 33 | D116: =VLOOKUP(A116,Parametros!A:E,3,0) -> 5 | E116: =VLOOKUP(A116,Parametros!A:E,4,0) -> 0.65 | F116: =SUMIFS(Ingressantes!F:F,Ingressantes!C:C,ALUNO_GRAD_TEMPO_INTEGRAL!A116,Ingressantes!A:A,INÍCIO!$C$5) -> 113 | G116: 372.25
A117: MÚSICA - CANTO - 63A | B117: =VLOOKUP(A117,Parametros!A:E,2,0) -> 116490 | C117: =SUMIF(Concluintes!B:B,ALUNO_GRAD_TEMPO_INTEGRAL!A117,Concluintes!F:F) -> 2 | D117: =VLOOKUP(A117,Parametros!A:E,3,0) -> 4 | E117: =VLOOKUP(A117,Parametros!A:E,4,0) -> 0.115 | F117: =SUMIFS(Ingressantes!F:F,Ingressantes!C:C,ALUNO_GRAD_TEMPO_INTEGRAL!A117,Ingressantes!A:A,INÍCIO!$C$5) -> 0 | G117: 6.92
A118: MÚSICA - MODALIDADE COMPOSIÇÃO - 63G | B118: =VLOOKUP(A118,Parametros!A:E,2,0) -> 1271995 | C118: =SUMIF(Concluintes!B:B,ALUNO_GRAD_TEMPO_INTEGRAL!A118,Concluintes!F:F) -> 4 | D118: =VLOOKUP(A118,Parametros!A:E,3,0) -> 4 | E118: =VLOOKUP(A118,Parametros!A:E,4,0) -> 0.115 | F118: =SUMIFS(Ingressantes!F:F,Ingressantes!C:C,ALUNO_GRAD_TEMPO_INTEGRAL!A118,Ingressantes!A:A,INÍCIO!$C$5) -> 14 | G118: 27.84
A119: MÚSICA - MODALIDADE FLAUTA TRANSVERSAL - 63B | B119: =VLOOKUP(A119,Parametros!A:E,2,0) -> 116491 | C119: =SUMIF(Concluintes!B:B,ALUNO_GRAD_TEMPO_INTEGRAL!A119,Concluintes!F:F) -> 2 | D119: =VLOOKUP(A119,Parametros!A:E,3,0) -> 4 | E119: =VLOOKUP(A119,Parametros!A:E,4,0) -> 0.115 | F119: =SUMIFS(Ingressantes!F:F,Ingressantes!C:C,ALUNO_GRAD_TEMPO_INTEGRAL!A119,Ingressantes!A:A,INÍCIO!$C$5) -> 4 | G119: 10.92
A120: MÚSICA - MODALIDADE PIANO - 63C | B120: =VLOOKUP(A120,Parametros!A:E,2,0) -> 116492 | C120: =SUMIF(Concluintes!B:B,ALUNO_GRAD_TEMPO_INTEGRAL!A120,Concluintes!F:F) -> 0 | D120: =VLOOKUP(A120,Parametros!A:E,3,0) -> 4 | E120: =VLOOKUP(A120,Parametros!A:E,4,0) -> 0.115 | F120: =SUMIFS(Ingressantes!F:F,Ingressantes!C:C,ALUNO_GRAD_TEMPO_INTEGRAL!A120,Ingressantes!A:A,INÍCIO!$C$5) -> 2 | G120: 2
A121: MÚSICA - MODALIDADE VIOLÃO - 63D | B121: =VLOOKUP(A121,Parametros!A:E,2,0) -> 116493 | C121: =SUMIF(Concluintes!B:B,ALUNO_GRAD_TEMPO_INTEGRAL!A121,Concluintes!F:F) -> 2 | D121: =VLOOKUP(A121,Parametros!A:E,3,0) -> 4 | E121: =VLOOKUP(A121,Parametros!A:E,4,0) -> 0.115 | F121: =SUMIFS(Ingressantes!F:F,Ingressantes!C:C,ALUNO_GRAD_TEMPO_INTEGRAL!A121,Ingressantes!A:A,INÍCIO!$C$5) -> 4 | G121: 10.92
A122: MÚSICA - MODALIDADE VIOLINO - 63E | B122: =VLOOKUP(A122,Parametros!A:E,2,0) -> 116494 | C122: =SUMIF(Concluintes!B:B,ALUNO_GRAD_TEMPO_INTEGRAL!A122,Concluintes!F:F) -> 2 | D122: =VLOOKUP(A122,Parametros!A:E,3,0) -> 4 | E122: =VLOOKUP(A122,Parametros!A:E,4,0) -> 0.115 | F122: =SUMIFS(Ingressantes!F:F,Ingressantes!C:C,ALUNO_GRAD_TEMPO_INTEGRAL!A122,Ingressantes!A:A,INÍCIO!$C$5) -> 0 | G122: 6.92
A123: MÚSICA - MODALIDADE VIOLONCELO - 63F | B123: =VLOOKUP(A123,Parametros!A:E,2,0) -> 116495 | C123: =SUMIF(Concluintes!B:B,ALUNO_GRAD_TEMPO_INTEGRAL!A123,Concluintes!F:F) -> 0 | D123: =VLOOKUP(A123,Parametros!A:E,3,0) -> 4 | E123: =VLOOKUP(A123,Parametros!A:E,4,0) -> 0.115 | F123: =SUMIFS(Ingressantes!F:F,Ingressantes!C:C,ALUNO_GRAD_TEMPO_INTEGRAL!A123,Ingressantes!A:A,INÍCIO!$C$5) -> 0 | G123: 0
A124: NUTRIÇÃO - 08GV | B124: =VLOOKUP(A124,Parametros!A:E,2,0) -> 1178688 | C124: =SUMIF(Concluintes!B:B,ALUNO_GRAD_TEMPO_INTEGRAL!A124,Concluintes!F:F) -> 17 | D124: =VLOOKUP(A124,Parametros!A:E,3,0) -> 5 | E124: =VLOOKUP(A124,Parametros!A:E,4,0) -> 0.66 | F124: =SUMIFS(Ingressantes!F:F,Ingressantes!C:C,ALUNO_GRAD_TEMPO_INTEGRAL!A124,Ingressantes!A:A,INÍCIO!$C$5) -> 76 | G124: 214.85
A125: NUTRIÇÃO - 64A | B125: =VLOOKUP(A125,Parametros!A:E,2,0) -> 116498 | C125: =SUMIF(Concluintes!B:B,ALUNO_GRAD_TEMPO_INTEGRAL!A125,Concluintes!F:F) -> 78 | D125: =VLOOKUP(A125,Parametros!A:E,3,0) -> 5 | E125: =VLOOKUP(A125,Parametros!A:E,4,0) -> 0.066 | F125: =SUMIFS(Ingressantes!F:F,Ingressantes!C:C,ALUNO_GRAD_TEMPO_INTEGRAL!A125,Ingressantes!A:A,INÍCIO!$C$5) -> 106 | G125: 450.74
A126: ODONTOLOGIA - 09GV | B126: =VLOOKUP(A126,Parametros!A:E,2,0) -> 5001168 | C126: =SUMIF(Concluintes!B:B,ALUNO_GRAD_TEMPO_INTEGRAL!A126,Concluintes!F:F) -> 53 | D126: =VLOOKUP(A126,Parametros!A:E,3,0) -> 5 | E126: =VLOOKUP(A126,Parametros!A:E,4,0) -> 0.65 | F126: =SUMIFS(Ingressantes!F:F,Ingressantes!C:C,ALUNO_GRAD_TEMPO_INTEGRAL!A126,Ingressantes!A:A,INÍCIO!$C$5) -> 88 | G126: 481
A127: ODONTOLOGIA - 16A | B127: =VLOOKUP(A127,Parametros!A:E,2,0) -> 13104 | C127: =SUMIF(Concluintes!B:B,ALUNO_GRAD_TEMPO_INTEGRAL!A127,Concluintes!F:F) -> 69 | D127: =VLOOKUP(A127,Parametros!A:E,3,0) -> 5 | E127: =VLOOKUP(A127,Parametros!A:E,4,0) -> 0.065 | F127: =SUMIFS(Ingressantes!F:F,Ingressantes!C:C,ALUNO_GRAD_TEMPO_INTEGRAL!A127,Ingressantes!A:A,INÍCIO!$C$5) -> 107 | G127: 414.925
A128: PEDAGOGIA - 17A | B128: =VLOOKUP(A128,Parametros!A:E,2,0) -> 13105 | C128: =SUMIF(Concluintes!B:B,ALUNO_GRAD_TEMPO_INTEGRAL!A128,Concluintes!F:F) -> 28 | D128: =VLOOKUP(A128,Parametros!A:E,3,0) -> 4 | E128: =VLOOKUP(A128,Parametros!A:E,4,0) -> 0.1 | F128: =SUMIFS(Ingressantes!F:F,Ingressantes!C:C,ALUNO_GRAD_TEMPO_INTEGRAL!A128,Ingressantes!A:A,INÍCIO!$C$5) -> 41 | G128: 136.2
A129: PEDAGOGIA - 30A | B129: =VLOOKUP(A129,Parametros!A:E,2,0) -> 13105 | C129: =SUMIF(Concluintes!B:B,ALUNO_GRAD_TEMPO_INTEGRAL!A129,Concluintes!F:F) -> 19 | D129: =VLOOKUP(A129,Parametros!A:E,3,0) -> 4 | E129: =VLOOKUP(A129,Parametros!A:E,4,0) -> 0.1 | F129: =SUMIFS(Ingressantes!F:F,Ingressantes!C:C,ALUNO_GRAD_TEMPO_INTEGRAL!A129,Ingressantes!A:A,INÍCIO!$C$5) -> 43 | G129: 107.6
A130: PSICOLOGIA - 32A | B130: =VLOOKUP(A130,Parametros!A:E,2,0) -> 13113 | C130: =SUMIF(Concluintes!B:B,ALUNO_GRAD_TEMPO_INTEGRAL!A130,Concluintes!F:F) -> 36 | D130: =VLOOKUP(A130,Parametros!A:E,3,0) -> 5 | E130: =VLOOKUP(A130,Parametros!A:E,4,0) -> 0.1 | F130: =SUMIFS(Ingressantes!F:F,Ingressantes!C:C,ALUNO_GRAD_TEMPO_INTEGRAL!A130,Ingressantes!A:A,INÍCIO!$C$5) -> 52 | G130: 218
A131: QUÍMICA - 65GB | B131: =VLOOKUP(A131,Parametros!A:E,2,0) -> 313106 | C131: =SUMIF(Concluintes!B:B,ALUNO_GRAD_TEMPO_INTEGRAL!A131,Concluintes!F:F) -> 8 | D131: =VLOOKUP(A131,Parametros!A:E,3,0) -> 2 | E131: =VLOOKUP(A131,Parametros!A:E,4,0) -> 0.1325 | F131: =SUMIFS(Ingressantes!F:F,Ingressantes!C:C,ALUNO_GRAD_TEMPO_INTEGRAL!A131,Ingressantes!A:A,INÍCIO!$C$5) -> 40 | G131: 34.12
A132: QUÍMICA - 65GL | B132: =VLOOKUP(A132,Parametros!A:E,2,0) -> 13106 | C132: =SUMIF(Concluintes!B:B,ALUNO_GRAD_TEMPO_INTEGRAL!A132,Concluintes!F:F) -> 15 | D132: =VLOOKUP(A132,Parametros!A:E,3,0) -> 2 | E132: =VLOOKUP(A132,Parametros!A:E,4,0) -> 0.1325 | F132: =SUMIFS(Ingressantes!F:F,Ingressantes!C:C,ALUNO_GRAD_TEMPO_INTEGRAL!A132,Ingressantes!A:A,INÍCIO!$C$5) -> 0 | G132: 26.475
A133: QUÍMICA - 83A | B133: =VLOOKUP(A133,Parametros!A:E,2,0) -> 1166039 | C133: =SUMIF(Concluintes!B:B,ALUNO_GRAD_TEMPO_INTEGRAL!A133,Concluintes!F:F) -> 4 | D133: =VLOOKUP(A133,Parametros!A:E,3,0) -> 4 | E133: =VLOOKUP(A133,Parametros!A:E,4,0) -> 0.1325 | F133: =SUMIFS(Ingressantes!F:F,Ingressantes!C:C,ALUNO_GRAD_TEMPO_INTEGRAL!A133,Ingressantes!A:A,INÍCIO!$C$5) -> 14 | G133: =IFERROR(SUM((C133*D133)*(1+E133)+((F133-C133)/4)*D133),0) -> 28.12
A134: RÁDIO, TV E INTERNET - 91A | B134: =VLOOKUP(A134,Parametros!A:E,2,0) -> 1374873 | C134: =SUMIF(Concluintes!B:B,ALUNO_GRAD_TEMPO_INTEGRAL!A134,Concluintes!F:F) -> 6 | D134: =VLOOKUP(A134,Parametros!A:E,3,0) -> 4 | E134: =VLOOKUP(A134,Parametros!A:E,4,0) -> 0.12 | F134: =SUMIFS(Ingressantes!F:F,Ingressantes!C:C,ALUNO_GRAD_TEMPO_INTEGRAL!A134,Ingressantes!A:A,INÍCIO!$C$5) -> 31 | G134: 51.88
A135: SERVIÇO SOCIAL - 19A | B135: =VLOOKUP(A135,Parametros!A:E,2,0) -> 13107 | C135: =SUMIF(Concluintes!B:B,ALUNO_GRAD_TEMPO_INTEGRAL!A135,Concluintes!F:F) -> 6 | D135: =VLOOKUP(A135,Parametros!A:E,3,0) -> 4 | E135: =VLOOKUP(A135,Parametros!A:E,4,0) -> 0.12 | F135: =SUMIFS(Ingressantes!F:F,Ingressantes!C:C,ALUNO_GRAD_TEMPO_INTEGRAL!A135,Ingressantes!A:A,INÍCIO!$C$5) -> 37 | G135: 57.88
A136: SERVIÇO SOCIAL - 68A | B136: =VLOOKUP(A136,Parametros!A:E,2,0) -> 13107 | C136: =SUMIF(Concluintes!B:B,ALUNO_GRAD_TEMPO_INTEGRAL!A136,Concluintes!F:F) -> 9 | D136: =VLOOKUP(A136,Parametros!A:E,3,0) -> 4 | E136: =VLOOKUP(A136,Parametros!A:E,4,0) -> 0.12 | F136: =SUMIFS(Ingressantes!F:F,Ingressantes!C:C,ALUNO_GRAD_TEMPO_INTEGRAL!A136,Ingressantes!A:A,INÍCIO!$C$5) -> 44 | G136: 75.32
A137: SISTEMAS DE INFORMAÇÃO - 76A | B137: =VLOOKUP(A137,Parametros!A:E,2,0) -> 1128364 | C137: =SUMIF(Concluintes!B:B,ALUNO_GRAD_TEMPO_INTEGRAL!A137,Concluintes!F:F) -> 12 | D137: =VLOOKUP(A137,Parametros!A:E,3,0) -> 4 | E137: =VLOOKUP(A137,Parametros!A:E,4,0) -> 0.1325 | F137: =SUMIFS(Ingressantes!F:F,Ingressantes!C:C,ALUNO_GRAD_TEMPO_INTEGRAL!A137,Ingressantes!A:A,INÍCIO!$C$5) -> 44 | G137: 86.36
A138: TURISMO - 72D | B138: =VLOOKUP(A138,Parametros!A:E,2,0) -> 21589 | C138: =SUMIF(Concluintes!B:B,ALUNO_GRAD_TEMPO_INTEGRAL!A138,Concluintes!F:F) -> 6 | D138: =VLOOKUP(A138,Parametros!A:E,3,0) -> 2 | E138: =VLOOKUP(A138,Parametros!A:E,4,0) -> 0.1 | F138: =SUMIFS(Ingressantes!F:F,Ingressantes!C:C,ALUNO_GRAD_TEMPO_INTEGRAL!A138,Ingressantes!A:A,INÍCIO!$C$5) -> 0 | G138: 10.2
A139: TURISMO - 73D | B139: =VLOOKUP(A139,Parametros!A:E,2,0) -> 21589 | C139: =SUMIF(Concluintes!B:B,ALUNO_GRAD_TEMPO_INTEGRAL!A139,Concluintes!F:F) -> 7 | D139: =VLOOKUP(A139,Parametros!A:E,3,0) -> 2 | E139: =VLOOKUP(A139,Parametros!A:E,4,0) -> 0.1 | F139: =SUMIFS(Ingressantes!F:F,Ingressantes!C:C,ALUNO_GRAD_TEMPO_INTEGRAL!A139,Ingressantes!A:A,INÍCIO!$C$5) -> 0 | G139: 11.9
A140: TURISMO - 92A | B140: =VLOOKUP(A140,Parametros!A:E,2,0) -> 21589 | C140: =SUMIF(Concluintes!B:B,ALUNO_GRAD_TEMPO_INTEGRAL!A140,Concluintes!F:F) -> 4 | D140: =VLOOKUP(A140,Parametros!A:E,3,0) -> 4 | E140: =VLOOKUP(A140,Parametros!A:E,4,0) -> 0.12 | F140: =SUMIFS(Ingressantes!F:F,Ingressantes!C:C,ALUNO_GRAD_TEMPO_INTEGRAL!A140,Ingressantes!A:A,INÍCIO!$C$5) -> 49 | G140: 62.92
A141: TURISMO - 93A | B141: =VLOOKUP(A141,Parametros!A:E,2,0) -> 21589 | C141: =SUMIF(Concluintes!B:B,ALUNO_GRAD_TEMPO_INTEGRAL!A141,Concluintes!F:F) -> 1 | D141: =VLOOKUP(A141,Parametros!A:E,3,0) -> 4 | E141: =VLOOKUP(A141,Parametros!A:E,4,0) -> 0.12 | F141: =SUMIFS(Ingressantes!F:F,Ingressantes!C:C,ALUNO_GRAD_TEMPO_INTEGRAL!A141,Ingressantes!A:A,INÍCIO!$C$5) -> 41 | G141: 44.48
C142: =SUM(C4:C141) -> 2270 | F142: =SUM(F4:F141) -> 4630 | G142: 13479.108

Sheet ALUNO_DE_GRADUAÇÃO
H1: 2017 | I1: 2018 | J1: 2019 | K1: 2020 | L1: 2021
A2: ALUNO DE GRADUAÇÃO | H2: 19793 | I2: 19829 | J2: 20790 | K2: 20039 | L2: =E142 -> 21198.5
A3: CURSO | B3: CÓDIGO INEP | C3: 1º SEMESTRE | D3: 2º SEMESTRE | E3: MATRICULAS
A4: =ALUNO_GRAD_TEMPO_INTEGRAL!A4 -> ABI - CIÊNCIAS BIOLÓGICAS - 01ABI | B4: =ALUNO_GRAD_TEMPO_INTEGRAL!B4 -> 5000608 | C4: =SUMIFS(Matriculados!E:E,Matriculados!B:B,ALUNO_DE_GRADUAÇÃO!A4,Matriculados!A:A,1) -> 60 | D4: =SUMIFS(Matriculados!E:E,Matriculados!B:B,ALUNO_DE_GRADUAÇÃO!A4,Matriculados!A:A,2) -> 78 | E4: =AVERAGE(C4:D4) -> 69
A5: =ALUNO_GRAD_TEMPO_INTEGRAL!A5 -> ABI - EDUCAÇÃO FÍSICA - 21ABI | B5: =ALUNO_GRAD_TEMPO_INTEGRAL!B5 -> 5000610 | C5: =SUMIFS(Matriculados!E:E,Matriculados!B:B,ALUNO_DE_GRADUAÇÃO!A5,Matriculados!A:A,1) -> 311 | D5: =SUMIFS(Matriculados!E:E,Matriculados!B:B,ALUNO_DE_GRADUAÇÃO!A5,Matriculados!A:A,2) -> 342 | E5: =AVERAGE(C5:D5) -> 326.5
A6: =ALUNO_GRAD_TEMPO_INTEGRAL!A6 -> ABI - FILOSOFIA - 08ABI | B6: =ALUNO_GRAD_TEMPO_INTEGRAL!B6 -> 5000611 | C6: =SUMIFS(Matriculados!E:E,Matriculados!B:B,ALUNO_DE_GRADUAÇÃO!A6,Matriculados!A:A,1) -> 58 | D6: =SUMIFS(Matriculados!E:E,Matriculados!B:B,ALUNO_DE_GRADUAÇÃO!A6,Matriculados!A:A,2) -> 39 | E6: 48.5
A7: =ALUNO_GRAD_TEMPO_INTEGRAL!A7 -> ABI - GEOGRAFIA - 10ABI | B7: =ALUNO_GRAD_TEMPO_INTEGRAL!B7 -> 5000615 | C7: =SUMIFS(Matriculados!E:E,Matriculados!B:B,ALUNO_DE_GRADUAÇÃO!A7,Matriculados!A:A,1) -> 48 | D7: =SUMIFS(Matriculados!E:E,Matriculados!B:B,ALUNO_DE_GRADUAÇÃO!A7,Matriculados!A:A,2) -> 34 | E7: 41
A8: =ALUNO_GRAD_TEMPO_INTEGRAL!A8 -> ABI - GEOGRAFIA - 27ABI | B8: =ALUNO_GRAD_TEMPO_INTEGRAL!B8 -> 5000615 | C8: =SUMIFS(Matriculados!E:E,Matriculados!B:B,ALUNO_DE_GRADUAÇÃO!A8,Matriculados!A:A,1) -> 0 | D8: =SUMIFS(Matriculados!E:E,Matriculados!B:B,ALUNO_DE_GRADUAÇÃO!A8,Matriculados!A:A,2) -> 0 | E8: 0
A9: =ALUNO_GRAD_TEMPO_INTEGRAL!A9 -> ABI - HISTÓRIA - 11ABI | B9: =ALUNO_GRAD_TEMPO_INTEGRAL!B9 -> 5000616 | C9: =SUMIFS(Matriculados!E:E,Matriculados!B:B,ALUNO_DE_GRADUAÇÃO!A9,Matriculados!A:A,1) -> 95 | D9: =SUMIFS(Matriculados!E:E,Matriculados!B:B,ALUNO_DE_GRADUAÇÃO!A9,Matriculados!A:A,2) -> 85 | E9: 90
A10: =ALUNO_GRAD_TEMPO_INTEGRAL!A10 -> ABI - HISTÓRIA - 28ABI | B10: =ALUNO_GRAD_TEMPO_INTEGRAL!B10 -> 5000616 | C10: =SUMIFS(Matriculados!E:E,Matriculados!B:B,ALUNO_DE_GRADUAÇÃO!A10,Matriculados!A:A,1) -> 50 | D10: =SUMIFS(Matriculados!E:E,Matriculados!B:B,ALUNO_DE_GRADUAÇÃO!A10,Matriculados!A:A,2) -> 86 | E10: 68
A11: =ALUNO_GRAD_TEMPO_INTEGRAL!A11 -> ABI - LETRAS - 13ABI | B11: =ALUNO_GRAD_TEMPO_INTEGRAL!B11 -> 5000617 | C11: =SUMIFS(Matriculados!E:E,Matriculados!B:B,ALUNO_DE_GRADUAÇÃO!A11,Matriculados!A:A,1) -> 71 | D11: =SUMIFS(Matriculados!E:E,Matriculados!B:B,ALUNO_DE_GRADUAÇÃO!A11,Matriculados!A:A,2) -> 59 | E11: 65
A12: =ALUNO_GRAD_TEMPO_INTEGRAL!A12 -> ABI - LETRAS - 29ABI | B12: =ALUNO_GRAD_TEMPO_INTEGRAL!B12 -> 5000617 | C12: =SUMIFS(Matriculados!E:E,Matriculados!B:B,ALUNO_DE_GRADUAÇÃO!A12,Matriculados!A:A,1) -> 73 | D12: =SUMIFS(Matriculados!E:E,Matriculados!B:B,ALUNO_DE_GRADUAÇÃO!A12,Matriculados!A:A,2) -> 73 | E12: 73
A13: =ALUNO_GRAD_TEMPO_INTEGRAL!A13 -> ADMINISTRAÇÃO - 01GV | B13: =ALUNO_GRAD_TEMPO_INTEGRAL!B13 -> 1178684 | C13: =SUMIFS(Matriculados!E:E,Matriculados!B:B,ALUNO_DE_GRADUAÇÃO!A13,Matriculados!A:A,1) -> 280 | D13: =SUMIFS(Matriculados!E:E,Matriculados!B:B,ALUNO_DE_GRADUAÇÃO!A13,Matriculados!A:A,2) -> 260 | E13: 270
A14: =ALUNO_GRAD_TEMPO_INTEGRAL!A14 -> ADMINISTRAÇÃO - 26A | B14: =ALUNO_GRAD_TEMPO_INTEGRAL!B14 -> 22451 | C14: =SUMIFS(Matriculados!E:E,Matriculados!B:B,ALUNO_DE_GRADUAÇÃO!A14,Matriculados!A:A,1) -> 209 | D14: =SUMIFS(Matriculados!E:E,Matriculados!B:B,ALUNO_DE_GRADUAÇÃO!A14,Matriculados!A:A,2) -> 186 | E14: 197.5
A15: =ALUNO_GRAD_TEMPO_INTEGRAL!A15 -> ADMINISTRAÇÃO - 46A | B15: =ALUNO_GRAD_TEMPO_INTEGRAL!B15 -> 22451 | C15: =SUMIFS(Matriculados!E:E,Matriculados!B:B,ALUNO_DE_GRADUAÇÃO!A15,Matriculados!A:A,1) -> 201 | D15: =SUMIFS(Matriculados!E:E,Matriculados!B:B,ALUNO_DE_GRADUAÇÃO!A15,Matriculados!A:A,2) -> 177 | E15: 189
A16: =ALUNO_GRAD_TEMPO_INTEGRAL!A16 -> ARQUITETURA E URBANISMO - 33A | B16: =ALUNO_GRAD_TEMPO_INTEGRAL!B16 -> 13114 | C16: =SUMIFS(Matriculados!E:E,Matriculados!B:B,ALUNO_DE_GRADUAÇÃO!A16,Matriculados!A:A,1) -> 401 | D16: =SUMIFS(Matriculados!E:E,Matriculados!B:B,ALUNO_DE_GRADUAÇÃO!A16,Matriculados!A:A,2) -> 427 | E16: 414
A17: =ALUNO_GRAD_TEMPO_INTEGRAL!A17 -> BACHARELADO EM ARTES VISUAIS - 66C | B17: =ALUNO_GRAD_TEMPO_INTEGRAL!B17 -> 1153948 | C17: =SUMIFS(Matriculados!E:E,Matriculados!B:B,ALUNO_DE_GRADUAÇÃO!A17,Matriculados!A:A,1) -> 156 | D17: =SUMIFS(Matriculados!E:E,Matriculados!B:B,ALUNO_DE_GRADUAÇÃO!A17,Matriculados!A:A,2) -> 128 | E17: 142
A18: =ALUNO_GRAD_TEMPO_INTEGRAL!A18 -> BACHARELADO EM CINEMA E AUDIOVISUAL - 66B | B18: =ALUNO_GRAD_TEMPO_INTEGRAL!B18 -> 1153947 | C18: =SUMIFS(Matriculados!E:E,Matriculados!B:B,ALUNO_DE_GRADUAÇÃO!A18,Matriculados!A:A,1) -> 221 | D18: =SUMIFS(Matriculados!E:E,Matriculados!B:B,ALUNO_DE_GRADUAÇÃO!A18,Matriculados!A:A,2) -> 191 | E18: 206
A19: =ALUNO_GRAD_TEMPO_INTEGRAL!A19 -> BACHARELADO EM DESIGN - 66D | B19: =ALUNO_GRAD_TEMPO_INTEGRAL!B19 -> 1153949 | C19: =SUMIFS(Matriculados!E:E,Matriculados!B:B,ALUNO_DE_GRADUAÇÃO!A19,Matriculados!A:A,1) -> 195 | D19: =SUMIFS(Matriculados!E:E,Matriculados!B:B,ALUNO_DE_GRADUAÇÃO!A19,Matriculados!A:A,2) -> 165 | E19: 180
A20: =ALUNO_GRAD_TEMPO_INTEGRAL!A20 -> BACHARELADO EM MODA - 66E | B20: =ALUNO_GRAD_TEMPO_INTEGRAL!B20 -> 1153950 | C20: =SUMIFS(Matriculados!E:E,Matriculados!B:B,ALUNO_DE_GRADUAÇÃO!A20,Matriculados!A:A,1) -> 164 | D20: =SUMIFS(Matriculados!E:E,Matriculados!B:B,ALUNO_DE_GRADUAÇÃO!A20,Matriculados!A:A,2) -> 137 | E20: 150.5
A21: =ALUNO_GRAD_TEMPO_INTEGRAL!A21 -> BACHARELADO INTERDISCIPLINAR EM ARTES E DESIGN - 66A | B21: =ALUNO_GRAD_TEMPO_INTEGRAL!B21 -> 116500 | C21: =SUMIFS(Matriculados!E:E,Matriculados!B:B,ALUNO_DE_GRADUAÇÃO!A21,Matriculados!A:A,1) -> 842 | D21: =SUMIFS(Matriculados!E:E,Matriculados!B:B,ALUNO_DE_GRADUAÇÃO!A21,Matriculados!A:A,2) -> 696 | E21: 769
A22: =ALUNO_GRAD_TEMPO_INTEGRAL!A22 -> BACHARELADO INTERDISCIPLINAR EM CIÊNCIAS HUMANAS - 72A | B22: =ALUNO_GRAD_TEMPO_INTEGRAL!B22 -> 1120242 | C22: =SUMIFS(Matriculados!E:E,Matriculados!B:B,ALUNO_DE_GRADUAÇÃO!A22,Matriculados!A:A,1) -> 541 | D22: =SUMIFS(Matriculados!E:E,Matriculados!B:B,ALUNO_DE_GRADUAÇÃO!A22,Matriculados!A:A,2) -> 437 | E22: 489
A23: =ALUNO_GRAD_TEMPO_INTEGRAL!A23 -> BACHARELADO INTERDISCIPLINAR EM CIÊNCIAS HUMANAS - 73A | B23: =ALUNO_GRAD_TEMPO_INTEGRAL!B23 -> 1120242 | C23: =SUMIFS(Matriculados!E:E,Matriculados!B:B,ALUNO_DE_GRADUAÇÃO!A23,Matriculados!A:A,1) -> 435 | D23: =SUMIFS(Matriculados!E:E,Matriculados!B:B,ALUNO_DE_GRADUAÇÃO!A23,Matriculados!A:A,2) -> 508 | E23: 471.5
A24: =ALUNO_GRAD_TEMPO_INTEGRAL!A24 -> CIÊNCIA DA COMPUTAÇÃO - 35A | B24: =ALUNO_GRAD_TEMPO_INTEGRAL!B24 -> 18518 | C24: =SUMIFS(Matriculados!E:E,Matriculados!B:B,ALUNO_DE_GRADUAÇÃO!A24,Matriculados!A:A,1) -> 178 | D24: =SUMIFS(Matriculados!E:E,Matriculados!B:B,ALUNO_DE_GRADUAÇÃO!A24,Matriculados!A:A,2) -> 201 | E24: 189.5
A25: =ALUNO_GRAD_TEMPO_INTEGRAL!A25 -> CIÊNCIA DA COMPUTAÇÃO - 65C | B25: =ALUNO_GRAD_TEMPO_INTEGRAL!B25 -> 65361 | C25: =SUMIFS(Matriculados!E:E,Matriculados!B:B,ALUNO_DE_GRADUAÇÃO!A25,Matriculados!A:A,1) -> 119 | D25: =SUMIFS(Matriculados!E:E,Matriculados!B:B,ALUNO_DE_GRADUAÇÃO!A25,Matriculados!A:A,2) -> 107 | E25: 113
A26: =ALUNO_GRAD_TEMPO_INTEGRAL!A26 -> CIÊNCIA DA RELIGIÃO - 72B | B26: =ALUNO_GRAD_TEMPO_INTEGRAL!B26 -> 1165350 | C26: =SUMIFS(Matriculados!E:E,Matriculados!B:B,ALUNO_DE_GRADUAÇÃO!A26,Matriculados!A:A,1) -> 2 | D26: =SUMIFS(Matriculados!E:E,Matriculados!B:B,ALUNO_DE_GRADUAÇÃO!A26,Matriculados!A:A,2) -> 3 | E26: 2.5
A27: =ALUNO_GRAD_TEMPO_INTEGRAL!A27 -> CIÊNCIA DA RELIGIÃO - 72BL | B27: =ALUNO_GRAD_TEMPO_INTEGRAL!B27 -> 1165686 | C27: =SUMIFS(Matriculados!E:E,Matriculados!B:B,ALUNO_DE_GRADUAÇÃO!A27,Matriculados!A:A,1) -> 1 | D27: =SUMIFS(Matriculados!E:E,Matriculados!B:B,ALUNO_DE_GRADUAÇÃO!A27,Matriculados!A:A,2) -> 0 | E27: 0.5
A28: =ALUNO_GRAD_TEMPO_INTEGRAL!A28 -> CIÊNCIA DA RELIGIÃO - 73B | B28: =ALUNO_GRAD_TEMPO_INTEGRAL!B28 -> 1165350 | C28: =SUMIFS(Matriculados!E:E,Matriculados!B:B,ALUNO_DE_GRADUAÇÃO!A28,Matriculados!A:A,1) -> 42 | D28: =SUMIFS(Matriculados!E:E,Matriculados!B:B,ALUNO_DE_GRADUAÇÃO!A28,Matriculados!A:A,2) -> 34 | E28: 38
A29: =ALUNO_GRAD_TEMPO_INTEGRAL!A29 -> CIÊNCIA DA RELIGIÃO - 73BL | B29: =ALUNO_GRAD_TEMPO_INTEGRAL!B29 -> 1165686 | C29: =SUMIFS(Matriculados!E:E,Matriculados!B:B,ALUNO_DE_GRADUAÇÃO!A29,Matriculados!A:A,1) -> 61 | D29: =SUMIFS(Matriculados!E:E,Matriculados!B:B,ALUNO_DE_GRADUAÇÃO!A29,Matriculados!A:A,2) -> 56 | E29: 58.5
A30: =ALUNO_GRAD_TEMPO_INTEGRAL!A30 -> CIÊNCIAS BIOLÓGICAS - 01A | B30: =ALUNO_GRAD_TEMPO_INTEGRAL!B30 -> 5000608 | C30: =SUMIFS(Matriculados!E:E,Matriculados!B:B,ALUNO_DE_GRADUAÇÃO!A30,Matriculados!A:A,1) -> 0 | D30: =SUMIFS(Matriculados!E:E,Matriculados!B:B,ALUNO_DE_GRADUAÇÃO!A30,Matriculados!A:A,2) -> 0 | E30: 0
A31: =ALUNO_GRAD_TEMPO_INTEGRAL!A31 -> CIÊNCIAS BIOLÓGICAS - 01B | B31: =ALUNO_GRAD_TEMPO_INTEGRAL!B31 -> 313086 | C31: =SUMIFS(Matriculados!E:E,Matriculados!B:B,ALUNO_DE_GRADUAÇÃO!A31,Matriculados!A:A,1) -> 177 | D31: =SUMIFS(Matriculados!E:E,Matriculados!B:B,ALUNO_DE_GRADUAÇÃO!A31,Matriculados!A:A,2) -> 169 | E31: 173
A32: =ALUNO_GRAD_TEMPO_INTEGRAL!A32 -> CIÊNCIAS BIOLÓGICAS - 01L | B32: =ALUNO_GRAD_TEMPO_INTEGRAL!B32 -> 13086 | C32: =SUMIFS(Matriculados!E:E,Matriculados!B:B,ALUNO_DE_GRADUAÇÃO!A32,Matriculados!A:A,1) -> 125 | D32: =SUMIFS(Matriculados!E:E,Matriculados!B:B,ALUNO_DE_GRADUAÇÃO!A32,Matriculados!A:A,2) -> 115 | E32: 120
A33: =ALUNO_GRAD_TEMPO_INTEGRAL!A33 -> CIÊNCIAS CONTÁBEIS - 02GV | B33: =ALUNO_GRAD_TEMPO_INTEGRAL!B33 -> 1183351 | C33: =SUMIFS(Matriculados!E:E,Matriculados!B:B,ALUNO_DE_GRADUAÇÃO!A33,Matriculados!A:A,1) -> 156 | D33: =SUMIFS(Matriculados!E:E,Matriculados!B:B,ALUNO_DE_GRADUAÇÃO!A33,Matriculados!A:A,2) -> 157 | E33: 156.5
A34: =ALUNO_GRAD_TEMPO_INTEGRAL!A34 -> CIÊNCIAS CONTÁBEIS - 77A | B34: =ALUNO_GRAD_TEMPO_INTEGRAL!B34 -> 1132074 | C34: =SUMIFS(Matriculados!E:E,Matriculados!B:B,ALUNO_DE_GRADUAÇÃO!A34,Matriculados!A:A,1) -> 212 | D34: =SUMIFS(Matriculados!E:E,Matriculados!B:B,ALUNO_DE_GRADUAÇÃO!A34,Matriculados!A:A,2) -> 184 | E34: 198
A35: =ALUNO_GRAD_TEMPO_INTEGRAL!A35 -> CIÊNCIAS CONTÁBEIS - 78A | B35: =ALUNO_GRAD_TEMPO_INTEGRAL!B35 -> 1132074 | C35: =SUMIFS(Matriculados!E:E,Matriculados!B:B,ALUNO_DE_GRADUAÇÃO!A35,Matriculados!A:A,1) -> 210 | D35: =SUMIFS(Matriculados!E:E,Matriculados!B:B,ALUNO_DE_GRADUAÇÃO!A35,Matriculados!A:A,2) -> 184 | E35: 197
A36: =ALUNO_GRAD_TEMPO_INTEGRAL!A36 -> CIÊNCIAS ECONÔMICAS - 03GV | B36: =ALUNO_GRAD_TEMPO_INTEGRAL!B36 -> 1178683 | C36: =SUMIFS(Matriculados!E:E,Matriculados!B:B,ALUNO_DE_GRADUAÇÃO!A36,Matriculados!A:A,1) -> 265 | D36: =SUMIFS(Matriculados!E:E,Matriculados!B:B,ALUNO_DE_GRADUAÇÃO!A36,Matriculados!A:A,2) -> 235 | E36: 250
A37: =ALUNO_GRAD_TEMPO_INTEGRAL!A37 -> CIÊNCIAS ECONÔMICAS - 05A | B37: =ALUNO_GRAD_TEMPO_INTEGRAL!B37 -> 13090 | C37: =SUMIFS(Matriculados!E:E,Matriculados!B:B,ALUNO_DE_GRADUAÇÃO!A37,Matriculados!A:A,1) -> 242 | D37: =SUMIFS(Matriculados!E:E,Matriculados!B:B,ALUNO_DE_GRADUAÇÃO!A37,Matriculados!A:A,2) -> 216 | E37: 229
A38: =ALUNO_GRAD_TEMPO_INTEGRAL!A38 -> CIÊNCIAS ECONÔMICAS - 51A | B38: =ALUNO_GRAD_TEMPO_INTEGRAL!B38 -> 13090 | C38: =SUMIFS(Matriculados!E:E,Matriculados!B:B,ALUNO_DE_GRADUAÇÃO!A38,Matriculados!A:A,1) -> 273 | D38: =SUMIFS(Matriculados!E:E,Matriculados!B:B,ALUNO_DE_GRADUAÇÃO!A38,Matriculados!A:A,2) -> 243 | E38: 258
A39: =ALUNO_GRAD_TEMPO_INTEGRAL!A39 -> CIÊNCIAS EXATAS - 65A | B39: =ALUNO_GRAD_TEMPO_INTEGRAL!B39 -> 116502 | C39: =SUMIFS(Matriculados!E:E,Matriculados!B:B,ALUNO_DE_GRADUAÇÃO!A39,Matriculados!A:A,1) -> 936 | D39: =SUMIFS(Matriculados!E:E,Matriculados!B:B,ALUNO_DE_GRADUAÇÃO!A39,Matriculados!A:A,2) -> 802 | E39: 869
A40: =ALUNO_GRAD_TEMPO_INTEGRAL!A40 -> CIÊNCIAS SOCIAIS - 31B | B40: =ALUNO_GRAD_TEMPO_INTEGRAL!B40 -> 313087 | C40: =SUMIFS(Matriculados!E:E,Matriculados!B:B,ALUNO_DE_GRADUAÇÃO!A40,Matriculados!A:A,1) -> 0 | D40: =SUMIFS(Matriculados!E:E,Matriculados!B:B,ALUNO_DE_GRADUAÇÃO!A40,Matriculados!A:A,2) -> 0 | E40: 0
A41: =ALUNO_GRAD_TEMPO_INTEGRAL!A41 -> CIÊNCIAS SOCIAIS - 31L | B41: =ALUNO_GRAD_TEMPO_INTEGRAL!B41 -> 13087 | C41: =SUMIFS(Matriculados!E:E,Matriculados!B:B,ALUNO_DE_GRADUAÇÃO!A41,Matriculados!A:A,1) -> 0 | D41: =SUMIFS(Matriculados!E:E,Matriculados!B:B,ALUNO_DE_GRADUAÇÃO!A41,Matriculados!A:A,2) -> 0 | E41: 0
A42: =ALUNO_GRAD_TEMPO_INTEGRAL!A42 -> CIÊNCIAS SOCIAIS - 72C | B42: =ALUNO_GRAD_TEMPO_INTEGRAL!B42 -> 313087 | C42: =SUMIFS(Matriculados!E:E,Matriculados!B:B,ALUNO_DE_GRADUAÇÃO!A42,Matriculados!A:A,1) -> 0 | D42: =SUMIFS(Matriculados!E:E,Matriculados!B:B,ALUNO_DE_GRADUAÇÃO!A42,Matriculados!A:A,2) -> 0 | E42: 0
A43: =ALUNO_GRAD_TEMPO_INTEGRAL!A43 -> CIÊNCIAS SOCIAIS - 72CB | B43: =ALUNO_GRAD_TEMPO_INTEGRAL!B43 -> 313087 | C43: =SUMIFS(Matriculados!E:E,Matriculados!B:B,ALUNO_DE_GRADUAÇÃO!A43,Matriculados!A:A,1) -> 6 | D43: =SUMIFS(Matriculados!E:E,Matriculados!B:B,ALUNO_DE_GRADUAÇÃO!A43,Matriculados!A:A,2) -> 5 | E43: 5.5
A44: =ALUNO_GRAD_TEMPO_INTEGRAL!A44 -> CIÊNCIAS SOCIAIS - 72CL | B44: =ALUNO_GRAD_TEMPO_INTEGRAL!B44 -> 13087 | C44: =SUMIFS(Matriculados!E:E,Matriculados!B:B,ALUNO_DE_GRADUAÇÃO!A44,Matriculados!A:A,1) -> 3 | D44: =SUMIFS(Matriculados!E:E,Matriculados!B:B,ALUNO_DE_GRADUAÇÃO!A44,Matriculados!A:A,2) -> 2 | E44: 2.5
A45: =ALUNO_GRAD_TEMPO_INTEGRAL!A45 -> CIÊNCIAS SOCIAIS - 73C | B45: =ALUNO_GRAD_TEMPO_INTEGRAL!B45 -> 313087 | C45: =SUMIFS(Matriculados!E:E,Matriculados!B:B,ALUNO_DE_GRADUAÇÃO!A45,Matriculados!A:A,1) -> 154 | D45: =SUMIFS(Matriculados!E:E,Matriculados!B:B,ALUNO_DE_GRADUAÇÃO!A45,Matriculados!A:A,2) -> 147 | E45: 150.5
A46: =ALUNO_GRAD_TEMPO_INTEGRAL!A46 -> CIÊNCIAS SOCIAIS - 73CB | B46: =ALUNO_GRAD_TEMPO_INTEGRAL!B46 -> 313087 | C46: =SUMIFS(Matriculados!E:E,Matriculados!B:B,ALUNO_DE_GRADUAÇÃO!A46,Matriculados!A:A,1) -> 65 | D46: =SUMIFS(Matriculados!E:E,Matriculados!B:B,ALUNO_DE_GRADUAÇÃO!A46,Matriculados!A:A,2) -> 54 | E46: 59.5
A47: =ALUNO_GRAD_TEMPO_INTEGRAL!A47 -> CIÊNCIAS SOCIAIS - 73CL | B47: =ALUNO_GRAD_TEMPO_INTEGRAL!B47 -> 13087 | C47: =SUMIFS(Matriculados!E:E,Matriculados!B:B,ALUNO_DE_GRADUAÇÃO!A47,Matriculados!A:A,1) -> 46 | D47: =SUMIFS(Matriculados!E:E,Matriculados!B:B,ALUNO_DE_GRADUAÇÃO!A47,Matriculados!A:A,2) -> 37 | E47: 41.5
A48: =ALUNO_GRAD_TEMPO_INTEGRAL!A48 -> DIREITO - 04A | B48: =ALUNO_GRAD_TEMPO_INTEGRAL!B48 -> 13089 | C48: =SUMIFS(Matriculados!E:E,Matriculados!B:B,ALUNO_DE_GRADUAÇÃO!A48,Matriculados!A:A,1) -> 499 | D48: =SUMIFS(Matriculados!E:E,Matriculados!B:B,ALUNO_DE_GRADUAÇÃO!A48,Matriculados!A:A,2) -> 496 | E48: 497.5
A49: =ALUNO_GRAD_TEMPO_INTEGRAL!A49 -> DIREITO - 04GV | B49: =ALUNO_GRAD_TEMPO_INTEGRAL!B49 -> 13089 | C49: =SUMIFS(Matriculados!E:E,Matriculados!B:B,ALUNO_DE_GRADUAÇÃO!A49,Matriculados!A:A,1) -> 489 | D49: =SUMIFS(Matriculados!E:E,Matriculados!B:B,ALUNO_DE_GRADUAÇÃO!A49,Matriculados!A:A,2) -> 474 | E49: 481.5
A50: =ALUNO_GRAD_TEMPO_INTEGRAL!A50 -> DIREITO - 34A | B50: =ALUNO_GRAD_TEMPO_INTEGRAL!B50 -> 21860 | C50: =SUMIFS(Matriculados!E:E,Matriculados!B:B,ALUNO_DE_GRADUAÇÃO!A50,Matriculados!A:A,1) -> 491 | D50: =SUMIFS(Matriculados!E:E,Matriculados!B:B,ALUNO_DE_GRADUAÇÃO!A50,Matriculados!A:A,2) -> 478 | E50: 484.5
A51: =ALUNO_GRAD_TEMPO_INTEGRAL!A51 -> EDUCAÇÃO ARTÍSTICA - 03A | B51: =ALUNO_GRAD_TEMPO_INTEGRAL!B51 -> 38748 | C51: =SUMIFS(Matriculados!E:E,Matriculados!B:B,ALUNO_DE_GRADUAÇÃO!A51,Matriculados!A:A,1) -> 0 | D51: =SUMIFS(Matriculados!E:E,Matriculados!B:B,ALUNO_DE_GRADUAÇÃO!A51,Matriculados!A:A,2) -> 0 | E51: 0
A52: =ALUNO_GRAD_TEMPO_INTEGRAL!A52 -> EDUCAÇÃO FÍSICA - 10GV | B52: =ALUNO_GRAD_TEMPO_INTEGRAL!B52 -> 1270439 | C52: =SUMIFS(Matriculados!E:E,Matriculados!B:B,ALUNO_DE_GRADUAÇÃO!A52,Matriculados!A:A,1) -> 204 | D52: =SUMIFS(Matriculados!E:E,Matriculados!B:B,ALUNO_DE_GRADUAÇÃO!A52,Matriculados!A:A,2) -> 194 | E52: 199
A53: =ALUNO_GRAD_TEMPO_INTEGRAL!A53 -> EDUCAÇÃO FÍSICA - 21B | B53: =ALUNO_GRAD_TEMPO_INTEGRAL!B53 -> 313092 | C53: =SUMIFS(Matriculados!E:E,Matriculados!B:B,ALUNO_DE_GRADUAÇÃO!A53,Matriculados!A:A,1) -> 182 | D53: =SUMIFS(Matriculados!E:E,Matriculados!B:B,ALUNO_DE_GRADUAÇÃO!A53,Matriculados!A:A,2) -> 138 | E53: 160
A54: =ALUNO_GRAD_TEMPO_INTEGRAL!A54 -> EDUCAÇÃO FÍSICA - 21L | B54: =ALUNO_GRAD_TEMPO_INTEGRAL!B54 -> 13092 | C54: =SUMIFS(Matriculados!E:E,Matriculados!B:B,ALUNO_DE_GRADUAÇÃO!A54,Matriculados!A:A,1) -> 86 | D54: =SUMIFS(Matriculados!E:E,Matriculados!B:B,ALUNO_DE_GRADUAÇÃO!A54,Matriculados!A:A,2) -> 56 | E54: 71
A55: =ALUNO_GRAD_TEMPO_INTEGRAL!A55 -> ENFERMAGEM - 23A | B55: =ALUNO_GRAD_TEMPO_INTEGRAL!B55 -> 38994 | C55: =SUMIFS(Matriculados!E:E,Matriculados!B:B,ALUNO_DE_GRADUAÇÃO!A55,Matriculados!A:A,1) -> 334 | D55: =SUMIFS(Matriculados!E:E,Matriculados!B:B,ALUNO_DE_GRADUAÇÃO!A55,Matriculados!A:A,2) -> 0 | E55: 167
A56: =ALUNO_GRAD_TEMPO_INTEGRAL!A56 -> ENFERMAGEM - 23L | B56: =ALUNO_GRAD_TEMPO_INTEGRAL!B56 -> 338994 | C56: =SUMIFS(Matriculados!E:E,Matriculados!B:B,ALUNO_DE_GRADUAÇÃO!A56,Matriculados!A:A,1) -> 0 | D56: =SUMIFS(Matriculados!E:E,Matriculados!B:B,ALUNO_DE_GRADUAÇÃO!A56,Matriculados!A:A,2) -> 0 | E56: 0
A57: =ALUNO_GRAD_TEMPO_INTEGRAL!A57 -> ENGENHARIA AMBIENTAL E SANITÁRIA - 67A | B57: =ALUNO_GRAD_TEMPO_INTEGRAL!B57 -> 116496 | C57: =SUMIFS(Matriculados!E:E,Matriculados!B:B,ALUNO_DE_GRADUAÇÃO!A57,Matriculados!A:A,1) -> 252 | D57: =SUMIFS(Matriculados!E:E,Matriculados!B:B,ALUNO_DE_GRADUAÇÃO!A57,Matriculados!A:A,2) -> 215 | E57: 233.5
A58: =ALUNO_GRAD_TEMPO_INTEGRAL!A58 -> ENGENHARIA CIVIL - 24A | B58: =ALUNO_GRAD_TEMPO_INTEGRAL!B58 -> 13094 | C58: =SUMIFS(Matriculados!E:E,Matriculados!B:B,ALUNO_DE_GRADUAÇÃO!A58,Matriculados!A:A,1) -> 506 | D58: =SUMIFS(Matriculados!E:E,Matriculados!B:B,ALUNO_DE_GRADUAÇÃO!A58,Matriculados!A:A,2) -> 513 | E58: 509.5
A59: =ALUNO_GRAD_TEMPO_INTEGRAL!A59 -> ENGENHARIA COMPUTACIONAL - 65B | B59: =ALUNO_GRAD_TEMPO_INTEGRAL!B59 -> 1120244 | C59: =SUMIFS(Matriculados!E:E,Matriculados!B:B,ALUNO_DE_GRADUAÇÃO!A59,Matriculados!A:A,1) -> 121 | D59: =SUMIFS(Matriculados!E:E,Matriculados!B:B,ALUNO_DE_GRADUAÇÃO!A59,Matriculados!A:A,2) -> 104 | E59: 112.5
A60: =ALUNO_GRAD_TEMPO_INTEGRAL!A60 -> ENGENHARIA DE PRODUÇÃO - 49A | B60: =ALUNO_GRAD_TEMPO_INTEGRAL!B60 -> 38594 | C60: =SUMIFS(Matriculados!E:E,Matriculados!B:B,ALUNO_DE_GRADUAÇÃO!A60,Matriculados!A:A,1) -> 314 | D60: =SUMIFS(Matriculados!E:E,Matriculados!B:B,ALUNO_DE_GRADUAÇÃO!A60,Matriculados!A:A,2) -> 301 | E60: 307.5
A61: =ALUNO_GRAD_TEMPO_INTEGRAL!A61 -> ENGENHARIA ELÉTRICA - 25A | B61: =ALUNO_GRAD_TEMPO_INTEGRAL!B61 -> 13095 | C61: =SUMIFS(Matriculados!E:E,Matriculados!B:B,ALUNO_DE_GRADUAÇÃO!A61,Matriculados!A:A,1) -> 3 | D61: =SUMIFS(Matriculados!E:E,Matriculados!B:B,ALUNO_DE_GRADUAÇÃO!A61,Matriculados!A:A,2) -> 3 | E61: 3
A62: =ALUNO_GRAD_TEMPO_INTEGRAL!A62 -> ENGENHARIA ELÉTRICA - 50A | B62: =ALUNO_GRAD_TEMPO_INTEGRAL!B62 -> 49788 | C62: =SUMIFS(Matriculados!E:E,Matriculados!B:B,ALUNO_DE_GRADUAÇÃO!A62,Matriculados!A:A,1) -> 3 | D62: =SUMIFS(Matriculados!E:E,Matriculados!B:B,ALUNO_DE_GRADUAÇÃO!A62,Matriculados!A:A,2) -> 3 | E62: 3
A63: =ALUNO_GRAD_TEMPO_INTEGRAL!A63 -> ENGENHARIA ELÉTRICA - HAB. EM ROBÓTICA E AUTOMAÇÃO INDUSTRIAL - 65I | B63: =ALUNO_GRAD_TEMPO_INTEGRAL!B63 -> 1109485 | C63: =SUMIFS(Matriculados!E:E,Matriculados!B:B,ALUNO_DE_GRADUAÇÃO!A63,Matriculados!A:A,1) -> 18 | D63: =SUMIFS(Matriculados!E:E,Matriculados!B:B,ALUNO_DE_GRADUAÇÃO!A63,Matriculados!A:A,2) -> 17 | E63: 17.5
A64: =ALUNO_GRAD_TEMPO_INTEGRAL!A64 -> ENGENHARIA ELÉTRICA - HAB. EM ROBÓTICA E AUTOMAÇÃO INDUSTRIAL - 69B | B64: =ALUNO_GRAD_TEMPO_INTEGRAL!B64 -> 1109485 | C64: =SUMIFS(Matriculados!E:E,Matriculados!B:B,ALUNO_DE_GRADUAÇÃO!A64,Matriculados!A:A,1) -> 232 | D64: =SUMIFS(Matriculados!E:E,Matriculados!B:B,ALUNO_DE_GRADUAÇÃO!A64,Matriculados!A:A,2) -> 229 | E64: 230.5
A65: =ALUNO_GRAD_TEMPO_INTEGRAL!A65 -> ENGENHARIA ELÉTRICA - HABILITAÇÃO EM ENERGIA - 65H | B65: =ALUNO_GRAD_TEMPO_INTEGRAL!B65 -> 1109475 | C65: =SUMIFS(Matriculados!E:E,Matriculados!B:B,ALUNO_DE_GRADUAÇÃO!A65,Matriculados!A:A,1) -> 20 | D65: =SUMIFS(Matriculados!E:E,Matriculados!B:B,ALUNO_DE_GRADUAÇÃO!A65,Matriculados!A:A,2) -> 19 | E65: 19.5
A66: =ALUNO_GRAD_TEMPO_INTEGRAL!A66 -> ENGENHARIA ELÉTRICA - HABILITAÇÃO EM ENERGIA - 70A | B66: =ALUNO_GRAD_TEMPO_INTEGRAL!B66 -> 1109475 | C66: =SUMIFS(Matriculados!E:E,Matriculados!B:B,ALUNO_DE_GRADUAÇÃO!A66,Matriculados!A:A,1) -> 231 | D66: =SUMIFS(Matriculados!E:E,Matriculados!B:B,ALUNO_DE_GRADUAÇÃO!A66,Matriculados!A:A,2) -> 200 | E66: 215.5
A67: =ALUNO_GRAD_TEMPO_INTEGRAL!A67 -> ENGENHARIA ELÉTRICA - HABILITAÇÃO EM SISTEMAS DE POTÊNCIA - 65J | B67: =ALUNO_GRAD_TEMPO_INTEGRAL!B67 -> 1109486 | C67: =SUMIFS(Matriculados!E:E,Matriculados!B:B,ALUNO_DE_GRADUAÇÃO!A67,Matriculados!A:A,1) -> 23 | D67: =SUMIFS(Matriculados!E:E,Matriculados!B:B,ALUNO_DE_GRADUAÇÃO!A67,Matriculados!A:A,2) -> 20 | E67: 21.5
A68: =ALUNO_GRAD_TEMPO_INTEGRAL!A68 -> ENGENHARIA ELÉTRICA - HABILITAÇÃO EM SISTEMAS DE POTÊNCIA - 69C | B68: =ALUNO_GRAD_TEMPO_INTEGRAL!B68 -> 1109486 | C68: =SUMIFS(Matriculados!E:E,Matriculados!B:B,ALUNO_DE_GRADUAÇÃO!A68,Matriculados!A:A,1) -> 225 | D68: =SUMIFS(Matriculados!E:E,Matriculados!B:B,ALUNO_DE_GRADUAÇÃO!A68,Matriculados!A:A,2) -> 219 | E68: 222
A69: =ALUNO_GRAD_TEMPO_INTEGRAL!A69 -> ENGENHARIA ELÉTRICA - HABILITAÇÃO EM SISTEMAS ELETRÔNICOS - 65K | B69: =ALUNO_GRAD_TEMPO_INTEGRAL!B69 -> 1109487 | C69: =SUMIFS(Matriculados!E:E,Matriculados!B:B,ALUNO_DE_GRADUAÇÃO!A69,Matriculados!A:A,1) -> 8 | D69: =SUMIFS(Matriculados!E:E,Matriculados!B:B,ALUNO_DE_GRADUAÇÃO!A69,Matriculados!A:A,2) -> 5 | E69: =AVERAGE(C69:D69) -> 6.5
A70: =ALUNO_GRAD_TEMPO_INTEGRAL!A70 -> ENGENHARIA ELÉTRICA - HABILITAÇÃO EM SISTEMAS ELETRÔNICOS - 69A | B70: =ALUNO_GRAD_TEMPO_INTEGRAL!B70 -> 1109487 | C70: =SUMIFS(Matriculados!E:E,Matriculados!B:B,ALUNO_DE_GRADUAÇÃO!A70,Matriculados!A:A,1) -> 211 | D70: =SUMIFS(Matriculados!E:E,Matriculados!B:B,ALUNO_DE_GRADUAÇÃO!A70,Matriculados!A:A,2) -> 209 | E70: 210
A71: =ALUNO_GRAD_TEMPO_INTEGRAL!A71 -> ENGENHARIA ELÉTRICA - HABILITAÇÃO EM TELECOMUNICAÇÕES - 65L | B71: =ALUNO_GRAD_TEMPO_INTEGRAL!B71 -> 1109488 | C71: =SUMIFS(Matriculados!E:E,Matriculados!B:B,ALUNO_DE_GRADUAÇÃO!A71,Matriculados!A:A,1) -> 7 | D71: =SUMIFS(Matriculados!E:E,Matriculados!B:B,ALUNO_DE_GRADUAÇÃO!A71,Matriculados!A:A,2) -> 7 | E71: 7
A72: =ALUNO_GRAD_TEMPO_INTEGRAL!A72 -> ENGENHARIA ELÉTRICA - HABILITAÇÃO EM TELECOMUNICAÇÕES - 69D | B72: =ALUNO_GRAD_TEMPO_INTEGRAL!B72 -> 1109488 | C72: =SUMIFS(Matriculados!E:E,Matriculados!B:B,ALUNO_DE_GRADUAÇÃO!A72,Matriculados!A:A,1) -> 190 | D72: =SUMIFS(Matriculados!E:E,Matriculados!B:B,ALUNO_DE_GRADUAÇÃO!A72,Matriculados!A:A,2) -> 196 | E72: 193
A73: =ALUNO_GRAD_TEMPO_INTEGRAL!A73 -> ENGENHARIA MECÂNICA - 65M | B73: =ALUNO_GRAD_TEMPO_INTEGRAL!B73 -> 1109489 | C73: =SUMIFS(Matriculados!E:E,Matriculados!B:B,ALUNO_DE_GRADUAÇÃO!A73,Matriculados!A:A,1) -> 36 | D73: =SUMIFS(Matriculados!E:E,Matriculados!B:B,ALUNO_DE_GRADUAÇÃO!A73,Matriculados!A:A,2) -> 35 | E73: 35.5
A74: =ALUNO_GRAD_TEMPO_INTEGRAL!A74 -> ENGENHARIA MECÂNICA - 71A | B74: =ALUNO_GRAD_TEMPO_INTEGRAL!B74 -> 1109489 | C74: =SUMIFS(Matriculados!E:E,Matriculados!B:B,ALUNO_DE_GRADUAÇÃO!A74,Matriculados!A:A,1) -> 255 | D74: =SUMIFS(Matriculados!E:E,Matriculados!B:B,ALUNO_DE_GRADUAÇÃO!A74,Matriculados!A:A,2) -> 280 | E74: 267.5
A75: =ALUNO_GRAD_TEMPO_INTEGRAL!A75 -> ESTATÍSTICA - 65D | B75: =ALUNO_GRAD_TEMPO_INTEGRAL!B75 -> 113531 | C75: =SUMIFS(Matriculados!E:E,Matriculados!B:B,ALUNO_DE_GRADUAÇÃO!A75,Matriculados!A:A,1) -> 74 | D75: =SUMIFS(Matriculados!E:E,Matriculados!B:B,ALUNO_DE_GRADUAÇÃO!A75,Matriculados!A:A,2) -> 60 | E75: 67
A76: =ALUNO_GRAD_TEMPO_INTEGRAL!A76 -> FARMÁCIA - 05GV | B76: =ALUNO_GRAD_TEMPO_INTEGRAL!B76 -> 1185503 | C76: =SUMIFS(Matriculados!E:E,Matriculados!B:B,ALUNO_DE_GRADUAÇÃO!A76,Matriculados!A:A,1) -> 538 | D76: =SUMIFS(Matriculados!E:E,Matriculados!B:B,ALUNO_DE_GRADUAÇÃO!A76,Matriculados!A:A,2) -> 244 | E76: 391
A77: =ALUNO_GRAD_TEMPO_INTEGRAL!A77 -> FARMÁCIA - 07A | B77: =ALUNO_GRAD_TEMPO_INTEGRAL!B77 -> 38509 | C77: =SUMIFS(Matriculados!E:E,Matriculados!B:B,ALUNO_DE_GRADUAÇÃO!A77,Matriculados!A:A,1) -> 508 | D77: =SUMIFS(Matriculados!E:E,Matriculados!B:B,ALUNO_DE_GRADUAÇÃO!A77,Matriculados!A:A,2) -> 513 | E77: 510.5
A78: =ALUNO_GRAD_TEMPO_INTEGRAL!A78 -> FILOSOFIA - 08A | B78: =ALUNO_GRAD_TEMPO_INTEGRAL!B78 -> 5000611 | C78: =SUMIFS(Matriculados!E:E,Matriculados!B:B,ALUNO_DE_GRADUAÇÃO!A78,Matriculados!A:A,1) -> 0 | D78: =SUMIFS(Matriculados!E:E,Matriculados!B:B,ALUNO_DE_GRADUAÇÃO!A78,Matriculados!A:A,2) -> 0 | E78: 0
A79: =ALUNO_GRAD_TEMPO_INTEGRAL!A79 -> FILOSOFIA - 08B | B79: =ALUNO_GRAD_TEMPO_INTEGRAL!B79 -> 313097 | C79: =SUMIFS(Matriculados!E:E,Matriculados!B:B,ALUNO_DE_GRADUAÇÃO!A79,Matriculados!A:A,1) -> 47 | D79: =SUMIFS(Matriculados!E:E,Matriculados!B:B,ALUNO_DE_GRADUAÇÃO!A79,Matriculados!A:A,2) -> 45 | E79: 46
A80: =ALUNO_GRAD_TEMPO_INTEGRAL!A80 -> FILOSOFIA - 08L | B80: =ALUNO_GRAD_TEMPO_INTEGRAL!B80 -> 13097 | C80: =SUMIFS(Matriculados!E:E,Matriculados!B:B,ALUNO_DE_GRADUAÇÃO!A80,Matriculados!A:A,1) -> 78 | D80: =SUMIFS(Matriculados!E:E,Matriculados!B:B,ALUNO_DE_GRADUAÇÃO!A80,Matriculados!A:A,2) -> 79 | E80: 78.5
A81: =ALUNO_GRAD_TEMPO_INTEGRAL!A81 -> FILOSOFIA - 72EB | B81: =ALUNO_GRAD_TEMPO_INTEGRAL!B81 -> 313097 | C81: =SUMIFS(Matriculados!E:E,Matriculados!B:B,ALUNO_DE_GRADUAÇÃO!A81,Matriculados!A:A,1) -> 30 | D81: =SUMIFS(Matriculados!E:E,Matriculados!B:B,ALUNO_DE_GRADUAÇÃO!A81,Matriculados!A:A,2) -> 29 | E81: 29.5
A82: =ALUNO_GRAD_TEMPO_INTEGRAL!A82 -> FILOSOFIA - 72EL | B82: =ALUNO_GRAD_TEMPO_INTEGRAL!B82 -> 13097 | C82: =SUMIFS(Matriculados!E:E,Matriculados!B:B,ALUNO_DE_GRADUAÇÃO!A82,Matriculados!A:A,1) -> 16 | D82: =SUMIFS(Matriculados!E:E,Matriculados!B:B,ALUNO_DE_GRADUAÇÃO!A82,Matriculados!A:A,2) -> 14 | E82: 15
A83: =ALUNO_GRAD_TEMPO_INTEGRAL!A83 -> FILOSOFIA - 73E | B83: =ALUNO_GRAD_TEMPO_INTEGRAL!B83 -> 313097 | C83: =SUMIFS(Matriculados!E:E,Matriculados!B:B,ALUNO_DE_GRADUAÇÃO!A83,Matriculados!A:A,1) -> 0 | D83: =SUMIFS(Matriculados!E:E,Matriculados!B:B,ALUNO_DE_GRADUAÇÃO!A83,Matriculados!A:A,2) -> 0 | E83: 0
A84: =ALUNO_GRAD_TEMPO_INTEGRAL!A84 -> FÍSICA - 09A | B84: =ALUNO_GRAD_TEMPO_INTEGRAL!B84 -> 5000613 | C84: =SUMIFS(Matriculados!E:E,Matriculados!B:B,ALUNO_DE_GRADUAÇÃO!A84,Matriculados!A:A,1) -> 1 | D84: =SUMIFS(Matriculados!E:E,Matriculados!B:B,ALUNO_DE_GRADUAÇÃO!A84,Matriculados!A:A,2) -> 2 | E84: 1.5
A85: =ALUNO_GRAD_TEMPO_INTEGRAL!A85 -> FÍSICA - 65E | B85: =ALUNO_GRAD_TEMPO_INTEGRAL!B85 -> 313098 | C85: =SUMIFS(Matriculados!E:E,Matriculados!B:B,ALUNO_DE_GRADUAÇÃO!A85,Matriculados!A:A,1) -> 102 | D85: =SUMIFS(Matriculados!E:E,Matriculados!B:B,ALUNO_DE_GRADUAÇÃO!A85,Matriculados!A:A,2) -> 91 | E85: 96.5
A86: =ALUNO_GRAD_TEMPO_INTEGRAL!A86 -> FÍSICA - 65EL | B86: =ALUNO_GRAD_TEMPO_INTEGRAL!B86 -> 13098 | C86: =SUMIFS(Matriculados!E:E,Matriculados!B:B,ALUNO_DE_GRADUAÇÃO!A86,Matriculados!A:A,1) -> 3 | D86: =SUMIFS(Matriculados!E:E,Matriculados!B:B,ALUNO_DE_GRADUAÇÃO!A86,Matriculados!A:A,2) -> 5 | E86: 4
A87: =ALUNO_GRAD_TEMPO_INTEGRAL!A87 -> FÍSICA - 81A | B87: =ALUNO_GRAD_TEMPO_INTEGRAL!B87 -> 1166037 | C87: =SUMIFS(Matriculados!E:E,Matriculados!B:B,ALUNO_DE_GRADUAÇÃO!A87,Matriculados!A:A,1) -> 61 | D87: =SUMIFS(Matriculados!E:E,Matriculados!B:B,ALUNO_DE_GRADUAÇÃO!A87,Matriculados!A:A,2) -> 70 | E87: 65.5
A88: =ALUNO_GRAD_TEMPO_INTEGRAL!A88 -> FISIOTERAPIA - 06GV | B88: =ALUNO_GRAD_TEMPO_INTEGRAL!B88 -> 1178689 | C88: =SUMIFS(Matriculados!E:E,Matriculados!B:B,ALUNO_DE_GRADUAÇÃO!A88,Matriculados!A:A,1) -> 236 | D88: =SUMIFS(Matriculados!E:E,Matriculados!B:B,ALUNO_DE_GRADUAÇÃO!A88,Matriculados!A:A,2) -> 261 | E88: 248.5
A89: =ALUNO_GRAD_TEMPO_INTEGRAL!A89 -> FISIOTERAPIA - 20A | B89: =ALUNO_GRAD_TEMPO_INTEGRAL!B89 -> 13118 | C89: =SUMIFS(Matriculados!E:E,Matriculados!B:B,ALUNO_DE_GRADUAÇÃO!A89,Matriculados!A:A,1) -> 379 | D89: =SUMIFS(Matriculados!E:E,Matriculados!B:B,ALUNO_DE_GRADUAÇÃO!A89,Matriculados!A:A,2) -> 181 | E89: 280
A90: =ALUNO_GRAD_TEMPO_INTEGRAL!A90 -> GEOGRAFIA - 10B | B90: =ALUNO_GRAD_TEMPO_INTEGRAL!B90 -> 313099 | C90: =SUMIFS(Matriculados!E:E,Matriculados!B:B,ALUNO_DE_GRADUAÇÃO!A90,Matriculados!A:A,1) -> 125 | D90: =SUMIFS(Matriculados!E:E,Matriculados!B:B,ALUNO_DE_GRADUAÇÃO!A90,Matriculados!A:A,2) -> 123 | E90: 124
A91: =ALUNO_GRAD_TEMPO_INTEGRAL!A91 -> GEOGRAFIA - 10L | B91: =ALUNO_GRAD_TEMPO_INTEGRAL!B91 -> 13099 | C91: =SUMIFS(Matriculados!E:E,Matriculados!B:B,ALUNO_DE_GRADUAÇÃO!A91,Matriculados!A:A,1) -> 111 | D91: =SUMIFS(Matriculados!E:E,Matriculados!B:B,ALUNO_DE_GRADUAÇÃO!A91,Matriculados!A:A,2) -> 105 | E91: 108
A92: =ALUNO_GRAD_TEMPO_INTEGRAL!A92 -> GEOGRAFIA - 27A | B92: =ALUNO_GRAD_TEMPO_INTEGRAL!B92 -> 5000615 | C92: =SUMIFS(Matriculados!E:E,Matriculados!B:B,ALUNO_DE_GRADUAÇÃO!A92,Matriculados!A:A,1) -> 1 | D92: =SUMIFS(Matriculados!E:E,Matriculados!B:B,ALUNO_DE_GRADUAÇÃO!A92,Matriculados!A:A,2) -> 1 | E92: 1
A93: =ALUNO_GRAD_TEMPO_INTEGRAL!A93 -> GEOGRAFIA - 27L | B93: =ALUNO_GRAD_TEMPO_INTEGRAL!B93 -> 13099 | C93: =SUMIFS(Matriculados!E:E,Matriculados!B:B,ALUNO_DE_GRADUAÇÃO!A93,Matriculados!A:A,1) -> 166 | D93: =SUMIFS(Matriculados!E:E,Matriculados!B:B,ALUNO_DE_GRADUAÇÃO!A93,Matriculados!A:A,2) -> 141 | E93: 153.5
A94: =ALUNO_GRAD_TEMPO_INTEGRAL!A94 -> HISTÓRIA - 11A | B94: =ALUNO_GRAD_TEMPO_INTEGRAL!B94 -> 5000616 | C94: =SUMIFS(Matriculados!E:E,Matriculados!B:B,ALUNO_DE_GRADUAÇÃO!A94,Matriculados!A:A,1) -> 1 | D94: =SUMIFS(Matriculados!E:E,Matriculados!B:B,ALUNO_DE_GRADUAÇÃO!A94,Matriculados!A:A,2) -> 2 | E94: 1.5
A95: =ALUNO_GRAD_TEMPO_INTEGRAL!A95 -> HISTÓRIA - 11B | B95: =ALUNO_GRAD_TEMPO_INTEGRAL!B95 -> 313100 | C95: =SUMIFS(Matriculados!E:E,Matriculados!B:B,ALUNO_DE_GRADUAÇÃO!A95,Matriculados!A:A,1) -> 70 | D95: =SUMIFS(Matriculados!E:E,Matriculados!B:B,ALUNO_DE_GRADUAÇÃO!A95,Matriculados!A:A,2) -> 65 | E95: 67.5
A96: =ALUNO_GRAD_TEMPO_INTEGRAL!A96 -> HISTÓRIA - 11L | B96: =ALUNO_GRAD_TEMPO_INTEGRAL!B96 -> 13100 | C96: =SUMIFS(Matriculados!E:E,Matriculados!B:B,ALUNO_DE_GRADUAÇÃO!A96,Matriculados!A:A,1) -> 150 | D96: =SUMIFS(Matriculados!E:E,Matriculados!B:B,ALUNO_DE_GRADUAÇÃO!A96,Matriculados!A:A,2) -> 140 | E96: 145
A97: =ALUNO_GRAD_TEMPO_INTEGRAL!A97 -> HISTÓRIA - 28A | B97: =ALUNO_GRAD_TEMPO_INTEGRAL!B97 -> 5000616 | C97: =SUMIFS(Matriculados!E:E,Matriculados!B:B,ALUNO_DE_GRADUAÇÃO!A97,Matriculados!A:A,1) -> 0 | D97: =SUMIFS(Matriculados!E:E,Matriculados!B:B,ALUNO_DE_GRADUAÇÃO!A97,Matriculados!A:A,2) -> 2 | E97: 1
A98: =ALUNO_GRAD_TEMPO_INTEGRAL!A98 -> HISTÓRIA - 28B | B98: =ALUNO_GRAD_TEMPO_INTEGRAL!B98 -> 313100 | C98: =SUMIFS(Matriculados!E:E,Matriculados!B:B,ALUNO_DE_GRADUAÇÃO!A98,Matriculados!A:A,1) -> 54 | D98: =SUMIFS(Matriculados!E:E,Matriculados!B:B,ALUNO_DE_GRADUAÇÃO!A98,Matriculados!A:A,2) -> 49 | E98: 51.5
A99: =ALUNO_GRAD_TEMPO_INTEGRAL!A99 -> HISTÓRIA - 28L | B99: =ALUNO_GRAD_TEMPO_INTEGRAL!B99 -> 13100 | C99: =SUMIFS(Matriculados!E:E,Matriculados!B:B,ALUNO_DE_GRADUAÇÃO!A99,Matriculados!A:A,1) -> 140 | D99: =SUMIFS(Matriculados!E:E,Matriculados!B:B,ALUNO_DE_GRADUAÇÃO!A99,Matriculados!A:A,2) -> 128 | E99: 134
A100: =ALUNO_GRAD_TEMPO_INTEGRAL!A100 -> JORNALISMO - 84A | B100: =ALUNO_GRAD_TEMPO_INTEGRAL!B100 -> 27657 | C100: =SUMIFS(Matriculados!E:E,Matriculados!B:B,ALUNO_DE_GRADUAÇÃO!A100,Matriculados!A:A,1) -> 144 | D100: =SUMIFS(Matriculados!E:E,Matriculados!B:B,ALUNO_DE_GRADUAÇÃO!A100,Matriculados!A:A,2) -> 157 | E100: 150.5
A101: =ALUNO_GRAD_TEMPO_INTEGRAL!A101 -> JORNALISMO - 85A | B101: =ALUNO_GRAD_TEMPO_INTEGRAL!B101 -> 36356 | C101: =SUMIFS(Matriculados!E:E,Matriculados!B:B,ALUNO_DE_GRADUAÇÃO!A101,Matriculados!A:A,1) -> 191 | D101: =SUMIFS(Matriculados!E:E,Matriculados!B:B,ALUNO_DE_GRADUAÇÃO!A101,Matriculados!A:A,2) -> 156 | E101: 173.5
A102: =ALUNO_GRAD_TEMPO_INTEGRAL!A102 -> LETRAS - 13A | B102: =ALUNO_GRAD_TEMPO_INTEGRAL!B102 -> 5000617 | C102: =SUMIFS(Matriculados!E:E,Matriculados!B:B,ALUNO_DE_GRADUAÇÃO!A102,Matriculados!A:A,1) -> 5 | D102: =SUMIFS(Matriculados!E:E,Matriculados!B:B,ALUNO_DE_GRADUAÇÃO!A102,Matriculados!A:A,2) -> 3 | E102: 4
A103: =ALUNO_GRAD_TEMPO_INTEGRAL!A103 -> LETRAS - 13B | B103: =ALUNO_GRAD_TEMPO_INTEGRAL!B103 -> 313101 | C103: =SUMIFS(Matriculados!E:E,Matriculados!B:B,ALUNO_DE_GRADUAÇÃO!A103,Matriculados!A:A,1) -> 102 | D103: =SUMIFS(Matriculados!E:E,Matriculados!B:B,ALUNO_DE_GRADUAÇÃO!A103,Matriculados!A:A,2) -> 101 | E103: 101.5
A104: =ALUNO_GRAD_TEMPO_INTEGRAL!A104 -> LETRAS - 13L | B104: =ALUNO_GRAD_TEMPO_INTEGRAL!B104 -> 13101 | C104: =SUMIFS(Matriculados!E:E,Matriculados!B:B,ALUNO_DE_GRADUAÇÃO!A104,Matriculados!A:A,1) -> 254 | D104: =SUMIFS(Matriculados!E:E,Matriculados!B:B,ALUNO_DE_GRADUAÇÃO!A104,Matriculados!A:A,2) -> 218 | E104: 236
A105: =ALUNO_GRAD_TEMPO_INTEGRAL!A105 -> LETRAS - 29A | B105: =ALUNO_GRAD_TEMPO_INTEGRAL!B105 -> 5000617 | C105: =SUMIFS(Matriculados!E:E,Matriculados!B:B,ALUNO_DE_GRADUAÇÃO!A105,Matriculados!A:A,1) -> 10 | D105: =SUMIFS(Matriculados!E:E,Matriculados!B:B,ALUNO_DE_GRADUAÇÃO!A105,Matriculados!A:A,2) -> 7 | E105: 8.5
A106: =ALUNO_GRAD_TEMPO_INTEGRAL!A106 -> LETRAS - 29B | B106: =ALUNO_GRAD_TEMPO_INTEGRAL!B106 -> 313101 | C106: =SUMIFS(Matriculados!E:E,Matriculados!B:B,ALUNO_DE_GRADUAÇÃO!A106,Matriculados!A:A,1) -> 0 | D106: =SUMIFS(Matriculados!E:E,Matriculados!B:B,ALUNO_DE_GRADUAÇÃO!A106,Matriculados!A:A,2) -> 0 | E106: 0
A107: =ALUNO_GRAD_TEMPO_INTEGRAL!A107 -> LETRAS - 29L | B107: =ALUNO_GRAD_TEMPO_INTEGRAL!B107 -> 13101 | C107: =SUMIFS(Matriculados!E:E,Matriculados!B:B,ALUNO_DE_GRADUAÇÃO!A107,Matriculados!A:A,1) -> 146 | D107: =SUMIFS(Matriculados!E:E,Matriculados!B:B,ALUNO_DE_GRADUAÇÃO!A107,Matriculados!A:A,2) -> 165 | E107: 155.5
A108: =ALUNO_GRAD_TEMPO_INTEGRAL!A108 -> LICENCIATURA EM ARTES VISUAIS - 66F | B108: =ALUNO_GRAD_TEMPO_INTEGRAL!B108 -> 1153951 | C108: =SUMIFS(Matriculados!E:E,Matriculados!B:B,ALUNO_DE_GRADUAÇÃO!A108,Matriculados!A:A,1) -> 150 | D108: =SUMIFS(Matriculados!E:E,Matriculados!B:B,ALUNO_DE_GRADUAÇÃO!A108,Matriculados!A:A,2) -> 121 | E108: 135.5
A109: =ALUNO_GRAD_TEMPO_INTEGRAL!A109 -> LICENCIATURA EM LETRAS - LIBRAS - 88A | B109: =ALUNO_GRAD_TEMPO_INTEGRAL!B109 -> 1268983 | C109: =SUMIFS(Matriculados!E:E,Matriculados!B:B,ALUNO_DE_GRADUAÇÃO!A109,Matriculados!A:A,1) -> 130 | D109: =SUMIFS(Matriculados!E:E,Matriculados!B:B,ALUNO_DE_GRADUAÇÃO!A109,Matriculados!A:A,2) -> 138 | E109: 134
A110: =ALUNO_GRAD_TEMPO_INTEGRAL!A110 -> LICENCIATURA EM MÚSICA - 89A | B110: =ALUNO_GRAD_TEMPO_INTEGRAL!B110 -> 1278855 | C110: =SUMIFS(Matriculados!E:E,Matriculados!B:B,ALUNO_DE_GRADUAÇÃO!A110,Matriculados!A:A,1) -> 69 | D110: =SUMIFS(Matriculados!E:E,Matriculados!B:B,ALUNO_DE_GRADUAÇÃO!A110,Matriculados!A:A,2) -> 65 | E110: 67
A111: =ALUNO_GRAD_TEMPO_INTEGRAL!A111 -> MATEMÁTICA - 65F | B111: =ALUNO_GRAD_TEMPO_INTEGRAL!B111 -> 313102 | C111: =SUMIFS(Matriculados!E:E,Matriculados!B:B,ALUNO_DE_GRADUAÇÃO!A111,Matriculados!A:A,1) -> 92 | D111: =SUMIFS(Matriculados!E:E,Matriculados!B:B,ALUNO_DE_GRADUAÇÃO!A111,Matriculados!A:A,2) -> 78 | E111: 85
A112: =ALUNO_GRAD_TEMPO_INTEGRAL!A112 -> MATEMÁTICA - 65FL | B112: =ALUNO_GRAD_TEMPO_INTEGRAL!B112 -> 13102 | C112: =SUMIFS(Matriculados!E:E,Matriculados!B:B,ALUNO_DE_GRADUAÇÃO!A112,Matriculados!A:A,1) -> 14 | D112: =SUMIFS(Matriculados!E:E,Matriculados!B:B,ALUNO_DE_GRADUAÇÃO!A112,Matriculados!A:A,2) -> 14 | E112: 14
A113: =ALUNO_GRAD_TEMPO_INTEGRAL!A113 -> MATEMÁTICA - 82A | B113: =ALUNO_GRAD_TEMPO_INTEGRAL!B113 -> 1166038 | C113: =SUMIFS(Matriculados!E:E,Matriculados!B:B,ALUNO_DE_GRADUAÇÃO!A113,Matriculados!A:A,1) -> 66 | D113: =SUMIFS(Matriculados!E:E,Matriculados!B:B,ALUNO_DE_GRADUAÇÃO!A113,Matriculados!A:A,2) -> 72 | E113: 69
A114: =ALUNO_GRAD_TEMPO_INTEGRAL!A114 -> MEDICINA - 07GV | B114: =ALUNO_GRAD_TEMPO_INTEGRAL!B114 -> 5001167 | C114: =SUMIFS(Matriculados!E:E,Matriculados!B:B,ALUNO_DE_GRADUAÇÃO!A114,Matriculados!A:A,1) -> 826 | D114: =SUMIFS(Matriculados!E:E,Matriculados!B:B,ALUNO_DE_GRADUAÇÃO!A114,Matriculados!A:A,2) -> 348 | E114: 587
A115: =ALUNO_GRAD_TEMPO_INTEGRAL!A115 -> MEDICINA - 15A | B115: =ALUNO_GRAD_TEMPO_INTEGRAL!B115 -> 13103 | C115: =SUMIFS(Matriculados!E:E,Matriculados!B:B,ALUNO_DE_GRADUAÇÃO!A115,Matriculados!A:A,1) -> 929 | D115: =SUMIFS(Matriculados!E:E,Matriculados!B:B,ALUNO_DE_GRADUAÇÃO!A115,Matriculados!A:A,2) -> 260 | E115: 594.5
A116: =ALUNO_GRAD_TEMPO_INTEGRAL!A116 -> MEDICINA VETERINÁRIA - 87A | B116: =ALUNO_GRAD_TEMPO_INTEGRAL!B116 -> 1268972 | C116: =SUMIFS(Matriculados!E:E,Matriculados!B:B,ALUNO_DE_GRADUAÇÃO!A116,Matriculados!A:A,1) -> 504 | D116: =SUMIFS(Matriculados!E:E,Matriculados!B:B,ALUNO_DE_GRADUAÇÃO!A116,Matriculados!A:A,2) -> 756 | E116: 630
A117: =ALUNO_GRAD_TEMPO_INTEGRAL!A117 -> MÚSICA - CANTO - 63A | B117: =ALUNO_GRAD_TEMPO_INTEGRAL!B117 -> 116490 | C117: =SUMIFS(Matriculados!E:E,Matriculados!B:B,ALUNO_DE_GRADUAÇÃO!A117,Matriculados!A:A,1) -> 8 | D117: =SUMIFS(Matriculados!E:E,Matriculados!B:B,ALUNO_DE_GRADUAÇÃO!A117,Matriculados!A:A,2) -> 5 | E117: 6.5
A118: =ALUNO_GRAD_TEMPO_INTEGRAL!A118 -> MÚSICA - MODALIDADE COMPOSIÇÃO - 63G | B118: =ALUNO_GRAD_TEMPO_INTEGRAL!B118 -> 1271995 | C118: =SUMIFS(Matriculados!E:E,Matriculados!B:B,ALUNO_DE_GRADUAÇÃO!A118,Matriculados!A:A,1) -> 58 | D118: =SUMIFS(Matriculados!E:E,Matriculados!B:B,ALUNO_DE_GRADUAÇÃO!A118,Matriculados!A:A,2) -> 52 | E118: 55
A119: =ALUNO_GRAD_TEMPO_INTEGRAL!A119 -> MÚSICA - MODALIDADE FLAUTA TRANSVERSAL - 63B | B119: =ALUNO_GRAD_TEMPO_INTEGRAL!B119 -> 116491 | C119: =SUMIFS(Matriculados!E:E,Matriculados!B:B,ALUNO_DE_GRADUAÇÃO!A119,Matriculados!A:A,1) -> 12 | D119: =SUMIFS(Matriculados!E:E,Matriculados!B:B,ALUNO_DE_GRADUAÇÃO!A119,Matriculados!A:A,2) -> 8 | E119: 10
A120: =ALUNO_GRAD_TEMPO_INTEGRAL!A120 -> MÚSICA - MODALIDADE PIANO - 63C | B120: =ALUNO_GRAD_TEMPO_INTEGRAL!B120 -> 116492 | C120: =SUMIFS(Matriculados!E:E,Matriculados!B:B,ALUNO_DE_GRADUAÇÃO!A120,Matriculados!A:A,1) -> 10 | D120: =SUMIFS(Matriculados!E:E,Matriculados!B:B,ALUNO_DE_GRADUAÇÃO!A120,Matriculados!A:A,2) -> 10 | E120: 10
A121: =ALUNO_GRAD_TEMPO_INTEGRAL!A121 -> MÚSICA - MODALIDADE VIOLÃO - 63D | B121: =ALUNO_GRAD_TEMPO_INTEGRAL!B121 -> 116493 | C121: =SUMIFS(Matriculados!E:E,Matriculados!B:B,ALUNO_DE_GRADUAÇÃO!A121,Matriculados!A:A,1) -> 14 | D121: =SUMIFS(Matriculados!E:E,Matriculados!B:B,ALUNO_DE_GRADUAÇÃO!A121,Matriculados!A:A,2) -> 10 | E121: 12
A122: =ALUNO_GRAD_TEMPO_INTEGRAL!A122 -> MÚSICA - MODALIDADE VIOLINO - 63E | B122: =ALUNO_GRAD_TEMPO_INTEGRAL!B122 -> 116494 | C122: =SUMIFS(Matriculados!E:E,Matriculados!B:B,ALUNO_DE_GRADUAÇÃO!A122,Matriculados!A:A,1) -> 6 | D122: =SUMIFS(Matriculados!E:E,Matriculados!B:B,ALUNO_DE_GRADUAÇÃO!A122,Matriculados!A:A,2) -> 6 | E122: 6
A123: =ALUNO_GRAD_TEMPO_INTEGRAL!A123 -> MÚSICA - MODALIDADE VIOLONCELO - 63F | B123: =ALUNO_GRAD_TEMPO_INTEGRAL!B123 -> 116495 | C123: =SUMIFS(Matriculados!E:E,Matriculados!B:B,ALUNO_DE_GRADUAÇÃO!A123,Matriculados!A:A,1) -> 6 | D123: =SUMIFS(Matriculados!E:E,Matriculados!B:B,ALUNO_DE_GRADUAÇÃO!A123,Matriculados!A:A,2) -> 6 | E123: 6
A124: =ALUNO_GRAD_TEMPO_INTEGRAL!A124 -> NUTRIÇÃO - 08GV | B124: =ALUNO_GRAD_TEMPO_INTEGRAL!B124 -> 1178688 | C124: =SUMIFS(Matriculados!E:E,Matriculados!B:B,ALUNO_DE_GRADUAÇÃO!A124,Matriculados!A:A,1) -> 457 | D124: =SUMIFS(Matriculados!E:E,Matriculados!B:B,ALUNO_DE_GRADUAÇÃO!A124,Matriculados!A:A,2) -> 234 | E124: 345.5
A125: =ALUNO_GRAD_TEMPO_INTEGRAL!A125 -> NUTRIÇÃO - 64A | B125: =ALUNO_GRAD_TEMPO_INTEGRAL!B125 -> 116498 | C125: =SUMIFS(Matriculados!E:E,Matriculados!B:B,ALUNO_DE_GRADUAÇÃO!A125,Matriculados!A:A,1) -> 523 | D125: =SUMIFS(Matriculados!E:E,Matriculados!B:B,ALUNO_DE_GRADUAÇÃO!A125,Matriculados!A:A,2) -> 501 | E125: 512
A126: =ALUNO_GRAD_TEMPO_INTEGRAL!A126 -> ODONTOLOGIA - 09GV | B126: =ALUNO_GRAD_TEMPO_INTEGRAL!B126 -> 5001168 | C126: =SUMIFS(Matriculados!E:E,Matriculados!B:B,ALUNO_DE_GRADUAÇÃO!A126,Matriculados!A:A,1) -> 663 | D126: =SUMIFS(Matriculados!E:E,Matriculados!B:B,ALUNO_DE_GRADUAÇÃO!A126,Matriculados!A:A,2) -> 10 | E126: 336.5
A127: =ALUNO_GRAD_TEMPO_INTEGRAL!A127 -> ODONTOLOGIA - 16A | B127: =ALUNO_GRAD_TEMPO_INTEGRAL!B127 -> 13104 | C127: =SUMIFS(Matriculados!E:E,Matriculados!B:B,ALUNO_DE_GRADUAÇÃO!A127,Matriculados!A:A,1) -> 407 | D127: =SUMIFS(Matriculados!E:E,Matriculados!B:B,ALUNO_DE_GRADUAÇÃO!A127,Matriculados!A:A,2) -> 77 | E127: 242
A128: =ALUNO_GRAD_TEMPO_INTEGRAL!A128 -> PEDAGOGIA - 17A | B128: =ALUNO_GRAD_TEMPO_INTEGRAL!B128 -> 13105 | C128: =SUMIFS(Matriculados!E:E,Matriculados!B:B,ALUNO_DE_GRADUAÇÃO!A128,Matriculados!A:A,1) -> 183 | D128: =SUMIFS(Matriculados!E:E,Matriculados!B:B,ALUNO_DE_GRADUAÇÃO!A128,Matriculados!A:A,2) -> 149 | E128: 166
A129: =ALUNO_GRAD_TEMPO_INTEGRAL!A129 -> PEDAGOGIA - 30A | B129: =ALUNO_GRAD_TEMPO_INTEGRAL!B129 -> 13105 | C129: =SUMIFS(Matriculados!E:E,Matriculados!B:B,ALUNO_DE_GRADUAÇÃO!A129,Matriculados!A:A,1) -> 182 | D129: =SUMIFS(Matriculados!E:E,Matriculados!B:B,ALUNO_DE_GRADUAÇÃO!A129,Matriculados!A:A,2) -> 203 | E129: 192.5
A130: =ALUNO_GRAD_TEMPO_INTEGRAL!A130 -> PSICOLOGIA - 32A | B130: =ALUNO_GRAD_TEMPO_INTEGRAL!B130 -> 13113 | C130: =SUMIFS(Matriculados!E:E,Matriculados!B:B,ALUNO_DE_GRADUAÇÃO!A130,Matriculados!A:A,1) -> 288 | D130: =SUMIFS(Matriculados!E:E,Matriculados!B:B,ALUNO_DE_GRADUAÇÃO!A130,Matriculados!A:A,2) -> 271 | E130: 279.5
A131: =ALUNO_GRAD_TEMPO_INTEGRAL!A131 -> QUÍMICA - 65GB | B131: =ALUNO_GRAD_TEMPO_INTEGRAL!B131 -> 313106 | C131: =SUMIFS(Matriculados!E:E,Matriculados!B:B,ALUNO_DE_GRADUAÇÃO!A131,Matriculados!A:A,1) -> 193 | D131: =SUMIFS(Matriculados!E:E,Matriculados!B:B,ALUNO_DE_GRADUAÇÃO!A131,Matriculados!A:A,2) -> 169 | E131: 181
A132: =ALUNO_GRAD_TEMPO_INTEGRAL!A132 -> QUÍMICA - 65GL | B132: =ALUNO_GRAD_TEMPO_INTEGRAL!B132 -> 13106 | C132: =SUMIFS(Matriculados!E:E,Matriculados!B:B,ALUNO_DE_GRADUAÇÃO!A132,Matriculados!A:A,1) -> 55 | D132: =SUMIFS(Matriculados!E:E,Matriculados!B:B,ALUNO_DE_GRADUAÇÃO!A132,Matriculados!A:A,2) -> 53 | E132: 54
A133: =ALUNO_GRAD_TEMPO_INTEGRAL!A133 -> QUÍMICA - 83A | B133: =ALUNO_GRAD_TEMPO_INTEGRAL!B133 -> 1166039 | C133: =SUMIFS(Matriculados!E:E,Matriculados!B:B,ALUNO_DE_GRADUAÇÃO!A133,Matriculados!A:A,1) -> 73 | D133: =SUMIFS(Matriculados!E:E,Matriculados!B:B,ALUNO_DE_GRADUAÇÃO!A133,Matriculados!A:A,2) -> 81 | E133: =AVERAGE(C133:D133) -> 77
A134: =ALUNO_GRAD_TEMPO_INTEGRAL!A134 -> RÁDIO, TV E INTERNET - 91A | B134: =ALUNO_GRAD_TEMPO_INTEGRAL!B134 -> 1374873 | C134: =SUMIFS(Matriculados!E:E,Matriculados!B:B,ALUNO_DE_GRADUAÇÃO!A134,Matriculados!A:A,1) -> 136 | D134: =SUMIFS(Matriculados!E:E,Matriculados!B:B,ALUNO_DE_GRADUAÇÃO!A134,Matriculados!A:A,2) -> 121 | E134: 128.5
A135: =ALUNO_GRAD_TEMPO_INTEGRAL!A135 -> SERVIÇO SOCIAL - 19A | B135: =ALUNO_GRAD_TEMPO_INTEGRAL!B135 -> 13107 | C135: =SUMIFS(Matriculados!E:E,Matriculados!B:B,ALUNO_DE_GRADUAÇÃO!A135,Matriculados!A:A,1) -> 159 | D135: =SUMIFS(Matriculados!E:E,Matriculados!B:B,ALUNO_DE_GRADUAÇÃO!A135,Matriculados!A:A,2) -> 155 | E135: 157
A136: =ALUNO_GRAD_TEMPO_INTEGRAL!A136 -> SERVIÇO SOCIAL - 68A | B136: =ALUNO_GRAD_TEMPO_INTEGRAL!B136 -> 13107 | C136: =SUMIFS(Matriculados!E:E,Matriculados!B:B,ALUNO_DE_GRADUAÇÃO!A136,Matriculados!A:A,1) -> 159 | D136: =SUMIFS(Matriculados!E:E,Matriculados!B:B,ALUNO_DE_GRADUAÇÃO!A136,Matriculados!A:A,2) -> 182 | E136: 170.5
A137: =ALUNO_GRAD_TEMPO_INTEGRAL!A137 -> SISTEMAS DE INFORMAÇÃO - 76A | B137: =ALUNO_GRAD_TEMPO_INTEGRAL!B137 -> 1128364 | C137: =SUMIFS(Matriculados!E:E,Matriculados!B:B,ALUNO_DE_GRADUAÇÃO!A137,Matriculados!A:A,1) -> 156 | D137: =SUMIFS(Matriculados!E:E,Matriculados!B:B,ALUNO_DE_GRADUAÇÃO!A137,Matriculados!A:A,2) -> 181 | E137: 168.5
A138: =ALUNO_GRAD_TEMPO_INTEGRAL!A138 -> TURISMO - 72D | B138: =ALUNO_GRAD_TEMPO_INTEGRAL!B138 -> 21589 | C138: =SUMIFS(Matriculados!E:E,Matriculados!B:B,ALUNO_DE_GRADUAÇÃO!A138,Matriculados!A:A,1) -> 19 | D138: =SUMIFS(Matriculados!E:E,Matriculados!B:B,ALUNO_DE_GRADUAÇÃO!A138,Matriculados!A:A,2) -> 13 | E138: 16
A139: =ALUNO_GRAD_TEMPO_INTEGRAL!A139 -> TURISMO - 73D | B139: =ALUNO_GRAD_TEMPO_INTEGRAL!B139 -> 21589 | C139: =SUMIFS(Matriculados!E:E,Matriculados!B:B,ALUNO_DE_GRADUAÇÃO!A139,Matriculados!A:A,1) -> 22 | D139: =SUMIFS(Matriculados!E:E,Matriculados!B:B,ALUNO_DE_GRADUAÇÃO!A139,Matriculados!A:A,2) -> 15 | E139: 18.5
A140: =ALUNO_GRAD_TEMPO_INTEGRAL!A140 -> TURISMO - 92A | B140: =ALUNO_GRAD_TEMPO_INTEGRAL!B140 -> 21589 | C140: =SUMIFS(Matriculados!E:E,Matriculados!B:B,ALUNO_DE_GRADUAÇÃO!A140,Matriculados!A:A,1) -> 140 | D140: =SUMIFS(Matriculados!E:E,Matriculados!B:B,ALUNO_DE_GRADUAÇÃO!A140,Matriculados!A:A,2) -> 108 | E140: 124
A141: =ALUNO_GRAD_TEMPO_INTEGRAL!A141 -> TURISMO - 93A | B141: =ALUNO_GRAD_TEMPO_INTEGRAL!B141 -> 21589 | C141: =SUMIFS(Matriculados!E:E,Matriculados!B:B,ALUNO_DE_GRADUAÇÃO!A141,Matriculados!A:A,1) -> 100 | D141: =SUMIFS(Matriculados!E:E,Matriculados!B:B,ALUNO_DE_GRADUAÇÃO!A141,Matriculados!A:A,2) -> 122 | E141: 111
C142: =SUM(C4:C141) -> 23176 | D142: =SUM(D4:D141) -> 19221 | E142: 21198.5

Sheet ALUNO_EQUIV_GRADUAÇÃO
A1: COMPONENTE | J1: 2017 | K1: 2018 | L1: 2019 | M1: 2020 | N1: 2021
A2: ALUNO EQUIVALENTE DE GRADUAÇÃO | J2: 24860 | K2: 25188 | L2: 27646.525 | M2: 29985.691 | N2: =G142 -> 27663.626
A3: CURSO | B3: NÚMERO DE DIPLOMADOS (NDI) | C3: DURAÇÃO DO CURSO (DPC) | D3: FATOR DE RETENÇÃO | E3: INGRESSANTES NO ANO (NI) | F3: PESO DO GRUPO | G3: AEG
A4: =ALUNO_GRAD_TEMPO_INTEGRAL!A4 -> ABI - CIÊNCIAS BIOLÓGICAS - 01ABI | B4: =ALUNO_GRAD_TEMPO_INTEGRAL!C4 -> 0 | C4: =ALUNO_GRAD_TEMPO_INTEGRAL!D4 -> 4 | D4: =ALUNO_GRAD_TEMPO_INTEGRAL!E4 -> 0.125 | E4: =ALUNO_GRAD_TEMPO_INTEGRAL!F4 -> 60 | F4: =VLOOKUP(A4,Parametros!A:E,5,0) -> 2 | G4: =IFERROR(SUM(((B4*C4)*(1+D4)+((E4-B4)/4)*C4)*F4),0) -> 120
A5: =ALUNO_GRAD_TEMPO_INTEGRAL!A5 -> ABI - EDUCAÇÃO FÍSICA - 21ABI | B5: =ALUNO_GRAD_TEMPO_INTEGRAL!C5 -> 0 | C5: =ALUNO_GRAD_TEMPO_INTEGRAL!D5 -> 5 | D5: =ALUNO_GRAD_TEMPO_INTEGRAL!E5 -> 0.066 | E5: =ALUNO_GRAD_TEMPO_INTEGRAL!F5 -> 99 | F5: =VLOOKUP(A5,Parametros!A:E,5,0) -> 1.5 | G5: =IFERROR(SUM(((B5*C5)*(1+D5)+((E5-B5)/4)*C5)*F5),0) -> 185.625
A6: =ALUNO_GRAD_TEMPO_INTEGRAL!A6 -> ABI - FILOSOFIA - 08ABI | B6: =ALUNO_GRAD_TEMPO_INTEGRAL!C6 -> 0 | C6: =ALUNO_GRAD_TEMPO_INTEGRAL!D6 -> 4 | D6: =ALUNO_GRAD_TEMPO_INTEGRAL!E6 -> 0.1 | E6: =ALUNO_GRAD_TEMPO_INTEGRAL!F6 -> 30 | F6: =VLOOKUP(A6,Parametros!A:E,5,0) -> 1 | G6: 30
A7: =ALUNO_GRAD_TEMPO_INTEGRAL!A7 -> ABI - GEOGRAFIA - 10ABI | B7: =ALUNO_GRAD_TEMPO_INTEGRAL!C7 -> 0 | C7: =ALUNO_GRAD_TEMPO_INTEGRAL!D7 -> 4 | D7: =ALUNO_GRAD_TEMPO_INTEGRAL!E7 -> 0.1 | E7: =ALUNO_GRAD_TEMPO_INTEGRAL!F7 -> 43 | F7: =VLOOKUP(A7,Parametros!A:E,5,0) -> 1 | G7: 43
A8: =ALUNO_GRAD_TEMPO_INTEGRAL!A8 -> ABI - GEOGRAFIA - 27ABI | B8: =ALUNO_GRAD_TEMPO_INTEGRAL!C8 -> 0 | C8: =ALUNO_GRAD_TEMPO_INTEGRAL!D8 -> 4 | D8: =ALUNO_GRAD_TEMPO_INTEGRAL!E8 -> 0.1 | E8: =ALUNO_GRAD_TEMPO_INTEGRAL!F8 -> 0 | F8: =VLOOKUP(A8,Parametros!A:E,5,0) -> 1 | G8: 0
A9: =ALUNO_GRAD_TEMPO_INTEGRAL!A9 -> ABI - HISTÓRIA - 11ABI | B9: =ALUNO_GRAD_TEMPO_INTEGRAL!C9 -> 0 | C9: =ALUNO_GRAD_TEMPO_INTEGRAL!D9 -> 4 | D9: =ALUNO_GRAD_TEMPO_INTEGRAL!E9 -> 0.1 | E9: =ALUNO_GRAD_TEMPO_INTEGRAL!F9 -> 48 | F9: =VLOOKUP(A9,Parametros!A:E,5,0) -> 1 | G9: 48
A10: =ALUNO_GRAD_TEMPO_INTEGRAL!A10 -> ABI - HISTÓRIA - 28ABI | B10: =ALUNO_GRAD_TEMPO_INTEGRAL!C10 -> 0 | C10: =ALUNO_GRAD_TEMPO_INTEGRAL!D10 -> 4 | D10: =ALUNO_GRAD_TEMPO_INTEGRAL!E10 -> 0.1 | E10: =ALUNO_GRAD_TEMPO_INTEGRAL!F10 -> 48 | F10: =VLOOKUP(A10,Parametros!A:E,5,0) -> 1 | G10: 48
A11: =ALUNO_GRAD_TEMPO_INTEGRAL!A11 -> ABI - LETRAS - 13ABI | B11: =ALUNO_GRAD_TEMPO_INTEGRAL!C11 -> 0 | C11: =ALUNO_GRAD_TEMPO_INTEGRAL!D11 -> 4 | D11: =ALUNO_GRAD_TEMPO_INTEGRAL!E11 -> 0.115 | E11: =ALUNO_GRAD_TEMPO_INTEGRAL!F11 -> 44 | F11: =VLOOKUP(A11,Parametros!A:E,5,0) -> 1 | G11: 44
A12: =ALUNO_GRAD_TEMPO_INTEGRAL!A12 -> ABI - LETRAS - 29ABI | B12: =ALUNO_GRAD_TEMPO_INTEGRAL!C12 -> 0 | C12: =ALUNO_GRAD_TEMPO_INTEGRAL!D12 -> 4 | D12: =ALUNO_GRAD_TEMPO_INTEGRAL!E12 -> 0.115 | E12: =ALUNO_GRAD_TEMPO_INTEGRAL!F12 -> 1 | F12: =VLOOKUP(A12,Parametros!A:E,5,0) -> 1 | G12: 1
A13: =ALUNO_GRAD_TEMPO_INTEGRAL!A13 -> ADMINISTRAÇÃO - 01GV | B13: =ALUNO_GRAD_TEMPO_INTEGRAL!C13 -> 14 | C13: =ALUNO_GRAD_TEMPO_INTEGRAL!D13 -> 4 | D13: =ALUNO_GRAD_TEMPO_INTEGRAL!E13 -> 0.12 | E13: =ALUNO_GRAD_TEMPO_INTEGRAL!F13 -> 73 | F13: =VLOOKUP(A13,Parametros!A:E,5,0) -> 1 | G13: 121.72
A14: =ALUNO_GRAD_TEMPO_INTEGRAL!A14 -> ADMINISTRAÇÃO - 26A | B14: =ALUNO_GRAD_TEMPO_INTEGRAL!C14 -> 20 | C14: =ALUNO_GRAD_TEMPO_INTEGRAL!D14 -> 4 | D14: =ALUNO_GRAD_TEMPO_INTEGRAL!E14 -> 0.12 | E14: =ALUNO_GRAD_TEMPO_INTEGRAL!F14 -> 43 | F14: =VLOOKUP(A14,Parametros!A:E,5,0) -> 1 | G14: 112.6
A15: =ALUNO_GRAD_TEMPO_INTEGRAL!A15 -> ADMINISTRAÇÃO - 46A | B15: =ALUNO_GRAD_TEMPO_INTEGRAL!C15 -> 17 | C15: =ALUNO_GRAD_TEMPO_INTEGRAL!D15 -> 4 | D15: =ALUNO_GRAD_TEMPO_INTEGRAL!E15 -> 0.12 | E15: =ALUNO_GRAD_TEMPO_INTEGRAL!F15 -> 41 | F15: =VLOOKUP(A15,Parametros!A:E,5,0) -> 1 | G15: 100.16
A16: =ALUNO_GRAD_TEMPO_INTEGRAL!A16 -> ARQUITETURA E URBANISMO - 33A | B16: =ALUNO_GRAD_TEMPO_INTEGRAL!C16 -> 52 | C16: =ALUNO_GRAD_TEMPO_INTEGRAL!D16 -> 4 | D16: =ALUNO_GRAD_TEMPO_INTEGRAL!E16 -> 0.12 | E16: =ALUNO_GRAD_TEMPO_INTEGRAL!F16 -> 84 | F16: =VLOOKUP(A16,Parametros!A:E,5,0) -> 1.5 | G16: 397.44
A17: =ALUNO_GRAD_TEMPO_INTEGRAL!A17 -> BACHARELADO EM ARTES VISUAIS - 66C | B17: =ALUNO_GRAD_TEMPO_INTEGRAL!C17 -> 5 | C17: =ALUNO_GRAD_TEMPO_INTEGRAL!D17 -> 2 | D17: =ALUNO_GRAD_TEMPO_INTEGRAL!E17 -> 0.1 | E17: =ALUNO_GRAD_TEMPO_INTEGRAL!F17 -> 52 | F17: =VLOOKUP(A17,Parametros!A:E,5,0) -> 1.5 | G17: 51.75
A18: =ALUNO_GRAD_TEMPO_INTEGRAL!A18 -> BACHARELADO EM CINEMA E AUDIOVISUAL - 66B | B18: =ALUNO_GRAD_TEMPO_INTEGRAL!C18 -> 18 | C18: =ALUNO_GRAD_TEMPO_INTEGRAL!D18 -> 2 | D18: =ALUNO_GRAD_TEMPO_INTEGRAL!E18 -> 0.1 | E18: =ALUNO_GRAD_TEMPO_INTEGRAL!F18 -> 52 | F18: =VLOOKUP(A18,Parametros!A:E,5,0) -> 1.5 | G18: 84.9
A19: =ALUNO_GRAD_TEMPO_INTEGRAL!A19 -> BACHARELADO EM DESIGN - 66D | B19: =ALUNO_GRAD_TEMPO_INTEGRAL!C19 -> 15 | C19: =ALUNO_GRAD_TEMPO_INTEGRAL!D19 -> 2 | D19: =ALUNO_GRAD_TEMPO_INTEGRAL!E19 -> 0.1 | E19: =ALUNO_GRAD_TEMPO_INTEGRAL!F19 -> 49 | F19: =VLOOKUP(A19,Parametros!A:E,5,0) -> 1.5 | G19: 75
A20: =ALUNO_GRAD_TEMPO_INTEGRAL!A20 -> BACHARELADO EM MODA - 66E | B20: =ALUNO_GRAD_TEMPO_INTEGRAL!C20 -> 12 | C20: =ALUNO_GRAD_TEMPO_INTEGRAL!D20 -> 2 | D20: =ALUNO_GRAD_TEMPO_INTEGRAL!E20 -> 0.1 | E20: =ALUNO_GRAD_TEMPO_INTEGRAL!F20 -> 48 | F20: =VLOOKUP(A20,Parametros!A:E,5,0) -> 1.5 | G20: 66.6
A21: =ALUNO_GRAD_TEMPO_INTEGRAL!A21 -> BACHARELADO INTERDISCIPLINAR EM ARTES E DESIGN - 66A | B21: =ALUNO_GRAD_TEMPO_INTEGRAL!C21 -> 114 | C21: =ALUNO_GRAD_TEMPO_INTEGRAL!D21 -> 3 | D21: =ALUNO_GRAD_TEMPO_INTEGRAL!E21 -> 0.1 | E21: =ALUNO_GRAD_TEMPO_INTEGRAL!F21 -> 0 | F21: =VLOOKUP(A21,Parametros!A:E,5,0) -> 1.5 | G21: 436.05
A22: =ALUNO_GRAD_TEMPO_INTEGRAL!A22 -> BACHARELADO INTERDISCIPLINAR EM CIÊNCIAS HUMANAS - 72A | B22: =ALUNO_GRAD_TEMPO_INTEGRAL!C22 -> 39 | C22: =ALUNO_GRAD_TEMPO_INTEGRAL!D22 -> 3 | D22: =ALUNO_GRAD_TEMPO_INTEGRAL!E22 -> 0.1 | E22: =ALUNO_GRAD_TEMPO_INTEGRAL!F22 -> 157 | F22: =VLOOKUP(A22,Parametros!A:E,5,0) -> 1 | G22: 217.2
A23: =ALUNO_GRAD_TEMPO_INTEGRAL!A23 -> BACHARELADO INTERDISCIPLINAR EM CIÊNCIAS HUMANAS - 73A | B23: =ALUNO_GRAD_TEMPO_INTEGRAL!C23 -> 37 | C23: =ALUNO_GRAD_TEMPO_INTEGRAL!D23 -> 3 | D23: =ALUNO_GRAD_TEMPO_INTEGRAL!E23 -> 0.1 | E23: =ALUNO_GRAD_TEMPO_INTEGRAL!F23 -> 151 | F23: =VLOOKUP(A23,Parametros!A:E,5,0) -> 1 | G23: 207.6
A24: =ALUNO_GRAD_TEMPO_INTEGRAL!A24 -> CIÊNCIA DA COMPUTAÇÃO - 35A | B24: =ALUNO_GRAD_TEMPO_INTEGRAL!C24 -> 5 | C24: =ALUNO_GRAD_TEMPO_INTEGRAL!D24 -> 4 | D24: =ALUNO_GRAD_TEMPO_INTEGRAL!E24 -> 0.1325 | E24: =ALUNO_GRAD_TEMPO_INTEGRAL!F24 -> 41 | F24: =VLOOKUP(A24,Parametros!A:E,5,0) -> 1.5 | G24: 87.975
A25: =ALUNO_GRAD_TEMPO_INTEGRAL!A25 -> CIÊNCIA DA COMPUTAÇÃO - 65C | B25: =ALUNO_GRAD_TEMPO_INTEGRAL!C25 -> 12 | C25: =ALUNO_GRAD_TEMPO_INTEGRAL!D25 -> 2 | D25: =ALUNO_GRAD_TEMPO_INTEGRAL!E25 -> 0.1325 | E25: =ALUNO_GRAD_TEMPO_INTEGRAL!F25 -> 22 | F25: =VLOOKUP(A25,Parametros!A:E,5,0) -> 1.5 | G25: 48.27
A26: =ALUNO_GRAD_TEMPO_INTEGRAL!A26 -> CIÊNCIA DA RELIGIÃO - 72B | B26: =ALUNO_GRAD_TEMPO_INTEGRAL!C26 -> 1 | C26: =ALUNO_GRAD_TEMPO_INTEGRAL!D26 -> 2 | D26: =ALUNO_GRAD_TEMPO_INTEGRAL!E26 -> 0.1 | E26: =ALUNO_GRAD_TEMPO_INTEGRAL!F26 -> 0 | F26: =VLOOKUP(A26,Parametros!A:E,5,0) -> 1 | G26: 1.7
A27: =ALUNO_GRAD_TEMPO_INTEGRAL!A27 -> CIÊNCIA DA RELIGIÃO - 72BL | B27: =ALUNO_GRAD_TEMPO_INTEGRAL!C27 -> 1 | C27: =ALUNO_GRAD_TEMPO_INTEGRAL!D27 -> 2 | D27: =ALUNO_GRAD_TEMPO_INTEGRAL!E27 -> 0.1 | E27: =ALUNO_GRAD_TEMPO_INTEGRAL!F27 -> 0 | F27: =VLOOKUP(A27,Parametros!A:E,5,0) -> 1 | G27: 1.7
A28: =ALUNO_GRAD_TEMPO_INTEGRAL!A28 -> CIÊNCIA DA RELIGIÃO - 73B | B28: =ALUNO_GRAD_TEMPO_INTEGRAL!C28 -> 5 | C28: =ALUNO_GRAD_TEMPO_INTEGRAL!D28 -> 2 | D28: =ALUNO_GRAD_TEMPO_INTEGRAL!E28 -> 0.1 | E28: =ALUNO_GRAD_TEMPO_INTEGRAL!F28 -> 1 | F28: =VLOOKUP(A28,Parametros!A:E,5,0) -> 1 | G28: 9
A29: =ALUNO_GRAD_TEMPO_INTEGRAL!A29 -> CIÊNCIA DA RELIGIÃO - 73BL | B29: =ALUNO_GRAD_TEMPO_INTEGRAL!C29 -> 1 | C29: =ALUNO_GRAD_TEMPO_INTEGRAL!D29 -> 2 | D29: =ALUNO_GRAD_TEMPO_INTEGRAL!E29 -> 0.1 | E29: =ALUNO_GRAD_TEMPO_INTEGRAL!F29 -> 0 | F29: =VLOOKUP(A29,Parametros!A:E,5,0) -> 1 | G29: 1.7
A30: =ALUNO_GRAD_TEMPO_INTEGRAL!A30 -> CIÊNCIAS BIOLÓGICAS - 01A | B30: =ALUNO_GRAD_TEMPO_INTEGRAL!C30 -> 0 | C30: =ALUNO_GRAD_TEMPO_INTEGRAL!D30 -> 4 | D30: =ALUNO_GRAD_TEMPO_INTEGRAL!E30 -> 0.125 | E30: =ALUNO_GRAD_TEMPO_INTEGRAL!F30 -> 0 | F30: =VLOOKUP(A30,Parametros!A:E,5,0) -> 2 | G30: 0
A31: =ALUNO_GRAD_TEMPO_INTEGRAL!A31 -> CIÊNCIAS BIOLÓGICAS - 01B | B31: =ALUNO_GRAD_TEMPO_INTEGRAL!C31 -> 13 | C31: =ALUNO_GRAD_TEMPO_INTEGRAL!D31 -> 4 | D31: =ALUNO_GRAD_TEMPO_INTEGRAL!E31 -> 0.125 | E31: =ALUNO_GRAD_TEMPO_INTEGRAL!F31 -> 1 | F31: =VLOOKUP(A31,Parametros!A:E,5,0) -> 2 | G31: 93
A32: =ALUNO_GRAD_TEMPO_INTEGRAL!A32 -> CIÊNCIAS BIOLÓGICAS - 01L | B32: =ALUNO_GRAD_TEMPO_INTEGRAL!C32 -> 34 | C32: =ALUNO_GRAD_TEMPO_INTEGRAL!D32 -> 4 | D32: =ALUNO_GRAD_TEMPO_INTEGRAL!E32 -> 0.125 | E32: =ALUNO_GRAD_TEMPO_INTEGRAL!F32 -> 0 | F32: =VLOOKUP(A32,Parametros!A:E,5,0) -> 2 | G32: 238
A33: =ALUNO_GRAD_TEMPO_INTEGRAL!A33 -> CIÊNCIAS CONTÁBEIS - 02GV | B33: =ALUNO_GRAD_TEMPO_INTEGRAL!C33 -> 10 | C33: =ALUNO_GRAD_TEMPO_INTEGRAL!D33 -> 4 | D33: =ALUNO_GRAD_TEMPO_INTEGRAL!E33 -> 0.12 | E33: =ALUNO_GRAD_TEMPO_INTEGRAL!F33 -> 44 | F33: =VLOOKUP(A33,Parametros!A:E,5,0) -> 1 | G33: 78.8
A34: =ALUNO_GRAD_TEMPO_INTEGRAL!A34 -> CIÊNCIAS CONTÁBEIS - 77A | B34: =ALUNO_GRAD_TEMPO_INTEGRAL!C34 -> 22 | C34: =ALUNO_GRAD_TEMPO_INTEGRAL!D34 -> 4 | D34: =ALUNO_GRAD_TEMPO_INTEGRAL!E34 -> 0.12 | E34: =ALUNO_GRAD_TEMPO_INTEGRAL!F34 -> 44 | F34: =VLOOKUP(A34,Parametros!A:E,5,0) -> 1 | G34: 120.56 | J34: FÓRMULA PARA CÁLCULO DO ALUNO EQUIVALENTE DE CADA CURSO (AGE TOTAL= SOMA DE AGE DE TODOS OS CURSOS)
A35: =ALUNO_GRAD_TEMPO_INTEGRAL!A35 -> CIÊNCIAS CONTÁBEIS - 78A | B35: =ALUNO_GRAD_TEMPO_INTEGRAL!C35 -> 18 | C35: =ALUNO_GRAD_TEMPO_INTEGRAL!D35 -> 4 | D35: =ALUNO_GRAD_TEMPO_INTEGRAL!E35 -> 0.12 | E35: =ALUNO_GRAD_TEMPO_INTEGRAL!F35 -> 43 | F35: =VLOOKUP(A35,Parametros!A:E,5,0) -> 1 | G35: 105.64 | J35: AGE = { (NDI DPC)(1+ [Fator de Retenção]) + ((NI - NDI)/4) DPC}* [Peso do grupo em que se insere o curso]
A36: =ALUNO_GRAD_TEMPO_INTEGRAL!A36 -> CIÊNCIAS ECONÔMICAS - 03GV | B36: =ALUNO_GRAD_TEMPO_INTEGRAL!C36 -> 14 | C36: =ALUNO_GRAD_TEMPO_INTEGRAL!D36 -> 4 | D36: =ALUNO_GRAD_TEMPO_INTEGRAL!E36 -> 0.12 | E36: =ALUNO_GRAD_TEMPO_INTEGRAL!F36 -> 66 | F36: =VLOOKUP(A36,Parametros!A:E,5,0) -> 1 | G36: 114.72
A37: =ALUNO_GRAD_TEMPO_INTEGRAL!A37 -> CIÊNCIAS ECONÔMICAS - 05A | B37: =ALUNO_GRAD_TEMPO_INTEGRAL!C37 -> 19 | C37: =ALUNO_GRAD_TEMPO_INTEGRAL!D37 -> 4 | D37: =ALUNO_GRAD_TEMPO_INTEGRAL!E37 -> 0.12 | E37: =ALUNO_GRAD_TEMPO_INTEGRAL!F37 -> 56 | F37: =VLOOKUP(A37,Parametros!A:E,5,0) -> 1 | G37: 122.12 | J37: NDI = Número de diplomados, no ano letivo referente ao exercício, em cada curso
A38: =ALUNO_GRAD_TEMPO_INTEGRAL!A38 -> CIÊNCIAS ECONÔMICAS - 51A | B38: =ALUNO_GRAD_TEMPO_INTEGRAL!C38 -> 27 | C38: =ALUNO_GRAD_TEMPO_INTEGRAL!D38 -> 4 | D38: =ALUNO_GRAD_TEMPO_INTEGRAL!E38 -> 0.12 | E38: =ALUNO_GRAD_TEMPO_INTEGRAL!F38 -> 53 | F38: =VLOOKUP(A38,Parametros!A:E,5,0) -> 1 | G38: 146.96
A39: =ALUNO_GRAD_TEMPO_INTEGRAL!A39 -> CIÊNCIAS EXATAS - 65A | B39: =ALUNO_GRAD_TEMPO_INTEGRAL!C39 -> 81 | C39: =ALUNO_GRAD_TEMPO_INTEGRAL!D39 -> 3 | D39: =ALUNO_GRAD_TEMPO_INTEGRAL!E39 -> 0.1 | E39: =ALUNO_GRAD_TEMPO_INTEGRAL!F39 -> 253 | F39: =VLOOKUP(A39,Parametros!A:E,5,0) -> 2 | G39: 792.6 | J39: DPC = Duração padrão do curso de acordo com a tabela da SESu
A40: =ALUNO_GRAD_TEMPO_INTEGRAL!A40 -> CIÊNCIAS SOCIAIS - 31B | B40: =ALUNO_GRAD_TEMPO_INTEGRAL!C40 -> 0 | C40: =ALUNO_GRAD_TEMPO_INTEGRAL!D40 -> 2 | D40: =ALUNO_GRAD_TEMPO_INTEGRAL!E40 -> 0.1 | E40: =ALUNO_GRAD_TEMPO_INTEGRAL!F40 -> 0 | F40: =VLOOKUP(A40,Parametros!A:E,5,0) -> 1 | G40: 0 | J40: NI = Número de alunos que ingressaram , no ano letivo relativo ao exercício, em cada curso
A41: =ALUNO_GRAD_TEMPO_INTEGRAL!A41 -> CIÊNCIAS SOCIAIS - 31L | B41: =ALUNO_GRAD_TEMPO_INTEGRAL!C41 -> 0 | C41: =ALUNO_GRAD_TEMPO_INTEGRAL!D41 -> 2 | D41: =ALUNO_GRAD_TEMPO_INTEGRAL!E41 -> 0.1 | E41: =ALUNO_GRAD_TEMPO_INTEGRAL!F41 -> 0 | F41: =VLOOKUP(A41,Parametros!A:E,5,0) -> 1 | G41: 0 | J41: Fator de Retenção e Peso do grupo calculados de acordo com metodologia da SESu
A42: =ALUNO_GRAD_TEMPO_INTEGRAL!A42 -> CIÊNCIAS SOCIAIS - 72C | B42: =ALUNO_GRAD_TEMPO_INTEGRAL!C42 -> 0 | C42: =ALUNO_GRAD_TEMPO_INTEGRAL!D42 -> 2 | D42: =ALUNO_GRAD_TEMPO_INTEGRAL!E42 -> 0.1 | E42: =ALUNO_GRAD_TEMPO_INTEGRAL!F42 -> 0 | F42: =VLOOKUP(A42,Parametros!A:E,5,0) -> 1 | G42: 0
A43: =ALUNO_GRAD_TEMPO_INTEGRAL!A43 -> CIÊNCIAS SOCIAIS - 72CB | B43: =ALUNO_GRAD_TEMPO_INTEGRAL!C43 -> 1 | C43: =ALUNO_GRAD_TEMPO_INTEGRAL!D43 -> 2 | D43: =ALUNO_GRAD_TEMPO_INTEGRAL!E43 -> 0.1 | E43: =ALUNO_GRAD_TEMPO_INTEGRAL!F43 -> 0 | F43: =VLOOKUP(A43,Parametros!A:E,5,0) -> 1 | G43: 1.7
A44: =ALUNO_GRAD_TEMPO_INTEGRAL!A44 -> CIÊNCIAS SOCIAIS - 72CL | B44: =ALUNO_GRAD_TEMPO_INTEGRAL!C44 -> 1 | C44: =ALUNO_GRAD_TEMPO_INTEGRAL!D44 -> 2 | D44: =ALUNO_GRAD_TEMPO_INTEGRAL!E44 -> 0.1 | E44: =ALUNO_GRAD_TEMPO_INTEGRAL!F44 -> 0 | F44: =VLOOKUP(A44,Parametros!A:E,5,0) -> 1 | G44: 1.7
A45: =ALUNO_GRAD_TEMPO_INTEGRAL!A45 -> CIÊNCIAS SOCIAIS - 73C | B45: =ALUNO_GRAD_TEMPO_INTEGRAL!C45 -> 0 | C45: =ALUNO_GRAD_TEMPO_INTEGRAL!D45 -> 2 | D45: =ALUNO_GRAD_TEMPO_INTEGRAL!E45 -> 0.1 | E45: =ALUNO_GRAD_TEMPO_INTEGRAL!F45 -> 0 | F45: =VLOOKUP(A45,Parametros!A:E,5,0) -> 1 | G45: 0
A46: =ALUNO_GRAD_TEMPO_INTEGRAL!A46 -> CIÊNCIAS SOCIAIS - 73CB | B46: =ALUNO_GRAD_TEMPO_INTEGRAL!C46 -> 13 | C46: =ALUNO_GRAD_TEMPO_INTEGRAL!D46 -> 2 | D46: =ALUNO_GRAD_TEMPO_INTEGRAL!E46 -> 0.1 | E46: =ALUNO_GRAD_TEMPO_INTEGRAL!F46 -> 0 | F46: =VLOOKUP(A46,Parametros!A:E,5,0) -> 1 | G46: 22.1
A47: =ALUNO_GRAD_TEMPO_INTEGRAL!A47 -> CIÊNCIAS SOCIAIS - 73CL | B47: =ALUNO_GRAD_TEMPO_INTEGRAL!C47 -> 9 | C47: =ALUNO_GRAD_TEMPO_INTEGRAL!D47 -> 2 | D47: =ALUNO_GRAD_TEMPO_INTEGRAL!E47 -> 0.1 | E47: =ALUNO_GRAD_TEMPO_INTEGRAL!F47 -> 0 | F47: =VLOOKUP(A47,Parametros!A:E,5,0) -> 1 | G47: 15.3
A48: =ALUNO_GRAD_TEMPO_INTEGRAL!A48 -> DIREITO - 04A | B48: =ALUNO_GRAD_TEMPO_INTEGRAL!C48 -> 96 | C48: =ALUNO_GRAD_TEMPO_INTEGRAL!D48 -> 5 | D48: =ALUNO_GRAD_TEMPO_INTEGRAL!E48 -> 0.12 | E48: =ALUNO_GRAD_TEMPO_INTEGRAL!F48 -> 108 | F48: =VLOOKUP(A48,Parametros!A:E,5,0) -> 1 | G48: 552.6
A49: =ALUNO_GRAD_TEMPO_INTEGRAL!A49 -> DIREITO - 04GV | B49: =ALUNO_GRAD_TEMPO_INTEGRAL!C49 -> 88 | C49: =ALUNO_GRAD_TEMPO_INTEGRAL!D49 -> 5 | D49: =ALUNO_GRAD_TEMPO_INTEGRAL!E49 -> 0.12 | E49: =ALUNO_GRAD_TEMPO_INTEGRAL!F49 -> 108 | F49: =VLOOKUP(A49,Parametros!A:E,5,0) -> 1 | G49: 517.8
A50: =ALUNO_GRAD_TEMPO_INTEGRAL!A50 -> DIREITO - 34A | B50: =ALUNO_GRAD_TEMPO_INTEGRAL!C50 -> 82 | C50: =ALUNO_GRAD_TEMPO_INTEGRAL!D50 -> 5 | D50: =ALUNO_GRAD_TEMPO_INTEGRAL!E50 -> 0.12 | E50: =ALUNO_GRAD_TEMPO_INTEGRAL!F50 -> 107 | F50: =VLOOKUP(A50,Parametros!A:E,5,0) -> 1 | G50: 490.45
A51: =ALUNO_GRAD_TEMPO_INTEGRAL!A51 -> EDUCAÇÃO ARTÍSTICA - 03A | B51: =ALUNO_GRAD_TEMPO_INTEGRAL!C51 -> 0 | C51: =ALUNO_GRAD_TEMPO_INTEGRAL!D51 -> 4 | D51: =ALUNO_GRAD_TEMPO_INTEGRAL!E51 -> 0.115 | E51: =ALUNO_GRAD_TEMPO_INTEGRAL!F51 -> 0 | F51: =VLOOKUP(A51,Parametros!A:E,5,0) -> 1.5 | G51: 0
A52: =ALUNO_GRAD_TEMPO_INTEGRAL!A52 -> EDUCAÇÃO FÍSICA - 10GV | B52: =ALUNO_GRAD_TEMPO_INTEGRAL!C52 -> 11 | C52: =ALUNO_GRAD_TEMPO_INTEGRAL!D52 -> 5 | D52: =ALUNO_GRAD_TEMPO_INTEGRAL!E52 -> 0.066 | E52: =ALUNO_GRAD_TEMPO_INTEGRAL!F52 -> 66 | F52: =VLOOKUP(A52,Parametros!A:E,5,0) -> 1.5 | G52: 191.07
A53: =ALUNO_GRAD_TEMPO_INTEGRAL!A53 -> EDUCAÇÃO FÍSICA - 21B | B53: =ALUNO_GRAD_TEMPO_INTEGRAL!C53 -> 26 | C53: =ALUNO_GRAD_TEMPO_INTEGRAL!D53 -> 5 | D53: =ALUNO_GRAD_TEMPO_INTEGRAL!E53 -> 0.066 | E53: =ALUNO_GRAD_TEMPO_INTEGRAL!F53 -> 0 | F53: =VLOOKUP(A53,Parametros!A:E,5,0) -> 1.5 | G53: 159.12
A54: =ALUNO_GRAD_TEMPO_INTEGRAL!A54 -> EDUCAÇÃO FÍSICA - 21L | B54: =ALUNO_GRAD_TEMPO_INTEGRAL!C54 -> 22 | C54: =ALUNO_GRAD_TEMPO_INTEGRAL!D54 -> 5 | D54: =ALUNO_GRAD_TEMPO_INTEGRAL!E54 -> 0.066 | E54: =ALUNO_GRAD_TEMPO_INTEGRAL!F54 -> 4 | F54: =VLOOKUP(A54,Parametros!A:E,5,0) -> 1.5 | G54: 142.14
A55: =ALUNO_GRAD_TEMPO_INTEGRAL!A55 -> ENFERMAGEM - 23A | B55: =ALUNO_GRAD_TEMPO_INTEGRAL!C55 -> 37 | C55: =ALUNO_GRAD_TEMPO_INTEGRAL!D55 -> 5 | D55: =ALUNO_GRAD_TEMPO_INTEGRAL!E55 -> 0.066 | E55: =ALUNO_GRAD_TEMPO_INTEGRAL!F55 -> 88 | F55: =VLOOKUP(A55,Parametros!A:E,5,0) -> 1.5 | G55: 391.44
A56: =ALUNO_GRAD_TEMPO_INTEGRAL!A56 -> ENFERMAGEM - 23L | B56: =ALUNO_GRAD_TEMPO_INTEGRAL!C56 -> 7 | C56: =ALUNO_GRAD_TEMPO_INTEGRAL!D56 -> 5 | D56: =ALUNO_GRAD_TEMPO_INTEGRAL!E56 -> 0.066 | E56: =ALUNO_GRAD_TEMPO_INTEGRAL!F56 -> 0 | F56: =VLOOKUP(A56,Parametros!A:E,5,0) -> 1.5 | G56: 42.84
A57: =ALUNO_GRAD_TEMPO_INTEGRAL!A57 -> ENGENHARIA AMBIENTAL E SANITÁRIA - 67A | B57: =ALUNO_GRAD_TEMPO_INTEGRAL!C57 -> 16 | C57: =ALUNO_GRAD_TEMPO_INTEGRAL!D57 -> 5 | D57: =ALUNO_GRAD_TEMPO_INTEGRAL!E57 -> 0.082 | E57: =ALUNO_GRAD_TEMPO_INTEGRAL!F57 -> 52 | F57: =VLOOKUP(A57,Parametros!A:E,5,0) -> 2 | G57: 263.12
A58: =ALUNO_GRAD_TEMPO_INTEGRAL!A58 -> ENGENHARIA CIVIL - 24A | B58: =ALUNO_GRAD_TEMPO_INTEGRAL!C58 -> 65 | C58: =ALUNO_GRAD_TEMPO_INTEGRAL!D58 -> 5 | D58: =ALUNO_GRAD_TEMPO_INTEGRAL!E58 -> 0.082 | E58: =ALUNO_GRAD_TEMPO_INTEGRAL!F58 -> 100 | F58: =VLOOKUP(A58,Parametros!A:E,5,0) -> 2 | G58: 790.8
A59: =ALUNO_GRAD_TEMPO_INTEGRAL!A59 -> ENGENHARIA COMPUTACIONAL - 65B | B59: =ALUNO_GRAD_TEMPO_INTEGRAL!C59 -> 8 | C59: =ALUNO_GRAD_TEMPO_INTEGRAL!D59 -> 2 | D59: =ALUNO_GRAD_TEMPO_INTEGRAL!E59 -> 0.082 | E59: =ALUNO_GRAD_TEMPO_INTEGRAL!F59 -> 19 | F59: =VLOOKUP(A59,Parametros!A:E,5,0) -> 2 | G59: 45.624
A60: =ALUNO_GRAD_TEMPO_INTEGRAL!A60 -> ENGENHARIA DE PRODUÇÃO - 49A | B60: =ALUNO_GRAD_TEMPO_INTEGRAL!C60 -> 46 | C60: =ALUNO_GRAD_TEMPO_INTEGRAL!D60 -> 5 | D60: =ALUNO_GRAD_TEMPO_INTEGRAL!E60 -> 0.082 | E60: =ALUNO_GRAD_TEMPO_INTEGRAL!F60 -> 59 | F60: =VLOOKUP(A60,Parametros!A:E,5,0) -> 2 | G60: 530.22
A61: =ALUNO_GRAD_TEMPO_INTEGRAL!A61 -> ENGENHARIA ELÉTRICA - 25A | B61: =ALUNO_GRAD_TEMPO_INTEGRAL!C61 -> 0 | C61: =ALUNO_GRAD_TEMPO_INTEGRAL!D61 -> 5 | D61: =ALUNO_GRAD_TEMPO_INTEGRAL!E61 -> 0.082 | E61: =ALUNO_GRAD_TEMPO_INTEGRAL!F61 -> 0 | F61: =VLOOKUP(A61,Parametros!A:E,5,0) -> 2 | G61: 0
A62: =ALUNO_GRAD_TEMPO_INTEGRAL!A62 -> ENGENHARIA ELÉTRICA - 50A | B62: =ALUNO_GRAD_TEMPO_INTEGRAL!C62 -> 0 | C62: =ALUNO_GRAD_TEMPO_INTEGRAL!D62 -> 5 | D62: =ALUNO_GRAD_TEMPO_INTEGRAL!E62 -> 0.082 | E62: =ALUNO_GRAD_TEMPO_INTEGRAL!F62 -> 0 | F62: =VLOOKUP(A62,Parametros!A:E,5,0) -> 2 | G62: 0
A63: =ALUNO_GRAD_TEMPO_INTEGRAL!A63 -> ENGENHARIA ELÉTRICA - HAB. EM ROBÓTICA E AUTOMAÇÃO INDUSTRIAL - 65I | B63: =ALUNO_GRAD_TEMPO_INTEGRAL!C63 -> 1 | C63: =ALUNO_GRAD_TEMPO_INTEGRAL!D63 -> 2 | D63: =ALUNO_GRAD_TEMPO_INTEGRAL!E63 -> 0.082 | E63: =ALUNO_GRAD_TEMPO_INTEGRAL!F63 -> 0 | F63: =VLOOKUP(A63,Parametros!A:E,5,0) -> 2 | G63: 3.328
A64: =ALUNO_GRAD_TEMPO_INTEGRAL!A64 -> ENGENHARIA ELÉTRICA - HAB. EM ROBÓTICA E AUTOMAÇÃO INDUSTRIAL - 69B | B64: =ALUNO_GRAD_TEMPO_INTEGRAL!C64 -> 17 | C64: =ALUNO_GRAD_TEMPO_INTEGRAL!D64 -> 5 | D64: =ALUNO_GRAD_TEMPO_INTEGRAL!E64 -> 0.082 | E64: =ALUNO_GRAD_TEMPO_INTEGRAL!F64 -> 40 | F64: =VLOOKUP(A64,Parametros!A:E,5,0) -> 2 | G64: 241.44
A65: =ALUNO_GRAD_TEMPO_INTEGRAL!A65 -> ENGENHARIA ELÉTRICA - HABILITAÇÃO EM ENERGIA - 65H | B65: =ALUNO_GRAD_TEMPO_INTEGRAL!C65 -> 2 | C65: =ALUNO_GRAD_TEMPO_INTEGRAL!D65 -> 2 | D65: =ALUNO_GRAD_TEMPO_INTEGRAL!E65 -> 0.082 | E65: =ALUNO_GRAD_TEMPO_INTEGRAL!F65 -> 0 | F65: =VLOOKUP(A65,Parametros!A:E,5,0) -> 2 | G65: 6.656
A66: =ALUNO_GRAD_TEMPO_INTEGRAL!A66 -> ENGENHARIA ELÉTRICA - HABILITAÇÃO EM ENERGIA - 70A | B66: =ALUNO_GRAD_TEMPO_INTEGRAL!C66 -> 20 | C66: =ALUNO_GRAD_TEMPO_INTEGRAL!D66 -> 5 | D66: =ALUNO_GRAD_TEMPO_INTEGRAL!E66 -> 0.082 | E66: =ALUNO_GRAD_TEMPO_INTEGRAL!F66 -> 45 | F66: =VLOOKUP(A66,Parametros!A:E,5,0) -> 2 | G66: 278.9
A67: =ALUNO_GRAD_TEMPO_INTEGRAL!A67 -> ENGENHARIA ELÉTRICA - HABILITAÇÃO EM SISTEMAS DE POTÊNCIA - 65J | B67: =ALUNO_GRAD_TEMPO_INTEGRAL!C67 -> 4 | C67: =ALUNO_GRAD_TEMPO_INTEGRAL!D67 -> 2 | D67: =ALUNO_GRAD_TEMPO_INTEGRAL!E67 -> 0.082 | E67: =ALUNO_GRAD_TEMPO_INTEGRAL!F67 -> 0 | F67: =VLOOKUP(A67,Parametros!A:E,5,0) -> 2 | G67: 13.312
A68: =ALUNO_GRAD_TEMPO_INTEGRAL!A68 -> ENGENHARIA ELÉTRICA - HABILITAÇÃO EM SISTEMAS DE POTÊNCIA - 69C | B68: =ALUNO_GRAD_TEMPO_INTEGRAL!C68 -> 26 | C68: =ALUNO_GRAD_TEMPO_INTEGRAL!D68 -> 5 | D68: =ALUNO_GRAD_TEMPO_INTEGRAL!E68 -> 0.082 | E68: =ALUNO_GRAD_TEMPO_INTEGRAL!F68 -> 46 | F68: =VLOOKUP(A68,Parametros!A:E,5,0) -> 2 | G68: 331.32
A69: =ALUNO_GRAD_TEMPO_INTEGRAL!A69 -> ENGENHARIA ELÉTRICA - HABILITAÇÃO EM SISTEMAS ELETRÔNICOS - 65K | B69: =ALUNO_GRAD_TEMPO_INTEGRAL!C69 -> 2 | C69: =ALUNO_GRAD_TEMPO_INTEGRAL!D69 -> 2 | D69: =ALUNO_GRAD_TEMPO_INTEGRAL!E69 -> 0.082 | E69: =ALUNO_GRAD_TEMPO_INTEGRAL!F69 -> 0 | F69: =VLOOKUP(A69,Parametros!A:E,5,0) -> 2 | G69: =IFERROR(SUM(((B69*C69)*(1+D69)+((E69-B69)/4)*C69)*F69),0) -> 6.656
A70: =ALUNO_GRAD_TEMPO_INTEGRAL!A70 -> ENGENHARIA ELÉTRICA - HABILITAÇÃO EM SISTEMAS ELETRÔNICOS - 69A | B70: =ALUNO_GRAD_TEMPO_INTEGRAL!C70 -> 17 | C70: =ALUNO_GRAD_TEMPO_INTEGRAL!D70 -> 5 | D70: =ALUNO_GRAD_TEMPO_INTEGRAL!E70 -> 0.082 | E70: =ALUNO_GRAD_TEMPO_INTEGRAL!F70 -> 38 | F70: =VLOOKUP(A70,Parametros!A:E,5,0) -> 2 | G70: 236.44
A71: =ALUNO_GRAD_TEMPO_INTEGRAL!A71 -> ENGENHARIA ELÉTRICA - HABILITAÇÃO EM TELECOMUNICAÇÕES - 65L | B71: =ALUNO_GRAD_TEMPO_INTEGRAL!C71 -> 1 | C71: =ALUNO_GRAD_TEMPO_INTEGRAL!D71 -> 2 | D71: =ALUNO_GRAD_TEMPO_INTEGRAL!E71 -> 0.082 | E71: =ALUNO_GRAD_TEMPO_INTEGRAL!F71 -> 0 | F71: =VLOOKUP(A71,Parametros!A:E,5,0) -> 2 | G71: 3.328
A72: =ALUNO_GRAD_TEMPO_INTEGRAL!A72 -> ENGENHARIA ELÉTRICA - HABILITAÇÃO EM TELECOMUNICAÇÕES - 69D | B72: =ALUNO_GRAD_TEMPO_INTEGRAL!C72 -> 12 | C72: =ALUNO_GRAD_TEMPO_INTEGRAL!D72 -> 5 | D72: =ALUNO_GRAD_TEMPO_INTEGRAL!E72 -> 0.082 | E72: =ALUNO_GRAD_TEMPO_INTEGRAL!F72 -> 49 | F72: =VLOOKUP(A72,Parametros!A:E,5,0) -> 2 | G72: 222.34
A73: =ALUNO_GRAD_TEMPO_INTEGRAL!A73 -> ENGENHARIA MECÂNICA - 65M | B73: =ALUNO_GRAD_TEMPO_INTEGRAL!C73 -> 9 | C73: =ALUNO_GRAD_TEMPO_INTEGRAL!D73 -> 2 | D73: =ALUNO_GRAD_TEMPO_INTEGRAL!E73 -> 0.082 | E73: =ALUNO_GRAD_TEMPO_INTEGRAL!F73 -> 2 | F73: =VLOOKUP(A73,Parametros!A:E,5,0) -> 2 | G73: 31.952
A74: =ALUNO_GRAD_TEMPO_INTEGRAL!A74 -> ENGENHARIA MECÂNICA - 71A | B74: =ALUNO_GRAD_TEMPO_INTEGRAL!C74 -> 20 | C74: =ALUNO_GRAD_TEMPO_INTEGRAL!D74 -> 5 | D74: =ALUNO_GRAD_TEMPO_INTEGRAL!E74 -> 0.082 | E74: =ALUNO_GRAD_TEMPO_INTEGRAL!F74 -> 46 | F74: =VLOOKUP(A74,Parametros!A:E,5,0) -> 2 | G74: 281.4
A75: =ALUNO_GRAD_TEMPO_INTEGRAL!A75 -> ESTATÍSTICA - 65D | B75: =ALUNO_GRAD_TEMPO_INTEGRAL!C75 -> 9 | C75: =ALUNO_GRAD_TEMPO_INTEGRAL!D75 -> 2 | D75: =ALUNO_GRAD_TEMPO_INTEGRAL!E75 -> 0.1325 | E75: =ALUNO_GRAD_TEMPO_INTEGRAL!F75 -> 16 | F75: =VLOOKUP(A75,Parametros!A:E,5,0) -> 1.5 | G75: 35.8275
A76: =ALUNO_GRAD_TEMPO_INTEGRAL!A76 -> FARMÁCIA - 05GV | B76: =ALUNO_GRAD_TEMPO_INTEGRAL!C76 -> 3 | C76: =ALUNO_GRAD_TEMPO_INTEGRAL!D76 -> 5 | D76: =ALUNO_GRAD_TEMPO_INTEGRAL!E76 -> 0.066 | E76: =ALUNO_GRAD_TEMPO_INTEGRAL!F76 -> 80 | F76: =VLOOKUP(A76,Parametros!A:E,5,0) -> 2 | G76: 224.48
A77: =ALUNO_GRAD_TEMPO_INTEGRAL!A77 -> FARMÁCIA - 07A | B77: =ALUNO_GRAD_TEMPO_INTEGRAL!C77 -> 28 | C77: =ALUNO_GRAD_TEMPO_INTEGRAL!D77 -> 5 | D77: =ALUNO_GRAD_TEMPO_INTEGRAL!E77 -> 0.066 | E77: =ALUNO_GRAD_TEMPO_INTEGRAL!F77 -> 108 | F77: =VLOOKUP(A77,Parametros!A:E,5,0) -> 2 | G77: 498.48
A78: =ALUNO_GRAD_TEMPO_INTEGRAL!A78 -> FILOSOFIA - 08A | B78: =ALUNO_GRAD_TEMPO_INTEGRAL!C78 -> 0 | C78: =ALUNO_GRAD_TEMPO_INTEGRAL!D78 -> 4 | D78: =ALUNO_GRAD_TEMPO_INTEGRAL!E78 -> 0.1 | E78: =ALUNO_GRAD_TEMPO_INTEGRAL!F78 -> 0 | F78: =VLOOKUP(A78,Parametros!A:E,5,0) -> 1 | G78: 0
A79: =ALUNO_GRAD_TEMPO_INTEGRAL!A79 -> FILOSOFIA - 08B | B79: =ALUNO_GRAD_TEMPO_INTEGRAL!C79 -> 11 | C79: =ALUNO_GRAD_TEMPO_INTEGRAL!D79 -> 4 | D79: =ALUNO_GRAD_TEMPO_INTEGRAL!E79 -> 0.1 | E79: =ALUNO_GRAD_TEMPO_INTEGRAL!F79 -> 3 | F79: =VLOOKUP(A79,Parametros!A:E,5,0) -> 1 | G79: 40.4
A80: =ALUNO_GRAD_TEMPO_INTEGRAL!A80 -> FILOSOFIA - 08L | B80: =ALUNO_GRAD_TEMPO_INTEGRAL!C80 -> 7 | C80: =ALUNO_GRAD_TEMPO_INTEGRAL!D80 -> 4 | D80: =ALUNO_GRAD_TEMPO_INTEGRAL!E80 -> 0.1 | E80: =ALUNO_GRAD_TEMPO_INTEGRAL!F80 -> 7 | F80: =VLOOKUP(A80,Parametros!A:E,5,0) -> 1 | G80: 30.8
A81: =ALUNO_GRAD_TEMPO_INTEGRAL!A81 -> FILOSOFIA - 72EB | B81: =ALUNO_GRAD_TEMPO_INTEGRAL!C81 -> 1 | C81: =ALUNO_GRAD_TEMPO_INTEGRAL!D81 -> 2 | D81: =ALUNO_GRAD_TEMPO_INTEGRAL!E81 -> 0.1 | E81: =ALUNO_GRAD_TEMPO_INTEGRAL!F81 -> 1 | F81: =VLOOKUP(A81,Parametros!A:E,5,0) -> 1 | G81: 2.2
A82: =ALUNO_GRAD_TEMPO_INTEGRAL!A82 -> FILOSOFIA - 72EL | B82: =ALUNO_GRAD_TEMPO_INTEGRAL!C82 -> 2 | C82: =ALUNO_GRAD_TEMPO_INTEGRAL!D82 -> 2 | D82: =ALUNO_GRAD_TEMPO_INTEGRAL!E82 -> 0.1 | E82: =ALUNO_GRAD_TEMPO_INTEGRAL!F82 -> 0 | F82: =VLOOKUP(A82,Parametros!A:E,5,0) -> 1 | G82: 3.4
A83: =ALUNO_GRAD_TEMPO_INTEGRAL!A83 -> FILOSOFIA - 73E | B83: =ALUNO_GRAD_TEMPO_INTEGRAL!C83 -> 0 | C83: =ALUNO_GRAD_TEMPO_INTEGRAL!D83 -> 2 | D83: =ALUNO_GRAD_TEMPO_INTEGRAL!E83 -> 0.1 | E83: =ALUNO_GRAD_TEMPO_INTEGRAL!F83 -> 0 | F83: =VLOOKUP(A83,Parametros!A:E,5,0) -> 1 | G83: 0
A84: =ALUNO_GRAD_TEMPO_INTEGRAL!A84 -> FÍSICA - 09A | B84: =ALUNO_GRAD_TEMPO_INTEGRAL!C84 -> 0 | C84: =ALUNO_GRAD_TEMPO_INTEGRAL!D84 -> 4 | D84: =ALUNO_GRAD_TEMPO_INTEGRAL!E84 -> 0.1325 | E84: =ALUNO_GRAD_TEMPO_INTEGRAL!F84 -> 0 | F84: =VLOOKUP(A84,Parametros!A:E,5,0) -> 1.5 | G84: 0
A85: =ALUNO_GRAD_TEMPO_INTEGRAL!A85 -> FÍSICA - 65E | B85: =ALUNO_GRAD_TEMPO_INTEGRAL!C85 -> 7 | C85: =ALUNO_GRAD_TEMPO_INTEGRAL!D85 -> 2 | D85: =ALUNO_GRAD_TEMPO_INTEGRAL!E85 -> 0.1325 | E85: =ALUNO_GRAD_TEMPO_INTEGRAL!F85 -> 19 | F85: =VLOOKUP(A85,Parametros!A:E,5,0) -> 1.5 | G85: 32.7825
A86: =ALUNO_GRAD_TEMPO_INTEGRAL!A86 -> FÍSICA - 65EL | B86: =ALUNO_GRAD_TEMPO_INTEGRAL!C86 -> 1 | C86: =ALUNO_GRAD_TEMPO_INTEGRAL!D86 -> 2 | D86: =ALUNO_GRAD_TEMPO_INTEGRAL!E86 -> 0.1325 | E86: =ALUNO_GRAD_TEMPO_INTEGRAL!F86 -> 0 | F86: =VLOOKUP(A86,Parametros!A:E,5,0) -> 1.5 | G86: 2.6475
A87: =ALUNO_GRAD_TEMPO_INTEGRAL!A87 -> FÍSICA - 81A | B87: =ALUNO_GRAD_TEMPO_INTEGRAL!C87 -> 4 | C87: =ALUNO_GRAD_TEMPO_INTEGRAL!D87 -> 4 | D87: =ALUNO_GRAD_TEMPO_INTEGRAL!E87 -> 0.1325 | E87: =ALUNO_GRAD_TEMPO_INTEGRAL!F87 -> 18 | F87: =VLOOKUP(A87,Parametros!A:E,5,0) -> 1.5 | G87: 48.18
A88: =ALUNO_GRAD_TEMPO_INTEGRAL!A88 -> FISIOTERAPIA - 06GV | B88: =ALUNO_GRAD_TEMPO_INTEGRAL!C88 -> 15 | C88: =ALUNO_GRAD_TEMPO_INTEGRAL!D88 -> 5 | D88: =ALUNO_GRAD_TEMPO_INTEGRAL!E88 -> 0.066 | E88: =ALUNO_GRAD_TEMPO_INTEGRAL!F88 -> 33 | F88: =VLOOKUP(A88,Parametros!A:E,5,0) -> 1.5 | G88: 153.675
A89: =ALUNO_GRAD_TEMPO_INTEGRAL!A89 -> FISIOTERAPIA - 20A | B89: =ALUNO_GRAD_TEMPO_INTEGRAL!C89 -> 27 | C89: =ALUNO_GRAD_TEMPO_INTEGRAL!D89 -> 5 | D89: =ALUNO_GRAD_TEMPO_INTEGRAL!E89 -> 0.066 | E89: =ALUNO_GRAD_TEMPO_INTEGRAL!F89 -> 50 | F89: =VLOOKUP(A89,Parametros!A:E,5,0) -> 1.5 | G89: 258.99
A90: =ALUNO_GRAD_TEMPO_INTEGRAL!A90 -> GEOGRAFIA - 10B | B90: =ALUNO_GRAD_TEMPO_INTEGRAL!C90 -> 13 | C90: =ALUNO_GRAD_TEMPO_INTEGRAL!D90 -> 4 | D90: =ALUNO_GRAD_TEMPO_INTEGRAL!E90 -> 0.1 | E90: =ALUNO_GRAD_TEMPO_INTEGRAL!F90 -> 1 | F90: =VLOOKUP(A90,Parametros!A:E,5,0) -> 1 | G90: 45.2
A91: =ALUNO_GRAD_TEMPO_INTEGRAL!A91 -> GEOGRAFIA - 10L | B91: =ALUNO_GRAD_TEMPO_INTEGRAL!C91 -> 19 | C91: =ALUNO_GRAD_TEMPO_INTEGRAL!D91 -> 4 | D91: =ALUNO_GRAD_TEMPO_INTEGRAL!E91 -> 0.1 | E91: =ALUNO_GRAD_TEMPO_INTEGRAL!F91 -> 0 | F91: =VLOOKUP(A91,Parametros!A:E,5,0) -> 1 | G91: 64.6
A92: =ALUNO_GRAD_TEMPO_INTEGRAL!A92 -> GEOGRAFIA - 27A | B92: =ALUNO_GRAD_TEMPO_INTEGRAL!C92 -> 0 | C92: =ALUNO_GRAD_TEMPO_INTEGRAL!D92 -> 4 | D92: =ALUNO_GRAD_TEMPO_INTEGRAL!E92 -> 0.1 | E92: =ALUNO_GRAD_TEMPO_INTEGRAL!F92 -> 0 | F92: =VLOOKUP(A92,Parametros!A:E,5,0) -> 1 | G92: 0
A93: =ALUNO_GRAD_TEMPO_INTEGRAL!A93 -> GEOGRAFIA - 27L | B93: =ALUNO_GRAD_TEMPO_INTEGRAL!C93 -> 19 | C93: =ALUNO_GRAD_TEMPO_INTEGRAL!D93 -> 4 | D93: =ALUNO_GRAD_TEMPO_INTEGRAL!E93 -> 0.1 | E93: =ALUNO_GRAD_TEMPO_INTEGRAL!F93 -> 44 | F93: =VLOOKUP(A93,Parametros!A:E,5,0) -> 1 | G93: 108.6
A94: =ALUNO_GRAD_TEMPO_INTEGRAL!A94 -> HISTÓRIA - 11A | B94: =ALUNO_GRAD_TEMPO_INTEGRAL!C94 -> 0 | C94: =ALUNO_GRAD_TEMPO_INTEGRAL!D94 -> 4 | D94: =ALUNO_GRAD_TEMPO_INTEGRAL!E94 -> 0.1 | E94: =ALUNO_GRAD_TEMPO_INTEGRAL!F94 -> 0 | F94: =VLOOKUP(A94,Parametros!A:E,5,0) -> 1 | G94: 0
A95: =ALUNO_GRAD_TEMPO_INTEGRAL!A95 -> HISTÓRIA - 11B | B95: =ALUNO_GRAD_TEMPO_INTEGRAL!C95 -> 5 | C95: =ALUNO_GRAD_TEMPO_INTEGRAL!D95 -> 4 | D95: =ALUNO_GRAD_TEMPO_INTEGRAL!E95 -> 0.1 | E95: =ALUNO_GRAD_TEMPO_INTEGRAL!F95 -> 0 | F95: =VLOOKUP(A95,Parametros!A:E,5,0) -> 1 | G95: 17
A96: =ALUNO_GRAD_TEMPO_INTEGRAL!A96 -> HISTÓRIA - 11L | B96: =ALUNO_GRAD_TEMPO_INTEGRAL!C96 -> 32 | C96: =ALUNO_GRAD_TEMPO_INTEGRAL!D96 -> 4 | D96: =ALUNO_GRAD_TEMPO_INTEGRAL!E96 -> 0.1 | E96: =ALUNO_GRAD_TEMPO_INTEGRAL!F96 -> 0 | F96: =VLOOKUP(A96,Parametros!A:E,5,0) -> 1 | G96: 108.8
A97: =ALUNO_GRAD_TEMPO_INTEGRAL!A97 -> HISTÓRIA - 28A | B97: =ALUNO_GRAD_TEMPO_INTEGRAL!C97 -> 0 | C97: =ALUNO_GRAD_TEMPO_INTEGRAL!D97 -> 4 | D97: =ALUNO_GRAD_TEMPO_INTEGRAL!E97 -> 0.1 | E97: =ALUNO_GRAD_TEMPO_INTEGRAL!F97 -> 0 | F97: =VLOOKUP(A97,Parametros!A:E,5,0) -> 1 | G97: 0
A98: =ALUNO_GRAD_TEMPO_INTEGRAL!A98 -> HISTÓRIA - 28B | B98: =ALUNO_GRAD_TEMPO_INTEGRAL!C98 -> 4 | C98: =ALUNO_GRAD_TEMPO_INTEGRAL!D98 -> 4 | D98: =ALUNO_GRAD_TEMPO_INTEGRAL!E98 -> 0.1 | E98: =ALUNO_GRAD_TEMPO_INTEGRAL!F98 -> 0 | F98: =VLOOKUP(A98,Parametros!A:E,5,0) -> 1 | G98: 13.6
A99: =ALUNO_GRAD_TEMPO_INTEGRAL!A99 -> HISTÓRIA - 28L | B99: =ALUNO_GRAD_TEMPO_INTEGRAL!C99 -> 22 | C99: =ALUNO_GRAD_TEMPO_INTEGRAL!D99 -> 4 | D99: =ALUNO_GRAD_TEMPO_INTEGRAL!E99 -> 0.1 | E99: =ALUNO_GRAD_TEMPO_INTEGRAL!F99 -> 0 | F99: =VLOOKUP(A99,Parametros!A:E,5,0) -> 1 | G99: 74.8
A100: =ALUNO_GRAD_TEMPO_INTEGRAL!A100 -> JORNALISMO - 84A | B100: =ALUNO_GRAD_TEMPO_INTEGRAL!C100 -> 11 | C100: =ALUNO_GRAD_TEMPO_INTEGRAL!D100 -> 4 | D100: =ALUNO_GRAD_TEMPO_INTEGRAL!E100 -> 0.12 | E100: =ALUNO_GRAD_TEMPO_INTEGRAL!F100 -> 42 | F100: =VLOOKUP(A100,Parametros!A:E,5,0) -> 1 | G100: 80.28
A101: =ALUNO_GRAD_TEMPO_INTEGRAL!A101 -> JORNALISMO - 85A | B101: =ALUNO_GRAD_TEMPO_INTEGRAL!C101 -> 12 | C101: =ALUNO_GRAD_TEMPO_INTEGRAL!D101 -> 4 | D101: =ALUNO_GRAD_TEMPO_INTEGRAL!E101 -> 0.12 | E101: =ALUNO_GRAD_TEMPO_INTEGRAL!F101 -> 36 | F101: =VLOOKUP(A101,Parametros!A:E,5,0) -> 1 | G101: 77.76
A102: =ALUNO_GRAD_TEMPO_INTEGRAL!A102 -> LETRAS - 13A | B102: =ALUNO_GRAD_TEMPO_INTEGRAL!C102 -> 0 | C102: =ALUNO_GRAD_TEMPO_INTEGRAL!D102 -> 4 | D102: =ALUNO_GRAD_TEMPO_INTEGRAL!E102 -> 0.115 | E102: =ALUNO_GRAD_TEMPO_INTEGRAL!F102 -> 0 | F102: =VLOOKUP(A102,Parametros!A:E,5,0) -> 1 | G102: 0
A103: =ALUNO_GRAD_TEMPO_INTEGRAL!A103 -> LETRAS - 13B | B103: =ALUNO_GRAD_TEMPO_INTEGRAL!C103 -> 7 | C103: =ALUNO_GRAD_TEMPO_INTEGRAL!D103 -> 4 | D103: =ALUNO_GRAD_TEMPO_INTEGRAL!E103 -> 0.115 | E103: =ALUNO_GRAD_TEMPO_INTEGRAL!F103 -> 10 | F103: =VLOOKUP(A103,Parametros!A:E,5,0) -> 1 | G103: 34.22
A104: =ALUNO_GRAD_TEMPO_INTEGRAL!A104 -> LETRAS - 13L | B104: =ALUNO_GRAD_TEMPO_INTEGRAL!C104 -> 36 | C104: =ALUNO_GRAD_TEMPO_INTEGRAL!D104 -> 4 | D104: =ALUNO_GRAD_TEMPO_INTEGRAL!E104 -> 0.115 | E104: =ALUNO_GRAD_TEMPO_INTEGRAL!F104 -> 12 | F104: =VLOOKUP(A104,Parametros!A:E,5,0) -> 1 | G104: 136.56
A105: =ALUNO_GRAD_TEMPO_INTEGRAL!A105 -> LETRAS - 29A | B105: =ALUNO_GRAD_TEMPO_INTEGRAL!C105 -> 0 | C105: =ALUNO_GRAD_TEMPO_INTEGRAL!D105 -> 4 | D105: =ALUNO_GRAD_TEMPO_INTEGRAL!E105 -> 0.115 | E105: =ALUNO_GRAD_TEMPO_INTEGRAL!F105 -> 0 | F105: =VLOOKUP(A105,Parametros!A:E,5,0) -> 1 | G105: 0
A106: =ALUNO_GRAD_TEMPO_INTEGRAL!A106 -> LETRAS - 29B | B106: =ALUNO_GRAD_TEMPO_INTEGRAL!C106 -> 0 | C106: =ALUNO_GRAD_TEMPO_INTEGRAL!D106 -> 4 | D106: =ALUNO_GRAD_TEMPO_INTEGRAL!E106 -> 0.115 | E106: =ALUNO_GRAD_TEMPO_INTEGRAL!F106 -> 0 | F106: =VLOOKUP(A106,Parametros!A:E,5,0) -> 1 | G106: 0
A107: =ALUNO_GRAD_TEMPO_INTEGRAL!A107 -> LETRAS - 29L | B107: =ALUNO_GRAD_TEMPO_INTEGRAL!C107 -> 20 | C107: =ALUNO_GRAD_TEMPO_INTEGRAL!D107 -> 4 | D107: =ALUNO_GRAD_TEMPO_INTEGRAL!E107 -> 0.115 | E107: =ALUNO_GRAD_TEMPO_INTEGRAL!F107 -> 51 | F107: =VLOOKUP(A107,Parametros!A:E,5,0) -> 1 | G107: 120.2
A108: =ALUNO_GRAD_TEMPO_INTEGRAL!A108 -> LICENCIATURA EM ARTES VISUAIS - 66F | B108: =ALUNO_GRAD_TEMPO_INTEGRAL!C108 -> 16 | C108: =ALUNO_GRAD_TEMPO_INTEGRAL!D108 -> 2 | D108: =ALUNO_GRAD_TEMPO_INTEGRAL!E108 -> 0.1 | E108: =ALUNO_GRAD_TEMPO_INTEGRAL!F108 -> 52 | F108: =VLOOKUP(A108,Parametros!A:E,5,0) -> 1.5 | G108: 79.8
A109: =ALUNO_GRAD_TEMPO_INTEGRAL!A109 -> LICENCIATURA EM LETRAS - LIBRAS - 88A | B109: =ALUNO_GRAD_TEMPO_INTEGRAL!C109 -> 11 | C109: =ALUNO_GRAD_TEMPO_INTEGRAL!D109 -> 4 | D109: =ALUNO_GRAD_TEMPO_INTEGRAL!E109 -> 0.115 | E109: =ALUNO_GRAD_TEMPO_INTEGRAL!F109 -> 23 | F109: =VLOOKUP(A109,Parametros!A:E,5,0) -> 1 | G109: 61.06
A110: =ALUNO_GRAD_TEMPO_INTEGRAL!A110 -> LICENCIATURA EM MÚSICA - 89A | B110: =ALUNO_GRAD_TEMPO_INTEGRAL!C110 -> 9 | C110: =ALUNO_GRAD_TEMPO_INTEGRAL!D110 -> 4 | D110: =ALUNO_GRAD_TEMPO_INTEGRAL!E110 -> 0.115 | E110: =ALUNO_GRAD_TEMPO_INTEGRAL!F110 -> 10 | F110: =VLOOKUP(A110,Parametros!A:E,5,0) -> 1.5 | G110: 61.71
A111: =ALUNO_GRAD_TEMPO_INTEGRAL!A111 -> MATEMÁTICA - 65F | B111: =ALUNO_GRAD_TEMPO_INTEGRAL!C111 -> 2 | C111: =ALUNO_GRAD_TEMPO_INTEGRAL!D111 -> 2 | D111: =ALUNO_GRAD_TEMPO_INTEGRAL!E111 -> 0.1325 | E111: =ALUNO_GRAD_TEMPO_INTEGRAL!F111 -> 23 | F111: =VLOOKUP(A111,Parametros!A:E,5,0) -> 1.5 | G111: 22.545
A112: =ALUNO_GRAD_TEMPO_INTEGRAL!A112 -> MATEMÁTICA - 65FL | B112: =ALUNO_GRAD_TEMPO_INTEGRAL!C112 -> 3 | C112: =ALUNO_GRAD_TEMPO_INTEGRAL!D112 -> 2 | D112: =ALUNO_GRAD_TEMPO_INTEGRAL!E112 -> 0.1325 | E112: =ALUNO_GRAD_TEMPO_INTEGRAL!F112 -> 2 | F112: =VLOOKUP(A112,Parametros!A:E,5,0) -> 1.5 | G112: 9.4425
A113: =ALUNO_GRAD_TEMPO_INTEGRAL!A113 -> MATEMÁTICA - 82A | B113: =ALUNO_GRAD_TEMPO_INTEGRAL!C113 -> 6 | C113: =ALUNO_GRAD_TEMPO_INTEGRAL!D113 -> 4 | D113: =ALUNO_GRAD_TEMPO_INTEGRAL!E113 -> 0.1325 | E113: =ALUNO_GRAD_TEMPO_INTEGRAL!F113 -> 18 | F113: =VLOOKUP(A113,Parametros!A:E,5,0) -> 1.5 | G113: 58.77
A114: =ALUNO_GRAD_TEMPO_INTEGRAL!A114 -> MEDICINA - 07GV | B114: =ALUNO_GRAD_TEMPO_INTEGRAL!C114 -> 71 | C114: =ALUNO_GRAD_TEMPO_INTEGRAL!D114 -> 6 | D114: =ALUNO_GRAD_TEMPO_INTEGRAL!E114 -> 0.065 | E114: =ALUNO_GRAD_TEMPO_INTEGRAL!F114 -> 105 | F114: =VLOOKUP(A114,Parametros!A:E,5,0) -> 4.5 | G114: 2271.105
A115: =ALUNO_GRAD_TEMPO_INTEGRAL!A115 -> MEDICINA - 15A | B115: =ALUNO_GRAD_TEMPO_INTEGRAL!C115 -> 149 | C115: =ALUNO_GRAD_TEMPO_INTEGRAL!D115 -> 6 | D115: =ALUNO_GRAD_TEMPO_INTEGRAL!E115 -> 0.065 | E115: =ALUNO_GRAD_TEMPO_INTEGRAL!F115 -> 192 | F115: =VLOOKUP(A115,Parametros!A:E,5,0) -> 4.5 | G115: 4574.745
A116: =ALUNO_GRAD_TEMPO_INTEGRAL!A116 -> MEDICINA VETERINÁRIA - 87A | B116: =ALUNO_GRAD_TEMPO_INTEGRAL!C116 -> 33 | C116: =ALUNO_GRAD_TEMPO_INTEGRAL!D116 -> 5 | D116: =ALUNO_GRAD_TEMPO_INTEGRAL!E116 -> 0.65 | E116: =ALUNO_GRAD_TEMPO_INTEGRAL!F116 -> 113 | F116: =VLOOKUP(A116,Parametros!A:E,5,0) -> 4.5 | G116: 1675.125
A117: =ALUNO_GRAD_TEMPO_INTEGRAL!A117 -> MÚSICA - CANTO - 63A | B117: =ALUNO_GRAD_TEMPO_INTEGRAL!C117 -> 2 | C117: =ALUNO_GRAD_TEMPO_INTEGRAL!D117 -> 4 | D117: =ALUNO_GRAD_TEMPO_INTEGRAL!E117 -> 0.115 | E117: =ALUNO_GRAD_TEMPO_INTEGRAL!F117 -> 0 | F117: =VLOOKUP(A117,Parametros!A:E,5,0) -> 1 | G117: 6.92
A118: =ALUNO_GRAD_TEMPO_INTEGRAL!A118 -> MÚSICA - MODALIDADE COMPOSIÇÃO - 63G | B118: =ALUNO_GRAD_TEMPO_INTEGRAL!C118 -> 4 | C118: =ALUNO_GRAD_TEMPO_INTEGRAL!D118 -> 4 | D118: =ALUNO_GRAD_TEMPO_INTEGRAL!E118 -> 0.115 | E118: =ALUNO_GRAD_TEMPO_INTEGRAL!F118 -> 14 | F118: =VLOOKUP(A118,Parametros!A:E,5,0) -> 1 | G118: 27.84
A119: =ALUNO_GRAD_TEMPO_INTEGRAL!A119 -> MÚSICA - MODALIDADE FLAUTA TRANSVERSAL - 63B | B119: =ALUNO_GRAD_TEMPO_INTEGRAL!C119 -> 2 | C119: =ALUNO_GRAD_TEMPO_INTEGRAL!D119 -> 4 | D119: =ALUNO_GRAD_TEMPO_INTEGRAL!E119 -> 0.115 | E119: =ALUNO_GRAD_TEMPO_INTEGRAL!F119 -> 4 | F119: =VLOOKUP(A119,Parametros!A:E,5,0) -> 1 | G119: 10.92
A120: =ALUNO_GRAD_TEMPO_INTEGRAL!A120 -> MÚSICA - MODALIDADE PIANO - 63C | B120: =ALUNO_GRAD_TEMPO_INTEGRAL!C120 -> 0 | C120: =ALUNO_GRAD_TEMPO_INTEGRAL!D120 -> 4 | D120: =ALUNO_GRAD_TEMPO_INTEGRAL!E120 -> 0.115 | E120: =ALUNO_GRAD_TEMPO_INTEGRAL!F120 -> 2 | F120: =VLOOKUP(A120,Parametros!A:E,5,0) -> 1 | G120: 2
A121: =ALUNO_GRAD_TEMPO_INTEGRAL!A121 -> MÚSICA - MODALIDADE VIOLÃO - 63D | B121: =ALUNO_GRAD_TEMPO_INTEGRAL!C121 -> 2 | C121: =ALUNO_GRAD_TEMPO_INTEGRAL!D121 -> 4 | D121: =ALUNO_GRAD_TEMPO_INTEGRAL!E121 -> 0.115 | E121: =ALUNO_GRAD_TEMPO_INTEGRAL!F121 -> 4 | F121: =VLOOKUP(A121,Parametros!A:E,5,0) -> 1 | G121: 10.92
A122: =ALUNO_GRAD_TEMPO_INTEGRAL!A122 -> MÚSICA - MODALIDADE VIOLINO - 63E | B122: =ALUNO_GRAD_TEMPO_INTEGRAL!C122 -> 2 | C122: =ALUNO_GRAD_TEMPO_INTEGRAL!D122 -> 4 | D122: =ALUNO_GRAD_TEMPO_INTEGRAL!E122 -> 0.115 | E122: =ALUNO_GRAD_TEMPO_INTEGRAL!F122 -> 0 | F122: =VLOOKUP(A122,Parametros!A:E,5,0) -> 1 | G122: 6.92
A123: =ALUNO_GRAD_TEMPO_INTEGRAL!A123 -> MÚSICA - MODALIDADE VIOLONCELO - 63F | B123: =ALUNO_GRAD_TEMPO_INTEGRAL!C123 -> 0 | C123: =ALUNO_GRAD_TEMPO_INTEGRAL!D123 -> 4 | D123: =ALUNO_GRAD_TEMPO_INTEGRAL!E123 -> 0.115 | E123: =ALUNO_GRAD_TEMPO_INTEGRAL!F123 -> 0 | F123: =VLOOKUP(A123,Parametros!A:E,5,0) -> 1 | G123: 0
A124: =ALUNO_GRAD_TEMPO_INTEGRAL!A124 -> NUTRIÇÃO - 08GV | B124: =ALUNO_GRAD_TEMPO_INTEGRAL!C124 -> 17 | C124: =ALUNO_GRAD_TEMPO_INTEGRAL!D124 -> 5 | D124: =ALUNO_GRAD_TEMPO_INTEGRAL!E124 -> 0.66 | E124: =ALUNO_GRAD_TEMPO_INTEGRAL!F124 -> 76 | F124: =VLOOKUP(A124,Parametros!A:E,5,0) -> 2 | G124: 429.7
A125: =ALUNO_GRAD_TEMPO_INTEGRAL!A125 -> NUTRIÇÃO - 64A | B125: =ALUNO_GRAD_TEMPO_INTEGRAL!C125 -> 78 | C125: =ALUNO_GRAD_TEMPO_INTEGRAL!D125 -> 5 | D125: =ALUNO_GRAD_TEMPO_INTEGRAL!E125 -> 0.066 | E125: =ALUNO_GRAD_TEMPO_INTEGRAL!F125 -> 106 | F125: =VLOOKUP(A125,Parametros!A:E,5,0) -> 2 | G125: 901.48
A126: =ALUNO_GRAD_TEMPO_INTEGRAL!A126 -> ODONTOLOGIA - 09GV | B126: =ALUNO_GRAD_TEMPO_INTEGRAL!C126 -> 53 | C126: =ALUNO_GRAD_TEMPO_INTEGRAL!D126 -> 5 | D126: =ALUNO_GRAD_TEMPO_INTEGRAL!E126 -> 0.65 | E126: =ALUNO_GRAD_TEMPO_INTEGRAL!F126 -> 88 | F126: =VLOOKUP(A126,Parametros!A:E,5,0) -> 4.5 | G126: 2164.5
A127: =ALUNO_GRAD_TEMPO_INTEGRAL!A127 -> ODONTOLOGIA - 16A | B127: =ALUNO_GRAD_TEMPO_INTEGRAL!C127 -> 69 | C127: =ALUNO_GRAD_TEMPO_INTEGRAL!D127 -> 5 | D127: =ALUNO_GRAD_TEMPO_INTEGRAL!E127 -> 0.065 | E127: =ALUNO_GRAD_TEMPO_INTEGRAL!F127 -> 107 | F127: =VLOOKUP(A127,Parametros!A:E,5,0) -> 4.5 | G127: 1867.1625
A128: =ALUNO_GRAD_TEMPO_INTEGRAL!A128 -> PEDAGOGIA - 17A | B128: =ALUNO_GRAD_TEMPO_INTEGRAL!C128 -> 28 | C128: =ALUNO_GRAD_TEMPO_INTEGRAL!D128 -> 4 | D128: =ALUNO_GRAD_TEMPO_INTEGRAL!E128 -> 0.1 | E128: =ALUNO_GRAD_TEMPO_INTEGRAL!F128 -> 41 | F128: =VLOOKUP(A128,Parametros!A:E,5,0) -> 1 | G128: 136.2
A129: =ALUNO_GRAD_TEMPO_INTEGRAL!A129 -> PEDAGOGIA - 30A | B129: =ALUNO_GRAD_TEMPO_INTEGRAL!C129 -> 19 | C129: =ALUNO_GRAD_TEMPO_INTEGRAL!D129 -> 4 | D129: =ALUNO_GRAD_TEMPO_INTEGRAL!E129 -> 0.1 | E129: =ALUNO_GRAD_TEMPO_INTEGRAL!F129 -> 43 | F129: =VLOOKUP(A129,Parametros!A:E,5,0) -> 1 | G129: 107.6
A130: =ALUNO_GRAD_TEMPO_INTEGRAL!A130 -> PSICOLOGIA - 32A | B130: =ALUNO_GRAD_TEMPO_INTEGRAL!C130 -> 36 | C130: =ALUNO_GRAD_TEMPO_INTEGRAL!D130 -> 5 | D130: =ALUNO_GRAD_TEMPO_INTEGRAL!E130 -> 0.1 | E130: =ALUNO_GRAD_TEMPO_INTEGRAL!F130 -> 52 | F130: =VLOOKUP(A130,Parametros!A:E,5,0) -> 1 | G130: 218
A131: =ALUNO_GRAD_TEMPO_INTEGRAL!A131 -> QUÍMICA - 65GB | B131: =ALUNO_GRAD_TEMPO_INTEGRAL!C131 -> 8 | C131: =ALUNO_GRAD_TEMPO_INTEGRAL!D131 -> 2 | D131: =ALUNO_GRAD_TEMPO_INTEGRAL!E131 -> 0.1325 | E131: =ALUNO_GRAD_TEMPO_INTEGRAL!F131 -> 40 | F131: =VLOOKUP(A131,Parametros!A:E,5,0) -> 1.5 | G131: 51.18
A132: =ALUNO_GRAD_TEMPO_INTEGRAL!A132 -> QUÍMICA - 65GL | B132: =ALUNO_GRAD_TEMPO_INTEGRAL!C132 -> 15 | C132: =ALUNO_GRAD_TEMPO_INTEGRAL!D132 -> 2 | D132: =ALUNO_GRAD_TEMPO_INTEGRAL!E132 -> 0.1325 | E132: =ALUNO_GRAD_TEMPO_INTEGRAL!F132 -> 0 | F132: =VLOOKUP(A132,Parametros!A:E,5,0) -> 1.5 | G132: 39.7125
A133: =ALUNO_GRAD_TEMPO_INTEGRAL!A133 -> QUÍMICA - 83A | B133: =ALUNO_GRAD_TEMPO_INTEGRAL!C133 -> 4 | C133: =ALUNO_GRAD_TEMPO_INTEGRAL!D133 -> 4 | D133: =ALUNO_GRAD_TEMPO_INTEGRAL!E133 -> 0.1325 | E133: =ALUNO_GRAD_TEMPO_INTEGRAL!F133 -> 14 | F133: =VLOOKUP(A133,Parametros!A:E,5,0) -> 1.5 | G133: =IFERROR(SUM(((B133*C133)*(1+D133)+((E133-B133)/4)*C133)*F133),0) -> 42.18
A134: =ALUNO_GRAD_TEMPO_INTEGRAL!A134 -> RÁDIO, TV E INTERNET - 91A | B134: =ALUNO_GRAD_TEMPO_INTEGRAL!C134 -> 6 | C134: =ALUNO_GRAD_TEMPO_INTEGRAL!D134 -> 4 | D134: =ALUNO_GRAD_TEMPO_INTEGRAL!E134 -> 0.12 | E134: =ALUNO_GRAD_TEMPO_INTEGRAL!F134 -> 31 | F134: =VLOOKUP(A134,Parametros!A:E,5,0) -> 1 | G134: 51.88
A135: =ALUNO_GRAD_TEMPO_INTEGRAL!A135 -> SERVIÇO SOCIAL - 19A | B135: =ALUNO_GRAD_TEMPO_INTEGRAL!C135 -> 6 | C135: =ALUNO_GRAD_TEMPO_INTEGRAL!D135 -> 4 | D135: =ALUNO_GRAD_TEMPO_INTEGRAL!E135 -> 0.12 | E135: =ALUNO_GRAD_TEMPO_INTEGRAL!F135 -> 37 | F135: =VLOOKUP(A135,Parametros!A:E,5,0) -> 1 | G135: 57.88
A136: =ALUNO_GRAD_TEMPO_INTEGRAL!A136 -> SERVIÇO SOCIAL - 68A | B136: =ALUNO_GRAD_TEMPO_INTEGRAL!C136 -> 9 | C136: =ALUNO_GRAD_TEMPO_INTEGRAL!D136 -> 4 | D136: =ALUNO_GRAD_TEMPO_INTEGRAL!E136 -> 0.12 | E136: =ALUNO_GRAD_TEMPO_INTEGRAL!F136 -> 44 | F136: =VLOOKUP(A136,Parametros!A:E,5,0) -> 1 | G136: 75.32
A137: =ALUNO_GRAD_TEMPO_INTEGRAL!A137 -> SISTEMAS DE INFORMAÇÃO - 76A | B137: =ALUNO_GRAD_TEMPO_INTEGRAL!C137 -> 12 | C137: =ALUNO_GRAD_TEMPO_INTEGRAL!D137 -> 4 | D137: =ALUNO_GRAD_TEMPO_INTEGRAL!E137 -> 0.1325 | E137: =ALUNO_GRAD_TEMPO_INTEGRAL!F137 -> 44 | F137: =VLOOKUP(A137,Parametros!A:E,5,0) -> 1.5 | G137: 129.54
A138: =ALUNO_GRAD_TEMPO_INTEGRAL!A138 -> TURISMO - 72D | B138: =ALUNO_GRAD_TEMPO_INTEGRAL!C138 -> 6 | C138: =ALUNO_GRAD_TEMPO_INTEGRAL!D138 -> 2 | D138: =ALUNO_GRAD_TEMPO_INTEGRAL!E138 -> 0.1 | E138: =ALUNO_GRAD_TEMPO_INTEGRAL!F138 -> 0 | F138: =VLOOKUP(A138,Parametros!A:E,5,0) -> 1 | G138: 10.2
A139: =ALUNO_GRAD_TEMPO_INTEGRAL!A139 -> TURISMO - 73D | B139: =ALUNO_GRAD_TEMPO_INTEGRAL!C139 -> 7 | C139: =ALUNO_GRAD_TEMPO_INTEGRAL!D139 -> 2 | D139: =ALUNO_GRAD_TEMPO_INTEGRAL!E139 -> 0.1 | E139: =ALUNO_GRAD_TEMPO_INTEGRAL!F139 -> 0 | F139: =VLOOKUP(A139,Parametros!A:E,5,0) -> 1 | G139: 11.9
A140: =ALUNO_GRAD_TEMPO_INTEGRAL!A140 -> TURISMO - 92A | B140: =ALUNO_GRAD_TEMPO_INTEGRAL!C140 -> 4 | C140: =ALUNO_GRAD_TEMPO_INTEGRAL!D140 -> 4 | D140: =ALUNO_GRAD_TEMPO_INTEGRAL!E140 -> 0.12 | E140: =ALUNO_GRAD_TEMPO_INTEGRAL!F140 -> 49 | F140: =VLOOKUP(A140,Parametros!A:E,5,0) -> 1 | G140: 62.92
A141: =ALUNO_GRAD_TEMPO_INTEGRAL!A141 -> TURISMO - 93A | B141: =ALUNO_GRAD_TEMPO_INTEGRAL!C141 -> 1 | C141: =ALUNO_GRAD_TEMPO_INTEGRAL!D141 -> 4 | D141: =ALUNO_GRAD_TEMPO_INTEGRAL!E141 -> 0.12 | E141: =ALUNO_GRAD_TEMPO_INTEGRAL!F141 -> 41 | F141: =VLOOKUP(A141,Parametros!A:E,5,0) -> 1 | G141: 44.48
B142: =SUM(B4:B141) -> 2270 | E142: =SUM(E4:E141) -> 4630 | G142: =SUM(G4:G141) -> 27663.626

Sheet APGTI
A1: COMPONENTE | B1: 1º SEM | C1: 2º SEM | D1: MATRICULAS | G1: ANO | H1: 2017 | I1: 2018 | J1: 2019 | K1: 2020 | L1: 2021
A2: ALUNO DE PÓS-GRADUAÇÃO TEMPO INTEGRAL | G2: APG (MATRICULAS) | H2: 2333.08 | I2: 2815.5 | J2: 2791.5 | K2: 2482.5 | L2: =D76 -> 2907
A3: CURSO | G3: APGTI | H3: 4666.17 | I3: 5631 | J3: 5583 | K3: 4965 | L3: =D77 -> 5814
A4: DISCIPLINA ISOLADA | B4: 47 | C4: 45 | D4: =AVERAGE(B4:C4) -> 46
A5: DOUTORADO EM ARTES, CULTURA E LINGUAGENS | B5: 25 | C5: 23 | D5: =AVERAGE(B5:C5) -> 24
A6: DOUTORADO EM BIODIVERSIDADE E CONSERVAÇÃO DA NATUREZA | B6: 37 | C6: 28 | D6: 32.5
A7: DOUTORADO EM BIOQUÍMICA E BIOLOGIA MOLECULAR | B7: 13 | C7: 12 | D7: 12.5
A8: DOUTORADO EM CIÊNCIA DA RELIGIÃO | B8: 65 | C8: 61 | D8: 63
A9: DOUTORADO EM CIÊNCIAS BIOLÓGICAS (COMPORTAMENTO E BIOLOGIA ANIMAL) | B9: 3 | C9: 3 | D9: 3
A10: DOUTORADO EM CIÊNCIAS BIOLÓGICAS(IMUNOLOGIA E DOENÇAS INFECTO-PARASITÁRIAS/GENÉTICA E BIOTECNOLOGIA | B10: 33 | C10: 37 | D10: 35
A11: DOUTORADO EM CIÊNCIAS FARMACÊUTICAS | B11: 17 | C11: 20 | D11: 18.5
A12: DOUTORADO EM CIÊNCIAS SOCIAIS | B12: 56 | C12: 56 | D12: 56
A13: DOUTORADO EM COMUNICAÇÃO | B13: 36 | C13: 37 | D13: 36.5
A14: DOUTORADO EM ECONOMIA | B14: 45 | C14: 43 | D14: 44
A15: DOUTORADO EM EDUCAÇÃO | B15: 89 | C15: 92 | D15: 90.5
A16: DOUTORADO EM EDUCAÇÃO FÍSICA | B16: 37 | C16: 41 | D16: 39
A17: DOUTORADO EM ENGENHARIA ELÉTRICA | B17: 88 | C17: 94 | D17: 91
A18: DOUTORADO EM FÍSICA | B18: 47 | C18: 38 | D18: 42.5
A19: DOUTORADO EM HISTÓRIA | B19: 68 | C19: 63 | D19: 65.5
A20: DOUTORADO EM LETRAS: ESTUDOS LITERÁRIOS | B20: 81 | C20: 79 | D20: 80
A21: DOUTORADO EM LINGUÍSTICA | B21: 50 | C21: 48 | D21: 49
A22: DOUTORADO EM MODELAGEM COMPUTACIONAL | B22: 51 | C22: 44 | D22: 47.5
A23: DOUTORADO EM ODONTOLOGIA | B23: 29 | C23: 29 | D23: 29
A24: DOUTORADO EM PSICOLOGIA | B24: 65 | C24: 64 | D24: 64.5
A25: DOUTORADO EM QUÍMICA | B25: 62 | C25: 61 | D25: 61.5
A26: DOUTORADO EM SAÚDE | B26: 51 | C26: 49 | D26: 50
A27: DOUTORADO EM SAÚDE COLETIVA | B27: 47 | C27: 41 | D27: 44
A28: DOUTORADO EM SERVIÇO SOCIAL | B28: 27 | C28: 28 | D28: 27.5
A29: DISCIPLINA ISOLADA | B29: 284 | C29: 333 | D29: 308.5
A30: MESTRADO ACADÊMICO EM ADMINISTRAÇÃO | B30: 39 | C30: 30 | D30: 34.5
A31: MESTRADO ACADÊMICO EM CIÊNCIAS APLICADAS À SAÚDE | B31: 25 | C31: 31 | D31: 28
A32: MESTRADO ACADÊMICO EM CIÊNCIAS FARMACÊUTICAS | B32: 24 | C32: 34 | D32: 29
A33: MESTRADO ACADÊMICO EM ENFERMAGEM | B33: 47 | C33: 29 | D33: 38
A34: MESTRADO ACADÊMICO EM ENGENHARIA CIVIL | B34: 58 | C34: 45 | D34: 51.5
A35: MESTRADO ACADÊMICO EM MATEMÁTICA | B35: 24 | C35: 24 | D35: 24
A36: MESTRADO EM AMBIENTE CONSTRUÍDO | B36: 64 | C36: 50 | D36: 57
A37: MESTRADO EM ARTES, CULTURA E LINGUAGENS | B37: 56 | C37: 50 | D37: 53
A38: MESTRADO EM BIODIVERSIDADE E CONSERVAÇÃO DA NATUREZA | B38: 65 | C38: 50 | D38: 57.5
A39: MESTRADO EM BIOQUÍMICA E BIOLOGIA MOLECULAR | B39: 5 | C39: 4 | D39: 4.5
A40: MESTRADO EM CIÊNCIA DA COMPUTAÇÃO | B40: 72 | C40: 60 | D40: 66
A41: MESTRADO EM CIÊNCIA DA RELIGIÃO | B41: 43 | C41: 35 | D41: 39
A42: MESTRADO EM CIÊNCIAS BIOLÓGICAS(COMPORTAMENTO E BIOLOGIA ANIMAL) | B42: 2 | C42: 0 | D42: 1
A43: MESTRADO EM CIÊNCIAS BIOLÓGICAS(IMUNOLOGIA/GENÉTICA E BIOTECNOLOGIA) | B43: 32 | C43: 32 | D43: 32
A44: MESTRADO EM CIÊNCIAS DA REABILITAÇÃO E DESEMPENHO FÍSICO-FUNCIONAL | B44: 34 | C44: 40 | D44: 37
A45: MESTRADO EM CIÊNCIAS SOCIAIS | B45: 65 | C45: 54 | D45: 59.5
A46: MESTRADO EM CLÍNICA ODONTOLÓGICA | B46: 22 | C46: 20 | D46: 21
A47: MESTRADO EM COMUNICAÇÃO | B47: 46 | C47: 38 | D47: 42
A48: MESTRADO EM DIREITO | B48: 57 | C48: 39 | D48: 48
A49: MESTRADO EM ECONOMIA APLICADA | B49: 37 | C49: 31 | D49: 34
A50: MESTRADO EM EDUCAÇÃO | B50: 58 | C50: 82 | D50: 70
A51: MESTRADO EM EDUCAÇÃO FÍSICA | B51: 19 | C51: 28 | D51: 23.5
A52: MESTRADO EM ENGENHARIA ELÉTRICA | B52: 99 | C52: 98 | D52: 98.5
A53: MESTRADO EM FILOSOFIA | B53: 13 | C53: 23 | D53: 18
A54: MESTRADO EM FÍSICA | B54: 26 | C54: 21 | D54: 23.5
A55: MESTRADO EM GEOGRAFIA | B55: 49 | C55: 48 | D55: 48.5
A56: MESTRADO EM HISTÓRIA | B56: 68 | C56: 65 | D56: 66.5
A57: MESTRADO EM LETRAS: ESTUDOS LITERÁRIOS | B57: 38 | C57: 34 | D57: 36 | G57: FÓRMULAS PARA CÁLCULO DE APGTI
A58: MESTRADO EM LINGUÍSTICA | B58: 35 | C58: 31 | D58: 33 | G58: APGTI = 2 x MATRÍCULAS
A59: MESTRADO EM MODELAGEM COMPUTACIONAL | B59: 26 | C59: 27 | D59: 26.5
A60: MESTRADO EM ODONTOLOGIA | B60: 35 | C60: 35 | D60: 35 | G60: OBS. Não devem ser considerados alunos de Mestrado profissionalizante
A61: MESTRADO EM PSICOLOGIA | B61: 31 | C61: 36 | D61: 33.5
A62: MESTRADO EM QUÍMICA | B62: 38 | C62: 42 | D62: 40 | G62: Esclarecimentos da Pró-Reitoria de Pós-Graduação:
A63: MESTRADO EM SAÚDE | B63: 52 | C63: 45 | D63: 48.5
A64: MESTRADO EM SAÚDE COLETIVA | B64: 56 | C64: 44 | D64: 50 | G64: Citamos o número de matrículas isoladas porque na UFJF estes alunos são considerados matriculados na pós-graduação. Muitos optam por matrículas isoladas enquanto aguardam bolsas ou melhores condições para cumprir todas as exigências do curso.
A65: MESTRADO EM SERVIÇO SOCIAL | B65: 38 | C65: 39 | D65: 38.5
A66: MESTRADO NACIONAL PROFISSIONAL EM ENSINO DE FÍSICA | B66: 25 | C66: 11
A67: MESTRADO PROFISSIONAL EM ADMINISTRAÇÃO PÚBLICA EM REDE NACIONAL - PROFIAP | B67: 15 | C67: 14
A68: MESTRADO PROFISSIONAL EM CIÊNCIA E TECNOLOGIA DO LEITE E DERIVADOS | B68: 52 | C68: 50
A69: MESTRADO PROFISSIONAL EM EDUCAÇÃO MATEMÁTICA | B69: 49 | C69: 36
A70: MESTRADO PROFISSIONAL EM ENSINO DE BIOLOGIA EM REDE NACIONAL (PROFBIO) | B70: 20 | C70: 18
A71: MESTRADO PROFISSIONAL EM ENSINO DE BIOLOGIA EM REDE NACIONAL(PROFBIO) | B71: 13 | C71: 11
A72: MESTRADO PROFISSIONAL EM GESTÃO E AVALIAÇÃO DA EDUCAÇÃO PÚBLICA | B72: 114 | C72: 83
A73: MESTRADO PROFISSIONAL EM LETRAS | B73: 20 | C73: 11
A74: MESTRADO PROFISSIONAL EM MATEMÁTICA EM REDE NACIONAL - PROFMAT | B74: 23 | C74: 21
A75: MESTRADO PROFISSIONAL EM SAÚDE DA FAMÍLIA - PROFSAÚDE | B75: 12 | C75: 6
C76: TOTAL APG | D76: =SUM(D4:D75) -> 2907
C77: APGTI | D77: =D76*2 -> 5814

Sheet ALUNO_RESIDENTE
A1: COMPONENTE | B1: 1º SEM | C1: 2º SEM | D1: Alunos Matriculados | H1: 2017 | I1: 2018 | J1: 2019 | K1: 2020 | L1: 2021
A2: NÚMERO DE ALUNOS TEMPO INTEGRAL DE RESIDÊNCIA (ARTI) | H2: 549 | I2: 533 | J2: 547 | K2: 529 | L2: =D43 -> 541
A3: RESIDÊNCIA
A4: ANÁLISES CLÍNICAS* | B4: 0 | C4: 0 | D4: 0 | H4: FÓRMULA PARA CÁLCULO ARTI | L4: ARTI = 2 AR
A5: ANESTESIOLOGIA | B5: 11 | C5: 11 | D5: =(B5+C5)/2 -> 11
A6: CARDIOLOGIA | B6: 3 | C6: 3 | D6: 3
A7: CIRURGIA E TRAUMATOLOGIA BUCOMAXILOFACIAL - ODONTOLOGIA * | B7: 0 | C7: 0 | D7: 0
A8: CIRURGIA GERAL | B8: 10 | C8: 9 | D8: 9.5
A9: CIRURGIA PLÁSTICA | B9: 3 | C9: 3 | D9: 3
A10: CLÍNICA MÉDICA | B10: 16 | C10: 16 | D10: 16
A11: DERMATOLOGIA | B11: 6 | C11: 6 | D11: 6
A12: ECOCARDIOGRAFIA | B12: 3 | C12: 3 | D12: 3
A13: ECONOMIA E ADMINISTRAÇÃO - GESTÃO HOSPITALAR | B13: 8 | C13: 8 | D13: 8
A14: ENDOCRINOLOGIA E METABOLOGIA | B14: 4 | C14: 4 | D14: 4
A15: ENDOSCOPIA DIGESTIVA | B15: 4 | C15: 2 | D15: 3
A16: FARMÁCIA * | B16: 4 | C16: 4 | D16: 4
A17: GASTROENTEROLOGIA | B17: 8 | C17: 8 | D17: 8
A18: GASTROENTEROLOGIA (PEDIÁTRICA) | B18: 0 | C18: 0 | D18: 0
A19: HEMATOLOGIA E HEMOTERAPIA | B19: 4 | C19: 4 | D19: 4
A20: HEPATOLOGIA | B20: 1 | C20: 1 | D20: 1
A21: INFECTOLOGIA | B21: 2 | C21: 2 | D21: 2
A22: MEDICINA DA FAMÍLIA E COMUNIDADE | B22: 3 | C22: 3 | D22: 3
A23: INTEGRADA MULTIPROFISSIONAL EM ATENÇÃO HOSPITALAR | B23: 34 | C23: 34 | D23: 34
A24: MULTIPROFISSIONAL EM SAÚDE DO ADULTO com enfase em doenças crônico-degenerativas | B24: 31 | C24: 31 | D24: 31
A25: MULTIPROFISSIONAL EM SAÚDE MENTAL | B25: 0 | C25: 0 | D25: 0
A26: NEFROLOGIA | B26: 4 | C26: 4 | D26: 4
A27: NEONATOLOGIA | B27: 2 | C27: 1 | D27: 1.5
A28: NEUROLOGIA | B28: 12 | C28: 12 | D28: 12
A29: OBSTETRÍCIA E GINECOLOGIA | B29: 12 | C29: 11 | D29: 11.5
A30: OFTALMOLOGIA | B30: 4 | C30: 4 | D30: 4
A31: ORTOPEDIA E TRAUMATOLOGIA | B31: 9 | C31: 9 | D31: 9
A32: OTORRINOLARINGOLOGIA | B32: 6 | C32: 6 | D32: 6
A33: PATOLOGIA | B33: 4 | C33: 4 | D33: 4
A34: PEDIATRIA | B34: 18 | C34: 18 | D34: 18
A35: PNEUMOLOGIA | B35: 3 | C35: 3 | D35: 3
A36: MULTIPROFISSIONAL EM SAÚDE DA FAMÍLIA | B36: 20 | C36: 20 | D36: 20
A37: PSIQUIATRIA | B37: 11 | C37: 11 | D37: 11
A38: PSIQUIATRIA DA INFÂNCIA E ADOLESCÊNCIA | B38: 0 | C38: 0 | D38: 0
A39: RADIOLOGIA E DIAGNÓSTICO POR IMAGEM | B39: 6 | C39: 6 | D39: 6
A40: REUMATOLOGIA | B40: 4 | C40: 4 | D40: 4
A41: UROLOGIA | B41: 3 | C41: 3 | D41: 3
A42: TOTAIS | B42: =SUM(B4:B41) -> 273 | C42: =SUM(C4:C41) -> 268 | D42: =(B42+C42)/2 -> 270.5
A43: ARTI | D43: =D42*2 -> 541
A45: * Residência área Profissional da Saúde

Sheet ALUNO_TEMPO_INTEGRAL
A1: COMPONENTE
A2: ALUNO TEMPO INTEGRAL
A3: ANO | B3: 2017 | C3: 2018 | D3: 2019 | E3: 2020 | F3: 2021
A4: AGTI | B4: =ALUNO_GRAD_TEMPO_INTEGRAL!J2 -> 13163 | C4: =ALUNO_GRAD_TEMPO_INTEGRAL!K2 -> 14314 | D4: =ALUNO_GRAD_TEMPO_INTEGRAL!L2 -> 15858.46 | E4: =ALUNO_GRAD_TEMPO_INTEGRAL!M2 -> 15230.958 | F4: =ALUNO_GRAD_TEMPO_INTEGRAL!N2 -> 13479.108
A5: APGTI | B5: =APGTI!H3 -> 4666.17 | C5: =APGTI!I3 -> 5631 | D5: =APGTI!J3 -> 5583 | E5: =APGTI!K3 -> 4965 | F5: =APGTI!L3 -> 5814
A6: ARTI | B6: =ALUNO_RESIDENTE!H2 -> 549 | C6: =ALUNO_RESIDENTE!I2 -> 533 | D6: =ALUNO_RESIDENTE!J2 -> 547 | E6: =ALUNO_RESIDENTE!K2 -> 529 | F6: =ALUNO_RESIDENTE!L2 -> 541
A7: ATI | B7: =SUM(B4:B6) -> 18378.17 | C7: =SUM(C4:C6) -> 20478 | D7: =SUM(D4:D6) -> 21988.46 | E7: =SUM(E4:E6) -> 20724.958 | F7: =SUM(F4:F6) -> 19834.108
A10: FÓRMULA PARA CÁLCULO ATI
A11: ATI = AGTI + APGTI + ARTI

Sheet ALUNO_EQUIVALENTE
A1: COMPONENTE
A2: ALUNO EQUIVALENTE
B3: 2017 | C3: 2018 | D3: 2019 | E3: 2020 | F3: 2021
A4: AGE (GRADUAÇÃO) | B4: =ALUNO_EQUIV_GRADUAÇÃO!J2 -> 24860 | C4: =ALUNO_EQUIV_GRADUAÇÃO!K2 -> 25188 | D4: =ALUNO_EQUIV_GRADUAÇÃO!L2 -> 27646.525 | E4: =ALUNO_EQUIV_GRADUAÇÃO!M2 -> 29985.691 | F4: =ALUNO_EQUIV_GRADUAÇÃO!N2 -> 27663.626
A5: APGTI | B5: =APGTI!H3 -> 4666.17 | C5: =APGTI!I3 -> 5631 | D5: =APGTI!J3 -> 5583 | E5: =APGTI!K3 -> 4965 | F5: =APGTI!L3 -> 5814
A6: ARTI | B6: =ALUNO_RESIDENTE!H2 -> 549 | C6: =ALUNO_RESIDENTE!I2 -> 533 | D6: =ALUNO_RESIDENTE!J2 -> 547 | E6: =ALUNO_RESIDENTE!K2 -> 529 | F6: =ALUNO_RESIDENTE!L2 -> 541
A7: AE | B7: =SUM(B4:B6) -> 30075.17 | C7: =SUM(C4:C6) -> 31352 | D7: =SUM(D4:D6) -> 33776.525 | E7: =SUM(E4:E6) -> 35479.691 | F7: =SUM(F4:F6) -> 34018.626
A11: FÓRMULA
A12: AE = AGE + APGTI + ARTI

Sheet PROFESSOR_EQUIVALENTE
A1: COMPONENTE | H1: 2017 | I1: 2018 | J1: 2019 | K1: 2020 | L1: 2021
A2: PROFESSOR EQUIVALENTE | H2: 1490 | I2: 1546 | J2: 1550.5 | K2: 1530.5 | L2: =E8 -> 1540.5
A3: REGIME DE TRABALHO
B4: 20 HORAS | C4: 40 HORAS + DE | D4: PROFESSORES | E4: EQUIVALENTE
A5: EM EXERCÍCIO EFETIVO | B5: 110 | C5: 1406 | D5: =SUM(B5:C5) -> 1516 | E5: =SUM(B5*$D$18+C5*$D$19) -> 1461
A6: SUBSTITUTOS E VISITANTES | B6: 22 | C6: 137 | D6: =SUM(B6:C6) -> 159 | E6: =SUM(B6*$D$18+C6*$D$19) -> 148
A7: PROFESSORES AFASTADOS | B7: 3 | C7: 67 | D7: =SUM(B7:C7) -> 70 | E7: =SUM(B7*$D$18+C7*$D$19) -> 68.5
A8: TOTAL PROFESSORES | B8: =SUM(B5:B6)-B7 -> 129 | C8: =SUM(C5:C6)-C7 -> 1476 | D8: =SUM(D5:D6)-D7 -> 1605 | E8: =SUM(B8*$D$18+C8*$D$19) -> 1540.5
A14: FÓRMULA PARA CÁLCULO PROFESSOR EQUIVALENTE
A15: Professores Efetivos de 3º grau + Professores Visitantes e Substitutos de 3º - Professores afastados de 3º grau(considerados os regimes de dedicação).
A17: REGIME DE DEDICAÇÃO | D17: PESO
A18: 20 horas/semana | D18: 0.5
A19: 40 horas/semana | D19: 1
A20: Dedicação Exclusiva | D20: 1

Sheet FUNCIONÁRIO_EQUIVALENTE_HU
A1: COMPONENTE PARCIALMENTE AJUSTADO | M1: 2017 | N1: 2018 | O1: 2019 | P1: 2020 | Q1: 2021
A2: FUNCIONÁRIO EQUIVALENTE | L2: COM_HU | M2: 2646 | N2: 2711 | O2: 2692.95 | P2: 2674.2 | Q2: =I10 -> 2481.8
B3: TOTAL DE FUNCIONÁRIOS | H3: FUNC. EQUIVALENTE | L3: SEM_H.U. | M3: 2370 | N3: 2453 | O3: 2457.25 | P3: 2446.5 | Q3: =I11 -> 2272.2
A4: REGIME DE TRABALHO | B4: 12h | C4: 20 h | D4: 24 h | E4: 30 h | F4: 40 h | G4: 44h
A5: PROFESSORES ENSINO MÉDIO | B5: 0 | C5: 0 | D5: 0 | E5: 0 | F5: 111 | G5: 0 | H5: =SUM(B5:G5) -> 111 | I5: =SUM(B5*0.3+C5*0.5+D5*0.6+E5*0.75+F5+G5*1.1) -> 111
A6: QUADRO PERMANENTE_UFJF | B6: 0 | C6: 6 | D6: 20 | E6: 20 | F6: 1232 | G6: 0 | H6: =SUM(B6:G6) -> 1278 | I6: 1262
A7: QUADRO PERMANENTE_HU | B7: 0 | C7: 1 | D7: 6 | E7: 6 | F7: 201 | G7: 0 | H7: 214 | I7: 209.6
A8: CONTRATADOS UFJF | B8: 0 | C8: 0 | D8: 0 | E8: 21 | F8: 244 | G8: 613 | H8: 878 | I8: 934.05
A9: FUNCIONÁRIOS CEDIDOS/ AFASTADOS | B9: 0 | C9: 1 | D9: 1 | E9: 1 | F9: 33 | G9: 0 | H9: 36 | I9: 34.85
A10: FUNCIONÁRIO-EQUIVALENTE_HU | B10: =SUM(B5:B8)-B9 -> 0 | C10: 6 | D10: 25 | E10: 46 | F10: 1755 | G10: 613 | H10: =SUM(B10:G10) -> 2445 | I10: =SUM(B10*0.3+C10*0.5+D10*0.6+E10*0.75+F10+G10*1.1) -> 2481.8
A11: FUNCIONÁRIO-EQUIVALENTE_ S_H.U. | B11: =B5+B6+B8-B9 -> 0 | C11: 5 | D11: 19 | E11: 40 | F11: 1554 | G11: 613 | H11: 2231 | I11: 2272.2
A12: ÍNDICES | B12: =12/40 -> 0.3 | C12: =20/40 -> 0.5 | D12: =24/40 -> 0.6 | E12: =30/40 -> 0.75 | F12: =40/40 -> 1 | G12: =44/40 -> 1.1
A13: Obs. O regime 12x36 foi considerado como 40h semanais
A14: No anos anteriores estavam sendo considerados nos cálculos de Func_Equiv_HU os funcionários contrados do hospital, sendo que segundo o manual estes não devem ser contabilizados.
A19: Contratados sob a forma de serviços terceirizados (limpeza, vigilância, etc), contabilizados em postos de trabalho de 8 horas diárias ou de 6 horas , em caso de exigência legal, excluídos postos de trabalho nos hospitais universitários e maternidade.
A27: FÓRMULA PARA CÁLCULO FUNCIONÁRIO_EQUIVALENTE COM HU
A28: Professores Nível Médio+Servidores Técnicos Efetivos com os do HU+ Terceirizados sem os do HU - Servidores Técnicos afastados * regime de dedicação
A30: FÓRMULA PARA CÁLCULO FUNCIONÁRIO_EQUIVALENTE CSEM HU
A31: Professores Nível Médio+Servidoress Técnicos Efetivos sem os do HU+ Terceirizados sem os do HU - Servidores Técnicos afastados

Sheet CUSTO_HU_AE
A1: INDICADOR
A2: CUSTO CORRENTE COM E SEM HU
B3: 2017 | C3: 2018 | D3: 2019 | E3: 2020 | F3: 2021
A4: AE | B4: =ALUNO_EQUIVALENTE!B7 -> 30075.17 | C4: =ALUNO_EQUIVALENTE!C7 -> 31352 | D4: =ALUNO_EQUIVALENTE!D7 -> 33776.525 | E4: =ALUNO_EQUIVALENTE!E7 -> 35479.691 | F4: =ALUNO_EQUIVALENTE!F7 -> 34018.626
A5: CUSTO CORRENTE C_HU | B5: ='C_CORR_COM_HU S_HU'!B4 -> 628553903.2 | C5: ='C_CORR_COM_HU S_HU'!C4 -> 666190973.8 | D5: ='C_CORR_COM_HU S_HU'!D4 -> 682548236.1 | E5: ='C_CORR_COM_HU S_HU'!E4 -> 727731710.8 | F5: ='C_CORR_COM_HU S_HU'!F4 -> 754224765.4
A6: CUSTO CORRENTE S_HU | B6: ='C_CORR_COM_HU S_HU'!B3 -> 604855746.7 | C6: ='C_CORR_COM_HU S_HU'!C3 -> 644483392.8 | D6: ='C_CORR_COM_HU S_HU'!D3 -> 661885338.3 | E6: ='C_CORR_COM_HU S_HU'!E3 -> 707077157.5 | F6: ='C_CORR_COM_HU S_HU'!F3 -> 733675198.4
A8: CUSTO CORRENTE_AE | B8: 2017 | C8: 2018 | D8: 2019 | E8: 2020 | F8: 2021
A9: COM HU | B9: =SUM(B5/B4) -> 20899.42977 | C9: =SUM(C5/C4) -> 21248.75522 | D9: =SUM(D5/D4) -> 20207.76963 | E9: =SUM(E5/E4) -> 20511.21896 | F9: =SUM(F5/F4) -> 22170.93558
A10: SEM HU | B10: =SUM(B6/B4) -> 20111.4656 | C10: =SUM(C6/C4) -> 20556.37257 | D10: =SUM(D6/D4) -> 19596.01641 | E10: =SUM(E6/E4) -> 19929.06752 | F10: =SUM(F6/F4) -> 21566.86747
A14: FÓRMULA PARA CÁLCULO DO CUSTO CORRENTE COM E SEM HU
A15: COM HU | B15: CUSTO CORRENTE C_HU / ALUNO EQUIVALENTE
A16: SEM HU | B16: CUSTO CORRENTE S_HU / ALUNO EQUIVALENTE

Sheet ATI_PROFESSOR_EQUIVALENTE
A1: INDICADOR
A2: ALUNO TEMPO INTEGRAL_PROFESSOR EQUIVALENTE
A3: ANO | B3: 2017 | C3: 2018 | D3: 2019 | E3: 2020 | F3: 2021
A4: ATI | B4: =ALUNO_TEMPO_INTEGRAL!B7 -> 18378.17 | C4: =ALUNO_TEMPO_INTEGRAL!C7 -> 20478 | D4: =ALUNO_TEMPO_INTEGRAL!D7 -> 21988.46 | E4: =ALUNO_TEMPO_INTEGRAL!E7 -> 20724.958 | F4: =ALUNO_TEMPO_INTEGRAL!F7 -> 19834.108
A5: PROFESSOR EQUIVALENTE | B5: =PROFESSOR_EQUIVALENTE!H2 -> 1490 | C5: =PROFESSOR_EQUIVALENTE!I2 -> 1546 | D5: =PROFESSOR_EQUIVALENTE!J2 -> 1550.5 | E5: =PROFESSOR_EQUIVALENTE!K2 -> 1530.5 | F5: =PROFESSOR_EQUIVALENTE!L2 -> 1540.5
A6: ATI_PROFESSOR_EQUIVALENTE | B6: =B4/B5 -> 12.33434228 | C6: =C4/C5 -> 13.2457956 | D6: =D4/D5 -> 14.18152854 | E6: =E4/E5 -> 13.54129892 | F6: =F4/F5 -> 12.87511068
A10: FÓRMULA PARA CÁLCULO ATI_PROFESSOR_EQUIVALENTE
A11: ATI / PROFESSOR EQUIVALENTE

Sheet ATI_FUNCIONÁRIO_COM_HU
A1: INDICADOR ATUALIZADO PARCIALMENTE | E1: 2017 | F1: 2018 | G1: 2019 | H1: 2020 | I1: 2021
A2: ALUNO TEMPO INTEGRAL FUNCIONÁRIO | D2: COM_HU | E2: 6.95 | F2: 7.55 | G2: 8.279567018 | H2: 7.749965597 | I2: =B3/B4 -> 7.991823676
A3: ATI | B3: =ALUNO_TEMPO_INTEGRAL!F7 -> 19834.108 | D3: SEM_HU | E3: 7.75 | F3: 8.35 | G3: 9.07374504 | H3: 8.471268343 | I3: =B6/B7 -> 8.729032656
A4: FUNCIONÁRIO EQUIVALENTE_C_HU | B4: =FUNCIONÁRIO_EQUIVALENTE_HU!Q2 -> 2481.8
A6: ATI | B6: =B3 -> 19834.108
A7: FUNCIONÁRIO EQUIVALENTE_S_HU | B7: =FUNCIONÁRIO_EQUIVALENTE_HU!Q3 -> 2272.2
A13: FÓRMULA PARA CÁLCULO ATI_FUNCIONÁRIO_EQUIVALENTE
A14: ATI / FUNCIONÁRIO EQUIVALENTE

Sheet FUNCIONÁRIO_PROF_EQUIV
A1: INDICADOR | E1: 2017 | F1: 2018 | G1: 2019 | H1: 2020 | I1: 2021
A2: FUNCIONARIO EQUIVALENTE_PROFESSOR EQUIVALENTE | D2: COM_HU | E2: 1.78 | F2: 1.75 | G2: 1.73682683 | H2: 1.747272133 | I2: =B3/B4 -> 1.611035378
A3: FUNCIONÁRIO EQUIVALENTE_C_HU | B3: =FUNCIONÁRIO_EQUIVALENTE_HU!Q2 -> 2481.8 | D3: SEM_HU | E3: 1.59 | F3: 1.59 | G3: 1.584811351 | H3: 1.598497223 | I3: =B6/B7 -> 1.474975657
A4: PROFESSOR EQUIVALENTE | B4: =PROFESSOR_EQUIVALENTE!E8 -> 1540.5
A6: FUNCIONÁRIO EQUIVALENTE_S_HU | B6: =FUNCIONÁRIO_EQUIVALENTE_HU!Q3 -> 2272.2
A7: PROFESSOR EQUIVALENTE | B7: =B4 -> 1540.5
A12: FÓRMULA PARA CÁLCULO FUNCIONÁRIO_EQUIVALENTE_PROFESSOR_EQUIVALENTE
A14: FUNCIONÁRIO EQUIVALENTE / PROFESSOR EQUIVALENTE

Sheet GRAU_PARTICIPAÇÃO_ESTUDANTIL
A1: INDICADOR | E1: 2017 | F1: 2018 | G1: 2019 | H1: 2020 | I1: 2021
A2: GRAU DE PARTICIPAÇÃO ESTUDANTIL | E2: 0.67 | F2: 0.72 | G2: 0.7627926888 | H2: 0.7600657717 | I2: =B3/B4 -> 0.6358519707
A3: AGTI | B3: =ALUNO_GRAD_TEMPO_INTEGRAL!N2 -> 13479.108
A4: AG | B4: =ALUNO_DE_GRADUAÇÃO!L2 -> 21198.5
A8: FÓRMULA PARA CÁLCULO GRAU DE PARTICIPAÇÃO ESTUDANTIL
A10: ALUNO DE GADUAÇÃO TEMPO INTEGRAL / ALUNO DE GRADUAÇÃO

Sheet GRAU_ENVOLVIMENTO_ALUNO_POS
A1: INDICADOR | E1: 2017 | F1: 2018 | G1: 2019 | H1: 2020 | I1: 2021
A2: GRAU DE ENVOLVIMENTO DOS ALUNOS DA PÓS | E2: 0.11 | F2: 0.12 | G2: 0.124096817 | H2: 0.1102280044 | I2: =B3/(B3+B4) -> 0.120594885
A3: APG | B3: =APGTI!L2 -> 2907
A4: AG | B4: =ALUNO_DE_GRADUAÇÃO!L2 -> 21198.5
A10: FÓRMULA PARA CÁLCULO DO GRAU DE ENVOLVIMENTO DOS ALUNOS DA PÓS
A12: ALUNO DE PÓS / ALUNO DE GRADUAÇÃO + ALUNO DE PÓS

Sheet CONCEITO_CAPES
A1: INDICADOR | E1: 2017 | F1: 2018 | G1: 2019 | H1: 2020 | I1: 2021
A2: CONCEITO CAPES | E2: 3.88 | F2: 4.03 | G2: 4 | H2: 4.029411765 | I2: =B38 -> 4.029411765
A3: CURSO | B3: CONCEITO
A4: PROGRAMA EM ADMINISTRAÇÃO | B4: 3
A5: PROGRAMA EM AMBIENTE CONSTRUÍDO | B5: 4
A6: PROGRAMA EM ARTES, CULTURA E LINGUAGENS | B6: 4
A7: PROGRAMA EM CIÊNCIA DA COMPUTAÇÃO | B7: 3
A8: PROGRAMA EM CIÊNCIA DA RELIGIÃO | B8: 5
A9: PROGRAMA EM CIÊNCIAS BIOLÓGICAS | B9: 4
A10: PROGRAMA DE PÓS GRADUAÇÃO EM BIODIVERSIDADE E CONSERVAÇÃO DA NATUREZA | B10: 4
A11: PROGRAMA EM CIÊNCIAS DA REABILITAÇÃO E DESEMPENHO FÍSICO-FUNCIONAL | B11: 3
A12: PROGRAMA EM CIÊNCIAS FARMACÊUTICAS | B12: 4
A13: PROGRAMA EM CIÊNCIAS SOCIAIS | B13: 4
A14: PROGRAMA EM COMUNICAÇÃO | B14: 4
A15: PROGRAMA EM DIREITO E INOVAÇÃO | B15: 3
A16: PROGRAMA EM ECONOMIA | B16: 5
A17: PROGRAMA EM EDUCAÇÃO | B17: 4
A18: PROGRAMA EM EDUCAÇÃO FÍSICA (Programa em Rede) parceria UFV | B18: 5
A19: PROGRAMA EM ENFERMAGEM | B19: 3
A20: PROGRAMA EM ENGENHARIA CIVIL | B20: 3
A21: PROGRAMA EM ENGENHARIA ELÉTRICA | B21: 5
A22: PROGRAMA EM FILOSOFIA | B22: 3
A23: PROGRAMA EM FISICA | B23: 4
A24: PROGRAMA EM GEOGRAFIA | B24: 4
A25: PROGRAMA EM HISTÓRIA | B25: 5
A26: PROGRAMA EM LETRAS: ESTUDOS LITERÁRIOS | B26: 4
A27: PROGRAMA EM LINGÜÍSTICA | B27: 5
A28: PROGRAMA EM MATEMÁTICA | B28: 3
A29: PROGRAMA EM MODELAGEM COMPUTACIONAL | B29: 4
A30: PROGRAMA EM MULTICÊNTRICO EM BIOQUIMCA E BIOLOGIA MOLECULAR (Programa em Rede) GV | B30: 4
A31: PROGRAMA EM MULTICÊNTRICO EM QUÍMICA DE MINAS GERAIS | B31: 4 | E31: FÓRMULA PARA CÁLCULO DO CONCEITO CAPES
A32: PROGRAMA EM ODONTOLOGIA | B32: 4 | E32: CONCEITO DE TODOS OS PROGRAMAS DE PÓS-GRAD / NÚMERO DE PROGRAMAS DE PÓS-GRAD
A33: PROGRAMA EM PSICOLOGIA | B33: 5
A34: PROGRAMA EM QUÍMICA | B34: 5
A35: PROGRAMA EM SAÚDE | B35: 5
A36: PROGRAMA EM SAÚDE COLETIVA | B36: 4
A37: PROGRAMA EM SERVIÇO SOCIAL | B37: 4
A38: Fonte: Página Capes | B38: =AVERAGE(B4:B37) -> 4.029411765
A40: D - Doutorado
A41: M - Mestrado Acadêmico
A42: F - Mestrado Profissional

Sheet QUALIFICAÇÃO DOCENTE
A1: QUALIFICAÇÃO DO CORPO DOCENTE - SOMENTE DEDICAÇÃO EXCLUSIVA | E1: 2017 | F1: 2018 | G1: 2019 | H1: 2020 | I1: 2021
A2: TITULAÇÃO | B2: PROFESSORES | C2: QUALIFICAÇÃO | E2: 4.65 | F2: 4.71 | G2: 4.731213873 | H2: 4.768158474 | I2: =C8 -> 4.8133829
A3: DOUTORADO | B3: 1226 | C3: =SUM(B3*B24) -> 6130
A4: MESTRADO | B4: 108 | C4: =SUM(B4*B25) -> 324
A5: ESPECIALIZAÇÃO | B5: 9 | C5: =SUM(B5*B26) -> 18
A6: GRADUAÇÃO | B6: 2 | C6: =SUM(B6*B27) -> 2
A7: TOTAL PROFESSORES | B7: =SUM(B3:B6) -> 1345 | C7: =SUM(C3:C6) -> 6474
A8: IQCD | C8: =C7/B7 -> 4.8133829
A11: FÓRMULA PARA CÁLCULO DA QUALIFICAÇÃO DO CORPO DOCENTE
A12: 5*DOUTORES+3*MESTRES+2*ESPECIALISTAS+GRADUADOS / DOUTORES+MESTRES+ESPECIALISTAS+GRADUADOS
A18: Para qualificar o corpo docente, é aplicada, ao número de professores (professores em
A19: exercício efetivo + substitutos + visitantes - professores afastados para capacitação ou cedidos para
A20: outros órgãos e/ou entidades da administração pública em 31/12 do exercício), a seguinte
A21: ponderação, sem considerar o regime de trabalho (20 h ou 40 h semanais):
A23: QUALIFICAÇÃO | B23: PESO
A24: Docentes doutores (D) | B24: 5
A25: Docentes mestres (M) | B25: 3
A26: Docentes com especialização (E) | B26: 2
A27: Docentes graduados (G) | B27: 1

Sheet TAXA_DE_SUCESSO_NA_GRADUAÇÃO
J1: 2017 | K1: 2018 | L1: 2019 | M1: 2020 | N1: 2021
A2: CURSO | B2: CÓDIGO INEP | C2: DURAÇÃO DO CURSO | D2: ANO DE INGRESSO | E2: CONCLUINTES | F2: INGRESSANTES ANTERIORES | G2: TSG | J2: 0.4956 | K2: 0.4722 | L2: 0.5624 | M2: 0.4938745657 | N2: =N9 -> 0.4212284283
A3: =ALUNO_GRAD_TEMPO_INTEGRAL!A4 -> ABI - CIÊNCIAS BIOLÓGICAS - 01ABI | B3: =ALUNO_GRAD_TEMPO_INTEGRAL!B4 -> 5000608 | C3: =ALUNO_GRAD_TEMPO_INTEGRAL!D4 -> 4 | D3: =INÍCIO!$C$4-C3 -> 2018 | E3: =ALUNO_GRAD_TEMPO_INTEGRAL!C4 -> 0 | F3: =SUMIFS(Ingressantes!F:F,Ingressantes!C:C,TAXA_DE_SUCESSO_NA_GRADUAÇÃO!A3,Ingressantes!A:A,TAXA_DE_SUCESSO_NA_GRADUAÇÃO!D3) -> 18 | G3: =IF(E3=0,,IF(F3=0,,E3/F3)) -> 0
A4: =ALUNO_GRAD_TEMPO_INTEGRAL!A5 -> ABI - EDUCAÇÃO FÍSICA - 21ABI | B4: =ALUNO_GRAD_TEMPO_INTEGRAL!B5 -> 5000610 | C4: =ALUNO_GRAD_TEMPO_INTEGRAL!D5 -> 5 | D4: =INÍCIO!$C$4-C4 -> 2017 | E4: =ALUNO_GRAD_TEMPO_INTEGRAL!C5 -> 0 | F4: =SUMIFS(Ingressantes!F:F,Ingressantes!C:C,TAXA_DE_SUCESSO_NA_GRADUAÇÃO!A4,Ingressantes!A:A,TAXA_DE_SUCESSO_NA_GRADUAÇÃO!D4) -> 88 | G4: =IF(E4=0,,IF(F4=0,,E4/F4)) -> 0
A5: =ALUNO_GRAD_TEMPO_INTEGRAL!A6 -> ABI - FILOSOFIA - 08ABI | B5: =ALUNO_GRAD_TEMPO_INTEGRAL!B6 -> 5000611 | C5: =ALUNO_GRAD_TEMPO_INTEGRAL!D6 -> 4 | D5: =INÍCIO!$C$4-C5 -> 2018 | E5: =ALUNO_GRAD_TEMPO_INTEGRAL!C6 -> 0 | F5: =SUMIFS(Ingressantes!F:F,Ingressantes!C:C,TAXA_DE_SUCESSO_NA_GRADUAÇÃO!A5,Ingressantes!A:A,TAXA_DE_SUCESSO_NA_GRADUAÇÃO!D5) -> 26 | G5: 0 | J5: INDICADOR
A6: =ALUNO_GRAD_TEMPO_INTEGRAL!A7 -> ABI - GEOGRAFIA - 10ABI | B6: =ALUNO_GRAD_TEMPO_INTEGRAL!B7 -> 5000615 | C6: =ALUNO_GRAD_TEMPO_INTEGRAL!D7 -> 4 | D6: =INÍCIO!$C$4-C6 -> 2018 | E6: =ALUNO_GRAD_TEMPO_INTEGRAL!C7 -> 0 | F6: =SUMIFS(Ingressantes!F:F,Ingressantes!C:C,TAXA_DE_SUCESSO_NA_GRADUAÇÃO!A6,Ingressantes!A:A,TAXA_DE_SUCESSO_NA_GRADUAÇÃO!D6) -> 15 | G6: 0 | J6: TAXA DE SUCESSO NA GRADUAÇÃO_2019 (TSG)
A7: =ALUNO_GRAD_TEMPO_INTEGRAL!A8 -> ABI - GEOGRAFIA - 27ABI | B7: =ALUNO_GRAD_TEMPO_INTEGRAL!B8 -> 5000615 | C7: =ALUNO_GRAD_TEMPO_INTEGRAL!D8 -> 4 | D7: =INÍCIO!$C$4-C7 -> 2018 | E7: =ALUNO_GRAD_TEMPO_INTEGRAL!C8 -> 0 | F7: =SUMIFS(Ingressantes!F:F,Ingressantes!C:C,TAXA_DE_SUCESSO_NA_GRADUAÇÃO!A7,Ingressantes!A:A,TAXA_DE_SUCESSO_NA_GRADUAÇÃO!D7) -> 17 | G7: 0 | J7: NÚMERO DE DIPLOMADOS (NDI) | N7: =E141 -> 2270
A8: =ALUNO_GRAD_TEMPO_INTEGRAL!A9 -> ABI - HISTÓRIA - 11ABI | B8: =ALUNO_GRAD_TEMPO_INTEGRAL!B9 -> 5000616 | C8: =ALUNO_GRAD_TEMPO_INTEGRAL!D9 -> 4 | D8: =INÍCIO!$C$4-C8 -> 2018 | E8: =ALUNO_GRAD_TEMPO_INTEGRAL!C9 -> 0 | F8: =SUMIFS(Ingressantes!F:F,Ingressantes!C:C,TAXA_DE_SUCESSO_NA_GRADUAÇÃO!A8,Ingressantes!A:A,TAXA_DE_SUCESSO_NA_GRADUAÇÃO!D8) -> 21 | G8: 0 | J8: INGRESSANTES (NI) | N8: =F141 -> 5389
A9: =ALUNO_GRAD_TEMPO_INTEGRAL!A10 -> ABI - HISTÓRIA - 28ABI | B9: =ALUNO_GRAD_TEMPO_INTEGRAL!B10 -> 5000616 | C9: =ALUNO_GRAD_TEMPO_INTEGRAL!D10 -> 4 | D9: =INÍCIO!$C$4-C9 -> 2018 | E9: =ALUNO_GRAD_TEMPO_INTEGRAL!C10 -> 0 | F9: =SUMIFS(Ingressantes!F:F,Ingressantes!C:C,TAXA_DE_SUCESSO_NA_GRADUAÇÃO!A9,Ingressantes!A:A,TAXA_DE_SUCESSO_NA_GRADUAÇÃO!D9) -> 25 | G9: 0 | M9: TSG | N9: =N7/N8 -> 0.4212284283
A10: =ALUNO_GRAD_TEMPO_INTEGRAL!A11 -> ABI - LETRAS - 13ABI | B10: =ALUNO_GRAD_TEMPO_INTEGRAL!B11 -> 5000617 | C10: =ALUNO_GRAD_TEMPO_INTEGRAL!D11 -> 4 | D10: =INÍCIO!$C$4-C10 -> 2018 | E10: =ALUNO_GRAD_TEMPO_INTEGRAL!C11 -> 0 | F10: =SUMIFS(Ingressantes!F:F,Ingressantes!C:C,TAXA_DE_SUCESSO_NA_GRADUAÇÃO!A10,Ingressantes!A:A,TAXA_DE_SUCESSO_NA_GRADUAÇÃO!D10) -> 16 | G10: 0
A11: =ALUNO_GRAD_TEMPO_INTEGRAL!A12 -> ABI - LETRAS - 29ABI | B11: =ALUNO_GRAD_TEMPO_INTEGRAL!B12 -> 5000617 | C11: =ALUNO_GRAD_TEMPO_INTEGRAL!D12 -> 4 | D11: =INÍCIO!$C$4-C11 -> 2018 | E11: =ALUNO_GRAD_TEMPO_INTEGRAL!C12 -> 0 | F11: =SUMIFS(Ingressantes!F:F,Ingressantes!C:C,TAXA_DE_SUCESSO_NA_GRADUAÇÃO!A11,Ingressantes!A:A,TAXA_DE_SUCESSO_NA_GRADUAÇÃO!D11) -> 42 | G11: 0
A12: =ALUNO_GRAD_TEMPO_INTEGRAL!A13 -> ADMINISTRAÇÃO - 01GV | B12: =ALUNO_GRAD_TEMPO_INTEGRAL!B13 -> 1178684 | C12: =ALUNO_GRAD_TEMPO_INTEGRAL!D13 -> 4 | D12: =INÍCIO!$C$4-C12 -> 2018 | E12: =ALUNO_GRAD_TEMPO_INTEGRAL!C13 -> 14 | F12: =SUMIFS(Ingressantes!F:F,Ingressantes!C:C,TAXA_DE_SUCESSO_NA_GRADUAÇÃO!A12,Ingressantes!A:A,TAXA_DE_SUCESSO_NA_GRADUAÇÃO!D12) -> 68 | G12: 0.2058823529
A13: =ALUNO_GRAD_TEMPO_INTEGRAL!A14 -> ADMINISTRAÇÃO - 26A | B13: =ALUNO_GRAD_TEMPO_INTEGRAL!B14 -> 22451 | C13: =ALUNO_GRAD_TEMPO_INTEGRAL!D14 -> 4 | D13: =INÍCIO!$C$4-C13 -> 2018 | E13: =ALUNO_GRAD_TEMPO_INTEGRAL!C14 -> 20 | F13: =SUMIFS(Ingressantes!F:F,Ingressantes!C:C,TAXA_DE_SUCESSO_NA_GRADUAÇÃO!A13,Ingressantes!A:A,TAXA_DE_SUCESSO_NA_GRADUAÇÃO!D13) -> 45 | G13: 0.4444444444 | J13: TAXA DE SUCESSO
A14: =ALUNO_GRAD_TEMPO_INTEGRAL!A15 -> ADMINISTRAÇÃO - 46A | B14: =ALUNO_GRAD_TEMPO_INTEGRAL!B15 -> 22451 | C14: =ALUNO_GRAD_TEMPO_INTEGRAL!D15 -> 4 | D14: =INÍCIO!$C$4-C14 -> 2018 | E14: =ALUNO_GRAD_TEMPO_INTEGRAL!C15 -> 17 | F14: =SUMIFS(Ingressantes!F:F,Ingressantes!C:C,TAXA_DE_SUCESSO_NA_GRADUAÇÃO!A14,Ingressantes!A:A,TAXA_DE_SUCESSO_NA_GRADUAÇÃO!D14) -> 47 | G14: 0.3617021277 | J14: NÚMERO DE DIPLOMADOS / NÚMERO DE INGRESSANTES
A15: =ALUNO_GRAD_TEMPO_INTEGRAL!A16 -> ARQUITETURA E URBANISMO - 33A | B15: =ALUNO_GRAD_TEMPO_INTEGRAL!B16 -> 13114 | C15: =ALUNO_GRAD_TEMPO_INTEGRAL!D16 -> 4 | D15: =INÍCIO!$C$4-C15 -> 2018 | E15: =ALUNO_GRAD_TEMPO_INTEGRAL!C16 -> 52 | F15: =SUMIFS(Ingressantes!F:F,Ingressantes!C:C,TAXA_DE_SUCESSO_NA_GRADUAÇÃO!A15,Ingressantes!A:A,TAXA_DE_SUCESSO_NA_GRADUAÇÃO!D15) -> 89 | G15: 0.5842696629
A16: =ALUNO_GRAD_TEMPO_INTEGRAL!A17 -> BACHARELADO EM ARTES VISUAIS - 66C | B16: =ALUNO_GRAD_TEMPO_INTEGRAL!B17 -> 1153948 | C16: =ALUNO_GRAD_TEMPO_INTEGRAL!D17 -> 2 | D16: =INÍCIO!$C$4-C16 -> 2020 | E16: =ALUNO_GRAD_TEMPO_INTEGRAL!C17 -> 5 | F16: =SUMIFS(Ingressantes!F:F,Ingressantes!C:C,TAXA_DE_SUCESSO_NA_GRADUAÇÃO!A16,Ingressantes!A:A,TAXA_DE_SUCESSO_NA_GRADUAÇÃO!D16) -> 57 | G16: 0.08771929825
A17: =ALUNO_GRAD_TEMPO_INTEGRAL!A18 -> BACHARELADO EM CINEMA E AUDIOVISUAL - 66B | B17: =ALUNO_GRAD_TEMPO_INTEGRAL!B18 -> 1153947 | C17: =ALUNO_GRAD_TEMPO_INTEGRAL!D18 -> 2 | D17: =INÍCIO!$C$4-C17 -> 2020 | E17: =ALUNO_GRAD_TEMPO_INTEGRAL!C18 -> 18 | F17: =SUMIFS(Ingressantes!F:F,Ingressantes!C:C,TAXA_DE_SUCESSO_NA_GRADUAÇÃO!A17,Ingressantes!A:A,TAXA_DE_SUCESSO_NA_GRADUAÇÃO!D17) -> 57 | G17: 0.3157894737
A18: =ALUNO_GRAD_TEMPO_INTEGRAL!A19 -> BACHARELADO EM DESIGN - 66D | B18: =ALUNO_GRAD_TEMPO_INTEGRAL!B19 -> 1153949 | C18: =ALUNO_GRAD_TEMPO_INTEGRAL!D19 -> 2 | D18: =INÍCIO!$C$4-C18 -> 2020 | E18: =ALUNO_GRAD_TEMPO_INTEGRAL!C19 -> 15 | F18: =SUMIFS(Ingressantes!F:F,Ingressantes!C:C,TAXA_DE_SUCESSO_NA_GRADUAÇÃO!A18,Ingressantes!A:A,TAXA_DE_SUCESSO_NA_GRADUAÇÃO!D18) -> 57 | G18: 0.2631578947
A19: =ALUNO_GRAD_TEMPO_INTEGRAL!A20 -> BACHARELADO EM MODA - 66E | B19: =ALUNO_GRAD_TEMPO_INTEGRAL!B20 -> 1153950 | C19: =ALUNO_GRAD_TEMPO_INTEGRAL!D20 -> 2 | D19: =INÍCIO!$C$4-C19 -> 2020 | E19: =ALUNO_GRAD_TEMPO_INTEGRAL!C20 -> 12 | F19: =SUMIFS(Ingressantes!F:F,Ingressantes!C:C,TAXA_DE_SUCESSO_NA_GRADUAÇÃO!A19,Ingressantes!A:A,TAXA_DE_SUCESSO_NA_GRADUAÇÃO!D19) -> 58 | G19: 0.2068965517
A20: =ALUNO_GRAD_TEMPO_INTEGRAL!A21 -> BACHARELADO INTERDISCIPLINAR EM ARTES E DESIGN - 66A | B20: =ALUNO_GRAD_TEMPO_INTEGRAL!B21 -> 116500 | C20: =ALUNO_GRAD_TEMPO_INTEGRAL!D21 -> 3 | D20: =INÍCIO!$C$4-C20 -> 2019 | E20: =ALUNO_GRAD_TEMPO_INTEGRAL!C21 -> 114 | F20: =SUMIFS(Ingressantes!F:F,Ingressantes!C:C,TAXA_DE_SUCESSO_NA_GRADUAÇÃO!A20,Ingressantes!A:A,TAXA_DE_SUCESSO_NA_GRADUAÇÃO!D20) -> 261 | G20: 0.4367816092
A21: =ALUNO_GRAD_TEMPO_INTEGRAL!A22 -> BACHARELADO INTERDISCIPLINAR EM CIÊNCIAS HUMANAS - 72A | B21: =ALUNO_GRAD_TEMPO_INTEGRAL!B22 -> 1120242 | C21: =ALUNO_GRAD_TEMPO_INTEGRAL!D22 -> 3 | D21: =INÍCIO!$C$4-C21 -> 2019 | E21: =ALUNO_GRAD_TEMPO_INTEGRAL!C22 -> 39 | F21: =SUMIFS(Ingressantes!F:F,Ingressantes!C:C,TAXA_DE_SUCESSO_NA_GRADUAÇÃO!A21,Ingressantes!A:A,TAXA_DE_SUCESSO_NA_GRADUAÇÃO!D21) -> 160 | G21: 0.24375
A22: =ALUNO_GRAD_TEMPO_INTEGRAL!A23 -> BACHARELADO INTERDISCIPLINAR EM CIÊNCIAS HUMANAS - 73A | B22: =ALUNO_GRAD_TEMPO_INTEGRAL!B23 -> 1120242 | C22: =ALUNO_GRAD_TEMPO_INTEGRAL!D23 -> 3 | D22: =INÍCIO!$C$4-C22 -> 2019 | E22: =ALUNO_GRAD_TEMPO_INTEGRAL!C23 -> 37 | F22: =SUMIFS(Ingressantes!F:F,Ingressantes!C:C,TAXA_DE_SUCESSO_NA_GRADUAÇÃO!A22,Ingressantes!A:A,TAXA_DE_SUCESSO_NA_GRADUAÇÃO!D22) -> 156 | G22: 0.2371794872
A23: =ALUNO_GRAD_TEMPO_INTEGRAL!A24 -> CIÊNCIA DA COMPUTAÇÃO - 35A | B23: =ALUNO_GRAD_TEMPO_INTEGRAL!B24 -> 18518 | C23: =ALUNO_GRAD_TEMPO_INTEGRAL!D24 -> 4 | D23: =INÍCIO!$C$4-C23 -> 2018 | E23: =ALUNO_GRAD_TEMPO_INTEGRAL!C24 -> 5 | F23: =SUMIFS(Ingressantes!F:F,Ingressantes!C:C,TAXA_DE_SUCESSO_NA_GRADUAÇÃO!A23,Ingressantes!A:A,TAXA_DE_SUCESSO_NA_GRADUAÇÃO!D23) -> 49 | G23: 0.1020408163
A24: =ALUNO_GRAD_TEMPO_INTEGRAL!A25 -> CIÊNCIA DA COMPUTAÇÃO - 65C | B24: =ALUNO_GRAD_TEMPO_INTEGRAL!B25 -> 65361 | C24: =ALUNO_GRAD_TEMPO_INTEGRAL!D25 -> 2 | D24: =INÍCIO!$C$4-C24 -> 2020 | E24: =ALUNO_GRAD_TEMPO_INTEGRAL!C25 -> 12 | F24: =SUMIFS(Ingressantes!F:F,Ingressantes!C:C,TAXA_DE_SUCESSO_NA_GRADUAÇÃO!A24,Ingressantes!A:A,TAXA_DE_SUCESSO_NA_GRADUAÇÃO!D24) -> 24 | G24: 0.5
A25: =ALUNO_GRAD_TEMPO_INTEGRAL!A26 -> CIÊNCIA DA RELIGIÃO - 72B | B25: =ALUNO_GRAD_TEMPO_INTEGRAL!B26 -> 1165350 | C25: =ALUNO_GRAD_TEMPO_INTEGRAL!D26 -> 2 | D25: =INÍCIO!$C$4-C25 -> 2020 | E25: =ALUNO_GRAD_TEMPO_INTEGRAL!C26 -> 1 | F25: =SUMIFS(Ingressantes!F:F,Ingressantes!C:C,TAXA_DE_SUCESSO_NA_GRADUAÇÃO!A25,Ingressantes!A:A,TAXA_DE_SUCESSO_NA_GRADUAÇÃO!D25) -> 0 | G25: 0
A26: =ALUNO_GRAD_TEMPO_INTEGRAL!A27 -> CIÊNCIA DA RELIGIÃO - 72BL | B26: =ALUNO_GRAD_TEMPO_INTEGRAL!B27 -> 1165686 | C26: =ALUNO_GRAD_TEMPO_INTEGRAL!D27 -> 2 | D26: =INÍCIO!$C$4-C26 -> 2020 | E26: =ALUNO_GRAD_TEMPO_INTEGRAL!C27 -> 1 | F26: =SUMIFS(Ingressantes!F:F,Ingressantes!C:C,TAXA_DE_SUCESSO_NA_GRADUAÇÃO!A26,Ingressantes!A:A,TAXA_DE_SUCESSO_NA_GRADUAÇÃO!D26) -> 0 | G26: 0
A27: =ALUNO_GRAD_TEMPO_INTEGRAL!A28 -> CIÊNCIA DA RELIGIÃO - 73B | B27: =ALUNO_GRAD_TEMPO_INTEGRAL!B28 -> 1165350 | C27: =ALUNO_GRAD_TEMPO_INTEGRAL!D28 -> 2 | D27: =INÍCIO!$C$4-C27 -> 2020 | E27: =ALUNO_GRAD_TEMPO_INTEGRAL!C28 -> 5 | F27: =SUMIFS(Ingressantes!F:F,Ingressantes!C:C,TAXA_DE_SUCESSO_NA_GRADUAÇÃO!A27,Ingressantes!A:A,TAXA_DE_SUCESSO_NA_GRADUAÇÃO!D27) -> 14 | G27: 0.3571428571
A28: =ALUNO_GRAD_TEMPO_INTEGRAL!A29 -> CIÊNCIA DA RELIGIÃO - 73BL | B28: =ALUNO_GRAD_TEMPO_INTEGRAL!B29 -> 1165686 | C28: =ALUNO_GRAD_TEMPO_INTEGRAL!D29 -> 2 | D28: =INÍCIO!$C$4-C28 -> 2020 | E28: =ALUNO_GRAD_TEMPO_INTEGRAL!C29 -> 1 | F28: =SUMIFS(Ingressantes!F:F,Ingressantes!C:C,TAXA_DE_SUCESSO_NA_GRADUAÇÃO!A28,Ingressantes!A:A,TAXA_DE_SUCESSO_NA_GRADUAÇÃO!D28) -> 13 | G28: 0.07692307692
A29: =ALUNO_GRAD_TEMPO_INTEGRAL!A30 -> CIÊNCIAS BIOLÓGICAS - 01A | B29: =ALUNO_GRAD_TEMPO_INTEGRAL!B30 -> 5000608 | C29: =ALUNO_GRAD_TEMPO_INTEGRAL!D30 -> 4 | D29: =INÍCIO!$C$4-C29 -> 2018 | E29: =ALUNO_GRAD_TEMPO_INTEGRAL!C30 -> 0 | F29: =SUMIFS(Ingressantes!F:F,Ingressantes!C:C,TAXA_DE_SUCESSO_NA_GRADUAÇÃO!A29,Ingressantes!A:A,TAXA_DE_SUCESSO_NA_GRADUAÇÃO!D29) -> 0 | G29: 0
A30: =ALUNO_GRAD_TEMPO_INTEGRAL!A31 -> CIÊNCIAS BIOLÓGICAS - 01B | B30: =ALUNO_GRAD_TEMPO_INTEGRAL!B31 -> 313086 | C30: =ALUNO_GRAD_TEMPO_INTEGRAL!D31 -> 4 | D30: =INÍCIO!$C$4-C30 -> 2018 | E30: =ALUNO_GRAD_TEMPO_INTEGRAL!C31 -> 13 | F30: =SUMIFS(Ingressantes!F:F,Ingressantes!C:C,TAXA_DE_SUCESSO_NA_GRADUAÇÃO!A30,Ingressantes!A:A,TAXA_DE_SUCESSO_NA_GRADUAÇÃO!D30) -> 39 | G30: 0.3333333333
A31: =ALUNO_GRAD_TEMPO_INTEGRAL!A32 -> CIÊNCIAS BIOLÓGICAS - 01L | B31: =ALUNO_GRAD_TEMPO_INTEGRAL!B32 -> 13086 | C31: =ALUNO_GRAD_TEMPO_INTEGRAL!D32 -> 4 | D31: =INÍCIO!$C$4-C31 -> 2018 | E31: =ALUNO_GRAD_TEMPO_INTEGRAL!C32 -> 34 | F31: =SUMIFS(Ingressantes!F:F,Ingressantes!C:C,TAXA_DE_SUCESSO_NA_GRADUAÇÃO!A31,Ingressantes!A:A,TAXA_DE_SUCESSO_NA_GRADUAÇÃO!D31) -> 16 | G31: 2.125
A32: =ALUNO_GRAD_TEMPO_INTEGRAL!A33 -> CIÊNCIAS CONTÁBEIS - 02GV | B32: =ALUNO_GRAD_TEMPO_INTEGRAL!B33 -> 1183351 | C32: =ALUNO_GRAD_TEMPO_INTEGRAL!D33 -> 4 | D32: =INÍCIO!$C$4-C32 -> 2018 | E32: =ALUNO_GRAD_TEMPO_INTEGRAL!C33 -> 10 | F32: =SUMIFS(Ingressantes!F:F,Ingressantes!C:C,TAXA_DE_SUCESSO_NA_GRADUAÇÃO!A32,Ingressantes!A:A,TAXA_DE_SUCESSO_NA_GRADUAÇÃO!D32) -> 36 | G32: 0.2777777778
A33: =ALUNO_GRAD_TEMPO_INTEGRAL!A34 -> CIÊNCIAS CONTÁBEIS - 77A | B33: =ALUNO_GRAD_TEMPO_INTEGRAL!B34 -> 1132074 | C33: =ALUNO_GRAD_TEMPO_INTEGRAL!D34 -> 4 | D33: =INÍCIO!$C$4-C33 -> 2018 | E33: =ALUNO_GRAD_TEMPO_INTEGRAL!C34 -> 22 | F33: =SUMIFS(Ingressantes!F:F,Ingressantes!C:C,TAXA_DE_SUCESSO_NA_GRADUAÇÃO!A33,Ingressantes!A:A,TAXA_DE_SUCESSO_NA_GRADUAÇÃO!D33) -> 44 | G33: 0.5
A34: =ALUNO_GRAD_TEMPO_INTEGRAL!A35 -> CIÊNCIAS CONTÁBEIS - 78A | B34: =ALUNO_GRAD_TEMPO_INTEGRAL!B35 -> 1132074 | C34: =ALUNO_GRAD_TEMPO_INTEGRAL!D35 -> 4 | D34: =INÍCIO!$C$4-C34 -> 2018 | E34: =ALUNO_GRAD_TEMPO_INTEGRAL!C35 -> 18 | F34: =SUMIFS(Ingressantes!F:F,Ingressantes!C:C,TAXA_DE_SUCESSO_NA_GRADUAÇÃO!A34,Ingressantes!A:A,TAXA_DE_SUCESSO_NA_GRADUAÇÃO!D34) -> 46 | G34: 0.3913043478
A35: =ALUNO_GRAD_TEMPO_INTEGRAL!A36 -> CIÊNCIAS ECONÔMICAS - 03GV | B35: =ALUNO_GRAD_TEMPO_INTEGRAL!B36 -> 1178683 | C35: =ALUNO_GRAD_TEMPO_INTEGRAL!D36 -> 4 | D35: =INÍCIO!$C$4-C35 -> 2018 | E35: =ALUNO_GRAD_TEMPO_INTEGRAL!C36 -> 14 | F35: =SUMIFS(Ingressantes!F:F,Ingressantes!C:C,TAXA_DE_SUCESSO_NA_GRADUAÇÃO!A35,Ingressantes!A:A,TAXA_DE_SUCESSO_NA_GRADUAÇÃO!D35) -> 86 | G35: 0.1627906977
A36: =ALUNO_GRAD_TEMPO_INTEGRAL!A37 -> CIÊNCIAS ECONÔMICAS - 05A | B36: =ALUNO_GRAD_TEMPO_INTEGRAL!B37 -> 13090 | C36: =ALUNO_GRAD_TEMPO_INTEGRAL!D37 -> 4 | D36: =INÍCIO!$C$4-C36 -> 2018 | E36: =ALUNO_GRAD_TEMPO_INTEGRAL!C37 -> 19 | F36: =SUMIFS(Ingressantes!F:F,Ingressantes!C:C,TAXA_DE_SUCESSO_NA_GRADUAÇÃO!A36,Ingressantes!A:A,TAXA_DE_SUCESSO_NA_GRADUAÇÃO!D36) -> 53 | G36: 0.358490566
A37: =ALUNO_GRAD_TEMPO_INTEGRAL!A38 -> CIÊNCIAS ECONÔMICAS - 51A | B37: =ALUNO_GRAD_TEMPO_INTEGRAL!B38 -> 13090 | C37: =ALUNO_GRAD_TEMPO_INTEGRAL!D38 -> 4 | D37: =INÍCIO!$C$4-C37 -> 2018 | E37: =ALUNO_GRAD_TEMPO_INTEGRAL!C38 -> 27 | F37: =SUMIFS(Ingressantes!F:F,Ingressantes!C:C,TAXA_DE_SUCESSO_NA_GRADUAÇÃO!A37,Ingressantes!A:A,TAXA_DE_SUCESSO_NA_GRADUAÇÃO!D37) -> 52 | G37: 0.5192307692
A38: =ALUNO_GRAD_TEMPO_INTEGRAL!A39 -> CIÊNCIAS EXATAS - 65A | B38: =ALUNO_GRAD_TEMPO_INTEGRAL!B39 -> 116502 | C38: =ALUNO_GRAD_TEMPO_INTEGRAL!D39 -> 3 | D38: =INÍCIO!$C$4-C38 -> 2019 | E38: =ALUNO_GRAD_TEMPO_INTEGRAL!C39 -> 81 | F38: =SUMIFS(Ingressantes!F:F,Ingressantes!C:C,TAXA_DE_SUCESSO_NA_GRADUAÇÃO!A38,Ingressantes!A:A,TAXA_DE_SUCESSO_NA_GRADUAÇÃO!D38) -> 246 | G38: 0.3292682927
A39: =ALUNO_GRAD_TEMPO_INTEGRAL!A40 -> CIÊNCIAS SOCIAIS - 31B | B39: =ALUNO_GRAD_TEMPO_INTEGRAL!B40 -> 313087 | C39: =ALUNO_GRAD_TEMPO_INTEGRAL!D40 -> 2 | D39: =INÍCIO!$C$4-C39 -> 2020 | E39: =ALUNO_GRAD_TEMPO_INTEGRAL!C40 -> 0 | F39: =SUMIFS(Ingressantes!F:F,Ingressantes!C:C,TAXA_DE_SUCESSO_NA_GRADUAÇÃO!A39,Ingressantes!A:A,TAXA_DE_SUCESSO_NA_GRADUAÇÃO!D39) -> 0 | G39: 0 | J39: Não preencher os cursos ABI´s - Não temos como calcular ingressantes e concluintes
A40: =ALUNO_GRAD_TEMPO_INTEGRAL!A41 -> CIÊNCIAS SOCIAIS - 31L | B40: =ALUNO_GRAD_TEMPO_INTEGRAL!B41 -> 13087 | C40: =ALUNO_GRAD_TEMPO_INTEGRAL!D41 -> 2 | D40: =INÍCIO!$C$4-C40 -> 2020 | E40: =ALUNO_GRAD_TEMPO_INTEGRAL!C41 -> 0 | F40: =SUMIFS(Ingressantes!F:F,Ingressantes!C:C,TAXA_DE_SUCESSO_NA_GRADUAÇÃO!A40,Ingressantes!A:A,TAXA_DE_SUCESSO_NA_GRADUAÇÃO!D40) -> 0 | G40: 0 | J40: exceto o 21ABI/A - Considerar aqui 21ABI, 21A e 21B
A41: =ALUNO_GRAD_TEMPO_INTEGRAL!A42 -> CIÊNCIAS SOCIAIS - 72C | B41: =ALUNO_GRAD_TEMPO_INTEGRAL!B42 -> 313087 | C41: =ALUNO_GRAD_TEMPO_INTEGRAL!D42 -> 2 | D41: =INÍCIO!$C$4-C41 -> 2020 | E41: =ALUNO_GRAD_TEMPO_INTEGRAL!C42 -> 0 | F41: =SUMIFS(Ingressantes!F:F,Ingressantes!C:C,TAXA_DE_SUCESSO_NA_GRADUAÇÃO!A41,Ingressantes!A:A,TAXA_DE_SUCESSO_NA_GRADUAÇÃO!D41) -> 0 | G41: 0
A42: =ALUNO_GRAD_TEMPO_INTEGRAL!A43 -> CIÊNCIAS SOCIAIS - 72CB | B42: =ALUNO_GRAD_TEMPO_INTEGRAL!B43 -> 313087 | C42: =ALUNO_GRAD_TEMPO_INTEGRAL!D43 -> 2 | D42: =INÍCIO!$C$4-C42 -> 2020 | E42: =ALUNO_GRAD_TEMPO_INTEGRAL!C43 -> 1 | F42: =SUMIFS(Ingressantes!F:F,Ingressantes!C:C,TAXA_DE_SUCESSO_NA_GRADUAÇÃO!A42,Ingressantes!A:A,TAXA_DE_SUCESSO_NA_GRADUAÇÃO!D42) -> 0 | G42: 0
A43: =ALUNO_GRAD_TEMPO_INTEGRAL!A44 -> CIÊNCIAS SOCIAIS - 72CL | B43: =ALUNO_GRAD_TEMPO_INTEGRAL!B44 -> 13087 | C43: =ALUNO_GRAD_TEMPO_INTEGRAL!D44 -> 2 | D43: =INÍCIO!$C$4-C43 -> 2020 | E43: =ALUNO_GRAD_TEMPO_INTEGRAL!C44 -> 1 | F43: =SUMIFS(Ingressantes!F:F,Ingressantes!C:C,TAXA_DE_SUCESSO_NA_GRADUAÇÃO!A43,Ingressantes!A:A,TAXA_DE_SUCESSO_NA_GRADUAÇÃO!D43) -> 0 | G43: 0
A44: =ALUNO_GRAD_TEMPO_INTEGRAL!A45 -> CIÊNCIAS SOCIAIS - 73C | B44: =ALUNO_GRAD_TEMPO_INTEGRAL!B45 -> 313087 | C44: =ALUNO_GRAD_TEMPO_INTEGRAL!D45 -> 2 | D44: =INÍCIO!$C$4-C44 -> 2020 | E44: =ALUNO_GRAD_TEMPO_INTEGRAL!C45 -> 0 | F44: =SUMIFS(Ingressantes!F:F,Ingressantes!C:C,TAXA_DE_SUCESSO_NA_GRADUAÇÃO!A44,Ingressantes!A:A,TAXA_DE_SUCESSO_NA_GRADUAÇÃO!D44) -> 0 | G44: 0
A45: =ALUNO_GRAD_TEMPO_INTEGRAL!A46 -> CIÊNCIAS SOCIAIS - 73CB | B45: =ALUNO_GRAD_TEMPO_INTEGRAL!B46 -> 313087 | C45: =ALUNO_GRAD_TEMPO_INTEGRAL!D46 -> 2 | D45: =INÍCIO!$C$4-C45 -> 2020 | E45: =ALUNO_GRAD_TEMPO_INTEGRAL!C46 -> 13 | F45: =SUMIFS(Ingressantes!F:F,Ingressantes!C:C,TAXA_DE_SUCESSO_NA_GRADUAÇÃO!A45,Ingressantes!A:A,TAXA_DE_SUCESSO_NA_GRADUAÇÃO!D45) -> 0 | G45: 0
A46: =ALUNO_GRAD_TEMPO_INTEGRAL!A47 -> CIÊNCIAS SOCIAIS - 73CL | B46: =ALUNO_GRAD_TEMPO_INTEGRAL!B47 -> 13087 | C46: =ALUNO_GRAD_TEMPO_INTEGRAL!D47 -> 2 | D46: =INÍCIO!$C$4-C46 -> 2020 | E46: =ALUNO_GRAD_TEMPO_INTEGRAL!C47 -> 9 | F46: =SUMIFS(Ingressantes!F:F,Ingressantes!C:C,TAXA_DE_SUCESSO_NA_GRADUAÇÃO!A46,Ingressantes!A:A,TAXA_DE_SUCESSO_NA_GRADUAÇÃO!D46) -> 0 | G46: 0
A47: =ALUNO_GRAD_TEMPO_INTEGRAL!A48 -> DIREITO - 04A | B47: =ALUNO_GRAD_TEMPO_INTEGRAL!B48 -> 13089 | C47: =ALUNO_GRAD_TEMPO_INTEGRAL!D48 -> 5 | D47: =INÍCIO!$C$4-C47 -> 2017 | E47: =ALUNO_GRAD_TEMPO_INTEGRAL!C48 -> 96 | F47: =SUMIFS(Ingressantes!F:F,Ingressantes!C:C,TAXA_DE_SUCESSO_NA_GRADUAÇÃO!A47,Ingressantes!A:A,TAXA_DE_SUCESSO_NA_GRADUAÇÃO!D47) -> 119 | G47: 0.8067226891
A48: =ALUNO_GRAD_TEMPO_INTEGRAL!A49 -> DIREITO - 04GV | B48: =ALUNO_GRAD_TEMPO_INTEGRAL!B49 -> 13089 | C48: =ALUNO_GRAD_TEMPO_INTEGRAL!D49 -> 5 | D48: =INÍCIO!$C$4-C48 -> 2017 | E48: =ALUNO_GRAD_TEMPO_INTEGRAL!C49 -> 88 | F48: =SUMIFS(Ingressantes!F:F,Ingressantes!C:C,TAXA_DE_SUCESSO_NA_GRADUAÇÃO!A48,Ingressantes!A:A,TAXA_DE_SUCESSO_NA_GRADUAÇÃO!D48) -> 129 | G48: 0.6821705426
A49: =ALUNO_GRAD_TEMPO_INTEGRAL!A50 -> DIREITO - 34A | B49: =ALUNO_GRAD_TEMPO_INTEGRAL!B50 -> 21860 | C49: =ALUNO_GRAD_TEMPO_INTEGRAL!D50 -> 5 | D49: =INÍCIO!$C$4-C49 -> 2017 | E49: =ALUNO_GRAD_TEMPO_INTEGRAL!C50 -> 82 | F49: =SUMIFS(Ingressantes!F:F,Ingressantes!C:C,TAXA_DE_SUCESSO_NA_GRADUAÇÃO!A49,Ingressantes!A:A,TAXA_DE_SUCESSO_NA_GRADUAÇÃO!D49) -> 129 | G49: 0.6356589147
A50: =ALUNO_GRAD_TEMPO_INTEGRAL!A51 -> EDUCAÇÃO ARTÍSTICA - 03A | B50: =ALUNO_GRAD_TEMPO_INTEGRAL!B51 -> 38748 | C50: =ALUNO_GRAD_TEMPO_INTEGRAL!D51 -> 4 | D50: =INÍCIO!$C$4-C50 -> 2018 | E50: =ALUNO_GRAD_TEMPO_INTEGRAL!C51 -> 0 | F50: =SUMIFS(Ingressantes!F:F,Ingressantes!C:C,TAXA_DE_SUCESSO_NA_GRADUAÇÃO!A50,Ingressantes!A:A,TAXA_DE_SUCESSO_NA_GRADUAÇÃO!D50) -> 0 | G50: 0
A51: =ALUNO_GRAD_TEMPO_INTEGRAL!A52 -> EDUCAÇÃO FÍSICA - 10GV | B51: =ALUNO_GRAD_TEMPO_INTEGRAL!B52 -> 1270439 | C51: =ALUNO_GRAD_TEMPO_INTEGRAL!D52 -> 5 | D51: =INÍCIO!$C$4-C51 -> 2017 | E51: =ALUNO_GRAD_TEMPO_INTEGRAL!C52 -> 11 | F51: =SUMIFS(Ingressantes!F:F,Ingressantes!C:C,TAXA_DE_SUCESSO_NA_GRADUAÇÃO!A51,Ingressantes!A:A,TAXA_DE_SUCESSO_NA_GRADUAÇÃO!D51) -> 74 | G51: 0.1486486486
A52: =ALUNO_GRAD_TEMPO_INTEGRAL!A53 -> EDUCAÇÃO FÍSICA - 21B | B52: =ALUNO_GRAD_TEMPO_INTEGRAL!B53 -> 313092 | C52: =ALUNO_GRAD_TEMPO_INTEGRAL!D53 -> 5 | D52: =INÍCIO!$C$4-C52 -> 2017 | E52: =ALUNO_GRAD_TEMPO_INTEGRAL!C53 -> 26 | F52: =SUMIFS(Ingressantes!F:F,Ingressantes!C:C,TAXA_DE_SUCESSO_NA_GRADUAÇÃO!A52,Ingressantes!A:A,TAXA_DE_SUCESSO_NA_GRADUAÇÃO!D52) -> 10 | G52: 2.6
A53: =ALUNO_GRAD_TEMPO_INTEGRAL!A54 -> EDUCAÇÃO FÍSICA - 21L | B53: =ALUNO_GRAD_TEMPO_INTEGRAL!B54 -> 13092 | C53: =ALUNO_GRAD_TEMPO_INTEGRAL!D54 -> 5 | D53: =INÍCIO!$C$4-C53 -> 2017 | E53: =ALUNO_GRAD_TEMPO_INTEGRAL!C54 -> 22 | F53: =SUMIFS(Ingressantes!F:F,Ingressantes!C:C,TAXA_DE_SUCESSO_NA_GRADUAÇÃO!A53,Ingressantes!A:A,TAXA_DE_SUCESSO_NA_GRADUAÇÃO!D53) -> 7 | G53: 3.142857143
A54: =ALUNO_GRAD_TEMPO_INTEGRAL!A55 -> ENFERMAGEM - 23A | B54: =ALUNO_GRAD_TEMPO_INTEGRAL!B55 -> 38994 | C54: =ALUNO_GRAD_TEMPO_INTEGRAL!D55 -> 5 | D54: =INÍCIO!$C$4-C54 -> 2017 | E54: =ALUNO_GRAD_TEMPO_INTEGRAL!C55 -> 37 | F54: =SUMIFS(Ingressantes!F:F,Ingressantes!C:C,TAXA_DE_SUCESSO_NA_GRADUAÇÃO!A54,Ingressantes!A:A,TAXA_DE_SUCESSO_NA_GRADUAÇÃO!D54) -> 90 | G54: 0.4111111111
A55: =ALUNO_GRAD_TEMPO_INTEGRAL!A56 -> ENFERMAGEM - 23L | B55: =ALUNO_GRAD_TEMPO_INTEGRAL!B56 -> 338994 | C55: =ALUNO_GRAD_TEMPO_INTEGRAL!D56 -> 5 | D55: =INÍCIO!$C$4-C55 -> 2017 | E55: =ALUNO_GRAD_TEMPO_INTEGRAL!C56 -> 7 | F55: =SUMIFS(Ingressantes!F:F,Ingressantes!C:C,TAXA_DE_SUCESSO_NA_GRADUAÇÃO!A55,Ingressantes!A:A,TAXA_DE_SUCESSO_NA_GRADUAÇÃO!D55) -> 0 | G55: 0
A56: =ALUNO_GRAD_TEMPO_INTEGRAL!A57 -> ENGENHARIA AMBIENTAL E SANITÁRIA - 67A | B56: =ALUNO_GRAD_TEMPO_INTEGRAL!B57 -> 116496 | C56: =ALUNO_GRAD_TEMPO_INTEGRAL!D57 -> 5 | D56: =INÍCIO!$C$4-C56 -> 2017 | E56: =ALUNO_GRAD_TEMPO_INTEGRAL!C57 -> 16 | F56: =SUMIFS(Ingressantes!F:F,Ingressantes!C:C,TAXA_DE_SUCESSO_NA_GRADUAÇÃO!A56,Ingressantes!A:A,TAXA_DE_SUCESSO_NA_GRADUAÇÃO!D56) -> 57 | G56: 0.2807017544
A57: =ALUNO_GRAD_TEMPO_INTEGRAL!A58 -> ENGENHARIA CIVIL - 24A | B57: =ALUNO_GRAD_TEMPO_INTEGRAL!B58 -> 13094 | C57: =ALUNO_GRAD_TEMPO_INTEGRAL!D58 -> 5 | D57: =INÍCIO!$C$4-C57 -> 2017 | E57: =ALUNO_GRAD_TEMPO_INTEGRAL!C58 -> 65 | F57: =SUMIFS(Ingressantes!F:F,Ingressantes!C:C,TAXA_DE_SUCESSO_NA_GRADUAÇÃO!A57,Ingressantes!A:A,TAXA_DE_SUCESSO_NA_GRADUAÇÃO!D57) -> 118 | G57: 0.5508474576
A58: =ALUNO_GRAD_TEMPO_INTEGRAL!A59 -> ENGENHARIA COMPUTACIONAL - 65B | B58: =ALUNO_GRAD_TEMPO_INTEGRAL!B59 -> 1120244 | C58: =ALUNO_GRAD_TEMPO_INTEGRAL!D59 -> 2 | D58: =INÍCIO!$C$4-C58 -> 2020 | E58: =ALUNO_GRAD_TEMPO_INTEGRAL!C59 -> 8 | F58: =SUMIFS(Ingressantes!F:F,Ingressantes!C:C,TAXA_DE_SUCESSO_NA_GRADUAÇÃO!A58,Ingressantes!A:A,TAXA_DE_SUCESSO_NA_GRADUAÇÃO!D58) -> 26 | G58: 0.3076923077
A59: =ALUNO_GRAD_TEMPO_INTEGRAL!A60 -> ENGENHARIA DE PRODUÇÃO - 49A | B59: =ALUNO_GRAD_TEMPO_INTEGRAL!B60 -> 38594 | C59: =ALUNO_GRAD_TEMPO_INTEGRAL!D60 -> 5 | D59: =INÍCIO!$C$4-C59 -> 2017 | E59: =ALUNO_GRAD_TEMPO_INTEGRAL!C60 -> 46 | F59: =SUMIFS(Ingressantes!F:F,Ingressantes!C:C,TAXA_DE_SUCESSO_NA_GRADUAÇÃO!A59,Ingressantes!A:A,TAXA_DE_SUCESSO_NA_GRADUAÇÃO!D59) -> 70 | G59: 0.6571428571
A60: =ALUNO_GRAD_TEMPO_INTEGRAL!A61 -> ENGENHARIA ELÉTRICA - 25A | B60: =ALUNO_GRAD_TEMPO_INTEGRAL!B61 -> 13095 | C60: =ALUNO_GRAD_TEMPO_INTEGRAL!D61 -> 5 | D60: =INÍCIO!$C$4-C60 -> 2017 | E60: =ALUNO_GRAD_TEMPO_INTEGRAL!C61 -> 0 | F60: =SUMIFS(Ingressantes!F:F,Ingressantes!C:C,TAXA_DE_SUCESSO_NA_GRADUAÇÃO!A60,Ingressantes!A:A,TAXA_DE_SUCESSO_NA_GRADUAÇÃO!D60) -> 0 | G60: 0
A61: =ALUNO_GRAD_TEMPO_INTEGRAL!A62 -> ENGENHARIA ELÉTRICA - 50A | B61: =ALUNO_GRAD_TEMPO_INTEGRAL!B62 -> 49788 | C61: =ALUNO_GRAD_TEMPO_INTEGRAL!D62 -> 5 | D61: =INÍCIO!$C$4-C61 -> 2017 | E61: =ALUNO_GRAD_TEMPO_INTEGRAL!C62 -> 0 | F61: =SUMIFS(Ingressantes!F:F,Ingressantes!C:C,TAXA_DE_SUCESSO_NA_GRADUAÇÃO!A61,Ingressantes!A:A,TAXA_DE_SUCESSO_NA_GRADUAÇÃO!D61) -> 0 | G61: 0
A62: =ALUNO_GRAD_TEMPO_INTEGRAL!A63 -> ENGENHARIA ELÉTRICA - HAB. EM ROBÓTICA E AUTOMAÇÃO INDUSTRIAL - 65I | B62: =ALUNO_GRAD_TEMPO_INTEGRAL!B63 -> 1109485 | C62: =ALUNO_GRAD_TEMPO_INTEGRAL!D63 -> 2 | D62: =INÍCIO!$C$4-C62 -> 2020 | E62: =ALUNO_GRAD_TEMPO_INTEGRAL!C63 -> 1 | F62: =SUMIFS(Ingressantes!F:F,Ingressantes!C:C,TAXA_DE_SUCESSO_NA_GRADUAÇÃO!A62,Ingressantes!A:A,TAXA_DE_SUCESSO_NA_GRADUAÇÃO!D62) -> 0 | G62: 0
A63: =ALUNO_GRAD_TEMPO_INTEGRAL!A64 -> ENGENHARIA ELÉTRICA - HAB. EM ROBÓTICA E AUTOMAÇÃO INDUSTRIAL - 69B | B63: =ALUNO_GRAD_TEMPO_INTEGRAL!B64 -> 1109485 | C63: =ALUNO_GRAD_TEMPO_INTEGRAL!D64 -> 5 | D63: =INÍCIO!$C$4-C63 -> 2017 | E63: =ALUNO_GRAD_TEMPO_INTEGRAL!C64 -> 17 | F63: =SUMIFS(Ingressantes!F:F,Ingressantes!C:C,TAXA_DE_SUCESSO_NA_GRADUAÇÃO!A63,Ingressantes!A:A,TAXA_DE_SUCESSO_NA_GRADUAÇÃO!D63) -> 43 | G63: 0.3953488372
A64: =ALUNO_GRAD_TEMPO_INTEGRAL!A65 -> ENGENHARIA ELÉTRICA - HABILITAÇÃO EM ENERGIA - 65H | B64: =ALUNO_GRAD_TEMPO_INTEGRAL!B65 -> 1109475 | C64: =ALUNO_GRAD_TEMPO_INTEGRAL!D65 -> 2 | D64: =INÍCIO!$C$4-C64 -> 2020 | E64: =ALUNO_GRAD_TEMPO_INTEGRAL!C65 -> 2 | F64: =SUMIFS(Ingressantes!F:F,Ingressantes!C:C,TAXA_DE_SUCESSO_NA_GRADUAÇÃO!A64,Ingressantes!A:A,TAXA_DE_SUCESSO_NA_GRADUAÇÃO!D64) -> 1 | G64: 2
A65: =ALUNO_GRAD_TEMPO_INTEGRAL!A66 -> ENGENHARIA ELÉTRICA - HABILITAÇÃO EM ENERGIA - 70A | B65: =ALUNO_GRAD_TEMPO_INTEGRAL!B66 -> 1109475 | C65: =ALUNO_GRAD_TEMPO_INTEGRAL!D66 -> 5 | D65: =INÍCIO!$C$4-C65 -> 2017 | E65: =ALUNO_GRAD_TEMPO_INTEGRAL!C66 -> 20 | F65: =SUMIFS(Ingressantes!F:F,Ingressantes!C:C,TAXA_DE_SUCESSO_NA_GRADUAÇÃO!A65,Ingressantes!A:A,TAXA_DE_SUCESSO_NA_GRADUAÇÃO!D65) -> 56 | G65: 0.3571428571
A66: =ALUNO_GRAD_TEMPO_INTEGRAL!A67 -> ENGENHARIA ELÉTRICA - HABILITAÇÃO EM SISTEMAS DE POTÊNCIA - 65J | B66: =ALUNO_GRAD_TEMPO_INTEGRAL!B67 -> 1109486 | C66: =ALUNO_GRAD_TEMPO_INTEGRAL!D67 -> 2 | D66: =INÍCIO!$C$4-C66 -> 2020 | E66: =ALUNO_GRAD_TEMPO_INTEGRAL!C67 -> 4 | F66: =SUMIFS(Ingressantes!F:F,Ingressantes!C:C,TAXA_DE_SUCESSO_NA_GRADUAÇÃO!A66,Ingressantes!A:A,TAXA_DE_SUCESSO_NA_GRADUAÇÃO!D66) -> 1 | G66: 4
A67: =ALUNO_GRAD_TEMPO_INTEGRAL!A68 -> ENGENHARIA ELÉTRICA - HABILITAÇÃO EM SISTEMAS DE POTÊNCIA - 69C | B67: =ALUNO_GRAD_TEMPO_INTEGRAL!B68 -> 1109486 | C67: =ALUNO_GRAD_TEMPO_INTEGRAL!D68 -> 5 | D67: =INÍCIO!$C$4-C67 -> 2017 | E67: =ALUNO_GRAD_TEMPO_INTEGRAL!C68 -> 26 | F67: =SUMIFS(Ingressantes!F:F,Ingressantes!C:C,TAXA_DE_SUCESSO_NA_GRADUAÇÃO!A67,Ingressantes!A:A,TAXA_DE_SUCESSO_NA_GRADUAÇÃO!D67) -> 47 | G67: 0.5531914894
A68: =ALUNO_GRAD_TEMPO_INTEGRAL!A69 -> ENGENHARIA ELÉTRICA - HABILITAÇÃO EM SISTEMAS ELETRÔNICOS - 65K | B68: =ALUNO_GRAD_TEMPO_INTEGRAL!B69 -> 1109487 | C68: =ALUNO_GRAD_TEMPO_INTEGRAL!D69 -> 2 | D68: =INÍCIO!$C$4-C68 -> 2020 | E68: =ALUNO_GRAD_TEMPO_INTEGRAL!C69 -> 2 | F68: =SUMIFS(Ingressantes!F:F,Ingressantes!C:C,TAXA_DE_SUCESSO_NA_GRADUAÇÃO!A68,Ingressantes!A:A,TAXA_DE_SUCESSO_NA_GRADUAÇÃO!D68) -> 0 | G68: =IF(E68=0,,IF(F68=0,,E68/F68)) -> 0
A69: =ALUNO_GRAD_TEMPO_INTEGRAL!A70 -> ENGENHARIA ELÉTRICA - HABILITAÇÃO EM SISTEMAS ELETRÔNICOS - 69A | B69: =ALUNO_GRAD_TEMPO_INTEGRAL!B70 -> 1109487 | C69: =ALUNO_GRAD_TEMPO_INTEGRAL!D70 -> 5 | D69: =INÍCIO!$C$4-C69 -> 2017 | E69: =ALUNO_GRAD_TEMPO_INTEGRAL!C70 -> 17 | F69: =SUMIFS(Ingressantes!F:F,Ingressantes!C:C,TAXA_DE_SUCESSO_NA_GRADUAÇÃO!A69,Ingressantes!A:A,TAXA_DE_SUCESSO_NA_GRADUAÇÃO!D69) -> 47 | G69: 0.3617021277
A70: =ALUNO_GRAD_TEMPO_INTEGRAL!A71 -> ENGENHARIA ELÉTRICA - HABILITAÇÃO EM TELECOMUNICAÇÕES - 65L | B70: =ALUNO_GRAD_TEMPO_INTEGRAL!B71 -> 1109488 | C70: =ALUNO_GRAD_TEMPO_INTEGRAL!D71 -> 2 | D70: =INÍCIO!$C$4-C70 -> 2020 | E70: =ALUNO_GRAD_TEMPO_INTEGRAL!C71 -> 1 | F70: =SUMIFS(Ingressantes!F:F,Ingressantes!C:C,TAXA_DE_SUCESSO_NA_GRADUAÇÃO!A70,Ingressantes!A:A,TAXA_DE_SUCESSO_NA_GRADUAÇÃO!D70) -> 0 | G70: 0
A71: =ALUNO_GRAD_TEMPO_INTEGRAL!A72 -> ENGENHARIA ELÉTRICA - HABILITAÇÃO EM TELECOMUNICAÇÕES - 69D | B71: =ALUNO_GRAD_TEMPO_INTEGRAL!B72 -> 1109488 | C71: =ALUNO_GRAD_TEMPO_INTEGRAL!D72 -> 5 | D71: =INÍCIO!$C$4-C71 -> 2017 | E71: =ALUNO_GRAD_TEMPO_INTEGRAL!C72 -> 12 | F71: =SUMIFS(Ingressantes!F:F,Ingressantes!C:C,TAXA_DE_SUCESSO_NA_GRADUAÇÃO!A71,Ingressantes!A:A,TAXA_DE_SUCESSO_NA_GRADUAÇÃO!D71) -> 47 | G71: 0.2553191489
A72: =ALUNO_GRAD_TEMPO_INTEGRAL!A73 -> ENGENHARIA MECÂNICA - 65M | B72: =ALUNO_GRAD_TEMPO_INTEGRAL!B73 -> 1109489 | C72: =ALUNO_GRAD_TEMPO_INTEGRAL!D73 -> 2 | D72: =INÍCIO!$C$4-C72 -> 2020 | E72: =ALUNO_GRAD_TEMPO_INTEGRAL!C73 -> 9 | F72: =SUMIFS(Ingressantes!F:F,Ingressantes!C:C,TAXA_DE_SUCESSO_NA_GRADUAÇÃO!A72,Ingressantes!A:A,TAXA_DE_SUCESSO_NA_GRADUAÇÃO!D72) -> 1 | G72: 9
A73: =ALUNO_GRAD_TEMPO_INTEGRAL!A74 -> ENGENHARIA MECÂNICA - 71A | B73: =ALUNO_GRAD_TEMPO_INTEGRAL!B74 -> 1109489 | C73: =ALUNO_GRAD_TEMPO_INTEGRAL!D74 -> 5 | D73: =INÍCIO!$C$4-C73 -> 2017 | E73: =ALUNO_GRAD_TEMPO_INTEGRAL!C74 -> 20 | F73: =SUMIFS(Ingressantes!F:F,Ingressantes!C:C,TAXA_DE_SUCESSO_NA_GRADUAÇÃO!A73,Ingressantes!A:A,TAXA_DE_SUCESSO_NA_GRADUAÇÃO!D73) -> 59 | G73: 0.3389830508
A74: =ALUNO_GRAD_TEMPO_INTEGRAL!A75 -> ESTATÍSTICA - 65D | B74: =ALUNO_GRAD_TEMPO_INTEGRAL!B75 -> 113531 | C74: =ALUNO_GRAD_TEMPO_INTEGRAL!D75 -> 2 | D74: =INÍCIO!$C$4-C74 -> 2020 | E74: =ALUNO_GRAD_TEMPO_INTEGRAL!C75 -> 9 | F74: =SUMIFS(Ingressantes!F:F,Ingressantes!C:C,TAXA_DE_SUCESSO_NA_GRADUAÇÃO!A74,Ingressantes!A:A,TAXA_DE_SUCESSO_NA_GRADUAÇÃO!D74) -> 27 | G74: 0.3333333333
A75: =ALUNO_GRAD_TEMPO_INTEGRAL!A76 -> FARMÁCIA - 05GV | B75: =ALUNO_GRAD_TEMPO_INTEGRAL!B76 -> 1185503 | C75: =ALUNO_GRAD_TEMPO_INTEGRAL!D76 -> 5 | D75: =INÍCIO!$C$4-C75 -> 2017 | E75: =ALUNO_GRAD_TEMPO_INTEGRAL!C76 -> 3 | F75: =SUMIFS(Ingressantes!F:F,Ingressantes!C:C,TAXA_DE_SUCESSO_NA_GRADUAÇÃO!A75,Ingressantes!A:A,TAXA_DE_SUCESSO_NA_GRADUAÇÃO!D75) -> 78 | G75: 0.03846153846
A76: =ALUNO_GRAD_TEMPO_INTEGRAL!A77 -> FARMÁCIA - 07A | B76: =ALUNO_GRAD_TEMPO_INTEGRAL!B77 -> 38509 | C76: =ALUNO_GRAD_TEMPO_INTEGRAL!D77 -> 5 | D76: =INÍCIO!$C$4-C76 -> 2017 | E76: =ALUNO_GRAD_TEMPO_INTEGRAL!C77 -> 28 | F76: =SUMIFS(Ingressantes!F:F,Ingressantes!C:C,TAXA_DE_SUCESSO_NA_GRADUAÇÃO!A76,Ingressantes!A:A,TAXA_DE_SUCESSO_NA_GRADUAÇÃO!D76) -> 111 | G76: 0.2522522523
A77: =ALUNO_GRAD_TEMPO_INTEGRAL!A78 -> FILOSOFIA - 08A | B77: =ALUNO_GRAD_TEMPO_INTEGRAL!B78 -> 5000611 | C77: =ALUNO_GRAD_TEMPO_INTEGRAL!D78 -> 4 | D77: =INÍCIO!$C$4-C77 -> 2018 | E77: =ALUNO_GRAD_TEMPO_INTEGRAL!C78 -> 0 | F77: =SUMIFS(Ingressantes!F:F,Ingressantes!C:C,TAXA_DE_SUCESSO_NA_GRADUAÇÃO!A77,Ingressantes!A:A,TAXA_DE_SUCESSO_NA_GRADUAÇÃO!D77) -> 0 | G77: 0
A78: =ALUNO_GRAD_TEMPO_INTEGRAL!A79 -> FILOSOFIA - 08B | B78: =ALUNO_GRAD_TEMPO_INTEGRAL!B79 -> 313097 | C78: =ALUNO_GRAD_TEMPO_INTEGRAL!D79 -> 4 | D78: =INÍCIO!$C$4-C78 -> 2018 | E78: =ALUNO_GRAD_TEMPO_INTEGRAL!C79 -> 11 | F78: =SUMIFS(Ingressantes!F:F,Ingressantes!C:C,TAXA_DE_SUCESSO_NA_GRADUAÇÃO!A78,Ingressantes!A:A,TAXA_DE_SUCESSO_NA_GRADUAÇÃO!D78) -> 9 | G78: 1.222222222
A79: =ALUNO_GRAD_TEMPO_INTEGRAL!A80 -> FILOSOFIA - 08L | B79: =ALUNO_GRAD_TEMPO_INTEGRAL!B80 -> 13097 | C79: =ALUNO_GRAD_TEMPO_INTEGRAL!D80 -> 4 | D79: =INÍCIO!$C$4-C79 -> 2018 | E79: =ALUNO_GRAD_TEMPO_INTEGRAL!C80 -> 7 | F79: =SUMIFS(Ingressantes!F:F,Ingressantes!C:C,TAXA_DE_SUCESSO_NA_GRADUAÇÃO!A79,Ingressantes!A:A,TAXA_DE_SUCESSO_NA_GRADUAÇÃO!D79) -> 14 | G79: 0.5
A80: =ALUNO_GRAD_TEMPO_INTEGRAL!A81 -> FILOSOFIA - 72EB | B80: =ALUNO_GRAD_TEMPO_INTEGRAL!B81 -> 313097 | C80: =ALUNO_GRAD_TEMPO_INTEGRAL!D81 -> 2 | D80: =INÍCIO!$C$4-C80 -> 2020 | E80: =ALUNO_GRAD_TEMPO_INTEGRAL!C81 -> 1 | F80: =SUMIFS(Ingressantes!F:F,Ingressantes!C:C,TAXA_DE_SUCESSO_NA_GRADUAÇÃO!A80,Ingressantes!A:A,TAXA_DE_SUCESSO_NA_GRADUAÇÃO!D80) -> 0 | G80: 0
A81: =ALUNO_GRAD_TEMPO_INTEGRAL!A82 -> FILOSOFIA - 72EL | B81: =ALUNO_GRAD_TEMPO_INTEGRAL!B82 -> 13097 | C81: =ALUNO_GRAD_TEMPO_INTEGRAL!D82 -> 2 | D81: =INÍCIO!$C$4-C81 -> 2020 | E81: =ALUNO_GRAD_TEMPO_INTEGRAL!C82 -> 2 | F81: =SUMIFS(Ingressantes!F:F,Ingressantes!C:C,TAXA_DE_SUCESSO_NA_GRADUAÇÃO!A81,Ingressantes!A:A,TAXA_DE_SUCESSO_NA_GRADUAÇÃO!D81) -> 0 | G81: 0
A82: =ALUNO_GRAD_TEMPO_INTEGRAL!A83 -> FILOSOFIA - 73E | B82: =ALUNO_GRAD_TEMPO_INTEGRAL!B83 -> 313097 | C82: =ALUNO_GRAD_TEMPO_INTEGRAL!D83 -> 2 | D82: =INÍCIO!$C$4-C82 -> 2020 | E82: =ALUNO_GRAD_TEMPO_INTEGRAL!C83 -> 0 | F82: =SUMIFS(Ingressantes!F:F,Ingressantes!C:C,TAXA_DE_SUCESSO_NA_GRADUAÇÃO!A82,Ingressantes!A:A,TAXA_DE_SUCESSO_NA_GRADUAÇÃO!D82) -> 0 | G82: 0
A83: =ALUNO_GRAD_TEMPO_INTEGRAL!A84 -> FÍSICA - 09A | B83: =ALUNO_GRAD_TEMPO_INTEGRAL!B84 -> 5000613 | C83: =ALUNO_GRAD_TEMPO_INTEGRAL!D84 -> 4 | D83: =INÍCIO!$C$4-C83 -> 2018 | E83: =ALUNO_GRAD_TEMPO_INTEGRAL!C84 -> 0 | F83: =SUMIFS(Ingressantes!F:F,Ingressantes!C:C,TAXA_DE_SUCESSO_NA_GRADUAÇÃO!A83,Ingressantes!A:A,TAXA_DE_SUCESSO_NA_GRADUAÇÃO!D83) -> 0 | G83: 0
A84: =ALUNO_GRAD_TEMPO_INTEGRAL!A85 -> FÍSICA - 65E | B84: =ALUNO_GRAD_TEMPO_INTEGRAL!B85 -> 313098 | C84: =ALUNO_GRAD_TEMPO_INTEGRAL!D85 -> 2 | D84: =INÍCIO!$C$4-C84 -> 2020 | E84: =ALUNO_GRAD_TEMPO_INTEGRAL!C85 -> 7 | F84: =SUMIFS(Ingressantes!F:F,Ingressantes!C:C,TAXA_DE_SUCESSO_NA_GRADUAÇÃO!A84,Ingressantes!A:A,TAXA_DE_SUCESSO_NA_GRADUAÇÃO!D84) -> 36 | G84: 0.1944444444
A85: =ALUNO_GRAD_TEMPO_INTEGRAL!A86 -> FÍSICA - 65EL | B85: =ALUNO_GRAD_TEMPO_INTEGRAL!B86 -> 13098 | C85: =ALUNO_GRAD_TEMPO_INTEGRAL!D86 -> 2 | D85: =INÍCIO!$C$4-C85 -> 2020 | E85: =ALUNO_GRAD_TEMPO_INTEGRAL!C86 -> 1 | F85: =SUMIFS(Ingressantes!F:F,Ingressantes!C:C,TAXA_DE_SUCESSO_NA_GRADUAÇÃO!A85,Ingressantes!A:A,TAXA_DE_SUCESSO_NA_GRADUAÇÃO!D85) -> 0 | G85: 0
A86: =ALUNO_GRAD_TEMPO_INTEGRAL!A87 -> FÍSICA - 81A | B86: =ALUNO_GRAD_TEMPO_INTEGRAL!B87 -> 1166037 | C86: =ALUNO_GRAD_TEMPO_INTEGRAL!D87 -> 4 | D86: =INÍCIO!$C$4-C86 -> 2018 | E86: =ALUNO_GRAD_TEMPO_INTEGRAL!C87 -> 4 | F86: =SUMIFS(Ingressantes!F:F,Ingressantes!C:C,TAXA_DE_SUCESSO_NA_GRADUAÇÃO!A86,Ingressantes!A:A,TAXA_DE_SUCESSO_NA_GRADUAÇÃO!D86) -> 23 | G86: 0.1739130435
A87: =ALUNO_GRAD_TEMPO_INTEGRAL!A88 -> FISIOTERAPIA - 06GV | B87: =ALUNO_GRAD_TEMPO_INTEGRAL!B88 -> 1178689 | C87: =ALUNO_GRAD_TEMPO_INTEGRAL!D88 -> 5 | D87: =INÍCIO!$C$4-C87 -> 2017 | E87: =ALUNO_GRAD_TEMPO_INTEGRAL!C88 -> 15 | F87: =SUMIFS(Ingressantes!F:F,Ingressantes!C:C,TAXA_DE_SUCESSO_NA_GRADUAÇÃO!A87,Ingressantes!A:A,TAXA_DE_SUCESSO_NA_GRADUAÇÃO!D87) -> 66 | G87: 0.2272727273
A88: =ALUNO_GRAD_TEMPO_INTEGRAL!A89 -> FISIOTERAPIA - 20A | B88: =ALUNO_GRAD_TEMPO_INTEGRAL!B89 -> 13118 | C88: =ALUNO_GRAD_TEMPO_INTEGRAL!D89 -> 5 | D88: =INÍCIO!$C$4-C88 -> 2017 | E88: =ALUNO_GRAD_TEMPO_INTEGRAL!C89 -> 27 | F88: =SUMIFS(Ingressantes!F:F,Ingressantes!C:C,TAXA_DE_SUCESSO_NA_GRADUAÇÃO!A88,Ingressantes!A:A,TAXA_DE_SUCESSO_NA_GRADUAÇÃO!D88) -> 51 | G88: 0.5294117647
A89: =ALUNO_GRAD_TEMPO_INTEGRAL!A90 -> GEOGRAFIA - 10B | B89: =ALUNO_GRAD_TEMPO_INTEGRAL!B90 -> 313099 | C89: =ALUNO_GRAD_TEMPO_INTEGRAL!D90 -> 4 | D89: =INÍCIO!$C$4-C89 -> 2018 | E89: =ALUNO_GRAD_TEMPO_INTEGRAL!C90 -> 13 | F89: =SUMIFS(Ingressantes!F:F,Ingressantes!C:C,TAXA_DE_SUCESSO_NA_GRADUAÇÃO!A89,Ingressantes!A:A,TAXA_DE_SUCESSO_NA_GRADUAÇÃO!D89) -> 16 | G89: 0.8125
A90: =ALUNO_GRAD_TEMPO_INTEGRAL!A91 -> GEOGRAFIA - 10L | B90: =ALUNO_GRAD_TEMPO_INTEGRAL!B91 -> 13099 | C90: =ALUNO_GRAD_TEMPO_INTEGRAL!D91 -> 4 | D90: =INÍCIO!$C$4-C90 -> 2018 | E90: =ALUNO_GRAD_TEMPO_INTEGRAL!C91 -> 19 | F90: =SUMIFS(Ingressantes!F:F,Ingressantes!C:C,TAXA_DE_SUCESSO_NA_GRADUAÇÃO!A90,Ingressantes!A:A,TAXA_DE_SUCESSO_NA_GRADUAÇÃO!D90) -> 20 | G90: 0.95
A91: =ALUNO_GRAD_TEMPO_INTEGRAL!A92 -> GEOGRAFIA - 27A | B91: =ALUNO_GRAD_TEMPO_INTEGRAL!B92 -> 5000615 | C91: =ALUNO_GRAD_TEMPO_INTEGRAL!D92 -> 4 | D91: =INÍCIO!$C$4-C91 -> 2018 | E91: =ALUNO_GRAD_TEMPO_INTEGRAL!C92 -> 0 | F91: =SUMIFS(Ingressantes!F:F,Ingressantes!C:C,TAXA_DE_SUCESSO_NA_GRADUAÇÃO!A91,Ingressantes!A:A,TAXA_DE_SUCESSO_NA_GRADUAÇÃO!D91) -> 0 | G91: 0
A92: =ALUNO_GRAD_TEMPO_INTEGRAL!A93 -> GEOGRAFIA - 27L | B92: =ALUNO_GRAD_TEMPO_INTEGRAL!B93 -> 13099 | C92: =ALUNO_GRAD_TEMPO_INTEGRAL!D93 -> 4 | D92: =INÍCIO!$C$4-C92 -> 2018 | E92: =ALUNO_GRAD_TEMPO_INTEGRAL!C93 -> 19 | F92: =SUMIFS(Ingressantes!F:F,Ingressantes!C:C,TAXA_DE_SUCESSO_NA_GRADUAÇÃO!A92,Ingressantes!A:A,TAXA_DE_SUCESSO_NA_GRADUAÇÃO!D92) -> 21 | G92: 0.9047619048
A93: =ALUNO_GRAD_TEMPO_INTEGRAL!A94 -> HISTÓRIA - 11A | B93: =ALUNO_GRAD_TEMPO_INTEGRAL!B94 -> 5000616 | C93: =ALUNO_GRAD_TEMPO_INTEGRAL!D94 -> 4 | D93: =INÍCIO!$C$4-C93 -> 2018 | E93: =ALUNO_GRAD_TEMPO_INTEGRAL!C94 -> 0 | F93: =SUMIFS(Ingressantes!F:F,Ingressantes!C:C,TAXA_DE_SUCESSO_NA_GRADUAÇÃO!A93,Ingressantes!A:A,TAXA_DE_SUCESSO_NA_GRADUAÇÃO!D93) -> 0 | G93: 0
A94: =ALUNO_GRAD_TEMPO_INTEGRAL!A95 -> HISTÓRIA - 11B | B94: =ALUNO_GRAD_TEMPO_INTEGRAL!B95 -> 313100 | C94: =ALUNO_GRAD_TEMPO_INTEGRAL!D95 -> 4 | D94: =INÍCIO!$C$4-C94 -> 2018 | E94: =ALUNO_GRAD_TEMPO_INTEGRAL!C95 -> 5 | F94: =SUMIFS(Ingressantes!F:F,Ingressantes!C:C,TAXA_DE_SUCESSO_NA_GRADUAÇÃO!A94,Ingressantes!A:A,TAXA_DE_SUCESSO_NA_GRADUAÇÃO!D94) -> 10 | G94: 0.5
A95: =ALUNO_GRAD_TEMPO_INTEGRAL!A96 -> HISTÓRIA - 11L | B95: =ALUNO_GRAD_TEMPO_INTEGRAL!B96 -> 13100 | C95: =ALUNO_GRAD_TEMPO_INTEGRAL!D96 -> 4 | D95: =INÍCIO!$C$4-C95 -> 2018 | E95: =ALUNO_GRAD_TEMPO_INTEGRAL!C96 -> 32 | F95: =SUMIFS(Ingressantes!F:F,Ingressantes!C:C,TAXA_DE_SUCESSO_NA_GRADUAÇÃO!A95,Ingressantes!A:A,TAXA_DE_SUCESSO_NA_GRADUAÇÃO!D95) -> 31 | G95: 1.032258065
A96: =ALUNO_GRAD_TEMPO_INTEGRAL!A97 -> HISTÓRIA - 28A | B96: =ALUNO_GRAD_TEMPO_INTEGRAL!B97 -> 5000616 | C96: =ALUNO_GRAD_TEMPO_INTEGRAL!D97 -> 4 | D96: =INÍCIO!$C$4-C96 -> 2018 | E96: =ALUNO_GRAD_TEMPO_INTEGRAL!C97 -> 0 | F96: =SUMIFS(Ingressantes!F:F,Ingressantes!C:C,TAXA_DE_SUCESSO_NA_GRADUAÇÃO!A96,Ingressantes!A:A,TAXA_DE_SUCESSO_NA_GRADUAÇÃO!D96) -> 0 | G96: 0
A97: =ALUNO_GRAD_TEMPO_INTEGRAL!A98 -> HISTÓRIA - 28B | B97: =ALUNO_GRAD_TEMPO_INTEGRAL!B98 -> 313100 | C97: =ALUNO_GRAD_TEMPO_INTEGRAL!D98 -> 4 | D97: =INÍCIO!$C$4-C97 -> 2018 | E97: =ALUNO_GRAD_TEMPO_INTEGRAL!C98 -> 4 | F97: =SUMIFS(Ingressantes!F:F,Ingressantes!C:C,TAXA_DE_SUCESSO_NA_GRADUAÇÃO!A97,Ingressantes!A:A,TAXA_DE_SUCESSO_NA_GRADUAÇÃO!D97) -> 8 | G97: 0.5
A98: =ALUNO_GRAD_TEMPO_INTEGRAL!A99 -> HISTÓRIA - 28L | B98: =ALUNO_GRAD_TEMPO_INTEGRAL!B99 -> 13100 | C98: =ALUNO_GRAD_TEMPO_INTEGRAL!D99 -> 4 | D98: =INÍCIO!$C$4-C98 -> 2018 | E98: =ALUNO_GRAD_TEMPO_INTEGRAL!C99 -> 22 | F98: =SUMIFS(Ingressantes!F:F,Ingressantes!C:C,TAXA_DE_SUCESSO_NA_GRADUAÇÃO!A98,Ingressantes!A:A,TAXA_DE_SUCESSO_NA_GRADUAÇÃO!D98) -> 22 | G98: 1
A99: =ALUNO_GRAD_TEMPO_INTEGRAL!A100 -> JORNALISMO - 84A | B99: =ALUNO_GRAD_TEMPO_INTEGRAL!B100 -> 27657 | C99: =ALUNO_GRAD_TEMPO_INTEGRAL!D100 -> 4 | D99: =INÍCIO!$C$4-C99 -> 2018 | E99: =ALUNO_GRAD_TEMPO_INTEGRAL!C100 -> 11 | F99: =SUMIFS(Ingressantes!F:F,Ingressantes!C:C,TAXA_DE_SUCESSO_NA_GRADUAÇÃO!A99,Ingressantes!A:A,TAXA_DE_SUCESSO_NA_GRADUAÇÃO!D99) -> 41 | G99: 0.2682926829
A100: =ALUNO_GRAD_TEMPO_INTEGRAL!A101 -> JORNALISMO - 85A | B100: =ALUNO_GRAD_TEMPO_INTEGRAL!B101 -> 36356 | C100: =ALUNO_GRAD_TEMPO_INTEGRAL!D101 -> 4 | D100: =INÍCIO!$C$4-C100 -> 2018 | E100: =ALUNO_GRAD_TEMPO_INTEGRAL!C101 -> 12 | F100: =SUMIFS(Ingressantes!F:F,Ingressantes!C:C,TAXA_DE_SUCESSO_NA_GRADUAÇÃO!A100,Ingressantes!A:A,TAXA_DE_SUCESSO_NA_GRADUAÇÃO!D100) -> 47 | G100: 0.2553191489
A101: =ALUNO_GRAD_TEMPO_INTEGRAL!A102 -> LETRAS - 13A | B101: =ALUNO_GRAD_TEMPO_INTEGRAL!B102 -> 5000617 | C101: =ALUNO_GRAD_TEMPO_INTEGRAL!D102 -> 4 | D101: =INÍCIO!$C$4-C101 -> 2018 | E101: =ALUNO_GRAD_TEMPO_INTEGRAL!C102 -> 0 | F101: =SUMIFS(Ingressantes!F:F,Ingressantes!C:C,TAXA_DE_SUCESSO_NA_GRADUAÇÃO!A101,Ingressantes!A:A,TAXA_DE_SUCESSO_NA_GRADUAÇÃO!D101) -> 0 | G101: 0
A102: =ALUNO_GRAD_TEMPO_INTEGRAL!A103 -> LETRAS - 13B | B102: =ALUNO_GRAD_TEMPO_INTEGRAL!B103 -> 313101 | C102: =ALUNO_GRAD_TEMPO_INTEGRAL!D103 -> 4 | D102: =INÍCIO!$C$4-C102 -> 2018 | E102: =ALUNO_GRAD_TEMPO_INTEGRAL!C103 -> 7 | F102: =SUMIFS(Ingressantes!F:F,Ingressantes!C:C,TAXA_DE_SUCESSO_NA_GRADUAÇÃO!A102,Ingressantes!A:A,TAXA_DE_SUCESSO_NA_GRADUAÇÃO!D102) -> 10 | G102: 0.7
A103: =ALUNO_GRAD_TEMPO_INTEGRAL!A104 -> LETRAS - 13L | B103: =ALUNO_GRAD_TEMPO_INTEGRAL!B104 -> 13101 | C103: =ALUNO_GRAD_TEMPO_INTEGRAL!D104 -> 4 | D103: =INÍCIO!$C$4-C103 -> 2018 | E103: =ALUNO_GRAD_TEMPO_INTEGRAL!C104 -> 36 | F103: =SUMIFS(Ingressantes!F:F,Ingressantes!C:C,TAXA_DE_SUCESSO_NA_GRADUAÇÃO!A103,Ingressantes!A:A,TAXA_DE_SUCESSO_NA_GRADUAÇÃO!D103) -> 24 | G103: 1.5
A104: =ALUNO_GRAD_TEMPO_INTEGRAL!A105 -> LETRAS - 29A | B104: =ALUNO_GRAD_TEMPO_INTEGRAL!B105 -> 5000617 | C104: =ALUNO_GRAD_TEMPO_INTEGRAL!D105 -> 4 | D104: =INÍCIO!$C$4-C104 -> 2018 | E104: =ALUNO_GRAD_TEMPO_INTEGRAL!C105 -> 0 | F104: =SUMIFS(Ingressantes!F:F,Ingressantes!C:C,TAXA_DE_SUCESSO_NA_GRADUAÇÃO!A104,Ingressantes!A:A,TAXA_DE_SUCESSO_NA_GRADUAÇÃO!D104) -> 0 | G104: 0
A105: =ALUNO_GRAD_TEMPO_INTEGRAL!A106 -> LETRAS - 29B | B105: =ALUNO_GRAD_TEMPO_INTEGRAL!B106 -> 313101 | C105: =ALUNO_GRAD_TEMPO_INTEGRAL!D106 -> 4 | D105: =INÍCIO!$C$4-C105 -> 2018 | E105: =ALUNO_GRAD_TEMPO_INTEGRAL!C106 -> 0 | F105: =SUMIFS(Ingressantes!F:F,Ingressantes!C:C,TAXA_DE_SUCESSO_NA_GRADUAÇÃO!A105,Ingressantes!A:A,TAXA_DE_SUCESSO_NA_GRADUAÇÃO!D105) -> 0 | G105: 0
A106: =ALUNO_GRAD_TEMPO_INTEGRAL!A107 -> LETRAS - 29L | B106: =ALUNO_GRAD_TEMPO_INTEGRAL!B107 -> 13101 | C106: =ALUNO_GRAD_TEMPO_INTEGRAL!D107 -> 4 | D106: =INÍCIO!$C$4-C106 -> 2018 | E106: =ALUNO_GRAD_TEMPO_INTEGRAL!C107 -> 20 | F106: =SUMIFS(Ingressantes!F:F,Ingressantes!C:C,TAXA_DE_SUCESSO_NA_GRADUAÇÃO!A106,Ingressantes!A:A,TAXA_DE_SUCESSO_NA_GRADUAÇÃO!D106) -> 3 | G106: 6.666666667
A107: =ALUNO_GRAD_TEMPO_INTEGRAL!A108 -> LICENCIATURA EM ARTES VISUAIS - 66F | B107: =ALUNO_GRAD_TEMPO_INTEGRAL!B108 -> 1153951 | C107: =ALUNO_GRAD_TEMPO_INTEGRAL!D108 -> 2 | D107: =INÍCIO!$C$4-C107 -> 2020 | E107: =ALUNO_GRAD_TEMPO_INTEGRAL!C108 -> 16 | F107: =SUMIFS(Ingressantes!F:F,Ingressantes!C:C,TAXA_DE_SUCESSO_NA_GRADUAÇÃO!A107,Ingressantes!A:A,TAXA_DE_SUCESSO_NA_GRADUAÇÃO!D107) -> 59 | G107: 0.2711864407
A108: =ALUNO_GRAD_TEMPO_INTEGRAL!A109 -> LICENCIATURA EM LETRAS - LIBRAS - 88A | B108: =ALUNO_GRAD_TEMPO_INTEGRAL!B109 -> 1268983 | C108: =ALUNO_GRAD_TEMPO_INTEGRAL!D109 -> 4 | D108: =INÍCIO!$C$4-C108 -> 2018 | E108: =ALUNO_GRAD_TEMPO_INTEGRAL!C109 -> 11 | F108: =SUMIFS(Ingressantes!F:F,Ingressantes!C:C,TAXA_DE_SUCESSO_NA_GRADUAÇÃO!A108,Ingressantes!A:A,TAXA_DE_SUCESSO_NA_GRADUAÇÃO!D108) -> 31 | G108: 0.3548387097
A109: =ALUNO_GRAD_TEMPO_INTEGRAL!A110 -> LICENCIATURA EM MÚSICA - 89A | B109: =ALUNO_GRAD_TEMPO_INTEGRAL!B110 -> 1278855 | C109: =ALUNO_GRAD_TEMPO_INTEGRAL!D110 -> 4 | D109: =INÍCIO!$C$4-C109 -> 2018 | E109: =ALUNO_GRAD_TEMPO_INTEGRAL!C110 -> 9 | F109: =SUMIFS(Ingressantes!F:F,Ingressantes!C:C,TAXA_DE_SUCESSO_NA_GRADUAÇÃO!A109,Ingressantes!A:A,TAXA_DE_SUCESSO_NA_GRADUAÇÃO!D109) -> 16 | G109: 0.5625
A110: =ALUNO_GRAD_TEMPO_INTEGRAL!A111 -> MATEMÁTICA - 65F | B110: =ALUNO_GRAD_TEMPO_INTEGRAL!B111 -> 313102 | C110: =ALUNO_GRAD_TEMPO_INTEGRAL!D111 -> 2 | D110: =INÍCIO!$C$4-C110 -> 2020 | E110: =ALUNO_GRAD_TEMPO_INTEGRAL!C111 -> 2 | F110: =SUMIFS(Ingressantes!F:F,Ingressantes!C:C,TAXA_DE_SUCESSO_NA_GRADUAÇÃO!A110,Ingressantes!A:A,TAXA_DE_SUCESSO_NA_GRADUAÇÃO!D110) -> 32 | G110: 0.0625
A111: =ALUNO_GRAD_TEMPO_INTEGRAL!A112 -> MATEMÁTICA - 65FL | B111: =ALUNO_GRAD_TEMPO_INTEGRAL!B112 -> 13102 | C111: =ALUNO_GRAD_TEMPO_INTEGRAL!D112 -> 2 | D111: =INÍCIO!$C$4-C111 -> 2020 | E111: =ALUNO_GRAD_TEMPO_INTEGRAL!C112 -> 3 | F111: =SUMIFS(Ingressantes!F:F,Ingressantes!C:C,TAXA_DE_SUCESSO_NA_GRADUAÇÃO!A111,Ingressantes!A:A,TAXA_DE_SUCESSO_NA_GRADUAÇÃO!D111) -> 0 | G111: 0
A112: =ALUNO_GRAD_TEMPO_INTEGRAL!A113 -> MATEMÁTICA - 82A | B112: =ALUNO_GRAD_TEMPO_INTEGRAL!B113 -> 1166038 | C112: =ALUNO_GRAD_TEMPO_INTEGRAL!D113 -> 4 | D112: =INÍCIO!$C$4-C112 -> 2018 | E112: =ALUNO_GRAD_TEMPO_INTEGRAL!C113 -> 6 | F112: =SUMIFS(Ingressantes!F:F,Ingressantes!C:C,TAXA_DE_SUCESSO_NA_GRADUAÇÃO!A112,Ingressantes!A:A,TAXA_DE_SUCESSO_NA_GRADUAÇÃO!D112) -> 35 | G112: 0.1714285714
A113: =ALUNO_GRAD_TEMPO_INTEGRAL!A114 -> MEDICINA - 07GV | B113: =ALUNO_GRAD_TEMPO_INTEGRAL!B114 -> 5001167 | C113: =ALUNO_GRAD_TEMPO_INTEGRAL!D114 -> 6 | D113: =INÍCIO!$C$4-C113 -> 2016 | E113: =ALUNO_GRAD_TEMPO_INTEGRAL!C114 -> 71 | F113: =SUMIFS(Ingressantes!F:F,Ingressantes!C:C,TAXA_DE_SUCESSO_NA_GRADUAÇÃO!A113,Ingressantes!A:A,TAXA_DE_SUCESSO_NA_GRADUAÇÃO!D113) -> 119 | G113: 0.5966386555
A114: =ALUNO_GRAD_TEMPO_INTEGRAL!A115 -> MEDICINA - 15A | B114: =ALUNO_GRAD_TEMPO_INTEGRAL!B115 -> 13103 | C114: =ALUNO_GRAD_TEMPO_INTEGRAL!D115 -> 6 | D114: =INÍCIO!$C$4-C114 -> 2016 | E114: =ALUNO_GRAD_TEMPO_INTEGRAL!C115 -> 149 | F114: =SUMIFS(Ingressantes!F:F,Ingressantes!C:C,TAXA_DE_SUCESSO_NA_GRADUAÇÃO!A114,Ingressantes!A:A,TAXA_DE_SUCESSO_NA_GRADUAÇÃO!D114) -> 223 | G114: 0.668161435
A115: =ALUNO_GRAD_TEMPO_INTEGRAL!A116 -> MEDICINA VETERINÁRIA - 87A | B115: =ALUNO_GRAD_TEMPO_INTEGRAL!B116 -> 1268972 | C115: =ALUNO_GRAD_TEMPO_INTEGRAL!D116 -> 5 | D115: =INÍCIO!$C$4-C115 -> 2017 | E115: =ALUNO_GRAD_TEMPO_INTEGRAL!C116 -> 33 | F115: =SUMIFS(Ingressantes!F:F,Ingressantes!C:C,TAXA_DE_SUCESSO_NA_GRADUAÇÃO!A115,Ingressantes!A:A,TAXA_DE_SUCESSO_NA_GRADUAÇÃO!D115) -> 109 | G115: 0.3027522936
A116: =ALUNO_GRAD_TEMPO_INTEGRAL!A117 -> MÚSICA - CANTO - 63A | B116: =ALUNO_GRAD_TEMPO_INTEGRAL!B117 -> 116490 | C116: =ALUNO_GRAD_TEMPO_INTEGRAL!D117 -> 4 | D116: =INÍCIO!$C$4-C116 -> 2018 | E116: =ALUNO_GRAD_TEMPO_INTEGRAL!C117 -> 2 | F116: =SUMIFS(Ingressantes!F:F,Ingressantes!C:C,TAXA_DE_SUCESSO_NA_GRADUAÇÃO!A116,Ingressantes!A:A,TAXA_DE_SUCESSO_NA_GRADUAÇÃO!D116) -> 0 | G116: 0
A117: =ALUNO_GRAD_TEMPO_INTEGRAL!A118 -> MÚSICA - MODALIDADE COMPOSIÇÃO - 63G | B117: =ALUNO_GRAD_TEMPO_INTEGRAL!B118 -> 1271995 | C117: =ALUNO_GRAD_TEMPO_INTEGRAL!D118 -> 4 | D117: =INÍCIO!$C$4-C117 -> 2018 | E117: =ALUNO_GRAD_TEMPO_INTEGRAL!C118 -> 4 | F117: =SUMIFS(Ingressantes!F:F,Ingressantes!C:C,TAXA_DE_SUCESSO_NA_GRADUAÇÃO!A117,Ingressantes!A:A,TAXA_DE_SUCESSO_NA_GRADUAÇÃO!D117) -> 8 | G117: 0.5
A118: =ALUNO_GRAD_TEMPO_INTEGRAL!A119 -> MÚSICA - MODALIDADE FLAUTA TRANSVERSAL - 63B | B118: =ALUNO_GRAD_TEMPO_INTEGRAL!B119 -> 116491 | C118: =ALUNO_GRAD_TEMPO_INTEGRAL!D119 -> 4 | D118: =INÍCIO!$C$4-C118 -> 2018 | E118: =ALUNO_GRAD_TEMPO_INTEGRAL!C119 -> 2 | F118: =SUMIFS(Ingressantes!F:F,Ingressantes!C:C,TAXA_DE_SUCESSO_NA_GRADUAÇÃO!A118,Ingressantes!A:A,TAXA_DE_SUCESSO_NA_GRADUAÇÃO!D118) -> 0 | G118: 0
A119: =ALUNO_GRAD_TEMPO_INTEGRAL!A120 -> MÚSICA - MODALIDADE PIANO - 63C | B119: =ALUNO_GRAD_TEMPO_INTEGRAL!B120 -> 116492 | C119: =ALUNO_GRAD_TEMPO_INTEGRAL!D120 -> 4 | D119: =INÍCIO!$C$4-C119 -> 2018 | E119: =ALUNO_GRAD_TEMPO_INTEGRAL!C120 -> 0 | F119: =SUMIFS(Ingressantes!F:F,Ingressantes!C:C,TAXA_DE_SUCESSO_NA_GRADUAÇÃO!A119,Ingressantes!A:A,TAXA_DE_SUCESSO_NA_GRADUAÇÃO!D119) -> 0 | G119: 0
A120: =ALUNO_GRAD_TEMPO_INTEGRAL!A121 -> MÚSICA - MODALIDADE VIOLÃO - 63D | B120: =ALUNO_GRAD_TEMPO_INTEGRAL!B121 -> 116493 | C120: =ALUNO_GRAD_TEMPO_INTEGRAL!D121 -> 4 | D120: =INÍCIO!$C$4-C120 -> 2018 | E120: =ALUNO_GRAD_TEMPO_INTEGRAL!C121 -> 2 | F120: =SUMIFS(Ingressantes!F:F,Ingressantes!C:C,TAXA_DE_SUCESSO_NA_GRADUAÇÃO!A120,Ingressantes!A:A,TAXA_DE_SUCESSO_NA_GRADUAÇÃO!D120) -> 0 | G120: 0
A121: =ALUNO_GRAD_TEMPO_INTEGRAL!A122 -> MÚSICA - MODALIDADE VIOLINO - 63E | B121: =ALUNO_GRAD_TEMPO_INTEGRAL!B122 -> 116494 | C121: =ALUNO_GRAD_TEMPO_INTEGRAL!D122 -> 4 | D121: =INÍCIO!$C$4-C121 -> 2018 | E121: =ALUNO_GRAD_TEMPO_INTEGRAL!C122 -> 2 | F121: =SUMIFS(Ingressantes!F:F,Ingressantes!C:C,TAXA_DE_SUCESSO_NA_GRADUAÇÃO!A121,Ingressantes!A:A,TAXA_DE_SUCESSO_NA_GRADUAÇÃO!D121) -> 2 | G121: 1
A122: =ALUNO_GRAD_TEMPO_INTEGRAL!A123 -> MÚSICA - MODALIDADE VIOLONCELO - 63F | B122: =ALUNO_GRAD_TEMPO_INTEGRAL!B123 -> 116495 | C122: =ALUNO_GRAD_TEMPO_INTEGRAL!D123 -> 4 | D122: =INÍCIO!$C$4-C122 -> 2018 | E122: =ALUNO_GRAD_TEMPO_INTEGRAL!C123 -> 0 | F122: =SUMIFS(Ingressantes!F:F,Ingressantes!C:C,TAXA_DE_SUCESSO_NA_GRADUAÇÃO!A122,Ingressantes!A:A,TAXA_DE_SUCESSO_NA_GRADUAÇÃO!D122) -> 0 | G122: 0
